Workbook

Sheet Tisk Školy (hidden)
A1: x
A2: x | B2: ='Jídelní lístek'!#REF! ->  | D2: =IF(F2=1,"Neděle ","")&IF(F2=2,"Pondělí ","")&IF(F2=3,"Úterý ","")&IF(F2=4,"Středa ","")&IF(F2=5,"Čtvrtek ","")&IF(F2=6,"Pátek ","")&IF(F2=7,"Sobota ","") ->  | E2: Alergeny | F2: =WEEKDAY(B2) -> 
C3: x
B4: Snídaně | D4: Snídaňový bufet
B6: Oběd | D6: =_xlfn.XLOOKUP(1,JL!#REF!,JL!C$6:C$199) ->  | E6: =_xlfn.XLOOKUP(1,JL!#REF!,JL!G$6:G$199) -> 
D7: =_xlfn.XLOOKUP(6,JL!#REF!,JL!C$6:C$199) ->  | E7: =_xlfn.XLOOKUP(1,JL!#REF!,JL!G$6:G$199) -> 
B9: Večeře | D9: =_xlfn.XLOOKUP(8,JL!#REF!,JL!C$6:C$199) ->  | E9: =_xlfn.XLOOKUP(3,JL!#REF!,JL!G$6:G$199) -> 
D10: =_xlfn.XLOOKUP(4,JL!#REF!,JL!C$6:C$199) -> 
B12: ='Jídelní lístek'!#REF! ->  | D12: =IF(F12=1,"Neděle ","")&IF(F12=2,"Pondělí ","")&IF(F12=3,"Úterý ","")&IF(F12=4,"Středa ","")&IF(F12=5,"Čtvrtek ","")&IF(F12=6,"Pátek ","")&IF(F12=7,"Sobota ","") ->  | E12: Alergeny | F12: =WEEKDAY(B12) -> 
C13: x
B14: Snídaně | D14: Snídaňový bufet
B16: Oběd | D16: =_xlfn.XLOOKUP(1,JL!#REF!,JL!C$6:C$199) -> 
D17: =_xlfn.XLOOKUP(6,JL!#REF!,JL!C$6:C$199) -> 
B19: Večeře | D19: =_xlfn.XLOOKUP(8,JL!#REF!,JL!C$6:C$199) -> 
D20: =_xlfn.XLOOKUP(4,JL!#REF!,JL!C$6:C$199) -> 
B22: ='Jídelní lístek'!#REF! ->  | D22: =IF(F22=1,"Neděle ","")&IF(F22=2,"Pondělí ","")&IF(F22=3,"Úterý ","")&IF(F22=4,"Středa ","")&IF(F22=5,"Čtvrtek ","")&IF(F22=6,"Pátek ","")&IF(F22=7,"Sobota ","") ->  | E22: Alergeny | F22: =WEEKDAY(B22) -> 
C23: x
B24: Snídaně | D24: Snídaňový bufet
B26: Oběd | D26: =_xlfn.XLOOKUP(1,JL!#REF!,JL!C$6:C$199) -> 
D27: =_xlfn.XLOOKUP(6,JL!#REF!,JL!C$6:C$199) -> 
B29: Večeře | D29: =_xlfn.XLOOKUP(8,JL!#REF!,JL!C$6:C$199) -> 
D30: =_xlfn.XLOOKUP(4,JL!#REF!,JL!C$6:C$199) -> 
B32: ='Jídelní lístek'!#REF! ->  | D32: =IF(F32=1,"Neděle ","")&IF(F32=2,"Pondělí ","")&IF(F32=3,"Úterý ","")&IF(F32=4,"Středa ","")&IF(F32=5,"Čtvrtek ","")&IF(F32=6,"Pátek ","")&IF(F32=7,"Sobota ","") ->  | E32: Alergeny | F32: =WEEKDAY(B32) -> 
C33: x
B34: Snídaně | D34: Snídaňový bufet
B36: Oběd | D36: =_xlfn.XLOOKUP(1,JL!#REF!,JL!C$6:C$199) -> 
B38: Večeře | D38: =_xlfn.XLOOKUP(2,JL!#REF!,JL!C$6:C$199) ->  | E38: =_xlfn.XLOOKUP(2,JL!#REF!,JL!G$6:G$199) -> 
D39: =_xlfn.XLOOKUP(4,JL!#REF!,JL!C$6:C$199) -> 
B41: ='Jídelní lístek'!#REF! ->  | D41: =IF(F41=1,"Neděle ","")&IF(F41=2,"Pondělí ","")&IF(F41=3,"Úterý ","")&IF(F41=4,"Středa ","")&IF(F41=5,"Čtvrtek ","")&IF(F41=6,"Pátek ","")&IF(F41=7,"Sobota ","") ->  | E41: Alergeny | F41: =WEEKDAY(B41) -> 
C42: x
B43: Snídaně | D43: Snídaňový bufet
B45: Oběd | D45: =_xlfn.XLOOKUP(1,JL!#REF!,JL!C$6:C$199) ->  | E45: =_xlfn.XLOOKUP(2,JL!#REF!,JL!G$6:G$199) -> 
D46: =_xlfn.XLOOKUP(6,JL!#REF!,JL!C$6:C$199) -> 
B48: Večeře | D48: =_xlfn.XLOOKUP(8,JL!#REF!,JL!C$6:C$199) -> 
D49: =_xlfn.XLOOKUP(4,JL!#REF!,JL!C$6:C$199) -> 
B51: ='Jídelní lístek'!#REF! ->  | D51: =IF(F51=1,"Neděle ","")&IF(F51=2,"Pondělí ","")&IF(F51=3,"Úterý ","")&IF(F51=4,"Středa ","")&IF(F51=5,"Čtvrtek ","")&IF(F51=6,"Pátek ","")&IF(F51=7,"Sobota ","") ->  | E51: Alergeny | F51: =WEEKDAY(B51) -> 
C52: x
B53: Snídaně | D53: Snídaňový bufet
B55: Oběd | D55: =_xlfn.XLOOKUP(1,JL!#REF!,JL!C$6:C$199) ->  | E55: =_xlfn.XLOOKUP(2,JL!#REF!,JL!G$6:G$199) -> 
D56: =_xlfn.XLOOKUP(6,JL!#REF!,JL!C$6:C$199) -> 
B58: Večeře | D58: =_xlfn.XLOOKUP(8,JL!#REF!,JL!C$6:C$199) -> 
D59: =_xlfn.XLOOKUP(4,JL!#REF!,JL!C$6:C$199) -> 
B61: ='Jídelní lístek'!#REF! ->  | D61: =IF(F61=1,"Neděle ","")&IF(F61=2,"Pondělí ","")&IF(F61=3,"Úterý ","")&IF(F61=4,"Středa ","")&IF(F61=5,"Čtvrtek ","")&IF(F61=6,"Pátek ","")&IF(F61=7,"Sobota ","") ->  | E61: Alergeny | F61: =WEEKDAY(B61) -> 
C62: x
B63: Snídaně | D63: Snídaňový bufet
B65: Oběd | D65: =_xlfn.XLOOKUP(1,JL!#REF!,JL!C$6:C$199) ->  | E65: =_xlfn.XLOOKUP(2,JL!#REF!,JL!G$6:G$199) -> 
D66: =_xlfn.XLOOKUP(6,JL!#REF!,JL!C$6:C$199) -> 
B68: Večeře | D68: =_xlfn.XLOOKUP(8,JL!#REF!,JL!C$6:C$199) -> 
D69: =_xlfn.XLOOKUP(4,JL!#REF!,JL!C$6:C$199) -> 
B71: ='Jídelní lístek'!#REF! ->  | D71: =IF(F71=1,"Neděle ","")&IF(F71=2,"Pondělí ","")&IF(F71=3,"Úterý ","")&IF(F71=4,"Středa ","")&IF(F71=5,"Čtvrtek ","")&IF(F71=6,"Pátek ","")&IF(F71=7,"Sobota ","") ->  | E71: Alergeny | F71: =WEEKDAY(B71) -> 
C72: x
B73: Snídaně | D73: Snídaňový bufet
B75: Oběd | D75: =_xlfn.XLOOKUP(1,JL!#REF!,JL!C$6:C$199) -> 
D76: =_xlfn.XLOOKUP(6,JL!#REF!,JL!C$6:C$199) -> 
B78: Večeře | D78: =_xlfn.XLOOKUP(8,JL!#REF!,JL!C$6:C$199) -> 
D79: =_xlfn.XLOOKUP(4,JL!#REF!,JL!C$6:C$199) -> 
B81: ='Jídelní lístek'!#REF! ->  | D81: =IF(F81=1,"Neděle ","")&IF(F81=2,"Pondělí ","")&IF(F81=3,"Úterý ","")&IF(F81=4,"Středa ","")&IF(F81=5,"Čtvrtek ","")&IF(F81=6,"Pátek ","")&IF(F81=7,"Sobota ","") ->  | E81: Alergeny | F81: =WEEKDAY(B81) -> 
C82: x
B83: Snídaně | D83: Snídaňový bufet
B85: Oběd | D85: =_xlfn.XLOOKUP(1,JL!#REF!,JL!C$6:C$199) -> 
D86: =_xlfn.XLOOKUP(6,JL!#REF!,JL!C$6:C$199) -> 
B88: Večeře | D88: =_xlfn.XLOOKUP(8,JL!#REF!,JL!C$6:C$199) -> 
D89: =_xlfn.XLOOKUP(4,JL!#REF!,JL!C$6:C$199) -> 
B91: ='Jídelní lístek'!#REF! ->  | D91: =IF(F91=1,"Neděle ","")&IF(F91=2,"Pondělí ","")&IF(F91=3,"Úterý ","")&IF(F91=4,"Středa ","")&IF(F91=5,"Čtvrtek ","")&IF(F91=6,"Pátek ","")&IF(F91=7,"Sobota ","") ->  | E91: Alergeny | F91: =WEEKDAY(B91) -> 
C92: x
B93: Snídaně | D93: Snídaňový bufet
B95: Oběd | D95: =_xlfn.XLOOKUP(1,JL!#REF!,JL!C$6:C$199) -> 
D96: =_xlfn.XLOOKUP(6,JL!#REF!,JL!C$6:C$199) -> 
B98: Večeře | D98: =_xlfn.XLOOKUP(8,JL!#REF!,JL!C$6:C$199) -> 
D99: =_xlfn.XLOOKUP(4,JL!#REF!,JL!C$6:C$199) -> 
B101: ='Jídelní lístek'!#REF! ->  | D101: =IF(F101=1,"Neděle ","")&IF(F101=2,"Pondělí ","")&IF(F101=3,"Úterý ","")&IF(F101=4,"Středa ","")&IF(F101=5,"Čtvrtek ","")&IF(F101=6,"Pátek ","")&IF(F101=7,"Sobota ","") ->  | E101: Alergeny | F101: =WEEKDAY(B101) -> 
C102: x
B103: Snídaně | D103: Snídaňový bufet
B105: Oběd | D105: =_xlfn.XLOOKUP(1,JL!#REF!,JL!C$6:C$199) -> 
D106: =_xlfn.XLOOKUP(6,JL!#REF!,JL!C$6:C$199) -> 
B108: Večeře | D108: =_xlfn.XLOOKUP(8,JL!#REF!,JL!C$6:C$199) -> 
D109: =_xlfn.XLOOKUP(4,JL!#REF!,JL!C$6:C$199) -> 
B111: ='Jídelní lístek'!#REF! ->  | D111: =IF(F111=1,"Neděle ","")&IF(F111=2,"Pondělí ","")&IF(F111=3,"Úterý ","")&IF(F111=4,"Středa ","")&IF(F111=5,"Čtvrtek ","")&IF(F111=6,"Pátek ","")&IF(F111=7,"Sobota ","") ->  | E111: Alergeny | F111: =WEEKDAY(B111) -> 
C112: x
B113: Snídaně | D113: Snídaňový bufet
B115: Oběd | D115: =_xlfn.XLOOKUP(1,JL!#REF!,JL!C$6:C$199) -> 
D116: =_xlfn.XLOOKUP(6,JL!#REF!,JL!C$6:C$199) -> 
B118: Večeře | D118: =_xlfn.XLOOKUP(8,JL!#REF!,JL!C$6:C$199) -> 
D119: =_xlfn.XLOOKUP(4,JL!#REF!,JL!C$6:C$199) -> 
B121: ='Jídelní lístek'!#REF! ->  | D121: =IF(F121=1,"Neděle ","")&IF(F121=2,"Pondělí ","")&IF(F121=3,"Úterý ","")&IF(F121=4,"Středa ","")&IF(F121=5,"Čtvrtek ","")&IF(F121=6,"Pátek ","")&IF(F121=7,"Sobota ","") ->  | E121: Alergeny | F121: =WEEKDAY(B121) -> 
C122: x
B123: Snídaně | D123: Snídaňový bufet
B125: Oběd | D125: =_xlfn.XLOOKUP(1,JL!#REF!,JL!C$6:C$199) -> 
D126: =_xlfn.XLOOKUP(6,JL!#REF!,JL!C$6:C$199) -> 
B128: Večeře | D128: =_xlfn.XLOOKUP(8,JL!#REF!,JL!C$6:C$199) -> 
D129: =_xlfn.XLOOKUP(4,JL!#REF!,JL!C$6:C$199) -> 
B131: ='Jídelní lístek'!#REF! ->  | D131: =IF(F131=1,"Neděle ","")&IF(F131=2,"Pondělí ","")&IF(F131=3,"Úterý ","")&IF(F131=4,"Středa ","")&IF(F131=5,"Čtvrtek ","")&IF(F131=6,"Pátek ","")&IF(F131=7,"Sobota ","") ->  | E131: Alergeny | F131: =WEEKDAY(B131) -> 
C132: x
B133: Snídaně | D133: Snídaňový bufet
B135: Oběd | D135: =_xlfn.XLOOKUP(1,JL!#REF!,JL!C$6:C$199) -> 
D136: =_xlfn.XLOOKUP(6,JL!#REF!,JL!C$6:C$199) -> 
B138: Večeře | D138: =_xlfn.XLOOKUP(8,JL!#REF!,JL!C$6:C$199) -> 
D139: =_xlfn.XLOOKUP(4,JL!#REF!,JL!C$6:C$199) -> 
B141: ='Jídelní lístek'!#REF! ->  | D141: =IF(F141=1,"Neděle ","")&IF(F141=2,"Pondělí ","")&IF(F141=3,"Úterý ","")&IF(F141=4,"Středa ","")&IF(F141=5,"Čtvrtek ","")&IF(F141=6,"Pátek ","")&IF(F141=7,"Sobota ","") ->  | E141: Alergeny | F141: =WEEKDAY(B141) -> 
C142: x
B143: Snídaně | D143: Snídaňový bufet
B145: Oběd | D145: =_xlfn.XLOOKUP(1,JL!#REF!,JL!C$6:C$199) -> 
D146: =_xlfn.XLOOKUP(6,JL!#REF!,JL!C$6:C$199) -> 
B148: Večeře | D148: =_xlfn.XLOOKUP(8,JL!#REF!,JL!C$6:C$199) -> 
D149: =_xlfn.XLOOKUP(4,JL!#REF!,JL!C$6:C$199) -> 
B151: ='Jídelní lístek'!#REF! ->  | D151: =IF(F151=1,"Neděle ","")&IF(F151=2,"Pondělí ","")&IF(F151=3,"Úterý ","")&IF(F151=4,"Středa ","")&IF(F151=5,"Čtvrtek ","")&IF(F151=6,"Pátek ","")&IF(F151=7,"Sobota ","") ->  | E151: Alergeny | F151: =WEEKDAY(B151) -> 
C152: x
B153: Snídaně | D153: Snídaňový bufet
B155: Oběd | D155: =_xlfn.XLOOKUP(1,JL!#REF!,JL!C$6:C$199) -> 
D156: =_xlfn.XLOOKUP(6,JL!#REF!,JL!C$6:C$199) -> 
B158: Večeře | D158: =_xlfn.XLOOKUP(8,JL!#REF!,JL!C$6:C$199) -> 
D159: =_xlfn.XLOOKUP(4,JL!#REF!,JL!C$6:C$199) -> 
B161: ='Jídelní lístek'!#REF! ->  | D161: =IF(F161=1,"Neděle ","")&IF(F161=2,"Pondělí ","")&IF(F161=3,"Úterý ","")&IF(F161=4,"Středa ","")&IF(F161=5,"Čtvrtek ","")&IF(F161=6,"Pátek ","")&IF(F161=7,"Sobota ","") ->  | E161: Alergeny | F161: =WEEKDAY(B161) -> 
C162: x
B163: Snídaně | D163: Snídaňový bufet
B165: Oběd | D165: =_xlfn.XLOOKUP(1,JL!#REF!,JL!C$6:C$199) -> 
D166: =_xlfn.XLOOKUP(6,JL!#REF!,JL!C$6:C$199) -> 
B168: Večeře | D168: =_xlfn.XLOOKUP(8,JL!#REF!,JL!C$6:C$199) -> 
D169: =_xlfn.XLOOKUP(4,JL!#REF!,JL!C$6:C$199) -> 
B171: ='Jídelní lístek'!#REF! ->  | D171: =IF(F171=1,"Neděle ","")&IF(F171=2,"Pondělí ","")&IF(F171=3,"Úterý ","")&IF(F171=4,"Středa ","")&IF(F171=5,"Čtvrtek ","")&IF(F171=6,"Pátek ","")&IF(F171=7,"Sobota ","") ->  | E171: Alergeny | F171: =WEEKDAY(B171) -> 
C172: x
B173: Snídaně | D173: Snídaňový bufet
B175: Oběd | D175: =_xlfn.XLOOKUP(1,JL!#REF!,JL!C$6:C$199) -> 
D176: =_xlfn.XLOOKUP(6,JL!#REF!,JL!C$6:C$199) -> 
B178: Večeře | D178: =_xlfn.XLOOKUP(8,JL!#REF!,JL!C$6:C$199) -> 
D179: =_xlfn.XLOOKUP(4,JL!#REF!,JL!C$6:C$199) -> 
B181: ='Jídelní lístek'!#REF! ->  | D181: =IF(F181=1,"Neděle ","")&IF(F181=2,"Pondělí ","")&IF(F181=3,"Úterý ","")&IF(F181=4,"Středa ","")&IF(F181=5,"Čtvrtek ","")&IF(F181=6,"Pátek ","")&IF(F181=7,"Sobota ","") ->  | E181: Alergeny | F181: =WEEKDAY(B181) -> 
C182: x
B183: Snídaně | D183: Snídaňový bufet
B185: Oběd | D185: =_xlfn.XLOOKUP(1,JL!#REF!,JL!C$6:C$199) -> 
D186: =_xlfn.XLOOKUP(6,JL!#REF!,JL!C$6:C$199) -> 
B188: Večeře | D188: =_xlfn.XLOOKUP(8,JL!#REF!,JL!C$6:C$199) -> 
D189: =_xlfn.XLOOKUP(4,JL!#REF!,JL!C$6:C$199) -> 
B191: ='Jídelní lístek'!#REF! ->  | D191: =IF(F191=1,"Neděle ","")&IF(F191=2,"Pondělí ","")&IF(F191=3,"Úterý ","")&IF(F191=4,"Středa ","")&IF(F191=5,"Čtvrtek ","")&IF(F191=6,"Pátek ","")&IF(F191=7,"Sobota ","") ->  | E191: Alergeny | F191: =WEEKDAY(B191) -> 
C192: x
B193: Snídaně | D193: Snídaňový bufet
B195: Oběd | D195: =_xlfn.XLOOKUP(1,JL!#REF!,JL!C$6:C$199) -> 
D196: =_xlfn.XLOOKUP(6,JL!#REF!,JL!C$6:C$199) -> 
B198: Večeře | D198: =_xlfn.XLOOKUP(8,JL!#REF!,JL!C$6:C$199) -> 
D199: =_xlfn.XLOOKUP(4,JL!#REF!,JL!C$6:C$199) -> 
B201: ='Jídelní lístek'!#REF! ->  | D201: =IF(F201=1,"Neděle ","")&IF(F201=2,"Pondělí ","")&IF(F201=3,"Úterý ","")&IF(F201=4,"Středa ","")&IF(F201=5,"Čtvrtek ","")&IF(F201=6,"Pátek ","")&IF(F201=7,"Sobota ","") ->  | E201: Alergeny | F201: =WEEKDAY(B201) -> 
C202: x
B203: Snídaně | D203: Snídaňový bufet
B205: Oběd | D205: =_xlfn.XLOOKUP(1,JL!#REF!,JL!C$6:C$199) -> 
D206: =_xlfn.XLOOKUP(6,JL!#REF!,JL!C$6:C$199) -> 
B208: Večeře | D208: =_xlfn.XLOOKUP(8,JL!#REF!,JL!C$6:C$199) -> 
D209: =_xlfn.XLOOKUP(4,JL!#REF!,JL!C$6:C$199) -> 
B211: ='Jídelní lístek'!#REF! ->  | D211: =IF(F211=1,"Neděle ","")&IF(F211=2,"Pondělí ","")&IF(F211=3,"Úterý ","")&IF(F211=4,"Středa ","")&IF(F211=5,"Čtvrtek ","")&IF(F211=6,"Pátek ","")&IF(F211=7,"Sobota ","") ->  | E211: Alergeny | F211: =WEEKDAY(B211) -> 
C212: x
B213: Snídaně | D213: Snídaňový bufet
B215: Oběd | D215: =_xlfn.XLOOKUP(1,JL!#REF!,JL!C$6:C$199) -> 
D216: =_xlfn.XLOOKUP(6,JL!#REF!,JL!C$6:C$199) -> 
B218: Večeře | D218: =_xlfn.XLOOKUP(8,JL!#REF!,JL!C$6:C$199) -> 
D219: =_xlfn.XLOOKUP(4,JL!#REF!,JL!C$6:C$199) -> 
B221: ='Jídelní lístek'!#REF! ->  | D221: =IF(F221=1,"Neděle ","")&IF(F221=2,"Pondělí ","")&IF(F221=3,"Úterý ","")&IF(F221=4,"Středa ","")&IF(F221=5,"Čtvrtek ","")&IF(F221=6,"Pátek ","")&IF(F221=7,"Sobota ","") ->  | E221: Alergeny | F221: =WEEKDAY(B221) -> 
C222: x
B223: Snídaně | D223: Snídaňový bufet
B225: Oběd | D225: =_xlfn.XLOOKUP(1,JL!#REF!,JL!C$6:C$199) -> 
D226: =_xlfn.XLOOKUP(6,JL!#REF!,JL!C$6:C$199) -> 
B228: Večeře | D228: =_xlfn.XLOOKUP(8,JL!#REF!,JL!C$6:C$199) -> 
D229: =_xlfn.XLOOKUP(4,JL!#REF!,JL!C$6:C$199) -> 
B231: ='Jídelní lístek'!#REF! ->  | D231: =IF(F231=1,"Neděle ","")&IF(F231=2,"Pondělí ","")&IF(F231=3,"Úterý ","")&IF(F231=4,"Středa ","")&IF(F231=5,"Čtvrtek ","")&IF(F231=6,"Pátek ","")&IF(F231=7,"Sobota ","") ->  | E231: Alergeny | F231: =WEEKDAY(B231) -> 
C232: x
B233: Snídaně | D233: Snídaňový bufet
B235: Oběd | D235: =_xlfn.XLOOKUP(1,JL!#REF!,JL!C$6:C$199) -> 
D236: =_xlfn.XLOOKUP(6,JL!#REF!,JL!C$6:C$199) -> 
B238: Večeře | D238: =_xlfn.XLOOKUP(8,JL!#REF!,JL!C$6:C$199) -> 
D239: =_xlfn.XLOOKUP(4,JL!#REF!,JL!C$6:C$199) -> 
B241: ='Jídelní lístek'!#REF! ->  | D241: =IF(F241=1,"Neděle ","")&IF(F241=2,"Pondělí ","")&IF(F241=3,"Úterý ","")&IF(F241=4,"Středa ","")&IF(F241=5,"Čtvrtek ","")&IF(F241=6,"Pátek ","")&IF(F241=7,"Sobota ","") ->  | E241: Alergeny | F241: =WEEKDAY(B241) -> 
C242: x
B243: Snídaně | D243: Snídaňový bufet
B245: Oběd | D245: =_xlfn.XLOOKUP(1,JL!#REF!,JL!C$6:C$199) -> 
D246: =_xlfn.XLOOKUP(6,JL!#REF!,JL!C$6:C$199) -> 
B248: Večeře | D248: =_xlfn.XLOOKUP(8,JL!#REF!,JL!C$6:C$199) -> 
D249: =_xlfn.XLOOKUP(4,JL!#REF!,JL!C$6:C$199) -> 
B251: ='Jídelní lístek'!#REF! ->  | D251: =IF(F251=1,"Neděle ","")&IF(F251=2,"Pondělí ","")&IF(F251=3,"Úterý ","")&IF(F251=4,"Středa ","")&IF(F251=5,"Čtvrtek ","")&IF(F251=6,"Pátek ","")&IF(F251=7,"Sobota ","") ->  | E251: Alergeny | F251: =WEEKDAY(B251) -> 
C252: x
B253: Snídaně | D253: Snídaňový bufet
B255: Oběd | D255: =_xlfn.XLOOKUP(1,JL!#REF!,JL!C$6:C$199) -> 
D256: =_xlfn.XLOOKUP(6,JL!#REF!,JL!C$6:C$199) -> 
B258: Večeře | D258: =_xlfn.XLOOKUP(8,JL!#REF!,JL!C$6:C$199) -> 
D259: =_xlfn.XLOOKUP(4,JL!#REF!,JL!C$6:C$199) -> 
B261: ='Jídelní lístek'!#REF! ->  | D261: =IF(F261=1,"Neděle ","")&IF(F261=2,"Pondělí ","")&IF(F261=3,"Úterý ","")&IF(F261=4,"Středa ","")&IF(F261=5,"Čtvrtek ","")&IF(F261=6,"Pátek ","")&IF(F261=7,"Sobota ","") ->  | E261: Alergeny | F261: =WEEKDAY(B261) -> 
C262: x
B263: Snídaně | D263: Snídaňový bufet
B265: Oběd | D265: =_xlfn.XLOOKUP(1,JL!#REF!,JL!C$6:C$199) -> 
D266: =_xlfn.XLOOKUP(6,JL!#REF!,JL!C$6:C$199) -> 
B268: Večeře | D268: =_xlfn.XLOOKUP(8,JL!#REF!,JL!C$6:C$199) -> 
D269: =_xlfn.XLOOKUP(4,JL!#REF!,JL!C$6:C$199) -> 
B271: ='Jídelní lístek'!#REF! ->  | D271: =IF(F271=1,"Neděle ","")&IF(F271=2,"Pondělí ","")&IF(F271=3,"Úterý ","")&IF(F271=4,"Středa ","")&IF(F271=5,"Čtvrtek ","")&IF(F271=6,"Pátek ","")&IF(F271=7,"Sobota ","") ->  | E271: Alergeny | F271: =WEEKDAY(B271) -> 
C272: x
B273: Snídaně | D273: Snídaňový bufet
B275: Oběd | D275: =_xlfn.XLOOKUP(1,JL!#REF!,JL!C$6:C$199) -> 
D276: =_xlfn.XLOOKUP(6,JL!#REF!,JL!C$6:C$199) -> 
B278: Večeře | D278: =_xlfn.XLOOKUP(8,JL!#REF!,JL!C$6:C$199) -> 
D279: =_xlfn.XLOOKUP(4,JL!#REF!,JL!C$6:C$199) -> 
B281: ='Jídelní lístek'!#REF! ->  | D281: =IF(F281=1,"Neděle ","")&IF(F281=2,"Pondělí ","")&IF(F281=3,"Úterý ","")&IF(F281=4,"Středa ","")&IF(F281=5,"Čtvrtek ","")&IF(F281=6,"Pátek ","")&IF(F281=7,"Sobota ","") ->  | E281: Alergeny | F281: =WEEKDAY(B281) -> 
C282: x
B283: Snídaně | D283: Snídaňový bufet
B285: Oběd | D285: =_xlfn.XLOOKUP(1,JL!#REF!,JL!C$6:C$199) -> 
... 573 more rows

Sheet Tisk Gurmáni (hidden)
A1: x
A2: x | B2: ='Jídelní lístek'!#REF! ->  | D2: =IF(F2=1,"Neděle ","")&IF(F2=2,"Pondělí ","")&IF(F2=3,"Úterý ","")&IF(F2=4,"Středa ","")&IF(F2=5,"Čtvrtek ","")&IF(F2=6,"Pátek ","")&IF(F2=7,"Sobota ","") ->  | E2: Alergeny | F2: =WEEKDAY(B2) -> 
B4: Snídaně | D4: Snídaňový bufet
B6: Večeře | D6: =_xlfn.XLOOKUP(5,JL!#REF!,JL!C$6:C$199) ->  | E6: =_xlfn.XLOOKUP(1,JL!#REF!,JL!G$6:G$199) -> 
D7: =_xlfn.XLOOKUP(1,JL!#REF!,JL!C$6:C$199) ->  | E7: =_xlfn.XLOOKUP(1,JL!#REF!,JL!G$6:G$199) -> 
C8: A | D8: =_xlfn.XLOOKUP(2,JL!#REF!,JL!C$6:C$199) ->  | E8: =_xlfn.XLOOKUP(2,JL!#REF!,JL!G$6:G$199) -> 
C9: B | D9: =_xlfn.XLOOKUP(3,JL!#REF!,JL!C$6:C$199) ->  | E9: =_xlfn.XLOOKUP(3,JL!#REF!,JL!G$6:G$199) -> 
D10: =_xlfn.XLOOKUP(4,JL!#REF!,JL!C$6:C$199) -> 
B12: ='Jídelní lístek'!#REF! ->  | D12: =IF(F12=1,"Neděle ","")&IF(F12=2,"Pondělí ","")&IF(F12=3,"Úterý ","")&IF(F12=4,"Středa ","")&IF(F12=5,"Čtvrtek ","")&IF(F12=6,"Pátek ","")&IF(F12=7,"Sobota ","") ->  | E12: Alergeny | F12: =WEEKDAY(B12) -> 
B14: Snídaně | D14: Snídaňový bufet
B16: Večeře | D16: =_xlfn.XLOOKUP(5,JL!#REF!,JL!C$6:C$199) -> 
D17: =_xlfn.XLOOKUP(1,JL!#REF!,JL!C$6:C$199) -> 
C18: A | D18: =_xlfn.XLOOKUP(2,JL!#REF!,JL!C$6:C$199) ->  | E18: =_xlfn.XLOOKUP(2,JL!#REF!,JL!G$6:G$199) -> 
C19: B | D19: =_xlfn.XLOOKUP(3,JL!#REF!,JL!C$6:C$199) -> 
D20: =_xlfn.XLOOKUP(4,JL!#REF!,JL!C$6:C$199) -> 
B22: ='Jídelní lístek'!#REF! ->  | D22: =IF(F22=1,"Neděle ","")&IF(F22=2,"Pondělí ","")&IF(F22=3,"Úterý ","")&IF(F22=4,"Středa ","")&IF(F22=5,"Čtvrtek ","")&IF(F22=6,"Pátek ","")&IF(F22=7,"Sobota ","") ->  | E22: Alergeny | F22: =WEEKDAY(B22) -> 
B24: Snídaně | D24: Snídaňový bufet
B26: Večeře | D26: =_xlfn.XLOOKUP(5,JL!#REF!,JL!C$6:C$199) -> 
D27: =_xlfn.XLOOKUP(1,JL!#REF!,JL!C$6:C$199) -> 
C28: A | D28: =_xlfn.XLOOKUP(2,JL!#REF!,JL!C$6:C$199) ->  | E28: =_xlfn.XLOOKUP(2,JL!#REF!,JL!G$6:G$199) -> 
C29: B | D29: =_xlfn.XLOOKUP(3,JL!#REF!,JL!C$6:C$199) -> 
D30: =_xlfn.XLOOKUP(4,JL!#REF!,JL!C$6:C$199) -> 
B32: ='Jídelní lístek'!#REF! ->  | D32: =IF(F32=1,"Neděle ","")&IF(F32=2,"Pondělí ","")&IF(F32=3,"Úterý ","")&IF(F32=4,"Středa ","")&IF(F32=5,"Čtvrtek ","")&IF(F32=6,"Pátek ","")&IF(F32=7,"Sobota ","") ->  | E32: Alergeny | F32: =WEEKDAY(B32) -> 
B34: Snídaně | D34: Snídaňový bufet
B36: Večeře | D36: =_xlfn.XLOOKUP(5,JL!#REF!,JL!C$6:C$199) -> 
D37: =_xlfn.XLOOKUP(1,JL!#REF!,JL!C$6:C$199) -> 
C38: A | D38: =_xlfn.XLOOKUP(2,JL!#REF!,JL!C$6:C$199) ->  | E38: =_xlfn.XLOOKUP(2,JL!#REF!,JL!G$6:G$199) -> 
C39: B | D39: =_xlfn.XLOOKUP(3,JL!#REF!,JL!C$6:C$199) -> 
D40: =_xlfn.XLOOKUP(4,JL!#REF!,JL!C$6:C$199) -> 
B42: ='Jídelní lístek'!#REF! ->  | D42: =IF(F42=1,"Neděle ","")&IF(F42=2,"Pondělí ","")&IF(F42=3,"Úterý ","")&IF(F42=4,"Středa ","")&IF(F42=5,"Čtvrtek ","")&IF(F42=6,"Pátek ","")&IF(F42=7,"Sobota ","") ->  | E42: Alergeny | F42: =WEEKDAY(B42) -> 
B44: Snídaně | D44: Snídaňový bufet
B46: Večeře | D46: =_xlfn.XLOOKUP(5,JL!#REF!,JL!C$6:C$199) -> 
D47: =_xlfn.XLOOKUP(1,JL!#REF!,JL!C$6:C$199) -> 
C48: A | D48: =_xlfn.XLOOKUP(2,JL!#REF!,JL!C$6:C$199) ->  | E48: =_xlfn.XLOOKUP(2,JL!#REF!,JL!G$6:G$199) -> 
C49: B | D49: =_xlfn.XLOOKUP(3,JL!#REF!,JL!C$6:C$199) -> 
D50: =_xlfn.XLOOKUP(4,JL!#REF!,JL!C$6:C$199) -> 
B52: ='Jídelní lístek'!#REF! ->  | D52: =IF(F52=1,"Neděle ","")&IF(F52=2,"Pondělí ","")&IF(F52=3,"Úterý ","")&IF(F52=4,"Středa ","")&IF(F52=5,"Čtvrtek ","")&IF(F52=6,"Pátek ","")&IF(F52=7,"Sobota ","") ->  | E52: Alergeny | F52: =WEEKDAY(B52) -> 
B54: Snídaně | D54: Snídaňový bufet
B56: Večeře | D56: =_xlfn.XLOOKUP(5,JL!#REF!,JL!C$6:C$199) -> 
D57: =_xlfn.XLOOKUP(1,JL!#REF!,JL!C$6:C$199) -> 
C58: A | D58: =_xlfn.XLOOKUP(2,JL!#REF!,JL!C$6:C$199) ->  | E58: =_xlfn.XLOOKUP(2,JL!#REF!,JL!G$6:G$199) -> 
C59: B | D59: =_xlfn.XLOOKUP(3,JL!#REF!,JL!C$6:C$199) -> 
D60: =_xlfn.XLOOKUP(4,JL!#REF!,JL!C$6:C$199) -> 
B62: ='Jídelní lístek'!#REF! ->  | D62: =IF(F62=1,"Neděle ","")&IF(F62=2,"Pondělí ","")&IF(F62=3,"Úterý ","")&IF(F62=4,"Středa ","")&IF(F62=5,"Čtvrtek ","")&IF(F62=6,"Pátek ","")&IF(F62=7,"Sobota ","") ->  | E62: Alergeny | F62: =WEEKDAY(B62) -> 
B64: Snídaně | D64: Snídaňový bufet
B66: Večeře | D66: =_xlfn.XLOOKUP(5,JL!#REF!,JL!C$6:C$199) -> 
D67: =_xlfn.XLOOKUP(1,JL!#REF!,JL!C$6:C$199) -> 
C68: A | D68: =_xlfn.XLOOKUP(2,JL!#REF!,JL!C$6:C$199) ->  | E68: =_xlfn.XLOOKUP(2,JL!#REF!,JL!G$6:G$199) -> 
C69: B | D69: =_xlfn.XLOOKUP(3,JL!#REF!,JL!C$6:C$199) -> 
D70: =_xlfn.XLOOKUP(4,JL!#REF!,JL!C$6:C$199) -> 
B72: ='Jídelní lístek'!#REF! ->  | D72: =IF(F72=1,"Neděle ","")&IF(F72=2,"Pondělí ","")&IF(F72=3,"Úterý ","")&IF(F72=4,"Středa ","")&IF(F72=5,"Čtvrtek ","")&IF(F72=6,"Pátek ","")&IF(F72=7,"Sobota ","") ->  | E72: Alergeny | F72: =WEEKDAY(B72) -> 
B74: Snídaně | D74: Snídaňový bufet
B76: Večeře | D76: =_xlfn.XLOOKUP(5,JL!#REF!,JL!C$6:C$199) -> 
D77: =_xlfn.XLOOKUP(1,JL!#REF!,JL!C$6:C$199) -> 
C78: A | D78: =_xlfn.XLOOKUP(2,JL!#REF!,JL!C$6:C$199) ->  | E78: =_xlfn.XLOOKUP(2,JL!#REF!,JL!G$6:G$199) -> 
C79: B | D79: =_xlfn.XLOOKUP(3,JL!#REF!,JL!C$6:C$199) -> 
D80: =_xlfn.XLOOKUP(4,JL!#REF!,JL!C$6:C$199) -> 
B82: ='Jídelní lístek'!#REF! ->  | D82: =IF(F82=1,"Neděle ","")&IF(F82=2,"Pondělí ","")&IF(F82=3,"Úterý ","")&IF(F82=4,"Středa ","")&IF(F82=5,"Čtvrtek ","")&IF(F82=6,"Pátek ","")&IF(F82=7,"Sobota ","") ->  | E82: Alergeny | F82: =WEEKDAY(B82) -> 
B84: Snídaně | D84: Snídaňový bufet
B86: Večeře | D86: =_xlfn.XLOOKUP(5,JL!#REF!,JL!C$6:C$199) -> 
D87: =_xlfn.XLOOKUP(1,JL!#REF!,JL!C$6:C$199) -> 
C88: A | D88: =_xlfn.XLOOKUP(2,JL!#REF!,JL!C$6:C$199) ->  | E88: =_xlfn.XLOOKUP(2,JL!#REF!,JL!G$6:G$199) -> 
C89: B | D89: =_xlfn.XLOOKUP(3,JL!#REF!,JL!C$6:C$199) -> 
D90: =_xlfn.XLOOKUP(4,JL!#REF!,JL!C$6:C$199) -> 
B92: ='Jídelní lístek'!#REF! ->  | D92: =IF(F92=1,"Neděle ","")&IF(F92=2,"Pondělí ","")&IF(F92=3,"Úterý ","")&IF(F92=4,"Středa ","")&IF(F92=5,"Čtvrtek ","")&IF(F92=6,"Pátek ","")&IF(F92=7,"Sobota ","") ->  | E92: Alergeny | F92: =WEEKDAY(B92) -> 
B94: Snídaně | D94: Snídaňový bufet
B96: Večeře | D96: =_xlfn.XLOOKUP(5,JL!#REF!,JL!C$6:C$199) -> 
D97: =_xlfn.XLOOKUP(1,JL!#REF!,JL!C$6:C$199) -> 
C98: A | D98: =_xlfn.XLOOKUP(2,JL!#REF!,JL!C$6:C$199) ->  | E98: =_xlfn.XLOOKUP(2,JL!#REF!,JL!G$6:G$199) -> 
C99: B | D99: =_xlfn.XLOOKUP(3,JL!#REF!,JL!C$6:C$199) -> 
D100: =_xlfn.XLOOKUP(4,JL!#REF!,JL!C$6:C$199) -> 
B102: ='Jídelní lístek'!#REF! ->  | D102: =IF(F102=1,"Neděle ","")&IF(F102=2,"Pondělí ","")&IF(F102=3,"Úterý ","")&IF(F102=4,"Středa ","")&IF(F102=5,"Čtvrtek ","")&IF(F102=6,"Pátek ","")&IF(F102=7,"Sobota ","") ->  | E102: Alergeny | F102: =WEEKDAY(B102) -> 
B104: Snídaně | D104: Snídaňový bufet
B106: Večeře | D106: =_xlfn.XLOOKUP(5,JL!#REF!,JL!C$6:C$199) -> 
D107: =_xlfn.XLOOKUP(1,JL!#REF!,JL!C$6:C$199) -> 
C108: A | D108: =_xlfn.XLOOKUP(2,JL!#REF!,JL!C$6:C$199) ->  | E108: =_xlfn.XLOOKUP(2,JL!#REF!,JL!G$6:G$199) -> 
C109: B | D109: =_xlfn.XLOOKUP(3,JL!#REF!,JL!C$6:C$199) -> 
D110: =_xlfn.XLOOKUP(4,JL!#REF!,JL!C$6:C$199) -> 
B112: ='Jídelní lístek'!#REF! ->  | D112: =IF(F112=1,"Neděle ","")&IF(F112=2,"Pondělí ","")&IF(F112=3,"Úterý ","")&IF(F112=4,"Středa ","")&IF(F112=5,"Čtvrtek ","")&IF(F112=6,"Pátek ","")&IF(F112=7,"Sobota ","") ->  | E112: Alergeny | F112: =WEEKDAY(B112) -> 
B114: Snídaně | D114: Snídaňový bufet
B116: Večeře | D116: =_xlfn.XLOOKUP(5,JL!#REF!,JL!C$6:C$199) -> 
D117: =_xlfn.XLOOKUP(1,JL!#REF!,JL!C$6:C$199) -> 
C118: A | D118: =_xlfn.XLOOKUP(2,JL!#REF!,JL!C$6:C$199) ->  | E118: =_xlfn.XLOOKUP(2,JL!#REF!,JL!G$6:G$199) -> 
C119: B | D119: =_xlfn.XLOOKUP(3,JL!#REF!,JL!C$6:C$199) -> 
D120: =_xlfn.XLOOKUP(4,JL!#REF!,JL!C$6:C$199) -> 
B122: ='Jídelní lístek'!#REF! ->  | D122: =IF(F122=1,"Neděle ","")&IF(F122=2,"Pondělí ","")&IF(F122=3,"Úterý ","")&IF(F122=4,"Středa ","")&IF(F122=5,"Čtvrtek ","")&IF(F122=6,"Pátek ","")&IF(F122=7,"Sobota ","") ->  | E122: Alergeny | F122: =WEEKDAY(B122) -> 
B124: Snídaně | D124: Snídaňový bufet
B126: Večeře | D126: =_xlfn.XLOOKUP(5,JL!#REF!,JL!C$6:C$199) -> 
D127: =_xlfn.XLOOKUP(1,JL!#REF!,JL!C$6:C$199) -> 
C128: A | D128: =_xlfn.XLOOKUP(2,JL!#REF!,JL!C$6:C$199) ->  | E128: =_xlfn.XLOOKUP(2,JL!#REF!,JL!G$6:G$199) -> 
C129: B | D129: =_xlfn.XLOOKUP(3,JL!#REF!,JL!C$6:C$199) -> 
D130: =_xlfn.XLOOKUP(4,JL!#REF!,JL!C$6:C$199) -> 
B132: ='Jídelní lístek'!#REF! ->  | D132: =IF(F132=1,"Neděle ","")&IF(F132=2,"Pondělí ","")&IF(F132=3,"Úterý ","")&IF(F132=4,"Středa ","")&IF(F132=5,"Čtvrtek ","")&IF(F132=6,"Pátek ","")&IF(F132=7,"Sobota ","") ->  | E132: Alergeny | F132: =WEEKDAY(B132) -> 
B134: Snídaně | D134: Snídaňový bufet
B136: Večeře | D136: =_xlfn.XLOOKUP(5,JL!#REF!,JL!C$6:C$199) -> 
D137: =_xlfn.XLOOKUP(1,JL!#REF!,JL!C$6:C$199) -> 
C138: A | D138: =_xlfn.XLOOKUP(2,JL!#REF!,JL!C$6:C$199) ->  | E138: =_xlfn.XLOOKUP(2,JL!#REF!,JL!G$6:G$199) -> 
C139: B | D139: =_xlfn.XLOOKUP(3,JL!#REF!,JL!C$6:C$199) -> 
D140: =_xlfn.XLOOKUP(4,JL!#REF!,JL!C$6:C$199) -> 
B142: ='Jídelní lístek'!#REF! ->  | D142: =IF(F142=1,"Neděle ","")&IF(F142=2,"Pondělí ","")&IF(F142=3,"Úterý ","")&IF(F142=4,"Středa ","")&IF(F142=5,"Čtvrtek ","")&IF(F142=6,"Pátek ","")&IF(F142=7,"Sobota ","") ->  | E142: Alergeny | F142: =WEEKDAY(B142) -> 
B144: Snídaně | D144: Snídaňový bufet
B146: Večeře | D146: =_xlfn.XLOOKUP(5,JL!#REF!,JL!C$6:C$199) -> 
D147: =_xlfn.XLOOKUP(1,JL!#REF!,JL!C$6:C$199) -> 
C148: A | D148: =_xlfn.XLOOKUP(2,JL!#REF!,JL!C$6:C$199) ->  | E148: =_xlfn.XLOOKUP(2,JL!#REF!,JL!G$6:G$199) -> 
C149: B | D149: =_xlfn.XLOOKUP(3,JL!#REF!,JL!C$6:C$199) -> 
D150: =_xlfn.XLOOKUP(4,JL!#REF!,JL!C$6:C$199) -> 
B152: ='Jídelní lístek'!#REF! ->  | D152: =IF(F152=1,"Neděle ","")&IF(F152=2,"Pondělí ","")&IF(F152=3,"Úterý ","")&IF(F152=4,"Středa ","")&IF(F152=5,"Čtvrtek ","")&IF(F152=6,"Pátek ","")&IF(F152=7,"Sobota ","") ->  | E152: Alergeny | F152: =WEEKDAY(B152) -> 
B154: Snídaně | D154: Snídaňový bufet
B156: Večeře | D156: =_xlfn.XLOOKUP(5,JL!#REF!,JL!C$6:C$199) -> 
D157: =_xlfn.XLOOKUP(1,JL!#REF!,JL!C$6:C$199) -> 
C158: A | D158: =_xlfn.XLOOKUP(2,JL!#REF!,JL!C$6:C$199) ->  | E158: =_xlfn.XLOOKUP(2,JL!#REF!,JL!G$6:G$199) -> 
C159: B | D159: =_xlfn.XLOOKUP(3,JL!#REF!,JL!C$6:C$199) -> 
D160: =_xlfn.XLOOKUP(4,JL!#REF!,JL!C$6:C$199) -> 
B162: ='Jídelní lístek'!#REF! ->  | D162: =IF(F162=1,"Neděle ","")&IF(F162=2,"Pondělí ","")&IF(F162=3,"Úterý ","")&IF(F162=4,"Středa ","")&IF(F162=5,"Čtvrtek ","")&IF(F162=6,"Pátek ","")&IF(F162=7,"Sobota ","") ->  | E162: Alergeny | F162: =WEEKDAY(B162) -> 
B164: Snídaně | D164: Snídaňový bufet
B166: Večeře | D166: =_xlfn.XLOOKUP(5,JL!#REF!,JL!C$6:C$199) -> 
D167: =_xlfn.XLOOKUP(1,JL!#REF!,JL!C$6:C$199) -> 
C168: A | D168: =_xlfn.XLOOKUP(2,JL!#REF!,JL!C$6:C$199) ->  | E168: =_xlfn.XLOOKUP(2,JL!#REF!,JL!G$6:G$199) -> 
C169: B | D169: =_xlfn.XLOOKUP(3,JL!#REF!,JL!C$6:C$199) -> 
D170: =_xlfn.XLOOKUP(4,JL!#REF!,JL!C$6:C$199) -> 
B172: ='Jídelní lístek'!#REF! ->  | D172: =IF(F172=1,"Neděle ","")&IF(F172=2,"Pondělí ","")&IF(F172=3,"Úterý ","")&IF(F172=4,"Středa ","")&IF(F172=5,"Čtvrtek ","")&IF(F172=6,"Pátek ","")&IF(F172=7,"Sobota ","") ->  | E172: Alergeny | F172: =WEEKDAY(B172) -> 
B174: Snídaně | D174: Snídaňový bufet
B176: Večeře | D176: =_xlfn.XLOOKUP(5,JL!#REF!,JL!C$6:C$199) -> 
D177: =_xlfn.XLOOKUP(1,JL!#REF!,JL!C$6:C$199) -> 
C178: A | D178: =_xlfn.XLOOKUP(2,JL!#REF!,JL!C$6:C$199) ->  | E178: =_xlfn.XLOOKUP(2,JL!#REF!,JL!G$6:G$199) -> 
C179: B | D179: =_xlfn.XLOOKUP(3,JL!#REF!,JL!C$6:C$199) -> 
D180: =_xlfn.XLOOKUP(4,JL!#REF!,JL!C$6:C$199) -> 
B182: ='Jídelní lístek'!#REF! ->  | D182: =IF(F182=1,"Neděle ","")&IF(F182=2,"Pondělí ","")&IF(F182=3,"Úterý ","")&IF(F182=4,"Středa ","")&IF(F182=5,"Čtvrtek ","")&IF(F182=6,"Pátek ","")&IF(F182=7,"Sobota ","") ->  | E182: Alergeny | F182: =WEEKDAY(B182) -> 
B184: Snídaně | D184: Snídaňový bufet
B186: Večeře | D186: =_xlfn.XLOOKUP(5,JL!#REF!,JL!C$6:C$199) -> 
B187: Večeře | D187: =_xlfn.XLOOKUP(1,JL!#REF!,JL!C$6:C$199) -> 
C188: A | D188: =_xlfn.XLOOKUP(2,JL!#REF!,JL!C$6:C$199) ->  | E188: =_xlfn.XLOOKUP(2,JL!#REF!,JL!G$6:G$199) -> 
C189: B | D189: =_xlfn.XLOOKUP(3,JL!#REF!,JL!C$6:C$199) -> 
D190: =_xlfn.XLOOKUP(4,JL!#REF!,JL!C$6:C$199) -> 
B192: ='Jídelní lístek'!#REF! ->  | D192: =IF(F192=1,"Neděle ","")&IF(F192=2,"Pondělí ","")&IF(F192=3,"Úterý ","")&IF(F192=4,"Středa ","")&IF(F192=5,"Čtvrtek ","")&IF(F192=6,"Pátek ","")&IF(F192=7,"Sobota ","") ->  | E192: Alergeny | F192: =WEEKDAY(B192) -> 
B194: Snídaně | D194: Snídaňový bufet
B196: Večeře | D196: =_xlfn.XLOOKUP(1,JL!#REF!,JL!C$6:C$199) -> 
B197: Večeře | D197: =_xlfn.XLOOKUP(1,JL!#REF!,JL!C$6:C$199) -> 
C198: A | D198: =_xlfn.XLOOKUP(2,JL!#REF!,JL!C$6:C$199) ->  | E198: =_xlfn.XLOOKUP(2,JL!#REF!,JL!G$6:G$199) -> 
C199: B | D199: =_xlfn.XLOOKUP(3,JL!#REF!,JL!C$6:C$199) -> 
D200: =_xlfn.XLOOKUP(4,JL!#REF!,JL!C$6:C$199) -> 
B202: ='Jídelní lístek'!#REF! ->  | D202: =IF(F202=1,"Neděle ","")&IF(F202=2,"Pondělí ","")&IF(F202=3,"Úterý ","")&IF(F202=4,"Středa ","")&IF(F202=5,"Čtvrtek ","")&IF(F202=6,"Pátek ","")&IF(F202=7,"Sobota ","") ->  | E202: Alergeny | F202: =WEEKDAY(B202) -> 
B204: Snídaně | D204: Snídaňový bufet
B206: Večeře | D206: =_xlfn.XLOOKUP(5,JL!#REF!,JL!C$6:C$199) -> 
B207: Večeře | D207: =_xlfn.XLOOKUP(1,JL!#REF!,JL!C$6:C$199) -> 
C208: A | D208: =_xlfn.XLOOKUP(2,JL!#REF!,JL!C$6:C$199) ->  | E208: =_xlfn.XLOOKUP(2,JL!#REF!,JL!G$6:G$199) -> 
C209: B | D209: =_xlfn.XLOOKUP(3,JL!#REF!,JL!C$6:C$199) -> 
D210: =_xlfn.XLOOKUP(4,JL!#REF!,JL!C$6:C$199) -> 
B212: ='Jídelní lístek'!#REF! ->  | D212: =IF(F212=1,"Neděle ","")&IF(F212=2,"Pondělí ","")&IF(F212=3,"Úterý ","")&IF(F212=4,"Středa ","")&IF(F212=5,"Čtvrtek ","")&IF(F212=6,"Pátek ","")&IF(F212=7,"Sobota ","") ->  | E212: Alergeny | F212: =WEEKDAY(B212) -> 
B214: Snídaně | D214: Snídaňový bufet
B216: Večeře | D216: =_xlfn.XLOOKUP(5,JL!#REF!,JL!C$6:C$199) -> 
B217: Večeře | D217: =_xlfn.XLOOKUP(1,JL!#REF!,JL!C$6:C$199) -> 
C218: A | D218: =_xlfn.XLOOKUP(2,JL!#REF!,JL!C$6:C$199) ->  | E218: =_xlfn.XLOOKUP(2,JL!#REF!,JL!G$6:G$199) -> 
C219: B | D219: =_xlfn.XLOOKUP(3,JL!#REF!,JL!C$6:C$199) -> 
D220: =_xlfn.XLOOKUP(4,JL!#REF!,JL!C$6:C$199) -> 
B222: ='Jídelní lístek'!#REF! ->  | D222: =IF(F222=1,"Neděle ","")&IF(F222=2,"Pondělí ","")&IF(F222=3,"Úterý ","")&IF(F222=4,"Středa ","")&IF(F222=5,"Čtvrtek ","")&IF(F222=6,"Pátek ","")&IF(F222=7,"Sobota ","") ->  | E222: Alergeny | F222: =WEEKDAY(B222) -> 
B224: Snídaně | D224: Snídaňový bufet
B226: Večeře | D226: =_xlfn.XLOOKUP(5,JL!#REF!,JL!C$6:C$199) -> 
B227: Večeře | D227: =_xlfn.XLOOKUP(1,JL!#REF!,JL!C$6:C$199) -> 
C228: A | D228: =_xlfn.XLOOKUP(2,JL!#REF!,JL!C$6:C$199) ->  | E228: =_xlfn.XLOOKUP(2,JL!#REF!,JL!G$6:G$199) -> 
C229: B | D229: =_xlfn.XLOOKUP(3,JL!#REF!,JL!C$6:C$199) -> 
D230: =_xlfn.XLOOKUP(4,JL!#REF!,JL!C$6:C$199) -> 
B232: ='Jídelní lístek'!#REF! ->  | D232: =IF(F232=1,"Neděle ","")&IF(F232=2,"Pondělí ","")&IF(F232=3,"Úterý ","")&IF(F232=4,"Středa ","")&IF(F232=5,"Čtvrtek ","")&IF(F232=6,"Pátek ","")&IF(F232=7,"Sobota ","") ->  | E232: Alergeny | F232: =WEEKDAY(B232) -> 
B234: Snídaně | D234: Snídaňový bufet
B236: Večeře | D236: =_xlfn.XLOOKUP(5,JL!#REF!,JL!C$6:C$199) -> 
B237: Večeře | D237: =_xlfn.XLOOKUP(1,JL!#REF!,JL!C$6:C$199) -> 
C238: A | D238: =_xlfn.XLOOKUP(2,JL!#REF!,JL!C$6:C$199) ->  | E238: =_xlfn.XLOOKUP(2,JL!#REF!,JL!G$6:G$199) -> 
C239: B | D239: =_xlfn.XLOOKUP(3,JL!#REF!,JL!C$6:C$199) -> 
D240: =_xlfn.XLOOKUP(4,JL!#REF!,JL!C$6:C$199) -> 
B242: ='Jídelní lístek'!#REF! ->  | D242: =IF(F242=1,"Neděle ","")&IF(F242=2,"Pondělí ","")&IF(F242=3,"Úterý ","")&IF(F242=4,"Středa ","")&IF(F242=5,"Čtvrtek ","")&IF(F242=6,"Pátek ","")&IF(F242=7,"Sobota ","") ->  | E242: Alergeny | F242: =WEEKDAY(B242) -> 
B244: Snídaně | D244: Snídaňový bufet
B246: Večeře | D246: =_xlfn.XLOOKUP(5,JL!#REF!,JL!C$6:C$199) -> 
B247: Večeře | D247: =_xlfn.XLOOKUP(1,JL!#REF!,JL!C$6:C$199) -> 
C248: A | D248: =_xlfn.XLOOKUP(2,JL!#REF!,JL!C$6:C$199) ->  | E248: =_xlfn.XLOOKUP(2,JL!#REF!,JL!G$6:G$199) -> 
C249: B | D249: =_xlfn.XLOOKUP(3,JL!#REF!,JL!C$6:C$199) -> 
D250: =_xlfn.XLOOKUP(4,JL!#REF!,JL!C$6:C$199) -> 
B252: ='Jídelní lístek'!#REF! ->  | D252: =IF(F252=1,"Neděle ","")&IF(F252=2,"Pondělí ","")&IF(F252=3,"Úterý ","")&IF(F252=4,"Středa ","")&IF(F252=5,"Čtvrtek ","")&IF(F252=6,"Pátek ","")&IF(F252=7,"Sobota ","") ->  | E252: Alergeny | F252: =WEEKDAY(B252) -> 
B254: Snídaně | D254: Snídaňový bufet
B256: Večeře | D256: =_xlfn.XLOOKUP(5,JL!#REF!,JL!C$6:C$199) -> 
B257: Večeře | D257: =_xlfn.XLOOKUP(1,JL!#REF!,JL!C$6:C$199) -> 
C258: A | D258: =_xlfn.XLOOKUP(2,JL!#REF!,JL!C$6:C$199) ->  | E258: =_xlfn.XLOOKUP(2,JL!#REF!,JL!G$6:G$199) -> 
C259: B | D259: =_xlfn.XLOOKUP(3,JL!#REF!,JL!C$6:C$199) -> 
D260: =_xlfn.XLOOKUP(4,JL!#REF!,JL!C$6:C$199) -> 
B262: ='Jídelní lístek'!#REF! ->  | D262: =IF(F262=1,"Neděle ","")&IF(F262=2,"Pondělí ","")&IF(F262=3,"Úterý ","")&IF(F262=4,"Středa ","")&IF(F262=5,"Čtvrtek ","")&IF(F262=6,"Pátek ","")&IF(F262=7,"Sobota ","") ->  | E262: Alergeny | F262: =WEEKDAY(B262) -> 
B264: Snídaně | D264: Snídaňový bufet
B266: Večeře | D266: =_xlfn.XLOOKUP(5,JL!#REF!,JL!C$6:C$199) -> 
B267: Večeře | D267: =_xlfn.XLOOKUP(1,JL!#REF!,JL!C$6:C$199) -> 
C268: A | D268: =_xlfn.XLOOKUP(2,JL!#REF!,JL!C$6:C$199) ->  | E268: =_xlfn.XLOOKUP(2,JL!#REF!,JL!G$6:G$199) -> 
C269: B | D269: =_xlfn.XLOOKUP(3,JL!#REF!,JL!C$6:C$199) -> 
D270: =_xlfn.XLOOKUP(4,JL!#REF!,JL!C$6:C$199) -> 
B272: ='Jídelní lístek'!#REF! ->  | D272: =IF(F272=1,"Neděle ","")&IF(F272=2,"Pondělí ","")&IF(F272=3,"Úterý ","")&IF(F272=4,"Středa ","")&IF(F272=5,"Čtvrtek ","")&IF(F272=6,"Pátek ","")&IF(F272=7,"Sobota ","") ->  | E272: Alergeny | F272: =WEEKDAY(B272) -> 
B274: Snídaně | D274: Snídaňový bufet
B276: Večeře | D276: =_xlfn.XLOOKUP(5,JL!#REF!,JL!C$6:C$199) -> 
B277: Večeře | D277: =_xlfn.XLOOKUP(1,JL!#REF!,JL!C$6:C$199) -> 
C278: A | D278: =_xlfn.XLOOKUP(2,JL!#REF!,JL!C$6:C$199) ->  | E278: =_xlfn.XLOOKUP(2,JL!#REF!,JL!G$6:G$199) -> 
C279: B | D279: =_xlfn.XLOOKUP(3,JL!#REF!,JL!C$6:C$199) -> 
D280: =_xlfn.XLOOKUP(4,JL!#REF!,JL!C$6:C$199) -> 
B282: ='Jídelní lístek'!#REF! ->  | D282: =IF(F282=1,"Neděle ","")&IF(F282=2,"Pondělí ","")&IF(F282=3,"Úterý ","")&IF(F282=4,"Středa ","")&IF(F282=5,"Čtvrtek ","")&IF(F282=6,"Pátek ","")&IF(F282=7,"Sobota ","") ->  | E282: Alergeny | F282: =WEEKDAY(B282) -> 
B284: Snídaně | D284: Snídaňový bufet
B286: Večeře | D286: =_xlfn.XLOOKUP(5,JL!#REF!,JL!C$6:C$199) -> 
... 655 more rows

Sheet Tisk Rodiny (hidden)
A1: x
B2: ='Jídelní lístek'!#REF! ->  | D2: =IF(F2=1,"Neděle ","")&IF(F2=2,"Pondělí ","")&IF(F2=3,"Úterý ","")&IF(F2=4,"Středa ","")&IF(F2=5,"Čtvrtek ","")&IF(F2=6,"Pátek ","")&IF(F2=7,"Sobota ","") ->  | E2: Alergeny | F2: =WEEKDAY(B2) -> 
B4: Snídaně | D4: Snídaňový bufet
B6: Večeře | D6: =_xlfn.XLOOKUP(1,JL!#REF!,JL!C$6:C$199) ->  | E6: =_xlfn.XLOOKUP(1,JL!#REF!,JL!G$6:G$199) -> 
C7: A | D7: =_xlfn.XLOOKUP(2,JL!#REF!,JL!C$6:C$199) ->  | E7: =_xlfn.XLOOKUP(2,JL!#REF!,JL!G$6:G$199) -> 
C8: B | D8: =_xlfn.XLOOKUP(3,JL!#REF!,JL!C$6:C$199) ->  | E8: =_xlfn.XLOOKUP(3,JL!#REF!,JL!G$6:G$199) -> 
D9: =_xlfn.XLOOKUP(4,JL!#REF!,JL!C$6:C$199) -> 
B11: ='Jídelní lístek'!#REF! ->  | D11: =IF(F11=1,"Neděle ","")&IF(F11=2,"Pondělí ","")&IF(F11=3,"Úterý ","")&IF(F11=4,"Středa ","")&IF(F11=5,"Čtvrtek ","")&IF(F11=6,"Pátek ","")&IF(F11=7,"Sobota ","") ->  | F11: =WEEKDAY(B11) -> 
B13: Snídaně | D13: Snídaňový bufet
B15: Večeře | D15: =_xlfn.XLOOKUP(1,JL!#REF!,JL!C$6:C$199) -> 
C16: A | D16: =_xlfn.XLOOKUP(2,JL!#REF!,JL!C$6:C$199) ->  | E16: =_xlfn.XLOOKUP(2,JL!#REF!,JL!G$6:G$199) -> 
C17: B | D17: =_xlfn.XLOOKUP(3,JL!#REF!,JL!C$6:C$199) -> 
D18: =_xlfn.XLOOKUP(4,JL!#REF!,JL!C$6:C$199) -> 
B20: ='Jídelní lístek'!#REF! ->  | D20: =IF(F20=1,"Neděle ","")&IF(F20=2,"Pondělí ","")&IF(F20=3,"Úterý ","")&IF(F20=4,"Středa ","")&IF(F20=5,"Čtvrtek ","")&IF(F20=6,"Pátek ","")&IF(F20=7,"Sobota ","") ->  | F20: =WEEKDAY(B20) -> 
B22: Snídaně | D22: Snídaňový bufet
B24: Večeře | D24: =_xlfn.XLOOKUP(1,JL!#REF!,JL!C$6:C$199) -> 
C25: A | D25: =_xlfn.XLOOKUP(2,JL!#REF!,JL!C$6:C$199) ->  | E25: =_xlfn.XLOOKUP(2,JL!#REF!,JL!G$6:G$199) -> 
C26: B | D26: =_xlfn.XLOOKUP(3,JL!#REF!,JL!C$6:C$199) -> 
D27: =_xlfn.XLOOKUP(4,JL!#REF!,JL!C$6:C$199) -> 
A29: x | B29: ='Jídelní lístek'!#REF! ->  | D29: =IF(F29=1,"Neděle ","")&IF(F29=2,"Pondělí ","")&IF(F29=3,"Úterý ","")&IF(F29=4,"Středa ","")&IF(F29=5,"Čtvrtek ","")&IF(F29=6,"Pátek ","")&IF(F29=7,"Sobota ","") ->  | E29: Alergeny | F29: =WEEKDAY(B29) -> 
A31: x | B31: Snídaně | D31: Snídaňový bufet | E31: *
A32: x
A33: x | B33: Večeře | D33: =_xlfn.XLOOKUP(1,JL!#REF!,JL!C$22:C$199) -> 
A34: x | C34: A | D34: =_xlfn.XLOOKUP(2,JL!#REF!,JL!C$22:C$199) ->  | E34: =_xlfn.XLOOKUP(2,JL!#REF!,JL!G$6:G$199) -> 
C35: B | D35: =_xlfn.XLOOKUP(3,JL!#REF!,JL!C$6:C$199) -> 
A36: x | D36: =_xlfn.XLOOKUP(4,JL!#REF!,JL!C$22:C$199) ->  | E36: =_xlfn.XLOOKUP(4,JL!#REF!,JL!G$6:G$199) -> 
A37: x
A38: x | B38: ='Jídelní lístek'!#REF! ->  | D38: =IF(F38=1,"Neděle ","")&IF(F38=2,"Pondělí ","")&IF(F38=3,"Úterý ","")&IF(F38=4,"Středa ","")&IF(F38=5,"Čtvrtek ","")&IF(F38=6,"Pátek ","")&IF(F38=7,"Sobota ","") ->  | E38: Alergeny | F38: =WEEKDAY(B38) -> 
A40: x | B40: Snídaně | D40: Snídaňový bufet | E40: *
A41: x
A42: x | B42: Večeře | D42: =_xlfn.XLOOKUP(1,JL!#REF!,JL!C$22:C$199) -> 
A43: x | C43: A | D43: =_xlfn.XLOOKUP(2,JL!#REF!,JL!C$22:C$199) ->  | E43: =_xlfn.XLOOKUP(2,JL!#REF!,JL!G$22:G$199) -> 
A44: x | C44: B | D44: =_xlfn.XLOOKUP(3,JL!#REF!,JL!C$22:C$199) ->  | E44: =_xlfn.XLOOKUP(3,JL!#REF!,JL!G$22:G$199) -> 
A45: x | D45: =_xlfn.XLOOKUP(4,JL!#REF!,JL!C$22:C$199) -> 
A46: x
A47: x | B47: ='Jídelní lístek'!#REF! ->  | D47: =IF(F47=1,"Neděle ","")&IF(F47=2,"Pondělí ","")&IF(F47=3,"Úterý ","")&IF(F47=4,"Středa ","")&IF(F47=5,"Čtvrtek ","")&IF(F47=6,"Pátek ","")&IF(F47=7,"Sobota ","") ->  | E47: Alergeny | F47: =WEEKDAY(B47) -> 
A49: x | B49: Snídaně | D49: Snídaňový bufet | E49: *
A50: x
A51: x | B51: Večeře | D51: =_xlfn.XLOOKUP(1,JL!#REF!,JL!C$22:C$199) -> 
A52: x | C52: A | D52: =_xlfn.XLOOKUP(2,JL!#REF!,JL!C$22:C$199) ->  | E52: =_xlfn.XLOOKUP(2,JL!#REF!,JL!G$22:G$199) -> 
A53: x | C53: B | D53: =_xlfn.XLOOKUP(3,JL!#REF!,JL!C$22:C$199) -> 
A54: x | D54: =_xlfn.XLOOKUP(4,JL!#REF!,JL!C$22:C$199) -> 
A55: x
A56: x | B56: ='Jídelní lístek'!#REF! ->  | D56: =IF(F56=1,"Neděle ","")&IF(F56=2,"Pondělí ","")&IF(F56=3,"Úterý ","")&IF(F56=4,"Středa ","")&IF(F56=5,"Čtvrtek ","")&IF(F56=6,"Pátek ","")&IF(F56=7,"Sobota ","") ->  | E56: Alergeny | F56: =WEEKDAY(B56) -> 
A58: x | B58: Snídaně | D58: Snídaňový bufet | E58: *
A59: x
A60: x | B60: Večeře | D60: =_xlfn.XLOOKUP(1,JL!#REF!,JL!C$22:C$199) -> 
A61: x | C61: A | D61: =_xlfn.XLOOKUP(2,JL!#REF!,JL!C$22:C$199) ->  | E61: =_xlfn.XLOOKUP(2,JL!#REF!,JL!G$22:G$199) -> 
A62: x | C62: B | D62: =_xlfn.XLOOKUP(3,JL!#REF!,JL!C$22:C$199) -> 
A63: x | D63: =_xlfn.XLOOKUP(4,JL!#REF!,JL!C$22:C$199) -> 
A64: x
A65: x | B65: ='Jídelní lístek'!#REF! ->  | D65: =IF(F65=1,"Neděle ","")&IF(F65=2,"Pondělí ","")&IF(F65=3,"Úterý ","")&IF(F65=4,"Středa ","")&IF(F65=5,"Čtvrtek ","")&IF(F65=6,"Pátek ","")&IF(F65=7,"Sobota ","") ->  | E65: Alergeny | F65: =WEEKDAY(B65) -> 
A67: x | B67: Snídaně | D67: Snídaňový bufet
B69: Večeře | D69: =_xlfn.XLOOKUP(1,JL!#REF!,JL!C$6:C$199) -> 
C70: A | D70: =_xlfn.XLOOKUP(2,JL!#REF!,JL!C$6:C$199) ->  | E70: =_xlfn.XLOOKUP(2,JL!#REF!,JL!G$6:G$199) -> 
C71: B | D71: =_xlfn.XLOOKUP(3,JL!#REF!,JL!C$6:C$199) -> 
D72: =_xlfn.XLOOKUP(4,JL!#REF!,JL!C$6:C$199) -> 
B74: ='Jídelní lístek'!#REF! ->  | D74: =IF(F74=1,"Neděle ","")&IF(F74=2,"Pondělí ","")&IF(F74=3,"Úterý ","")&IF(F74=4,"Středa ","")&IF(F74=5,"Čtvrtek ","")&IF(F74=6,"Pátek ","")&IF(F74=7,"Sobota ","") ->  | F74: =WEEKDAY(B74) -> 
B76: Snídaně | D76: Snídaňový bufet
B78: Večeře | D78: =_xlfn.XLOOKUP(1,JL!#REF!,JL!C$6:C$199) -> 
C79: A | D79: =_xlfn.XLOOKUP(2,JL!#REF!,JL!C$6:C$199) ->  | E79: =_xlfn.XLOOKUP(2,JL!#REF!,JL!G$6:G$199) -> 
C80: B | D80: =_xlfn.XLOOKUP(3,JL!#REF!,JL!C$6:C$199) -> 
D81: =_xlfn.XLOOKUP(4,JL!#REF!,JL!C$6:C$199) -> 
B83: ='Jídelní lístek'!#REF! ->  | D83: =IF(F83=1,"Neděle ","")&IF(F83=2,"Pondělí ","")&IF(F83=3,"Úterý ","")&IF(F83=4,"Středa ","")&IF(F83=5,"Čtvrtek ","")&IF(F83=6,"Pátek ","")&IF(F83=7,"Sobota ","") ->  | F83: =WEEKDAY(B83) -> 
B85: Snídaně | D85: Snídaňový bufet
B87: Večeře | D87: =_xlfn.XLOOKUP(1,JL!#REF!,JL!C$6:C$199) -> 
C88: A | D88: =_xlfn.XLOOKUP(2,JL!#REF!,JL!C$6:C$199) ->  | E88: =_xlfn.XLOOKUP(2,JL!#REF!,JL!G$6:G$199) -> 
C89: B | D89: =_xlfn.XLOOKUP(3,JL!#REF!,JL!C$6:C$199) -> 
D90: =_xlfn.XLOOKUP(4,JL!#REF!,JL!C$6:C$199) -> 
B92: ='Jídelní lístek'!#REF! ->  | D92: =IF(F92=1,"Neděle ","")&IF(F92=2,"Pondělí ","")&IF(F92=3,"Úterý ","")&IF(F92=4,"Středa ","")&IF(F92=5,"Čtvrtek ","")&IF(F92=6,"Pátek ","")&IF(F92=7,"Sobota ","") ->  | F92: =WEEKDAY(B92) -> 
B94: Snídaně | D94: Snídaňový bufet
B96: Večeře | D96: =_xlfn.XLOOKUP(1,JL!#REF!,JL!C$6:C$199) -> 
C97: A | D97: =_xlfn.XLOOKUP(2,JL!#REF!,JL!C$6:C$199) ->  | E97: =_xlfn.XLOOKUP(2,JL!#REF!,JL!G$6:G$199) -> 
C98: B | D98: =_xlfn.XLOOKUP(3,JL!#REF!,JL!C$6:C$199) -> 
D99: =_xlfn.XLOOKUP(4,JL!#REF!,JL!C$6:C$199) -> 
B101: ='Jídelní lístek'!#REF! ->  | D101: =IF(F101=1,"Neděle ","")&IF(F101=2,"Pondělí ","")&IF(F101=3,"Úterý ","")&IF(F101=4,"Středa ","")&IF(F101=5,"Čtvrtek ","")&IF(F101=6,"Pátek ","")&IF(F101=7,"Sobota ","") ->  | F101: =WEEKDAY(B101) -> 
B103: Snídaně | D103: Snídaňový bufet
B105: Večeře | D105: =_xlfn.XLOOKUP(1,JL!#REF!,JL!C$6:C$199) -> 
C106: A | D106: =_xlfn.XLOOKUP(2,JL!#REF!,JL!C$6:C$199) ->  | E106: =_xlfn.XLOOKUP(2,JL!#REF!,JL!G$6:G$199) -> 
C107: B | D107: =_xlfn.XLOOKUP(3,JL!#REF!,JL!C$6:C$199) -> 
D108: =_xlfn.XLOOKUP(4,JL!#REF!,JL!C$6:C$199) -> 
B110: ='Jídelní lístek'!#REF! ->  | D110: =IF(F110=1,"Neděle ","")&IF(F110=2,"Pondělí ","")&IF(F110=3,"Úterý ","")&IF(F110=4,"Středa ","")&IF(F110=5,"Čtvrtek ","")&IF(F110=6,"Pátek ","")&IF(F110=7,"Sobota ","") ->  | F110: =WEEKDAY(B110) -> 
B112: Snídaně | D112: Snídaňový bufet
B114: Večeře | D114: =_xlfn.XLOOKUP(1,JL!#REF!,JL!C$6:C$199) -> 
C115: A | D115: =_xlfn.XLOOKUP(2,JL!#REF!,JL!C$6:C$199) ->  | E115: =_xlfn.XLOOKUP(2,JL!#REF!,JL!G$6:G$199) -> 
C116: B | D116: =_xlfn.XLOOKUP(3,JL!#REF!,JL!C$6:C$199) -> 
D117: =_xlfn.XLOOKUP(4,JL!#REF!,JL!C$6:C$199) -> 
B119: ='Jídelní lístek'!#REF! ->  | D119: =IF(F119=1,"Neděle ","")&IF(F119=2,"Pondělí ","")&IF(F119=3,"Úterý ","")&IF(F119=4,"Středa ","")&IF(F119=5,"Čtvrtek ","")&IF(F119=6,"Pátek ","")&IF(F119=7,"Sobota ","") ->  | F119: =WEEKDAY(B119) -> 
B121: Snídaně | D121: Snídaňový bufet
B123: Večeře | D123: =_xlfn.XLOOKUP(1,JL!#REF!,JL!C$6:C$199) -> 
C124: A | D124: =_xlfn.XLOOKUP(2,JL!#REF!,JL!C$6:C$199) ->  | E124: =_xlfn.XLOOKUP(2,JL!#REF!,JL!G$6:G$199) -> 
C125: B | D125: =_xlfn.XLOOKUP(3,JL!#REF!,JL!C$6:C$199) -> 
D126: =_xlfn.XLOOKUP(4,JL!#REF!,JL!C$6:C$199) -> 
B128: ='Jídelní lístek'!#REF! ->  | D128: =IF(F128=1,"Neděle ","")&IF(F128=2,"Pondělí ","")&IF(F128=3,"Úterý ","")&IF(F128=4,"Středa ","")&IF(F128=5,"Čtvrtek ","")&IF(F128=6,"Pátek ","")&IF(F128=7,"Sobota ","") ->  | F128: =WEEKDAY(B128) -> 
B130: Snídaně | D130: Snídaňový bufet
B132: Večeře | D132: =_xlfn.XLOOKUP(1,JL!#REF!,JL!C$6:C$199) -> 
C133: A | D133: =_xlfn.XLOOKUP(2,JL!#REF!,JL!C$6:C$199) ->  | E133: =_xlfn.XLOOKUP(2,JL!#REF!,JL!G$6:G$199) -> 
C134: B | D134: =_xlfn.XLOOKUP(3,JL!#REF!,JL!C$6:C$199) -> 
D135: =_xlfn.XLOOKUP(4,JL!#REF!,JL!C$6:C$199) -> 
B137: ='Jídelní lístek'!#REF! ->  | D137: =IF(F137=1,"Neděle ","")&IF(F137=2,"Pondělí ","")&IF(F137=3,"Úterý ","")&IF(F137=4,"Středa ","")&IF(F137=5,"Čtvrtek ","")&IF(F137=6,"Pátek ","")&IF(F137=7,"Sobota ","") ->  | F137: =WEEKDAY(B137) -> 
B139: Snídaně | D139: Snídaňový bufet
B141: Večeře | D141: =_xlfn.XLOOKUP(1,JL!#REF!,JL!C$6:C$199) -> 
C142: A | D142: =_xlfn.XLOOKUP(2,JL!#REF!,JL!C$6:C$199) ->  | E142: =_xlfn.XLOOKUP(2,JL!#REF!,JL!G$6:G$199) -> 
C143: B | D143: =_xlfn.XLOOKUP(3,JL!#REF!,JL!C$6:C$199) -> 
D144: =_xlfn.XLOOKUP(4,JL!#REF!,JL!C$6:C$199) -> 
B146: ='Jídelní lístek'!#REF! ->  | D146: =IF(F146=1,"Neděle ","")&IF(F146=2,"Pondělí ","")&IF(F146=3,"Úterý ","")&IF(F146=4,"Středa ","")&IF(F146=5,"Čtvrtek ","")&IF(F146=6,"Pátek ","")&IF(F146=7,"Sobota ","") ->  | F146: =WEEKDAY(B146) -> 
B148: Snídaně | D148: Snídaňový bufet
B150: Večeře | D150: =_xlfn.XLOOKUP(1,JL!#REF!,JL!C$6:C$199) -> 
C151: A | D151: =_xlfn.XLOOKUP(2,JL!#REF!,JL!C$6:C$199) ->  | E151: =_xlfn.XLOOKUP(2,JL!#REF!,JL!G$6:G$199) -> 
C152: B | D152: =_xlfn.XLOOKUP(3,JL!#REF!,JL!C$6:C$199) -> 
D153: =_xlfn.XLOOKUP(4,JL!#REF!,JL!C$6:C$199) -> 
B155: ='Jídelní lístek'!#REF! ->  | D155: =IF(F155=1,"Neděle ","")&IF(F155=2,"Pondělí ","")&IF(F155=3,"Úterý ","")&IF(F155=4,"Středa ","")&IF(F155=5,"Čtvrtek ","")&IF(F155=6,"Pátek ","")&IF(F155=7,"Sobota ","") ->  | F155: =WEEKDAY(B155) -> 
B157: Snídaně | D157: Snídaňový bufet
B159: Večeře | D159: =_xlfn.XLOOKUP(1,JL!#REF!,JL!C$6:C$199) -> 
C160: A | D160: =_xlfn.XLOOKUP(2,JL!#REF!,JL!C$6:C$199) ->  | E160: =_xlfn.XLOOKUP(2,JL!#REF!,JL!G$6:G$199) -> 
C161: B | D161: =_xlfn.XLOOKUP(3,JL!#REF!,JL!C$6:C$199) -> 
D162: =_xlfn.XLOOKUP(4,JL!#REF!,JL!C$6:C$199) -> 
B164: ='Jídelní lístek'!#REF! ->  | D164: =IF(F164=1,"Neděle ","")&IF(F164=2,"Pondělí ","")&IF(F164=3,"Úterý ","")&IF(F164=4,"Středa ","")&IF(F164=5,"Čtvrtek ","")&IF(F164=6,"Pátek ","")&IF(F164=7,"Sobota ","") ->  | F164: =WEEKDAY(B164) -> 
B166: Snídaně | D166: Snídaňový bufet
B168: Večeře | D168: =_xlfn.XLOOKUP(1,JL!#REF!,JL!C$6:C$199) -> 
C169: A | D169: =_xlfn.XLOOKUP(2,JL!#REF!,JL!C$6:C$199) ->  | E169: =_xlfn.XLOOKUP(2,JL!#REF!,JL!G$6:G$199) -> 
C170: B | D170: =_xlfn.XLOOKUP(3,JL!#REF!,JL!C$6:C$199) -> 
D171: =_xlfn.XLOOKUP(4,JL!#REF!,JL!C$6:C$199) -> 
B173: ='Jídelní lístek'!#REF! ->  | D173: =IF(F173=1,"Neděle ","")&IF(F173=2,"Pondělí ","")&IF(F173=3,"Úterý ","")&IF(F173=4,"Středa ","")&IF(F173=5,"Čtvrtek ","")&IF(F173=6,"Pátek ","")&IF(F173=7,"Sobota ","") ->  | F173: =WEEKDAY(B173) -> 
B175: Snídaně | D175: Snídaňový bufet
B177: Večeře | D177: =_xlfn.XLOOKUP(1,JL!#REF!,JL!C$6:C$199) -> 
C178: A | D178: =_xlfn.XLOOKUP(2,JL!#REF!,JL!C$6:C$199) ->  | E178: =_xlfn.XLOOKUP(2,JL!#REF!,JL!G$6:G$199) -> 
C179: B | D179: =_xlfn.XLOOKUP(3,JL!#REF!,JL!C$6:C$199) -> 
D180: =_xlfn.XLOOKUP(4,JL!#REF!,JL!C$6:C$199) -> 
B182: ='Jídelní lístek'!#REF! ->  | D182: =IF(F182=1,"Neděle ","")&IF(F182=2,"Pondělí ","")&IF(F182=3,"Úterý ","")&IF(F182=4,"Středa ","")&IF(F182=5,"Čtvrtek ","")&IF(F182=6,"Pátek ","")&IF(F182=7,"Sobota ","") ->  | F182: =WEEKDAY(B182) -> 
B184: Snídaně | D184: Snídaňový bufet
B186: Večeře | D186: =_xlfn.XLOOKUP(1,JL!#REF!,JL!C$6:C$199) -> 
C187: A | D187: =_xlfn.XLOOKUP(2,JL!#REF!,JL!C$6:C$199) ->  | E187: =_xlfn.XLOOKUP(2,JL!#REF!,JL!G$6:G$199) -> 
C188: B | D188: =_xlfn.XLOOKUP(3,JL!#REF!,JL!C$6:C$199) -> 
D189: =_xlfn.XLOOKUP(4,JL!#REF!,JL!C$6:C$199) -> 
B191: ='Jídelní lístek'!#REF! ->  | D191: =IF(F191=1,"Neděle ","")&IF(F191=2,"Pondělí ","")&IF(F191=3,"Úterý ","")&IF(F191=4,"Středa ","")&IF(F191=5,"Čtvrtek ","")&IF(F191=6,"Pátek ","")&IF(F191=7,"Sobota ","") ->  | F191: =WEEKDAY(B191) -> 
B193: Snídaně | D193: Snídaňový bufet
B195: Večeře | D195: =_xlfn.XLOOKUP(1,JL!#REF!,JL!C$6:C$199) -> 
C196: A | D196: =_xlfn.XLOOKUP(2,JL!#REF!,JL!C$6:C$199) ->  | E196: =_xlfn.XLOOKUP(2,JL!#REF!,JL!G$6:G$199) -> 
C197: B | D197: =_xlfn.XLOOKUP(3,JL!#REF!,JL!C$6:C$199) -> 
D198: =_xlfn.XLOOKUP(4,JL!#REF!,JL!C$6:C$199) -> 
B200: ='Jídelní lístek'!#REF! ->  | D200: =IF(F200=1,"Neděle ","")&IF(F200=2,"Pondělí ","")&IF(F200=3,"Úterý ","")&IF(F200=4,"Středa ","")&IF(F200=5,"Čtvrtek ","")&IF(F200=6,"Pátek ","")&IF(F200=7,"Sobota ","") ->  | F200: =WEEKDAY(B200) -> 
B202: Snídaně | D202: Snídaňový bufet
B204: Večeře | D204: =_xlfn.XLOOKUP(1,JL!#REF!,JL!C$6:C$199) -> 
C205: A | D205: =_xlfn.XLOOKUP(2,JL!#REF!,JL!C$6:C$199) ->  | E205: =_xlfn.XLOOKUP(2,JL!#REF!,JL!G$6:G$199) -> 
C206: B | D206: =_xlfn.XLOOKUP(3,JL!#REF!,JL!C$6:C$199) -> 
D207: =_xlfn.XLOOKUP(4,JL!#REF!,JL!C$6:C$199) -> 
B209: ='Jídelní lístek'!#REF! ->  | D209: =IF(F209=1,"Neděle ","")&IF(F209=2,"Pondělí ","")&IF(F209=3,"Úterý ","")&IF(F209=4,"Středa ","")&IF(F209=5,"Čtvrtek ","")&IF(F209=6,"Pátek ","")&IF(F209=7,"Sobota ","") ->  | F209: =WEEKDAY(B209) -> 
B211: Snídaně | D211: Snídaňový bufet
B213: Večeře | D213: =_xlfn.XLOOKUP(1,JL!#REF!,JL!C$6:C$199) -> 
C214: A | D214: =_xlfn.XLOOKUP(2,JL!#REF!,JL!C$6:C$199) ->  | E214: =_xlfn.XLOOKUP(2,JL!#REF!,JL!G$6:G$199) -> 
C215: B | D215: =_xlfn.XLOOKUP(3,JL!#REF!,JL!C$6:C$199) -> 
D216: =_xlfn.XLOOKUP(4,JL!#REF!,JL!C$6:C$199) -> 
B218: ='Jídelní lístek'!#REF! ->  | D218: =IF(F218=1,"Neděle ","")&IF(F218=2,"Pondělí ","")&IF(F218=3,"Úterý ","")&IF(F218=4,"Středa ","")&IF(F218=5,"Čtvrtek ","")&IF(F218=6,"Pátek ","")&IF(F218=7,"Sobota ","") ->  | F218: =WEEKDAY(B218) -> 
B220: Snídaně | D220: Snídaňový bufet
B222: Večeře | D222: =_xlfn.XLOOKUP(1,JL!#REF!,JL!C$6:C$199) -> 
C223: A | D223: =_xlfn.XLOOKUP(2,JL!#REF!,JL!C$6:C$199) ->  | E223: =_xlfn.XLOOKUP(2,JL!#REF!,JL!G$6:G$199) -> 
C224: B | D224: =_xlfn.XLOOKUP(3,JL!#REF!,JL!C$6:C$199) -> 
D225: =_xlfn.XLOOKUP(4,JL!#REF!,JL!C$6:C$199) -> 
B227: ='Jídelní lístek'!#REF! ->  | D227: =IF(F227=1,"Neděle ","")&IF(F227=2,"Pondělí ","")&IF(F227=3,"Úterý ","")&IF(F227=4,"Středa ","")&IF(F227=5,"Čtvrtek ","")&IF(F227=6,"Pátek ","")&IF(F227=7,"Sobota ","") ->  | F227: =WEEKDAY(B227) -> 
B229: Snídaně | D229: Snídaňový bufet
B231: Večeře | D231: =_xlfn.XLOOKUP(1,JL!#REF!,JL!C$6:C$199) -> 
C232: A | D232: =_xlfn.XLOOKUP(2,JL!#REF!,JL!C$6:C$199) ->  | E232: =_xlfn.XLOOKUP(2,JL!#REF!,JL!G$6:G$199) -> 
C233: B | D233: =_xlfn.XLOOKUP(3,JL!#REF!,JL!C$6:C$199) -> 
D234: =_xlfn.XLOOKUP(4,JL!#REF!,JL!C$6:C$199) -> 
B236: ='Jídelní lístek'!#REF! ->  | D236: =IF(F236=1,"Neděle ","")&IF(F236=2,"Pondělí ","")&IF(F236=3,"Úterý ","")&IF(F236=4,"Středa ","")&IF(F236=5,"Čtvrtek ","")&IF(F236=6,"Pátek ","")&IF(F236=7,"Sobota ","") ->  | F236: =WEEKDAY(B236) -> 
B238: Snídaně | D238: Snídaňový bufet
B240: Večeře | D240: =_xlfn.XLOOKUP(1,JL!#REF!,JL!C$6:C$199) -> 
C241: A | D241: =_xlfn.XLOOKUP(2,JL!#REF!,JL!C$6:C$199) ->  | E241: =_xlfn.XLOOKUP(2,JL!#REF!,JL!G$6:G$199) -> 
C242: B | D242: =_xlfn.XLOOKUP(3,JL!#REF!,JL!C$6:C$199) -> 
D243: =_xlfn.XLOOKUP(4,JL!#REF!,JL!C$6:C$199) -> 
B245: ='Jídelní lístek'!#REF! ->  | D245: =IF(F245=1,"Neděle ","")&IF(F245=2,"Pondělí ","")&IF(F245=3,"Úterý ","")&IF(F245=4,"Středa ","")&IF(F245=5,"Čtvrtek ","")&IF(F245=6,"Pátek ","")&IF(F245=7,"Sobota ","") ->  | F245: =WEEKDAY(B245) -> 
B247: Snídaně | D247: Snídaňový bufet
B249: Večeře | D249: =_xlfn.XLOOKUP(1,JL!#REF!,JL!C$6:C$199) -> 
C250: A | D250: =_xlfn.XLOOKUP(2,JL!#REF!,JL!C$6:C$199) ->  | E250: =_xlfn.XLOOKUP(2,JL!#REF!,JL!G$6:G$199) -> 
C251: B | D251: =_xlfn.XLOOKUP(3,JL!#REF!,JL!C$6:C$199) -> 
D252: =_xlfn.XLOOKUP(4,JL!#REF!,JL!C$6:C$199) -> 
B254: ='Jídelní lístek'!#REF! ->  | D254: =IF(F254=1,"Neděle ","")&IF(F254=2,"Pondělí ","")&IF(F254=3,"Úterý ","")&IF(F254=4,"Středa ","")&IF(F254=5,"Čtvrtek ","")&IF(F254=6,"Pátek ","")&IF(F254=7,"Sobota ","") ->  | F254: =WEEKDAY(B254) -> 
B256: Snídaně | D256: Snídaňový bufet
B258: Večeře | D258: =_xlfn.XLOOKUP(1,JL!#REF!,JL!C$6:C$199) -> 
C259: A | D259: =_xlfn.XLOOKUP(2,JL!#REF!,JL!C$6:C$199) ->  | E259: =_xlfn.XLOOKUP(2,JL!#REF!,JL!G$6:G$199) -> 
C260: B | D260: =_xlfn.XLOOKUP(3,JL!#REF!,JL!C$6:C$199) -> 
D261: =_xlfn.XLOOKUP(4,JL!#REF!,JL!C$6:C$199) -> 
B263: ='Jídelní lístek'!#REF! ->  | D263: =IF(F263=1,"Neděle ","")&IF(F263=2,"Pondělí ","")&IF(F263=3,"Úterý ","")&IF(F263=4,"Středa ","")&IF(F263=5,"Čtvrtek ","")&IF(F263=6,"Pátek ","")&IF(F263=7,"Sobota ","") ->  | F263: =WEEKDAY(B263) -> 
B265: Snídaně | D265: Snídaňový bufet
B267: Večeře | D267: =_xlfn.XLOOKUP(1,JL!#REF!,JL!C$6:C$199) -> 
C268: A | D268: =_xlfn.XLOOKUP(2,JL!#REF!,JL!C$6:C$199) ->  | E268: =_xlfn.XLOOKUP(2,JL!#REF!,JL!G$6:G$199) -> 
C269: B | D269: =_xlfn.XLOOKUP(3,JL!#REF!,JL!C$6:C$199) -> 
D270: =_xlfn.XLOOKUP(4,JL!#REF!,JL!C$6:C$199) -> 
B272: ='Jídelní lístek'!#REF! ->  | D272: =IF(F272=1,"Neděle ","")&IF(F272=2,"Pondělí ","")&IF(F272=3,"Úterý ","")&IF(F272=4,"Středa ","")&IF(F272=5,"Čtvrtek ","")&IF(F272=6,"Pátek ","")&IF(F272=7,"Sobota ","") ->  | F272: =WEEKDAY(B272) -> 
B274: Snídaně | D274: Snídaňový bufet
B276: Večeře | D276: =_xlfn.XLOOKUP(1,JL!#REF!,JL!C$6:C$199) -> 
C277: A | D277: =_xlfn.XLOOKUP(2,JL!#REF!,JL!C$6:C$199) ->  | E277: =_xlfn.XLOOKUP(2,JL!#REF!,JL!G$6:G$199) -> 
C278: B | D278: =_xlfn.XLOOKUP(3,JL!#REF!,JL!C$6:C$199) -> 
D279: =_xlfn.XLOOKUP(4,JL!#REF!,JL!C$6:C$199) -> 
B281: ='Jídelní lístek'!#REF! ->  | D281: =IF(F281=1,"Neděle ","")&IF(F281=2,"Pondělí ","")&IF(F281=3,"Úterý ","")&IF(F281=4,"Středa ","")&IF(F281=5,"Čtvrtek ","")&IF(F281=6,"Pátek ","")&IF(F281=7,"Sobota ","") ->  | F281: =WEEKDAY(B281) -> 
B283: Snídaně | D283: Snídaňový bufet
B285: Večeře | D285: =_xlfn.XLOOKUP(1,JL!#REF!,JL!C$6:C$199) -> 
C286: A | D286: =_xlfn.XLOOKUP(2,JL!#REF!,JL!C$6:C$199) ->  | E286: =_xlfn.XLOOKUP(2,JL!#REF!,JL!G$6:G$199) -> 
C287: B | D287: =_xlfn.XLOOKUP(3,JL!#REF!,JL!C$6:C$199) -> 
... 541 more rows

Sheet Návod
A1: Návod
A3: Hlavní stránkou je JÍDELNÍ LÍSTEK. Jsou tam hypertextové odkazy na recepty pro pasant i pro ubytované, rodiny, školy, Silvestr atd. Zvlášť jsou přílohy, polévky a PRODUKTY = tedy něco, co se u nás vyrobí a pak se to používá v dalších receptech. Např. Rohlík. Recepty ukazují i náklady (stahují se z jednotlivých receptů), prodejní ceny, marži a alergeny. Na recepty se dostaneš hypertextovým odkazem, zpátky z nich odkazem SUROVINY (do seznamu surovin) nebo JÍDELNÍ LÍSTEK do jídelního lístku. Na stránce receptu se dají vybrat pouze: - suroviny - z rozklikávacího seznamu (nebo se dají napsat, ale název MUSÍ být v seznamu surovin - gramáž - jednotky se ukazují samy. - počet porcí, energie a prodejní cena, alergeny
A5: Suroviny se zapisují do seznamu (pozor na jeho délku - myslím, že je to tak 210 položek max, pak se musí předělat vzorce) dle vzoru. Vstupní ceny jsou bez DPH.
A7: Další listy nejsou na nic a ještě další jsem smazal. Zatím nemazat - mohou být vazby
A9: Některé ceny už nejsou a něco není doplněné. Je to živá "Stavebnice"

Sheet Alergeny
A1: 1 | B1: Obiloviny obsahují lepek
A2: 2 | B2: Korýši a výrobky z nich
A3: 3 | B3: Vejce
A4: 4 | B4: Ryby
A5: 5 | B5: Arašídy
A6: 6 | B6: Sojové boby
A7: 7 | B7: Mléko
A8: 8 | B8: Skořábkové plody
A9: 9 | B9: Celer
A10: 10 | B10: Hořčice
A11: 11 | B11: Sezam
A12: 12 | B12: Oxis siřičitý a siřičitany
A13: 13 | B13: Vlčí bob
A14: 14 | B14: Měkkýši

Sheet Inventura
F1: Nákupy a fasování (datum, + nákup / - fasování)
A2: Ovoce, zel. | B2: Borůvky kupované | C2: =10+5*10+7.5 -> 67.5 | D2: kg | E2: Zůstatek | F2: 2020-12-01
A3: Ovoce, zel. | B3: Borůvky naše | C3: =14*1.1+15*1.1+11*1.1 -> 44 | D3: kg
A4: Jídla | B4: Čočka na kyselo | C4: 1 | D4: sáček | E4: =SUM(F4:AZ4)+C4 -> 1
A5: Jídla | B5: Dřevorubecké fazole | C5: 1 | D5: sáček | E5: 1
A6: Ovoce, zel. | B6: Dumlík mražený | C6: 10 | D6: kg | E6: 10
A7: Jídla | B7: Dýňová omáčka | C7: 1 | D7: sáček | E7: 0 | F7: -1
A8: Jídla | B8: Dýňová polévka | C8: 3 | D8: sáček | E8: 3
A9: Ovoce, zel. | B9: Fazolky | C9: 3 | D9: kg | E9: 3
A10: Jídla | B10: Frankfurtská polévka | C10: 1 | D10: sáček | E10: 1
A11: Jídla | B11: Gulášová polévka | C11: 1 | D11: sáček | E11: 1
A12: Jídla | B12: Hamburská - maso | C12: 1 | D12: sáček | E12: 1
A13: Houby | B13: Houby dušené | C13: =1.8+1.8+1.8+1.1+1.1+2+1+1.4+1.1+0.8+1.7+1+1.5+1+1.3+1.3+2+1.4 -> 25.1 | D13: kg | E13: 25.1
A14: Houby | B14: Houby mražené | C14: 14 | D14: kg | E14: 14
A15: Houby | B15: Houby na sejkory | C15: =1.2+2.1+1.9+2+2.1+1.5+1.8+1.7+2.1+1.8+2+1.4+1.4+1.2+1.9+1.9+1.2+1.9+1.2+1.2+1.3+1.3+1.8+1.2+1.7+1.7+1.3+1+12+2 -> 58.8 | D15: kg | E15: 58.8
A16: Maso | B16: Hovězí zadní | C16: =2.2+2.2+1+0.7+1+2.4+1+1.3+1.2+1.6 -> 14.6 | D16: kg | E16: 14.6
A17: Maso | B17: Hovězí žebro | D17: kg | E17: -1 | F17: -1
A18: Ovoce, zel. | B18: Hranolky 6 x 6 | C18: =4+2.5 -> 6.5 | D18: kg | E18: 6.5
A19: Ovoce, zel. | B19: Hranolky 9 x 9 | C19: =12.5+9+22.5 -> 44 | D19: kg | E19: 44
A20: Ovoce, zel. | B20: Hranolky farmářské | C20: =3*2.5 -> 7.5 | D20: kg | E20: 7.5
A21: Ovoce, zel. | B21: Jahody | C21: 2 | D21: kg | E21: 2
A22: Jídla | B22: Jaternicový prejt | C22: 1 | D22: sáček | E22: 1
A23: Jídla | B23: Játrová zavářka | C23: 1 | D23: sáček | E23: 0 | F23: -1
A24: Maso | B24: Jehněčí kolínka | C24: 15 | D24: ks | E24: 15
A25: Maso | B25: Jehněčí kýta | C25: =13.4+13.1+1.1+1.3+0.8+1.7+1.4+2.3+2.6+1.45+0.95+1.1 -> 41.2 | D25: kg | E25: 40.2 | F25: -1
A26: Ovoce, zel. | B26: Jěhněčí na lasagně | C26: 16 | D26: kg | E26: 14 | F26: -2
A27: Maso | B27: Jehněčí ořez | C27: =1.3 -> 1.3 | D27: kg | E27: 1.3
A28: Maso | B28: Jehněčí ragú | C28: =16*2.5+1.5+10*2.5 -> 66.5 | D28: kg | E28: 66.5
A29: Jídla | B29: Jehněčí ragů s houbami | C29: 2 | D29: sáček | E29: 2
A30: Maso | B30: Kachní prsa | C30: 16 | D30: ks | E30: 16
A31: Maso | B31: Kozí sýr | D31: kg | E31: 0
A32: Jídla | B32: Kuřecí čína | C32: 1 | D32: sáček | E32: 1
A33: Maso | B33: Kuřecí prsa | C33: 2 | D33: kg | E33: 2
A34: Maso | B34: Kuřecí steak (stehno) | C34: =2+2+2+3 -> 9 | D34: kg | E34: 9
A35: Maso | B35: Kuřecí stehno s kostí | C35: =9+4 -> 13 | D35: ks | E35: 13
A36: Jídla | B36: Kuřecí výpek | C36: 1 | D36: sáček | E36: =SUM(F36:AZ36)+C36 -> 1
A37: Ovoce, zel. | B37: Květák | C37: 2 | D37: kg | E37: =SUM(F37:AZ37)+C37 -> 22 | F37: 20
A38: Jídla | B38: Líčka | C38: 2 | D38: sáček | E38: 2
A39: Ovoce, zel. | B39: Lilek mražený | C39: 2 | D39: kg | E39: 2
A40: Jídla | B40: Líška - omáčka | C40: 2 | D40: sáček | E40: 2
A41: Ovoce, zel. | B41: Maliny | C41: 2.5 | D41: kg | E41: 2.5
A42: Ovoce, zel. | B42: Mrkev mražená | C42: 7 | D42: kg | E42: =SUM(F42:AZ42)+C42 -> 8 | F42: 1
A43: Jídla | B43: Omáčka na houbách | C43: 2 | D43: sáček | E43: 54 | F43: 52
A44: Jídla | B44: Ovčácká miska | C44: 2 | D44: sáček | E44: 2
A45: Maso | B45: Ovčí kýta | C45: =3+1.4+2.7+1.7 -> 8.8 | D45: kg | E45: 8.8
A46: Ovoce, zel. | B46: Petržel mražená | C46: 1.2 | D46: kg | E46: 101.2 | F46: 100
A47: Jídla | B47: Polévka z červené čočky | C47: 1 | D47: sáček | E47: 1
A48: Druh | B48: Položka | C48: 2020-11-15 | D48: jednotka | E48: =SUM(F48:AZ48)+C48 -> 44160.8 | F48: 10.8
A49: Ovoce, zel. | B49: Porek mražený | C49: 1.5 | D49: kg | E49: 1.5
A50: Jídla | B50: Rajská omáčka | C50: 1 | D50: sáček | E50: 1
A51: Jídla | B51: Rozlítaný ptáček | C51: 2 | D51: sáček | E51: 23 | F51: 21
A52: Maso | B52: Sádlo | C52: 7.5 | D52: kg | E52: 5.9 | F52: -1.6
A53: Jídla | B53: Segedýnský guláš | C53: 5 | D53: sáček | E53: 5
A54: Ovoce, zel. | B54: Směs mražená | C54: 2 | D54: kg | E54: =SUM(F54:AZ54)+C54 -> 23.05 | F54: =3.55+4.38+4.44+3.89+4.79 -> 21.05
A55: Jídla | B55: Směs na roládu | C55: 2 | D55: sáček | E55: 0.7 | F55: -1.3
A56: Jídla | B56: Směs na špagety | C56: 1 | D56: sáček | E56: 1
A57: Jídla | B57: Svíčková | C57: 2 | D57: sáček | E57: 2
A58: Ovoce, zel. | B58: Špenát | C58: 5 | D58: kg | E58: 5
A59: Maso | B59: Telecí zbytek | C59: 1 | D59: kg | E59: 1
A60: Maso | B60: Uzené maso | C60: =2.7+2+2.5+2.5+2.1+1.8 -> 13.6 | D60: kg | E60: 23.6 | F60: 10
A61: Maso | B61: Vepřová krkovice | C61: 2.5 | D61: kg | E61: 2.5
A62: Maso | B62: Vepřová kýta | C62: =2.3+1.6+2.3+1.3+1.1+1.6 -> 10.2 | D62: kg | E62: 10.2
A63: Maso | B63: Vepřová líčka | C63: =2.3+1.3+2.3+2.3+1.7+2.7+0.7+1 -> 14.3 | D63: kg | E63: 14.3
A64: Maso | B64: Vepřová pečeně | D64: kg | E64: 0
A65: Maso | B65: Vepřová plec | C65: =6+6+6+1.3 -> 19.3 | D65: kg | E65: 19.3
A66: Jídla | B66: Vepřová šťáva | C66: 1 | D66: sáček | E66: 1
A67: Jídla | B67: Vepřové na houbách | C67: 4 | D67: sáček | E67: 4
A68: Jídla | B68: Vepřové na kari | C68: 1 | D68: sáček | E68: 1
A69: Jídla | B69: Vepřové na paprice | C69: 1 | D69: sáček | E69: 3.5 | F69: 2.5
A70: Maso | B70: Vepřový bůček | C70: 3 | D70: kg | E70: 3
A71: Polotovar | B71: Výpeky | C71: 1 | D71: bedna | E71: 1
A72: Jídla | B72: Zvěřinový guláš | C72: 4 | D72: sáček | E72: =SUM(F72:AZ72)+C72 -> 4
A73: Jídla | B73: Zvěřinový guláš - šťáva | C73: 1 | D73: sáček | E73: 11 | F73: 10
E74: 0
A75: Produkt | B75: Kuřecí řízek (125 g) | C75: =16/0.125 -> 128 | D75: ks | E75: 128
A76: Produkt | B76: Polévka z červené čočky | C76: 4 | D76: kg | E76: 4
A77: Produkt | B77: Zvěřinový guláš | C77: 42.5 | D77: kg | E77: 42.5
A78: Zmrzlina | B78: Zmrzlina čokoládová | C78: 1 | D78: vanička | E78: 1
A79: Zmrzlina | B79: Zmrzlina jahodová | C79: 1 | D79: vanička | E79: 1
A80: Zmrzlina | B80: Zmrzlina vanilková | C80: 1 | D80: vanička | E80: 1

Sheet Suroviny a produkty
A1: n | B1: Aktuální cena bez DPH za (kg, l, ks) | C1: Dodavatel | D1: původní cena | E1: Jednotka v obchodě | F1: bez DPH | G1: s DPH | H1: Jednotka v receptu
A2: a a - zákl jed | G2: =F2*1.15 -> 0
F3: =IF(H3="Dkg",B3/100,IF(H3="g",B3/1000,IF(H3="dl",B3/10,IF(H3="cl",B3/100,IF(H3="ml",B3/1000,B3))))) -> 0 | G3: 0 | H3: g | I3: Surov
A4: Anglická slanina | B4: 194 | C4: Bidfood | D4: 194 | E4: kg | F4: 0.194 | G4: 0.2231 | H4: g | I4: Surov
A5: Argentina | B5: =147.2/0.5 -> 294.4 | C5: Jip | D5: =108/0.8 -> 135 | E5: kg | F5: 0.2944 | G5: 0.33856 | H5: g | I5: Surov
A6: Bazalka | B6: =55.59/0.5 -> 111.18 | D6: 150 | E6: kg | F6: 0.11118 | G6: 0.127857 | H6: g | I6: Surov
A7: BBQ omáčka | B7: =130.45/0.95 -> 137.3157895 | C7: JIP | D7: =180/1.8 -> 100 | E7: l | F7: 0.1373157895 | G7: 0.1579131579 | H7: g | I7: Surov
A8: Bobkový list | B8: =50.63/0.25 -> 202.52 | C8: Jip | D8: 0.5 | E8: ks | F8: =IF(H8="Dkg",B8/100,IF(H8="g",B8/1000,IF(H8="dl",B8/10,IF(H8="cl",B8/100,IF(H8="ml",B8/1000,B8)))))/100 -> 2.0252 | G8: 2.32898 | H8: ks | I8: Surov
A9: Bonjour | B9: =30.16*4 -> 120.64 | C9: JIP | D9: =20*4 -> 80 | E9: kg | F9: 0.12064 | G9: 0.138736 | H9: g | I9: Surov
A10: Borůvky | B10: =305.38/2.5 -> 122.152 | C10: JIP | D10: 150 | E10: kg | F10: 0.122152 | G10: 0.1404748 | H10: g | I10: Surov
A11: Bramborová kaše | B11: ='Jídelní lístek'!D129 ->  | C11: vlastní výroba | D11: =Příl10!I$7 -> Kč | E11: porce | G11: =F11 ->  | H11: porce | I11: Prod
A12: Bramborové těsto | B12: =175.79/5 -> 35.158 | C12: JIP | D12: =180/5 -> 36 | E12: kg | F12: 0.035158 | G12: =F12*1.15 -> 0.0404317 | H12: g | I12: Surov
A13: Brambory | B13: 10 | D13: 10 | E13: kg | F13: 0.01 | G13: 0.0115 | H13: g | I13: Surov
A14: Brambory vařené | D14: 12 | E14: kg | F14: 0 | G14: 0 | H14: g | I14: Surov
A15: Brusinky JIP | B15: =41.95/0.395 -> 106.2025316 | C15: JIP | D15: 100 | E15: kg | F15: 0.1062025316 | G15: 0.1221329114 | H15: g | I15: Surov
A16: Brusinky Makro | B16: =41.95/0.395 -> 106.2025316 | C16: JIP | F16: 0.1062025316 | G16: 0.1221329114 | H16: g | I16: Surov
A17: Bulgur | B17: =221.61/5 -> 44.322 | C17: JIP | D17: 42 | E17: kg | F17: 0.044322 | G17: 0.0509703 | H17: g | I17: Surov
A18: Bulka na trhané maso | B18: ='Jídelní lístek'!D147 ->  | C18: vlastní výroba | E18: ks | G18: =F18 ->  | H18: ks | I18: Prod
A19: Bylinky | D19: 2 | E19: ks | F19: 0 | G19: =F19 -> 0 | H19: ks | I19: Surov
A20: Celer | B20: 16.9 | C20: JIP | D20: 50 | E20: kg | F20: 0.0169 | G20: =F20*1.15 -> 0.019435 | H20: g | I20: Surov
A21: Cibuláda | B21: ='Jídelní lístek'!D149 -> 0 | C21: vlastní výroba | F21: 0 | G21: 0 | H21: g | I21: Prod
A22: Cibule | B22: 10.9 | C22: JIP | D22: 12 | E22: kg | F22: 0.0109 | G22: 0.012535 | H22: g | I22: Surov
A23: Cibule červená | B23: 20.9 | C23: JIP | D23: 50 | E23: kg | F23: 0.0209 | G23: 0.024035 | H23: g | I23: Surov
A24: Cibulový salát | C24: vlastní výroba | D24: 20 | E24: kg | F24: 0 | G24: 0 | H24: g | I24: Prod
A25: Citrony | B25: 22.9 | C25: JIP | D25: 50 | E25: kg | F25: 0.0229 | G25: 0.026335 | H25: g | I25: Surov
A26: Cuketa | B26: =82.9 -> 82.9 | C26: JIP | D26: 45 | E26: kg | F26: 0.0829 | G26: 0.095335 | H26: g | I26: Surov
A27: Cukr | B27: 15.71 | C27: JIP | D27: 18 | E27: kg | F27: 0.01571 | G27: 0.0180665 | H27: g | I27: Surov
A28: Curry | B28: =64.68/0.5 -> 129.36 | C28: JIP | D28: 230 | E28: kg | F28: 0.12936 | G28: 0.148764 | H28: g | I28: Surov
A29: Čaj porcovaný | B29: 1.5 | C29: ks | D29: 2 | E29: ks | F29: 1.5 | G29: 1.725 | H29: ks | I29: Surov
A30: Čaj viatex | B30: 12.5 | C30: Bidwest | E30: ks | F30: =IF(H30="Dkg",B30/100,IF(H30="g",B30/1000,IF(H30="dl",B30/10,IF(H30="cl",B30/100,IF(H30="ml",B30/1000,B30))))) -> 12.5 | G30: =F30*1.15 -> 14.375 | H30: ks | I30: Surov
A31: Černé pivo | D31: 40 | E31: l | F31: 0 | G31: 0 | H31: g | I31: Surov
A32: Česnek | B32: 91.9 | C32: JIP | D32: 100 | E32: kg | F32: 0.0919 | G32: 0.105685 | H32: g | I32: Surov
A33: Čubrica | D33: 180 | E33: kg | F33: 0 | G33: 0 | H33: g | I33: Surov
A34: Čočka červená | B34: =315.8/5 -> 63.16 | C34: JIP | D34: 30 | E34: kg | F34: 0.06316 | G34: 0.072634 | H34: g | I34: Surov
A35: Čočka obyč. | B35: =184.64/5 -> 36.928 | C35: JIP | D35: 20 | E35: kg | F35: 0.036928 | G35: 0.0424672 | H35: g | I35: Surov
A36: Čokoláda | D36: 300 | E36: kg | F36: =IF(H36="Dkg",B36/100,IF(H36="g",B36/1000,IF(H36="dl",B36/10,IF(H36="cl",B36/100,IF(H36="ml",B36/1000,B36))))) -> 0 | G36: 0 | H36: g | I36: Surov
A37: Dijonská horčice | F37: 0 | G37: 0 | H37: g | I37: Surov
A38: Divoké koření | B38: =128.01/0.5 -> 256.02 | C38: JIP | D38: 200 | E38: kg | F38: 0.25602 | G38: 0.294423 | H38: g | I38: Surov
A39: Drcená rajčata | B39: =110.75/4.05 -> 27.34567901 | C39: JIP | D39: 27.69 | E39: kg | F39: 0.02734567901 | G39: 0.03144753086 | H39: g | I39: Surov
A40: Dressing | F40: 0 | G40: 0 | H40: g | I40: Surov
A41: Džem meruňkový | B41: 99 | D41: 27.69 | E41: kg | F41: =IF(H41="Dkg",B41/100,IF(H41="g",B41/1000,IF(H41="dl",B41/10,IF(H41="cl",B41/100,IF(H41="ml",B41/1000,B41))))) -> 0.099 | G41: =F41*1.15 -> 0.11385 | H41: g | I41: Surov
A42: Džem borůvkový | B42: 139 | D42: 27.69 | E42: kg | F42: 0.139 | G42: 0.15985 | H42: g | I42: Surov
A43: Fazolky mražené | B43: =79/2.5 -> 31.6 | C43: JIP | D43: 49 | E43: kg | F43: 0.0316 | G43: 0.03634 | H43: g | I43: Surov
A44: Finální úprava | D44: 3 | E44: ks | F44: 0 | G44: 0 | H44: ks | I44: Surov
A45: Gervais | B45: 130 | C45: JIP | D45: 80 | E45: kg | F45: 0.13 | G45: 0.1495 | H45: g | I45: Surov
A46: Granko | B46: 219 | C46: Bidwest | D46: 80 | E46: kg | F46: =IF(H46="Dkg",B46/100,IF(H46="g",B46/1000,IF(H46="dl",B46/10,IF(H46="cl",B46/100,IF(H46="ml",B46/1000,B46))))) -> 0.219 | G46: =F46*1.15 -> 0.25185 | H46: g | I46: Surov
A47: Hera | B47: =18.22*4 -> 72.88 | C47: JIP | D47: 72.88 | E47: kg | F47: 0.07288 | G47: 0.083812 | H47: g | I47: Surov
A48: Hořčice | B48: =76.72/5 -> 15.344 | C48: JIP | D48: 25 | E48: kg | F48: 0.015344 | G48: 0.0176456 | H48: g | I48: Surov
A49: Houbové koření | B49: =206.37/0.5 -> 412.74 | C49: JIP | D49: 200 | E49: kg | F49: 0.41274 | G49: 0.474651 | H49: g | I49: Surov
A50: Houbový knedlík | B50: =Příl4!H7 -> 9.98 | C50: vlastní výroba | E50: porce | F50: 9.98 | G50: =F50 -> 9.98 | H50: porce | I50: Prod
F51: 0 | G51: =F51*1.15 -> 0 | H51: g | I51: Prod
A52: Houby (kupované) | B52: 191.76 | C52: JIP | D52: 150 | E52: kg | F52: 0.19176 | G52: =F52*1.15 -> 0.220524 | H52: g | I52: Surov
A53: Houby (naše) | B53: 191.76 | C53: ???? | D53: 150 | E53: kg | F53: 0.19176 | G53: =F53*1.15 -> 0.220524 | H53: g | I53: Surov
A54: Houskový knedlík | B54: ='Jídelní lístek'!D122 -> 3.425 | C54: vlastní výroba | E54: porce | F54: 3.425 | G54: =F54 -> 3.425 | H54: porce | I54: Prod
A55: Hovězí ořech | B55: 219.5 | C55: Bidfood | D55: 214 | E55: kg | F55: 0.2195 | G55: =F55*1.15 -> 0.252425 | H55: g | I55: Surov
A56: Hovězí žebro | B56: 120 | C56: asi Polsko | D56: 90 | E56: kg | F56: 0.12 | G56: 0.138 | H56: g | I56: Surov
A57: Hrách | B57: =85.99/5 -> 17.198 | C57: JIP | D57: 25 | E57: kg | F57: 0.017198 | G57: 0.0197777 | H57: g | I57: Surov
A58: Hranolky | B58: =53.9/2.5 -> 21.56 | C58: Bidfood | D58: 44 | E58: kg | F58: 0.02156 | G58: 0.024794 | H58: g | I58: Surov
A59: Hrášek mražený | B59: =95.83/2.5 -> 38.332 | C59: JIP | D59: =95.83/2.5 -> 38.332 | E59: kg | F59: 0.038332 | G59: 0.0440818 | H59: g | I59: Surov
A60: Chilli | B60: =56.5/0.5 -> 113 | C60: JIP | D60: 200 | E60: kg | F60: 0.113 | G60: 0.12995 | H60: g | I60: Surov
A61: Chléb | B61: 27 | D61: 25 | E61: kg | F61: 0.027 | G61: 0.03105 | H61: g | I61: Surov
A62: Jablečný mošt | D62: 20 | E62: l | F62: 0 | G62: 0 | H62: g | I62: Surov
A63: Jablka | B63: 18.9 | C63: JIP | D63: =120/3.6 -> 33.33333333 | E63: l | F63: 0.0189 | G63: 0.021735 | H63: g | I63: Surov
A64: Zelí hlávkové | D64: 25 | E64: kg | F64: 0 | G64: 0 | H64: g | I64: Surov
A65: Jehněčí ořez | B65: 430 | C65: ??? | D65: 240 | E65: kg | F65: 0.43 | G65: 0.4945 | H65: g | I65: Surov
A66: Jehněčí plec / kýta | B66: 430 | C66: Bidfood | D66: 314 | E66: kg | F66: 0.43 | G66: 0.4945 | H66: g | I66: Surov
A68: Jahody | B68: =233.56/2.5 -> 93.424 | C68: JIP | D68: 66.8 | E68: kg | F68: =IF(H68="Dkg",B68/100,IF(H68="g",B68/1000,IF(H68="dl",B68/10,IF(H68="cl",B68/100,IF(H68="ml",B68/1000,B68))))) -> 0.093424 | G68: =F68*1.15 -> 0.1074376 | H68: g | I68: Surov
A69: Jogurt | B69: =157.5/5 -> 31.5 | C69: JIP | D69: 34.9 | E69: kg | F69: 0.0315 | G69: 0.036225 | H69: g | I69: Surov
A70: Juice 50% | B70: 13 | C70: JIP | D70: 10 | E70: kg | F70: 0.013 | G70: 0.01495 | H70: g | I70: Surov
A71: Kachní prsa | B71: 329.9 | C71: Bidfood | D71: 200 | E71: kg | F71: 0.3299 | G71: 0.379385 | H71: g | I71: Surov
A72: Kachní stehna | D72: 135 | E72: kg | F72: 0 | G72: 0 | H72: g | I72: Surov
A73: Kakao | D73: 80 | E73: kg | F73: 0 | G73: 0 | H73: g | I73: Surov
A74: Kapie sterilovaná | B74: =99.48/2.5 -> 39.792 | C74: JIP | D74: 104 | E74: kg | F74: 0.039792 | G74: 0.0457608 | H74: g | I74: Surov
A75: Káva | B75: 180 | C75: JIP | D75: 150 | E75: kg | F75: 0.18 | G75: 0.207 | H75: g | I75: Surov
A76: Kečup | B76: =122.86/5 -> 24.572 | C76: JIP | D76: =122.86/5 -> 24.572 | E76: kg | F76: 0.024572 | G76: 0.0282578 | H76: g | I76: Surov
A77: Kmín (drcený) | B77: =64.92/0.5 -> 129.84 | C77: JIP | D77: 200 | E77: kg | F77: 0.12984 | G77: 0.149316 | H77: g | I77: Surov
A78: Kokos nebo kakao | D78: 100 | E78: kg | F78: 0 | G78: 0 | H78: g | I78: Surov
A79: Kozí sýr | D79: 330 | E79: kg | F79: 0 | G79: 0 | H79: g | I79: Surov
A80: Kozí tvaroh | D80: 330 | E80: kg | F80: 0 | G80: 0 | H80: g | I80: Surov
A81: Krabička | F81: 0 | G81: 0 | I81: Surov
A82: Kucharek | D82: 100 | E82: kg | F82: 0 | G82: 0 | H82: g | I82: Surov
A83: Kuřecí plátek | F83: 0 | G83: 0 | H83: g | I83: Surov
A84: Kuřecí prsa | B84: =14.69 -> 14.69 | C84: JIP | D84: 90 | E84: kg | F84: 0.01469 | G84: 0.0168935 | H84: g | I84: Surov
A85: Kuřecí řízek (125g) | B85: 149.9 | C85: Bidfood | D85: 175.4 | E85: kg | F85: 0.1499 | G85: 0.172385 | H85: g | I85: Surov
A86: Kuřecí řízek (150g) | D86: 175.4 | E86: kg | F86: 0 | G86: 0 | H86: g | I86: Surov
A87: Kuřecí stehenní řízek | B87: 109.9 | C87: Bidfood | E87: kg | F87: 0.1099 | G87: 0.126385 | H87: g | I87: Surov
A88: Kuřecí stehno | B88: 89.9 | C88: Bidfood | D88: 220 g | E88: kg | F88: 0.0899 | G88: 0.103385 | H88: g | I88: Surov
A89: Kuřecí supreme | B89: 169.9 | C89: Bidfood | D89: 105 | E89: kg | F89: 0.1699 | G89: 0.195385 | H89: g | I89: Surov
A90: Kvasnice (42 g) | B90: 2.91 | C90: JIP | D90: 4 | E90: ks | F90: 2.91 | G90: 3.3465 | H90: ks | I90: Surov
A91: Květák mražený | B91: =96.28/4 -> 24.07 | C91: Jip | D91: 38 | E91: kg | F91: 0.02407 | G91: 0.0276805 | H91: g | I91: Surov
A92: Kypřící prášek | B92: 0.72 | C92: JIP | D92: 1 | E92: ks | F92: 0.7 | G92: 0.805 | H92: ks | I92: Surov
A93: Majonéza | B93: =439.5/5 -> 87.9 | C93: JIP | D93: 100 | E93: kg | F93: =IF(H93="Dkg",B93/100,IF(H93="g",B93/1000,IF(H93="dl",B93/10,IF(H93="cl",B93/100,IF(H93="ml",B93/1000,B93))))) -> 0.0879 | G93: 0.101085 | H93: g | I93: Surov
A94: Majonéza na kachnu | C94: vlastní výroba | F94: 0 | G94: 0 | H94: g | I94: Prod
A95: Majonéza na kuře (bylinky, pažitka, petrželka | C95: vlastní výroba | F95: 0 | G95: 0 | H95: g | I95: Prod
A96: Majonéza na trhané vepřové | C96: vlastní výroba | F96: 0 | G96: 0 | H96: g | I96: Prod
A97: Majoránka | B97: =27.41/0.25 -> 109.64 | C97: JIP | E97: kg | F97: 0.10964 | G97: 0.126086 | H97: g | I97: Surov
A98: Marináda | F98: 0 | G98: 0 | H98: g | I98: Surov
A99: Máslo SIM | B99: =31*4 -> 124 | C99: SIM | D99: =120 -> 120 | E99: kg | F99: 0.124 | G99: 0.1426 | H99: g | I99: Surov
A100: Maso z divočáka | B100: 214.9 | C100: Bidfood | D100: 198 | E100: kg | F100: 0.2149 | G100: =F100*1.15 -> 0.247135 | H100: g | I100: Surov
A101: Med | D101: 170 | E101: kg | F101: 0 | G101: 0 | H101: g | I101: Surov
A102: Megamix | D102: 150 | E102: kg | F102: 0 | G102: 0 | H102: g | I102: Surov
A103: Melasa | D103: 100 | E103: kg | F103: 0 | G103: 0 | H103: g | I103: Surov
A104: Mléko | B104: 14.78 | C104: JIP | D104: 11.5 | E104: l | F104: 0.01478 | G104: 0.016997 | H104: g | I104: Surov
A105: Mouka hladká | B105: 14.24 | C105: JIP | D105: 8.5 | E105: kg | F105: 0.01424 | G105: 0.016376 | H105: g | I105: Surov
A106: Mouka hrubá | B106: 14.24 | C106: JIP | D106: 8.5 | E106: kg | F106: 0.01424 | G106: 0.016376 | H106: g | I106: Surov
A107: Mouka polohrubá | B107: 14.24 | C107: JIP | D107: 8.5 | E107: kg | F107: 0.01424 | G107: 0.016376 | H107: g | I107: Surov
A108: Mražený květák | F108: 0 | G108: 0 | H108: g | I108: Surov
A109: Mrkev | B109: 12.9 | D109: 18 | E109: kg | F109: 0.0129 | G109: 0.014835 | H109: g | I109: Surov
A110: Musli SIM | B110: 47 | C110: SIM | D110: =60/0.7 -> 85.71428571 | E110: kg | F110: 0.047 | G110: 0.05405 | H110: g | I110: Surov
A111: Nové koření | B111: =148.25/0.5 -> 296.5 | C111: JIP | D111: 150 | E111: kg | F111: 0.2965 | G111: 0.340975 | H111: g | I111: Surov
A112: Nutela | B112: 5.45 | C112: JIP | D112: 5 | E112: ks | F112: 5.45 | G112: 6.2675 | H112: ks | I112: Surov
A113: Ocet | B113: 10.04 | C113: JIP | D113: 15 | E113: l | F113: 0.01004 | G113: 0.011546 | H113: g | I113: Surov
A114: Ocet jablečný | B114: =24.84/0.5 -> 49.68 | C114: JIP | F114: 0.04968 | G114: 0.057132 | H114: g | I114: Surov
A115: Okurka | B115: 16.95 | C115: JIP | D115: 20 | E115: ks | F115: 16.95 | G115: 19.4925 | H115: ks | I115: Surov
A116: Okurka sterilovaná | B116: =112.7/3.5 -> 32.2 | C116: JIP | D116: =60/3.5 -> 17.14285714 | E116: l | F116: 0.0322 | G116: 0.03703 | H116: g | I116: Surov
A117: Olej | B117: =51.94 -> 51.94 | C117: JIP | D117: 25 | E117: l | F117: 0.05194 | G117: 0.059731 | H117: g | I117: Surov
A118: Ozdoba | B118: 5 | C118: odhad | D118: 3 | E118: ks | F118: 5 | G118: 5.75 | H118: ks | I118: Surov
A119: Papír | F119: 0 | G119: 0 | I119: Surov
A120: Paprika | B120: 82.9 | C120: JIP | D120: 70 | E120: kg | F120: 0.0829 | G120: 0.095335 | H120: g | I120: Surov
A121: Paprika sladká | B121: =100.45/0.5 -> 200.9 | C121: JIP | F121: 0.2009 | G121: 0.231035 | H121: g | I121: Surov
A122: Paštika | B122: 3 | C122: Poslko | D122: 3 | E122: ks | F122: 3 | G122: 3.45 | H122: ks | I122: Surov
A123: Pepř | B123: =101.57/0.5 -> 203.14 | C123: JIP | D123: 300 | E123: kg | F123: 0.20314 | G123: 0.233611 | H123: g | I123: Surov
A124: Pepř zelený | D124: 205 | E124: kg | F124: 0 | G124: 0 | H124: g | I124: Surov
A125: Petržel | B125: 40.9 | C125: JIP | D125: 50 | E125: kg | F125: =IF(H125="Dkg",B125/100,IF(H125="g",B125/1000,IF(H125="dl",B125/10,IF(H125="cl",B125/100,IF(H125="ml",B125/1000,B125))))) -> 0.0409 | G125: 0.047035 | H125: g | I125: Surov
A126: Petrželka | B126: =77.9/0.5 -> 155.8 | C126: JIP | D126: 100 | E126: kg | F126: 0.1558 | G126: 0.17917 | H126: g | I126: Surov
A127: Polníček | B127: 29.9 | C127: Jip | F127: 0.0299 | G127: 0.034385 | H127: g | I127: Surov
A128: Pomazánka SIM | B128: =480/3 -> 160 | D128: =24*5 -> 120 | E128: kg | F128: 0.16 | G128: 0.184 | H128: g | I128: Surov
A129: Pomeranče | B129: 28.9 | C129: JIP | F129: 0.0289 | G129: 0.033235 | H129: g | I129: Surov
A130: Porek | B130: 22.9 | C130: Jip | F130: 0.0229 | G130: 0.026335 | H130: g | I130: Surov
A131: Posyp (sezam + len) | D131: 200 | E131: kg | F131: 0 | G131: 0 | H131: g | I131: Surov
A132: Povidla | B132: =245/4 -> 61.25 | C132: JIP | D132: 150 | E132: kg | F132: 0.06125 | G132: =F132*1.15 -> 0.0704375 | H132: g | I132: Surov
A133: Puding | D133: 44 | E133: kg | F133: 0 | G133: 0 | H133: g | I133: Surov
A134: Rajčata | B134: 82 | D134: 50 | E134: kg | F134: 0.082 | G134: 0.0943 | H134: g | I134: Surov
A135: Rajčata Polsko | B135: 35 | C135: Polsko | D135: 50 | E135: kg | F135: =IF(H135="Dkg",B135/100,IF(H135="g",B135/1000,IF(H135="dl",B135/10,IF(H135="cl",B135/100,IF(H135="ml",B135/1000,B135))))) -> 0.035 | G135: =F135*1.15 -> 0.04025 | H135: g | I135: Surov
A136: Rajčatový protlak | B136: =102.1/3.6 -> 28.36111111 | C136: JIP | D136: =120/3.6 -> 33.33333333 | E136: l | F136: 0.02836111111 | G136: 0.03261527778 | H136: g | I136: Surov
A137: Rohlík | B137: 2.5 | C137: Choustník | E137: ks | F137: 2.5 | G137: =F137 -> 2.5 | H137: ks | I137: Prod
A138: Rozmarýn | B138: 429 | C138: JIP | E138: kg | F138: 0.429 | G138: 0.49335 | H138: g | I138: Surov
A139: Rukola | F139: 0 | G139: 0 | H139: g | I139: Surov
A140: Rýže (příloha) | C140: vlasní výroba | E140: Kg | F140: =B140*0.08 -> 0 | G140: =F140 -> 0 | H140: porce | I140: Prod
A141: Rýže ARO | B141: =119.36/5 -> 23.872 | C141: JIP | D141: 18 | E141: kg | F141: 0.023872 | G141: =F141*1.15 -> 0.0274528 | H141: g | I141: Surov
A142: Rýže ARO | D142: 18 | E142: kg | F142: 0 | G142: 0 | H142: g | I142: Surov
A143: Rýže jasmínová | B143: =202.93/5 -> 40.586 | C143: JIP | D143: 35 | E143: kg | F143: 0.040586 | G143: 0.0466739 | H143: g | I143: Surov
A144: Rýže jasmínová | B144: =202.93/5 -> 40.586 | C144: JIP | D144: 40 | E144: kg | F144: 0.040586 | G144: 0.0466739 | H144: g | I144: Surov
A145: Sádlo | B145: =428.64/9 -> 47.62666667 | C145: JIP | D145: 40 | E145: kg | F145: 0.04762666667 | G145: 0.05477066667 | H145: g | I145: Surov
A146: Salám tvrdý | B146: 230 | C146: Jip | D146: 105 | E146: kg | F146: 0.23 | G146: 0.2645 | H146: g | I146: Surov
A147: Salát Ledový | B147: 32.9 | C147: JIP | D147: 25 | E147: ks | F147: 32.9 | G147: 37.835 | H147: ks | I147: Surov
A148: Sejkora | B148: =Příl1!H7 -> 5.9 | C148: Vlastní výroba | E148: ks | F148: 5.9 | G148: 6.785 | H148: ks | I148: Prod
A149: Skořice | D149: 150 | E149: kg | F149: 0 | G149: 0 | H149: g | I149: Surov
A150: Sladké | B150: 30 | D150: 50 | E150: kg | F150: 0.03 | G150: 0.0345 | H150: g | I150: Surov
A151: Štrůdl | B151: =30/0.4 -> 75 | D151: 50 | E151: kg | F151: =IF(H151="Dkg",B151/100,IF(H151="g",B151/1000,IF(H151="dl",B151/10,IF(H151="cl",B151/100,IF(H151="ml",B151/1000,B151))))) -> 0.075 | G151: =F151*1.15 -> 0.08625 | H151: g | I151: Surov
A152: Slanina | B152: 94.9 | C152: Bidfood | D152: 100 | E152: kg | F152: 0.0949 | G152: 0.109135 | H152: g | I152: Surov
A153: Smetana | B153: 96.37 | C153: JIP | D153: 85 | E153: l | F153: 0.09637 | G153: 0.1108255 | H153: g | I153: Surov
A154: Sojová omáčka | F154: 0 | G154: 0 | H154: g | I154: Surov
A155: Steril fazole bílé (400g) | B155: 13.75 | C155: JIP | D155: 12 | F155: 13.75 | G155: 15.8125 | H155: ks | I155: Surov
A156: Steril fazole červ. (400g) | B156: 15.57 | C156: JIP | D156: 14 | F156: 15.57 | G156: 17.9055 | H156: ks | I156: Surov
A157: Steril kukuřice (340g) | B157: 10.05 | C157: JIP | D157: 10 | F157: 10.05 | G157: 11.5575 | H157: ks | I157: Surov
A158: Strouhanka | B158: =Příl1!H16 -> 0 | C158: Vlastní výroba | E158: ks | F158: =IF(H158="Dkg",B158/100,IF(H158="g",B158/1000,IF(H158="dl",B158/10,IF(H158="cl",B158/100,IF(H158="ml",B158/1000,B158))))) -> 0 | G158: =F158*1.15 -> 0 | H158: ks | I158: Prod
A159: Sůl | B159: 5.18 | C159: JIP | D159: 5 | E159: kg | F159: =IF(H159="Dkg",B159/100,IF(H159="g",B159/1000,IF(H159="dl",B159/10,IF(H159="cl",B159/100,IF(H159="ml",B159/1000,B159))))) -> 0.00518 | G159: 0.005957 | H159: g | I159: Surov
A160: Sušená rajčata | B160: =140.61/0.95 -> 148.0105263 | D160: 120 | E160: kg | F160: 0.1480105263 | G160: 0.1702121053 | H160: g | I160: Surov
A161: Sušené droždí | D161: 200 | E161: kg | F161: 0 | G161: 0 | H161: g | I161: Surov
A162: Sušené ovoce | D162: 200 | E162: kg | F162: 0 | G162: 0 | H162: g | I162: Surov
A163: Sušené švestky | B163: 225.91 | C163: JIP | D163: 80 | E163: kg | F163: 0.22591 | G163: 0.2597965 | H163: g | I163: Surov
A164: Sýr Eidam | B164: 131 | C164: JIP | D164: 95 | E164: kg | F164: 0.131 | G164: 0.15065 | H164: g | I164: Surov
A165: Sýr gorgonzola | B165: =17*5.5 -> 93.5 | C165: Polsko | D165: 100 | E165: kg | F165: 0.0935 | G165: 0.107525 | H165: g | I165: Surov
A166: Sýr tavený | B166: 130 | C166: JIP | D166: 100 | E166: kg | F166: 0.13 | G166: 0.1495 | H166: g | I166: Surov
A167: Sýr tavený porcovaný | B167: =46.49 -> 46.49 | C167: JP | D167: 2 | E167: ks | F167: 46.49 | G167: 53.4635 | H167: ks | I167: Surov
A168: Šlehačka | B168: 204.9 | C168: JIP | D168: 200 | E168: kg | F168: 0.2049 | G168: 0.235635 | H168: g | I168: Surov
A169: Špagety | B169: =10.98/0.4 -> 27.45 | C169: JIP | D169: 36 | E169: kg | F169: 0.02745 | G169: 0.0315675 | H169: g | I169: Surov
A170: Špekáčky | F170: 0 | G170: 0 | H170: g | I170: Surov
A171: Špenát | B171: =76.05/2.5 -> 30.42 | C171: JIP | D171: =101/2.5 -> 40.4 | E171: kg | F171: 0.03042 | G171: 0.034983 | H171: g | I171: Surov
A172: Šunka | B172: 155.74 | C172: JIP | D172: 110 | E172: kg | F172: 0.15574 | G172: 0.179101 | H172: g | I172: Surov
A173: Šunka polská horší | B173: 91 | C173: SIM
A174: Šunka polská lepší | B174: 100 | C174: SIM
A175: Tatarská omáčka | B175: =459.09/5 -> 91.818 | C175: JIP | D175: 100 | E175: kg | F175: 0.091818 | G175: 0.1055907 | H175: g | I175: Surov
A176: Tekutý kouř | D176: 200 | E176: kg | F176: 0 | G176: 0 | H176: g | I176: Surov
A177: Telecí kotleta | F177: 0 | G177: 0 | H177: g | I177: Surov
A178: Těstoviny | B178: =26.05/0.5 -> 52.1 | C178: JIP | D178: 35 | E178: kg | F178: 0.0521 | G178: 0.059915 | H178: g | I178: Surov
A179: Toast | D179: =32/20 -> 1.6 | E179: ks | F179: 0 | G179: 0 | H179: ks | I179: Surov
A180: Tortila - rajče | F180: 0 | G180: 0 | H180: ks | I180: Surov
A181: Trhané kachní stehno | C181: vlasní výroba | F181: 0 | G181: 0 | H181: ks | I181: Prod
A182: Trhané vepřové (vakuum) | B182: ='Jídelní lístek'!D146 -> 16.71333333 | C182: vlasní výroba | D182: =Prod1!I7 -> Kč | E182: ks | F182: 16.71333333 | G182: =F182 -> 16.71333333 | H182: ks | I182: Prod
A183: Tvaroh | B183: =15.39/0.25 -> 61.56 | C183: JIP | D183: 60 | E183: kg | F183: 0.06156 | G183: =F183*1.15 -> 0.070794 | H183: g | I183: Surov
A184: Tymián | D184: 200 | E184: kg | F184: 0 | G184: 0 | H184: g | I184: Surov
A185: Uzená paprika | D185: 250 | E185: kg | F185: 0 | G185: 0 | H185: g | I185: Surov
A186: Uzená plec | D186: 135 | E186: kg | F186: 0 | G186: 0 | H186: g | I186: Surov
A187: Vaječný koňak | D187: 200 | E187: l | F187: 0 | G187: 0 | H187: g | I187: Surov
A188: Vanilkový prášek | B188: 1.08 | C188: JIP | D188: 1 | E188: ks | F188: 0.7 | G188: 0.805 | H188: ks | I188: Surov
A189: Vegeta | F189: =IF(H189="Dkg",B189/100,IF(H189="g",B189/1000,IF(H189="dl",B189/10,IF(H189="cl",B189/100,IF(H189="ml",B189/1000,B189))))) -> 0 | G189: 0 | H189: g | I189: Surov
A190: Vejce | B190: 3.19 | C190: JIP | D190: 2.5 | E190: ks | F190: 3.19 | G190: 3.6685 | H190: ks | I190: Surov
A191: Vepřová játra | F191: 0 | G191: 0 | H191: g | I191: Surov
A192: Vepřová kotleta | B192: 102.9 | C192: Bidfood | F192: 0.1029 | G192: 0.118335 | H192: g | I192: Surov
A193: Vepřová krkovice | B193: =115.8 -> 115.8 | C193: Bidfood | D193: 100 | E193: kg | F193: 0.1158 | G193: 0.13317 | H193: g | I193: Surov
A194: Vepřová líčka | B194: 154 | C194: Bidfood | D194: 168 | E194: kg | F194: 0.154 | G194: 0.1771 | H194: g | I194: Surov
A195: Vepřová plec / kýta | B195: 82 | C195: Jip | D195: 80 | E195: kg | F195: 0.082 | G195: 0.0943 | H195: g | I195: Surov
A196: Vepřový bůček | B196: 141.9 | C196: Bidfood | F196: 0.1419 | G196: 0.163185 | H196: g | I196: Surov
A197: Voda | B197: 0 | F197: 0 | G197: 0 | H197: g
A198: Worchester | F198: 0 | G198: 0 | H198: g | I198: Surov
A199: Zakysaná smetana | F199: 0 | G199: 0 | H199: g | I199: Surov
A200: Zázvor | D200: 100 | E200: kg | F200: 0 | G200: 0 | H200: g | I200: Surov
A201: Zelí kysané | B201: =14.02/0.5 -> 28.04 | C201: JIP | D201: 30 | E201: kg | F201: 0.02804 | G201: 0.032246 | H201: g | I201: Surov
... 18 more rows

Sheet JL (hidden)
A1: ctrl+q | C1: Jídelní lístek | D1: Náklady | E1: Cena | F1: Marže | G1: Alergeny
C2: Suroviny | D2: Pá | E2: So | F2: Ne | G2: Po
C3: Počet ubytovaných z Googlu | G3: 50
C4: Skalární součin | G4: 1
A5: P | B5: P | C5: Pasant | D5: Kalkulace nákladů / osobu | G5: =IF(G3=0,0,SUMPRODUCT($D$23:$D$141,G$23:G$141)/G3+SUMPRODUCT($D$152:$D$161,G$152:G$161)/G3) -> 
A6: 1 | B6: P1 | C6: Trhané vepřové ramínko v bulce | D6: ='P1'!$H$7 ->  | E6: 195 | F6: ='P1'!$H$9/100 ->  | G6: 1
A7: 2 | B7: P2 | C7: Sejkora s jablky a skořicí | D7: ='P2'!$H$7 -> 8.99 | E7: 80 | F7: ='P2'!$H$9/100 -> 8.898776418
A8: 3 | B8: P3 | C8: Sejkora s houbovým ragú | D8: ='P3'!$H$7 -> 10.90625 | E8: 90 | F8: ='P3'!$H$9/100 -> 8.252148997
A9: 4 | B9: P4 | C9: Vepřová krkovice s ouhrabky | D9: ='P4'!$H$7 -> 28.41 | E9: 180 | F9: ='P4'!$H$9/100 -> 6.335797254
A10: 5 | B10: P5 | C10: Jehněčí ragú se sejkorou | D10: ='P5'!$H$7 -> 90.91 | E10: 195 | F10: ='P5'!$H$9/100 -> 2.69497305
A11: 6 | B11: P6 | C11: Zvěřinový guláš s houbovým knedlíkem | D11: ='P6'!$H$7 -> 57.1 | E11: 180 | F11: ='P6'!$H$9/100 -> 3.415061296
A12: 7 | B12: P7 | C12: Borůvkové knedlíky | D12: ='P7'!$H$7 ->  | E12: 135 | F12: ='P7'!$H$9/100 -> 
A13: 8 | B13: P8 | C13: Chlupačky z vařených brambor s houbami | D13: ='P8'!$H$7 -> 0 | E13: 0 | F13: ='P8'!$H$9/100 -> 0
A14: 9 | B14: P9 | C14: Lasagne s jehněčím masem | D14: ='P9'!$H$7 ->  | E14: 180 | F14: ='P9'!$H$9/100 -> 
A15: 10 | B15: P10 | C15: Špenátové lasagne s houbami | D15: ='P10'!$H$7 -> 25.88888889 | E15: 160 | F15: ='P10'!$H$9/100 -> 6.180257511
A16: 11 | B16: P11 | C16: Grilovaný kozí sýr s brusinkami a slaninou v toastu | D16: ='P11'!$H$7 ->  | E16: 155 | F16: ='P11'!$H$9/100 -> 
A17: 12 | B17: P12 | C17: Kachní ragú s noky | D17: ='P12'!$H$7 -> 70.13 | E17: 180 | F17: ='P12'!$H$9/100 -> 3.350919721
A18: 13 | B18: P13 | C18: Kuřecí supreme s hráškovým bulgurem | D18: ='P13'!$H$7 -> 59.18 | E18: 180 | F18: ='P13'!$H$9/100 -> 3.970936127
A19: 14 | B19: P14 | C19: Kuličky z kozího sýra | D19: ='P14'!$H$7 -> 3.2 | E19: 40 | F19: ='P14'!$H$9/100 -> 12.5
A20: 15 | B20: P15 | C20: Kuličky z kozího tvarohu | D20: ='P15'!$H$7 -> 0.7 | E20: 40 | F20: ='P15'!$H$9/100 -> 57.14285714
A21: 16 | B21: P16 | C21: Borůvkový koláč (kulatý - na pasant) | D21: ='P16'!$H$7 -> 9.725 | E21: 65 | F21: ='P16'!$H$9/100 -> 6.683804627
A22: 17 | B22: UV1 | C22: Ubytovaní - polopenze A - verze 1
A23: 18 | B23: UV11 | C23: ='Jídelní lístek'!C23 -> Moravský vrabec, bramborový knedlík, zelí | G23: ='Jídelní lístek'!G23 -> 1;3;7;
A24: 19 | B24: UV12 | C24: ='Jídelní lístek'!C24 -> Hovězí na kapii, rýže | G24: ='Jídelní lístek'!G24 -> 1;
A25: 20 | B25: UV13 | C25: ='Jídelní lístek'!C25 -> Vepřová líčka na zelenině, bramborová kaše | G25: ='Jídelní lístek'!G25 -> 1;3;7;9;
A26: 21 | B26: UV14 | C26: ='Jídelní lístek'!C26 -> Jehněčí kebab, dip, pečený brambor, salát | G26: ='Jídelní lístek'!G26 -> 7;10
A27: 22 | B27: UV15 | C27: ='Jídelní lístek'!C27 -> Kuřecí plátek s houbovou omáčkou a fazolkami, opečený brambor | G27: ='Jídelní lístek'!G27 -> 1;7;
A28: 23 | B28: UV16 | C28: ='Jídelní lístek'!C28 -> Vepřová pečeně plněná švestkami v anglické slanině, smetanové halušky | G28: ='Jídelní lístek'!G28 -> 1;3;7
A29: 24 | B29: UV27 | C29: ='Jídelní lístek'!C29 -> Kuřecí řízek s brambrovou kaší | G29: ='Jídelní lístek'!G29 -> 0
A30: 25 | B30: VV1 | C30: Ubytovaní - polopenze B - vegetariánská jídla - verze 1
A31: 26 | B31: VV11 | C31: Špenátové lassagne s houbami | D31: ='VV11'!$H$7 -> 27.34 | F31: ='VV11'!$H$9/100 -> 0 | G31: ='Jídelní lístek'!G31 -> 1;3;7;
A32: 27 | B32: VV12 | C32: Špagety aglio, olio et pomidoro | D32: ='VV12'!$H$7 -> 21.61 | F32: ='VV12'!$H$9/100 -> 0
A33: 28 | B33: VV13 | C33: Zapečená cuketa se zeninou a sýrem | D33: ='VV13'!$H$7 -> 33.09 | F33: ='VV13'!$H$9/100 -> 0
A34: 29 | B34: VV14 | C34: Pečený sýr, vařený brambor, tatarská omáčka | D34: ='VV14'!$H$7 -> 32.18 | F34: ='VV14'!$H$9/100 -> 4.972032318
A35: 30 | B35: VV15 | C35: Savojské brambory se sýrem a smetanou | D35: ='VV15'!$H$7 -> 30.37 | F35: ='VV15'!$H$9/100 -> 0
A36: 31 | B36: VV16 | C36: Plněný paprikový lusk, rajská omáčka, houskový knedlík | D36: ='VV16'!$H$7 -> 25.65 | F36: ='VV16'!$H$9/100 -> 0
A37: 32 | B37: VV17 | C37: Bramborové noky s houbami | D37: ='VV17'!$H$7 -> 29.53 | F37: ='VV17'!$H$9/100 -> 0
A38: 33 | B38: UV2 | C38: Ubytovaní - polopenze A - verze 2
A39: 34 | B39: UV21 | C39: Kuře na kari, rýže | D39: ='UV21'!$H$7 -> 28.09 | F39: ='UV21'!$H$9/100 -> 0
A40: 35 | B40: UV22 | C40: Závitek z vepřové krkovičky plněný kysaným zelím a houbami, šťouchyný brambor | D40: ='UV22'!$H$7 ->  | F40: ='UV22'!$H$9/100 -> 
A41: 36 | B41: UV23 | C41: Svíčková na smetaně s karlovarským knedlíkem | D41: ='UV23'!$H$7 -> 56.45 | F41: ='UV23'!$H$9/100 -> 0
A42: 37 | B42: UV24 | C42: Vepřová pečínka na slanině, těstoviny | D42: ='UV24'!$H$7 -> 31.97 | F42: ='UV24'!$H$9/100 -> 0
A43: 38 | B43: UV25 | C43: Vykoštěné kuřecí stehno s oříškovo jablečnou omáčkou, bramborová kaše | D43: ='UV25'!$H$7 ->  | F43: ='UV25'!$H$9/100 -> 
A44: 39 | B44: UV26 | C44: Hovězí znojemská pečeně, rýže | D44: ='UV26'!$H$7 -> 50.24 | F44: ='UV26'!$H$9/100 -> 0
A45: 40 | B45: UV17 | C45: Krkonošská roláda plněná uzeným masem s červeným zelím | D45: ='UV17'!$H$7 -> 10.84 | F45: ='UV17'!$H$9/100 -> 0
A46: 41 | B46: VV2 | C46: Ubytovaní - polopenze B - vegetariánská jídla - verze 2
A47: 42 | B47: VV21 | C47: Zeleninové kari, rýže | D47: ='VV21'!$H$7 -> 23.07 | F47: ='VV21'!$H$9/100 -> 0
A48: 43 | B48: VV22 | C48: Fazolový guláš, pečivo | D48: ='VV22'!$H$7 -> 23.39 | F48: ='VV22'!$H$9/100 -> 0
A49: 44 | B49: VV23 | C49: Krkonošská vegetariánská roláda se zelím | D49: ='VV23'!$H$7 -> 23.1 | F49: ='VV23'!$H$9/100 -> 0
A50: 45 | B50: VV24 | C50: Fussili se špenátem a šafránovým přelivem | D50: ='VV24'!$H$7 -> 21 | F50: ='VV24'!$H$9/100 -> 6.666666667
A51: 46 | B51: VV25 | C51: Květákový mozeček s bandorou | D51: ='VV25'!$H$7 -> 24.15 | F51: ='VV25'!$H$9/100 -> 0
A52: 47 | B52: VV26 | C52: Bulgur s grilovanou zeleninou | D52: ='VV26'!$H$7 -> 22.57 | F52: ='VV26'!$H$9/100 -> 6.202924236
A53: 48 | B53: VV27 | C53: Pečený sýr s vařeným bramborem, tatarská omáčka | D53: ='VV27'!$H$7 -> 31.29 | F53: ='VV27'!$H$9/100 -> 0
A54: 49 | B54: SA1 | C54: Ubytovaní - polopenze A - Silvestr
A55: 50 | B55: SA11 | C55: Kachna na zázvoru s jablky a bramborovými knedlíky se strouhankou | D55: ='SA11'!$H$7 -> 11.2 | F55: ='SA11'!$H$9/100 -> 0
A56: 51 | B56: SA12 | C56: Kuřecí roláda se švestkami s opekanými brambory | D56: ='SA12'!$H$7 -> 28.25 | F56: ='SA12'!$H$9/100 -> 4.955752212
A57: 52 | B57: SA13 | C57: Svíčková na smetaně, houskový knedlík (Silvestr) | D57: ='SA13'!$H$7 -> 52.9 | F57: ='SA13'!$H$9/100 -> 3.686200378
A58: 53 | B58: SA14 | C58: Kuře na kari, rýže (Silvestr) | D58: ='SA14'!$H$7 -> 33.91 | F58: ='SA14'!$H$9/100 -> 0
A59: 54 | B59: SA15 | C59: Jehněčí kýta na slanině a rozmarýnu, noky | D59: ='SA15'!$H$7 -> 83.3 | F59: ='SA15'!$H$9/100 -> 2.340936375
A60: 55 | B60: SA16 | C60: Řízek z vepřové krkovice, bramborový salát | D60: ='SA16'!$H$7 -> 32.44 | F60: ='SA16'!$H$9/100 -> 4.315659679
A61: 56 | B61: SA17 | C61: Karbenátky s petrželovými brambory | D61: ='SA17'!$H$7 -> 32.33 | F61: ='SA17'!$H$9/100 -> 0
A62: 57 | B62: SA18 | C62: Silvestrovské menu
A63: 58 | B63: SB | C63: Ubytovaní - polopenze B - Silvestr
A64: 59 | B64: SB1 | C64: Něco | D64: ='SB1'!$H$7 -> 2 | F64: ='SB1'!$H$9/100 -> 0
A65: 60 | B65: SB2 | C65: Něco | D65: ='SB2'!$H$7 -> 2 | F65: ='SB2'!$H$9/100 -> 0
A66: 61 | B66: SB3 | C66: Něco | D66: ='SB3'!$H$7 -> 2 | F66: ='SB3'!$H$9/100 -> 0
A67: 62 | B67: SB4 | C67: Něco | D67: ='SB4'!$H$7 -> 2 | F67: ='SB4'!$H$9/100 -> 0
A68: 63 | B68: SB5 | C68: Něco | D68: ='SB5'!$H$7 -> 2 | F68: ='SB5'!$H$9/100 -> 0
A69: 64 | B69: SB6 | C69: Něco | D69: ='SB6'!$H$7 -> 2 | F69: ='SB6'!$H$9/100 -> 0
A70: 65 | B70: SB7 | C70: Silvestrovské menu
A71: 66 | B71: ŠO1 | C71: Ubytovaní - plná penze - škola - obědy - verze 1
A72: 67 | B72: ŠO11 | C72: Bolońské špagety se sýrem | D72: =ŠO11!$H$7 -> 12.19 | F72: =ŠO11!$H$9/100 -> 0
A73: 68 | B73: ŠO12 | C73: Čočka na kyselo se sázeným vejcem | D73: =ŠO12!$H$7 -> 15.13 | F73: =ŠO12!$H$9/100 -> 0
A74: 69 | B74: ŠO13 | C74: Zapečené těstoviny | D74: =ŠO13!$H$7 -> 2 | F74: =ŠO13!$H$9/100 -> 0
A75: 70 | B75: ŠO14 | C75: Ovocné knedlíky | D75: =ŠO14!$H$7 ->  | F75: =ŠO14!$H$9/100 -> 
A76: 71 | B76: ŠO15 | C76: škola oběd 15 | D76: =ŠO15!$H$7 ->  | F76: =ŠO15!$H$9/100 -> 
A77: 72 | B77: ŠO16 | C77: škola oběd 16 | D77: =ŠO16!$H$7 -> 9.74 | F77: =ŠO16!$H$9/100 -> 0
A78: 73 | B78: ŠO17 | C78: škola oběd 17 | D78: =ŠO17!$H$7 -> 2 | F78: =ŠO17!$H$9/100 -> 0
A79: 74 | B79: ŠO2 | C79: Ubytovaní - plná penze - škola - obědy - verze 2
A80: 75 | B80: ŠO21 | C80: Rizoto se sýrem | D80: =ŠO21!$H$7 -> 12.8 | F80: =ŠO21!$H$9/100 -> 0
A81: 76 | B81: ŠO22 | C81: Francouzské brambory | D81: =ŠO22!$H$7 -> 12.19 | F81: =ŠO22!$H$9/100 -> 0
A82: 77 | B82: ŠO23 | C82: Dukátové buchtičky s krémem | D82: =ŠO23!$H$7 ->  | F82: =ŠO23!$H$9/100 -> 
A83: 78 | B83: ŠO24 | C83: Masové koule v rajské omáčce, těstoviny | D83: =ŠO24!$H$7 -> 20.97 | F83: =ŠO24!$H$9/100 -> 0
A84: 79 | B84: ŠO25 | C84: Moravský vrabec, bramborový knedlík, zelí | D84: =ŠO25!$H$7 -> 22.07 | F84: =ŠO25!$H$9/100 -> 0
A85: 80 | B85: ŠO26 | C85: Kuřecí na kari, rýže | D85: =ŠO26!$H$7 -> 2 | F85: =ŠO26!$H$9/100 -> 0
A86: 81 | B86: ŠO27 | C86: škola oběd 27 | D86: =ŠO27!$H$7 -> 2.02 | F86: =ŠO27!$H$9/100 -> 0
A87: 82 | B87: ŠV1 | C87: Ubytovaní - plná penze - škola - večeře - verze 1
A88: 83 | B88: ŠV11 | C88: Školní večeře 11
A89: 84 | B89: ŠV12 | C89: Školní večeře 12
A90: 85 | B90: ŠV13 | C90: Školní večeře 13
A91: 86 | B91: ŠV14 | C91: Školní večeře 14
A92: 87 | B92: ŠV15 | C92: Školní večeře 15
A93: 88 | B93: ŠV16 | C93: Školní večeře 16
A94: 89 | B94: ŠV17 | C94: Školní večeře 17
A95: 90 | B95: ŠV2 | C95: Ubytovaní - plná penze - škola - večeře - verze 2
A96: 91 | B96: ŠV21 | C96: Školní večeře 21
A97: 92 | B97: ŠV22 | C97: Školní večeře 22
A98: 93 | B98: ŠV23 | C98: Školní večeře 23
A99: 94 | B99: ŠV24 | C99: Školní večeře 24
A100: 95 | B100: ŠV25 | C100: Školní večeře 25
A101: 96 | B101: ŠV26 | C101: Školní večeře 26
A102: 97 | B102: ŠV27 | C102: Školní večeře 27
A103: 98 | B103: Dez | C103: Ubytovaní - plná penze - dezerty
A104: 99 | B104: Dez1 | C104: Borůvkový koláč | D104: ='DEZ1'!$H$7 -> 8.025 | G104: ='Jídelní lístek'!G104 -> 1;3;7
A105: 100 | B105: Dez2 | C105: ='Jídelní lístek'!C105 -> Zmrzlina
A106: 101 | B106: Dez3 | C106: ='Jídelní lístek'!C106 -> Lívanec s přelivem
A107: 102 | B107: Dez4 | C107: ='Jídelní lístek'!C107 -> Trhanec
A108: 103 | B108: Dez5 | C108: ='Jídelní lístek'!C108 -> Tvarohová vlna
A109: 104 | B109: Dez6 | C109: ='Jídelní lístek'!C109 -> Ovocný salát s krémem
A110: 105 | B110: Dez7 | C110: ='Jídelní lístek'!C110 -> Sejkora se skořicí
A111: 106 | B111: Před | C111: Ubytovaní - plná penze - předkrmy
A112: 107 | B112: Před1 | C112: Předkrm 1
A113: 108 | B113: Před2 | C113: Předkrm 2
A114: 109 | B114: Před3 | C114: Předkrm 3
A115: 110 | B115: Před4 | C115: Předkrm 4
A116: 111 | B116: Před5 | C116: Předkrm 5
A117: 112 | B117: Před6 | C117: Předkrm 6
A118: 113 | B118: Před7 | C118: Předkrm 7
A119: 114 | B119: Příl | C119: Přílohy
A120: 115 | B120: Příl1 | C120: Sejkora | D120: =Příl1!$H$7 -> 5.9
A121: 116 | B121: Příl2 | C121: Bramborový knedlík | D121: =Příl2!$H$7 -> 5.75
A122: 117 | B122: Příl3 | C122: Houskový knedlík | D122: =Příl3!$H$7 -> 3.425
A123: 118 | B123: Příl4 | C123: Houbový knedlík | D123: =Příl4!$H$7 -> 9.98
A124: 119 | B124: Příl5 | C124: Rýže (příloha) | D124: =Příl5!$H$7 -> 7.05
A125: 120 | B125: Příl6 | C125: Těstoviny | D125: =Příl6!$H$7 -> 5.6
A126: 121 | B126: Příl7 | C126: Brambory | D126: =Příl7!$H$7 -> 2.68
A127: 122 | B127: Příl8 | C127: Noky | D127: =Příl8!$H$7 -> 4.47
A128: 123 | B128: Příl9 | C128: Rohlík | D128: =Příl9!$H$7 -> 0.8666666667
A129: 124 | B129: Příl10 | C129: Bramborová kaše | D129: =Příl10!$H$7 -> 
A130: 125 | B130: Pol | C130: Polévky
A131: 126 | B131: Pol1 | C131: Polévka z červené čočky | D131: ='Pol1'!$H$7 -> 2.864 | F131: ='Pol1'!$H$9/100 -> 0 | G131: ='Jídelní lístek'!G131 -> 1
A132: 127 | B132: Pol2 | C132: Bramborová polévka | D132: ='Pol2'!$H$7 -> 3.25 | F132: ='Pol2'!$H$9/100 -> 0
A133: 128 | B133: Pol3 | C133: Hovězí vývar s nudlemi | D133: ='Pol3'!$H$7 -> 4.742
A134: 129 | B134: Pol4 | C134: ='Jídelní lístek'!C134 -> Zelňačka
A135: 130 | B135: Pol5 | C135: ='Jídelní lístek'!C135 -> Dýňová
A136: 131 | B136: Pol6 | C136: ='Jídelní lístek'!C136 -> Hrachovo-hrášková
A137: 132 | B137: Pol7 | C137: ='Jídelní lístek'!C137 -> Frankfurtská
A138: 133 | B138: Pol8 | C138: ='Jídelní lístek'!C138 -> Česnečka
A139: 134 | B139: Pol9 | C139: ='Jídelní lístek'!C139 -> Kuřecí vývar
A140: 135 | B140: Pol10 | C140: ='Jídelní lístek'!C140 -> Cibulový krém
A141: 136 | B141: Prod | C141: Produkty - hotové a zamražené ve vakuu
A142: 137 | B142: Prod1 | C142: Trhané vepřové maso (vakuum) | D142: =Prod1!H7 -> 16.71333333
A143: 138 | B143: Prod2 | C143: Bulka na trhané maso | D143: =Prod2!H$7 -> 
A144: 139 | B144: Prod3 | C144: Majonéza na trhané vepřové
A145: 140 | B145: Prod4 | C145: Cibuláda
A146: 141 | B146: Prod5 | C146: Houbové ragú
A147: 142 | B147: Prod6 | C147: Produkt 6
A148: 143 | B148: Prod7 | C148: Produkt 7
A149: 144 | B149: Prod8 | C149: Produkt 8
A150: 145 | B150: Prod9 | C150: Produkt 9
A151: 146 | B151: Prod10 | C151: Produkt 10
A152: 147 | B152: SN | C152: Snídaně
A153: 148 | B153: SN1 | C153: Snídaně rodina | D153: ='SN1'!H7 -> 56.375
A154: 149 | B154: SN2 | C154: Snídaně škola | D154: ='SN2'!H8 -> 0
A155: 150 | B155: SN3 | C155: Snidaně silvestr | D155: ='SN3'!H9 -> 0
A156: 151 | B156: SN4 | C156: Snídaně extra
A157: 147 | B157: ZB | C157: Zbytky

Sheet Jídelní lístek
A1: ctrl+q | B1: =197*12 -> 2364 | C1: Jídelní lístek | D1: Náklady | E1: Cena | F1: Marže | G1: Alergeny
C2: Suroviny | D2: Pá | E2: So | F2: Ne | G2: Po
C3: Počet ubytovaných z Googlu
C4: Skalární součin
A5: P | B5: P | C5: Pasant | D5: Kalkulace nákladů / osobu
A6: 1 | B6: P1 | C6: Trhané vepřové ramínko v bulce | D6: ='P1'!$H$7 ->  | E6: 195 | F6: ='P1'!$H$9/100 ->  | G6: =IF('P1'!H$2=""," - - -",'P1'!H$2) -> 1;3;7;10;11
A7: 2 | B7: P2 | C7: Sejkora s jablky a skořicí | D7: ='P2'!$H$7 -> 8.99 | E7: 80 | F7: ='P2'!$H$9/100 -> 8.898776418 | G7: =IF('P2'!H$2=""," - - -",'P2'!H$2) -> 1;3;7;
A8: 3 | B8: P3 | C8: Sejkora s houbovým ragú | D8: ='P3'!$H$7 -> 10.90625 | E8: 90 | F8: ='P3'!$H$9/100 -> 8.252148997 | G8: =IF('P3'!H$2=""," - - -",'P3'!H$2) -> 1;3;7;
A9: 4 | B9: P4 | C9: Vepřová krkovice s ouhrabky | D9: ='P4'!$H$7 -> 28.41 | E9: 180 | F9: ='P4'!$H$9/100 -> 6.335797254 | G9: =IF('P4'!H$2=""," - - -",'P4'!H$2) -> 1;3;7;
A10: 5 | B10: P5 | C10: Jehněčí ragú se sejkorou | D10: ='P5'!$H$7 -> 90.91 | E10: 195 | F10: ='P5'!$H$9/100 -> 2.69497305 | G10: =IF('P5'!H$2=""," - - -",'P5'!H$2) -> 1;3;7;
A11: 6 | B11: P6 | C11: Zvěřinový guláš s houbovým knedlíkem | D11: ='P6'!$H$7 -> 57.1 | E11: 180 | F11: ='P6'!$H$9/100 -> 3.415061296 | G11: =IF('P6'!H$2=""," - - -",'P6'!H$2) -> 1;3;7;
A12: 7 | B12: P7 | C12: Borůvkové knedlíky | D12: ='P7'!$H$7 ->  | E12: 135 | F12: ='P7'!$H$9/100 ->  | G12: =IF('P7'!H$2=""," - - -",'P7'!H$2) -> 1;3;7;
A13: 8 | B13: P8 | C13: Chlupačky z vařených brambor s houbami | D13: ='P8'!$H$7 -> 0 | E13: 0 | F13: ='P8'!$H$9/100 -> 0 | G13: =IF('P8'!H$2=""," - - -",'P8'!H$2) -> - - -
A14: 9 | B14: P9 | C14: Lasagne s jehněčím masem | D14: ='P9'!$H$7 ->  | E14: 180 | F14: ='P9'!$H$9/100 ->  | G14: =IF('P9'!H$2=""," - - -",'P9'!H$2) -> 1;3;7;
A15: 10 | B15: P10 | C15: Špenátové lasagne s houbami | D15: ='P10'!$H$7 -> 25.88888889 | E15: 160 | F15: ='P10'!$H$9/100 -> 6.180257511 | G15: =IF('P10'!H$2=""," - - -",'P10'!H$2) -> 1;3;7;
A16: 11 | B16: P11 | C16: Grilovaný kozí sýr s brusinkami a slaninou v toastu | D16: ='P11'!$H$7 ->  | E16: 155 | F16: ='P11'!$H$9/100 ->  | G16: =IF('P11'!H$2=""," - - -",'P11'!H$2) -> 1;3;7;
A17: 12 | B17: P12 | C17: Kachní ragú s noky | D17: ='P12'!$H$7 -> 70.13 | E17: 180 | F17: ='P12'!$H$9/100 -> 3.350919721 | G17: =IF('P12'!H$2=""," - - -",'P12'!H$2) -> - - -
A18: 13 | B18: P13 | C18: Kuřecí supreme s hráškovým bulgurem | D18: ='P13'!$H$7 -> 59.18 | E18: 180 | F18: ='P13'!$H$9/100 -> 3.970936127 | G18: =IF('P13'!H$2=""," - - -",'P13'!H$2) -> 1;7;
A19: 14 | B19: P14 | C19: Kuličky z kozího sýra | D19: ='P14'!$H$7 -> 3.2 | E19: 40 | F19: ='P14'!$H$9/100 -> 12.5 | G19: =IF('P14'!H$2=""," - - -",'P14'!H$2) -> - - -
A20: 15 | B20: P15 | C20: Kuličky z kozího tvarohu | D20: ='P15'!$H$7 -> 0.7 | E20: 40 | F20: ='P15'!$H$9/100 -> 57.14285714 | G20: =IF('P15'!H$2=""," - - -",'P15'!H$2) -> - - -
A21: 16 | B21: P16 | C21: Borůvkový koláč (kulatý - na pasant) | D21: ='P16'!$H$7 -> 9.725 | E21: 65 | F21: ='P16'!$H$9/100 -> 6.683804627 | G21: =IF('P16'!H$2=""," - - -",'P16'!H$2) -> 1;3;7;
A22: 17 | B22: UV1 | C22: Ubytovaní - polopenze A - verze 1
A23: 18 | B23: UV11 | C23: Moravský vrabec, bramborový knedlík, zelí | D23: ='UV11'!$H$7 -> 24.4 | E23: 180 | F23: ='UV11'!$H$9/100 -> 7.37704918 | G23: ='UV11'!$H$2 -> 1;3;7;
A24: 19 | B24: UV12 | C24: Hovězí na kapii, rýže | D24: ='UV12'!$H$7 -> 42.18 | F24: ='UV12'!$H$9/100 -> 0 | G24: ='UV12'!$H$2 -> 1;
A25: 20 | B25: UV13 | C25: Vepřová líčka na zelenině, bramborová kaše | D25: ='UV13'!$H$7 ->  | F25: ='UV13'!$H$9/100 ->  | G25: ='UV13'!$H$2 -> 1;3;7;9;
A26: 21 | B26: UV14 | C26: Jehněčí kebab, dip, pečený brambor, salát | D26: ='UV14'!$H$7 -> 42 | F26: ='UV14'!$H$9/100 -> 0 | G26: ='UV14'!$H$2 -> 7;10
A27: 22 | B27: UV15 | C27: Kuřecí plátek s houbovou omáčkou a fazolkami, opečený brambor | D27: ='UV15'!$H$7 -> 25.99 | F27: ='UV15'!$H$9/100 -> 0 | G27: ='UV15'!$H$2 -> 1;7;
A28: 23 | B28: UV16 | C28: Vepřová pečeně plněná švestkami v anglické slanině, smetanové halušky | D28: ='UV16'!$H$7 -> 35.51 | F28: ='UV16'!$H$9/100 -> 0 | G28: 1;3;7
A29: 24 | B29: UV27 | C29: Kuřecí řízek s brambrovou kaší | D29: ='UV27'!$H$7 ->  | F29: ='UV27'!$H$9/100 ->  | G29: ='UV17'!$H$2 -> 0
A30: 25 | B30: VV1 | C30: Ubytovaní - polopenze B - vegetariánská jídla - verze 1
A31: 26 | B31: VV11 | C31: Špenátové lassagne s houbami | D31: ='VV11'!$H$7 -> 27.34 | F31: ='VV11'!$H$9/100 -> 0 | G31: ='VV11'!$H$2 -> 1;3;7;
A32: 27 | B32: VV12 | C32: Špagety aglio, olio et pomidoro | D32: ='VV12'!$H$7 -> 21.61 | F32: ='VV12'!$H$9/100 -> 0 | G32: ='VV12'!$H$2 -> 1;3;
A33: 28 | B33: VV13 | C33: Zapečená cuketa se zeninou a sýrem | D33: ='VV13'!$H$7 -> 33.09 | F33: ='VV13'!$H$9/100 -> 0 | G33: ='VV13'!$H$2 -> 3;7;
A34: 29 | B34: VV14 | C34: Pečený sýr, hranolky, tatarská omáčka | D34: ='VV14'!$H$7 -> 32.18 | F34: ='VV14'!$H$9/100 -> 4.972032318 | G34: 3;7;
A35: 30 | B35: VV15 | C35: Savojské brambory se sýrem a smetanou | D35: ='VV15'!$H$7 -> 30.37 | F35: ='VV15'!$H$9/100 -> 0 | G35: ='VV15'!$H$2 -> 0
A36: 31 | B36: VV16 | C36: Plněný paprikový lusk, rajská omáčka, houskový knedlík | D36: ='VV16'!$H$7 -> 25.65 | F36: ='VV16'!$H$9/100 -> 0
A37: 32 | B37: VV17 | C37: Bramborové noky s houbami | D37: ='VV17'!$H$7 -> 29.53 | F37: ='VV17'!$H$9/100 -> 0
A38: 33 | B38: UV2 | C38: Ubytovaní - polopenze A - verze 2
A39: 34 | B39: UV21 | C39: Kuře na kari, rýže | D39: ='UV21'!$H$7 -> 28.09 | F39: ='UV21'!$H$9/100 -> 0
A40: 35 | B40: UV22 | C40: Závitek z vepřové krkovičky plněný kysaným zelím a houbami, šťouchyný brambor | D40: ='UV22'!$H$7 ->  | F40: ='UV22'!$H$9/100 -> 
A41: 36 | B41: UV23 | C41: Svíčková na smetaně s karlovarským knedlíkem | D41: ='UV23'!$H$7 -> 56.45 | F41: ='UV23'!$H$9/100 -> 0
A42: 37 | B42: UV24 | C42: Vepřová pečínka na slanině, těstoviny | D42: ='UV24'!$H$7 -> 31.97 | F42: ='UV24'!$H$9/100 -> 0
A43: 38 | B43: UV25 | C43: Vykoštěné kuřecí stehno s oříškovo jablečnou omáčkou, bramborová kaše | D43: ='UV25'!$H$7 ->  | F43: ='UV25'!$H$9/100 -> 
A44: 39 | B44: UV26 | C44: Hovězí znojemská pečeně, rýže | D44: ='UV26'!$H$7 -> 50.24 | F44: ='UV26'!$H$9/100 -> 0
A45: 40 | B45: UV17 | C45: Krkonošská roláda plněná uzeným masem s červeným zelím | D45: ='UV17'!$H$7 -> 10.84 | F45: ='UV17'!$H$9/100 -> 0
A46: 41 | B46: VV2 | C46: Ubytovaní - polopenze B - vegetariánská jídla - verze 2
A47: 42 | B47: VV21 | C47: Zeleninové kari, rýže | D47: ='VV21'!$H$7 -> 23.07 | F47: ='VV21'!$H$9/100 -> 0
A48: 43 | B48: VV22 | C48: Fazolový guláš, pečivo | D48: ='VV22'!$H$7 -> 23.39 | F48: ='VV22'!$H$9/100 -> 0
A49: 44 | B49: VV23 | C49: Krkonošská vegetariánská roláda se zelím | D49: ='VV23'!$H$7 -> 23.1 | F49: ='VV23'!$H$9/100 -> 0
A50: 45 | B50: VV24 | C50: Fussili se špenátem a šafránovým přelivem | D50: ='VV24'!$H$7 -> 21 | F50: ='VV24'!$H$9/100 -> 6.666666667
A51: 46 | B51: VV25 | C51: Květákový mozeček s bandorou | D51: ='VV25'!$H$7 -> 24.15 | F51: ='VV25'!$H$9/100 -> 0
A52: 47 | B52: VV26 | C52: Bulgur s grilovanou zeleninou | D52: ='VV26'!$H$7 -> 22.57 | F52: ='VV26'!$H$9/100 -> 6.202924236
A53: 48 | B53: VV27 | C53: Pečený sýr s vařeným bramborem, tatarská omáčka | D53: ='VV27'!$H$7 -> 31.29 | F53: ='VV27'!$H$9/100 -> 0
A54: 49 | B54: SA1 | C54: Ubytovaní - polopenze A - Silvestr
A55: 50 | B55: SA11 | C55: Kachna na zázvoru s jablky a bramborovými knedlíky se strouhankou | D55: ='SA11'!$H$7 -> 11.2 | F55: ='SA11'!$H$9/100 -> 0
A56: 51 | B56: SA12 | C56: Kuřecí roláda se švestkami s opekanými brambory | D56: ='SA12'!$H$7 -> 28.25 | F56: ='SA12'!$H$9/100 -> 4.955752212
A57: 52 | B57: SA13 | C57: Svíčková na smetaně, houskový knedlík (Silvestr) | D57: ='SA13'!$H$7 -> 52.9 | F57: ='SA13'!$H$9/100 -> 3.686200378
A58: 53 | B58: SA14 | C58: Kuře na kari, rýže (Silvestr) | D58: ='SA14'!$H$7 -> 33.91 | F58: ='SA14'!$H$9/100 -> 0
A59: 54 | B59: SA15 | C59: Jehněčí kýta na slanině a rozmarýnu, noky | D59: ='SA15'!$H$7 -> 83.3 | F59: ='SA15'!$H$9/100 -> 2.340936375
A60: 55 | B60: SA16 | C60: Řízek z vepřové krkovice, bramborový salát | D60: ='SA16'!$H$7 -> 32.44 | F60: ='SA16'!$H$9/100 -> 4.315659679
A61: 56 | B61: SA17 | C61: Karbenátky s petrželovými brambory | D61: ='SA17'!$H$7 -> 32.33 | F61: ='SA17'!$H$9/100 -> 0
A62: 57 | B62: SA18 | C62: Silvestrovské menu
A63: 58 | B63: SB | C63: Ubytovaní - polopenze B - Silvestr
A64: 59 | B64: SB1 | C64: Něco | D64: ='SB1'!$H$7 -> 2 | F64: ='SB1'!$H$9/100 -> 0
A65: 60 | B65: SB2 | C65: Něco | D65: ='SB2'!$H$7 -> 2 | F65: ='SB2'!$H$9/100 -> 0
A66: 61 | B66: SB3 | C66: Něco | D66: ='SB3'!$H$7 -> 2 | F66: ='SB3'!$H$9/100 -> 0
A67: 62 | B67: SB4 | C67: Něco | D67: ='SB4'!$H$7 -> 2 | F67: ='SB4'!$H$9/100 -> 0
A68: 63 | B68: SB5 | C68: Něco | D68: ='SB5'!$H$7 -> 2 | F68: ='SB5'!$H$9/100 -> 0
A69: 64 | B69: SB6 | C69: Něco | D69: ='SB6'!$H$7 -> 2 | F69: ='SB6'!$H$9/100 -> 0
A70: 65 | B70: SB7 | C70: Silvestrovské menu
A71: 66 | B71: ŠO1 | C71: Ubytovaní - plná penze - škola - obědy - verze 1
A72: 67 | B72: ŠO11 | C72: Bolońské špagety se sýrem | D72: =ŠO11!$H$7 -> 12.19 | F72: =ŠO11!$H$9/100 -> 0 | G72: 1;3;7
A73: 68 | B73: ŠO12 | C73: Čočka na kyselo se sázeným vejcem | D73: =ŠO12!$H$7 -> 15.13 | F73: =ŠO12!$H$9/100 -> 0
A74: 69 | B74: ŠO13 | C74: Zapečené těstoviny | D74: =ŠO13!$H$7 -> 2 | F74: =ŠO13!$H$9/100 -> 0
A75: 70 | B75: ŠO14 | C75: Ovocné knedlíky | D75: =ŠO14!$H$7 ->  | F75: =ŠO14!$H$9/100 -> 
A76: 71 | B76: ŠO15 | C76: Sekaná, bramborová kaše | D76: =ŠO15!$H$7 ->  | F76: =ŠO15!$H$9/100 -> 
A77: 72 | B77: ŠO16 | C77: Těstoviny s kuřecím masem | D77: =ŠO16!$H$7 -> 9.74 | F77: =ŠO16!$H$9/100 -> 0
A78: 73 | B78: ŠO17 | C78: škola oběd 17 | D78: =ŠO17!$H$7 -> 2 | F78: =ŠO17!$H$9/100 -> 0
A79: 74 | B79: ŠO2 | C79: Ubytovaní - plná penze - škola - obědy - verze 2
A80: 75 | B80: ŠO21 | C80: Rizoto se sýrem | D80: =ŠO21!$H$7 -> 12.8 | F80: =ŠO21!$H$9/100 -> 0
A81: 76 | B81: ŠO22 | C81: Francouzské brambory | D81: =ŠO22!$H$7 -> 12.19 | F81: =ŠO22!$H$9/100 -> 0
A82: 77 | B82: ŠO23 | C82: Dukátové buchtičky s krémem | D82: =ŠO23!$H$7 ->  | F82: =ŠO23!$H$9/100 -> 
A83: 78 | B83: ŠO24 | C83: Masové koule v rajské omáčce, těstoviny | D83: =ŠO24!$H$7 -> 20.97 | F83: =ŠO24!$H$9/100 -> 0
A84: 79 | B84: ŠO25 | C84: Moravský vrabec, bramborový knedlík, zelí | D84: =ŠO25!$H$7 -> 22.07 | F84: =ŠO25!$H$9/100 -> 0
A85: 80 | B85: ŠO26 | C85: Kuřecí na kari, rýže | D85: =ŠO26!$H$7 -> 2 | F85: =ŠO26!$H$9/100 -> 0
A86: 81 | B86: ŠO27 | C86: škola oběd 27 | D86: =ŠO27!$H$7 -> 2.02 | F86: =ŠO27!$H$9/100 -> 0
A87: 82 | B87: ŠV1 | C87: Ubytovaní - plná penze - škola - večeře - verze 1
A88: 83 | B88: ŠV11 | C88: Školní večeře 11
A89: 84 | B89: ŠV12 | C89: Školní večeře 12
A90: 85 | B90: ŠV13 | C90: Školní večeře 13
A91: 86 | B91: ŠV14 | C91: Školní večeře 14
A92: 87 | B92: ŠV15 | C92: Školní večeře 15
A93: 88 | B93: ŠV16 | C93: Školní večeře 16
A94: 89 | B94: ŠV17 | C94: Školní večeře 17
A95: 90 | B95: ŠV2 | C95: Ubytovaní - plná penze - škola - večeře - verze 2
A96: 91 | B96: ŠV21 | C96: Školní večeře 21
A97: 92 | B97: ŠV22 | C97: Školní večeře 22
A98: 93 | B98: ŠV23 | C98: Školní večeře 23
A99: 94 | B99: ŠV24 | C99: Školní večeře 24
A100: 95 | B100: ŠV25 | C100: Školní večeře 25
A101: 96 | B101: ŠV26 | C101: Školní večeře 26
A102: 97 | B102: ŠV27 | C102: Školní večeře 27
A103: 98 | B103: Dez | C103: Ubytovaní - plná penze - dezerty
A104: 99 | B104: Dez1 | C104: Borůvkový koláč | D104: ='DEZ1'!$H$7 -> 8.025 | G104: 1;3;7
A105: 100 | B105: Dez2 | C105: Zmrzlina | G105: - - -
A106: 101 | B106: Dez3 | C106: Lívanec s přelivem | G106: 1;3;7
A107: 102 | B107: Dez4 | C107: Trhanec | G107: 1;3;7
A108: 103 | B108: Dez5 | C108: Tvarohová vlna | G108: 1;3;7
A109: 104 | B109: Dez6 | C109: Ovocný salát s krémem
A110: 105 | B110: Dez7 | C110: Sejkora se skořicí | D110: =D7/4 -> 2.2475 | G110: 1;3;7
A111: 106 | B111: Před | C111: Ubytovaní - plná penze - předkrmy
A112: 107 | B112: Před1 | C112: Předkrm 1
A113: 108 | B113: Před2 | C113: Předkrm 2
A114: 109 | B114: Před3 | C114: Předkrm 3
A115: 110 | B115: Před4 | C115: Předkrm 4
A116: 111 | B116: Před5 | C116: Předkrm 5
A117: 112 | B117: Před6 | C117: Předkrm 6
A118: 113 | B118: Před7 | C118: Předkrm 7
A119: 114 | B119: Příl | C119: Přílohy
A120: 115 | B120: Příl1 | C120: Sejkora | D120: =Příl1!$H$7 -> 5.9
A121: 116 | B121: Příl2 | C121: Bramborový knedlík | D121: =Příl2!$H$7 -> 5.75
A122: 117 | B122: Příl3 | C122: Houskový knedlík | D122: =Příl3!$H$7 -> 3.425
A123: 118 | B123: Příl4 | C123: Houbový knedlík | D123: =Příl4!$H$7 -> 9.98
A124: 119 | B124: Příl5 | C124: Rýže (příloha) | D124: =Příl5!$H$7 -> 7.05
A125: 120 | B125: Příl6 | C125: Těstoviny | D125: =Příl6!$H$7 -> 5.6
A126: 121 | B126: Příl7 | C126: Brambory | D126: =Příl7!$H$7 -> 2.68
A127: 122 | B127: Příl8 | C127: Noky | D127: =Příl8!$H$7 -> 4.47
A128: 123 | B128: Příl9 | C128: Rohlík | D128: =Příl9!$H$7 -> 0.8666666667
A129: 124 | B129: Příl10 | C129: Bramborová kaše | D129: =Příl10!$H$7 -> 
A130: 125 | B130: Pol | C130: Polévky
A131: 126 | B131: Pol1 | C131: Polévka z červené čočky | D131: ='Pol1'!$H$7 -> 2.864 | F131: ='Pol1'!$H$9/100 -> 0 | G131: 1
A132: 127 | B132: Pol2 | C132: Bramborová polévka | D132: ='Pol2'!$H$7 -> 3.25 | F132: ='Pol2'!$H$9/100 -> 0 | G132: =IF('Pol2'!H$2=""," - - -",'Pol2'!H$2) -> - - -
A133: 128 | B133: Pol3 | C133: Hovězí vývar s nudlemi | D133: ='Pol3'!$H$7 -> 4.742 | G133: =IF('Pol3'!H$3=""," - - -",'Pol3'!H$2) -> 1;3
A134: 129 | B134: Pol4 | C134: Zelňačka | D134: ='Pol4'!$H$7 -> 0.2 | G134: =IF('Pol4'!H$3=""," - - -",'Pol4'!H$2) -> 0
A135: 130 | B135: Pol5 | C135: Dýňová | D135: ='Pol5'!$H$7 -> 0.2 | G135: - - -
A136: 131 | B136: Pol6 | C136: Hrachovo-hrášková | D136: ='Pol6'!$H$7 -> 2.856 | G136: =IF('Pol4'!H$6=""," - - -",'Pol6'!H$2) -> 0
A137: 132 | B137: Pol7 | C137: Frankfurtská | D137: ='Pol7'!$H$7 -> 0.2 | G137: 1;7
A138: 133 | B138: Pol8 | C138: Česnečka | D138: ='Pol8'!$H$7 -> 0.2 | G138: =IF('Pol4'!H$8=""," - - -",'Pol8'!H$2) -> - - -
A139: 134 | B139: Pol9 | C139: Kuřecí vývar | D139: ='Pol9'!$H$7 -> 0.2 | G139: =IF('Pol4'!H$9=""," - - -",'Pol9'!H$2) -> 0
A140: 135 | B140: Pol10 | C140: Cibulový krém | D140: ='Pol10'!$H$7 -> 0.204 | G140: =IF('Pol4'!H$10=""," - - -",'Pol10'!H$2) -> - - -
A141: 136 | B141: Pol11 | C141: Gulášová | G141: =IF('Pol4'!H$10=""," - - -",'Pol10'!H$2) -> - - -
A142: 137 | B142: Pol12 | C142: Zeleninová se zásmažkou | G142: 1.3
A143: 138 | B143: Pol13
A144: 139 | B144: Pol14
A145: 140 | B145: Prod | C145: Produkty - hotové a zamražené ve vakuu
A146: 141 | B146: Prod1 | C146: Trhané vepřové maso (vakuum) | D146: =Prod1!H7 -> 16.71333333
A147: 142 | B147: Prod2 | C147: Bulka na trhané maso | D147: =Prod2!H$7 -> 
A148: 143 | B148: Prod3 | C148: Majonéza na trhané vepřové | D148: =Prod3!H$7 -> 3.703409992
A149: 144 | B149: Prod4 | C149: Cibuláda | D149: =Prod4!H$7 -> 0
A150: 145 | B150: Prod5 | C150: Houbové ragú | D150: =Prod5!H$7 -> 0
A151: 146 | B151: Prod6 | C151: Produkt 6 | D151: =Prod6!H$7 -> 0
A152: 147 | B152: Prod7 | C152: Produkt 7
A153: 148 | B153: Prod8 | C153: Produkt 8
A154: 149 | B154: Prod9 | C154: Produkt 9
A155: 150 | B155: Prod10 | C155: Produkt 10
A156: 151 | B156: SN | C156: Snídaně
A157: 152 | B157: SN1 | C157: Snídaňový bufet důchodci | D157: ='SN1'!H7 -> 56.375
A158: 153 | B158: SN2 | C158: Snídaňový bufet + balíček | D158: 35
A159: 154 | B159: SN3 | C159: Snidaně silvestr | D159: ='SN3'!H9 -> 0
A160: 155 | B160: SN4 | C160: Snídaně extra
A161: 156 | B161: O | C161: Ostatní
A162: 157 | B162: O1 | C162: Vepřové na houbách, houskový knedlík
A163: 158 | B163: O2 | C163: Sekaná s bramborovou kaší
A164: 159 | B164: O3 | C164: Hamburská s karlovarským knedlíkem
A165: 160 | B165: O4 | C165: Hovězí s rajskou omáčkou, houskový knedlík
A166: 161 | B166: O5 | C166: Vepřové výpečky, špenát bramborový knedlík
A167: 162 | B167: O6 | C167: Pečené kuřecí stehno na zelenině, rýže
A168: 163 | B168: O7 | C168: Vepřové na houbách, těstoviny
A169: 164 | B169: O8 | C169: Vepřové na paprice, těstoviny
A170: 165 | B170: O9 | C170: Lasagne bolognese
A171: 166 | B171: O10 | C171: Dřevorubecké fazole
A172: 167 | B172: O11 | C172: Bramborové šišky s mákem
A173: 168 | B173: O12 | C173: Fazolová polévka
A174: 169 | B174: O13
A175: 170 | B175: O14
A176: 171 | B176: O15
A177: 172 | B177: O16
A178: 173 | B178: O17
A179: 174 | B179: O18
A180: 175 | B180: O19
A181: 176 | B181: O20
A182: 177 | B182: O21
A183: 178 | B183: O22

Sheet Univ
B1: Univerzální kalkulátor | C1: Množství | D1: Jedn. | E1: Cena za jednotku | F1: Cena pro množství v receptu | G1: Shrnutí Pro aktuální cenu je třeba aktualizovat ceny na listu surovin | J1: Vyplň bílé buňky: Popis postupu výroby
B2: Jídelní lístek | C2: Suroviny | G2: Alergeny | H2: 1;3;7;10;11
A3: =IF($B3="","",VLOOKUP($B3,'Suroviny a produkty'!$A$3:$I$1045,7,FALSE)) ->  | D3: =IF($C3="","",VLOOKUP($B3,'Suroviny a produkty'!$A$3:$I$1045,8,FALSE)) ->  | E3: =IF($C3="","",VLOOKUP($B3,'Suroviny a produkty'!$A$3:$I$1045,7,FALSE)) ->  | F3: =IF(C3=0,0,E3*C3) -> 0 | G3: Počet porcí | H3: 10 | I3: ks
A4: =IF($B4="","",VLOOKUP($B4,'Suroviny a produkty'!$A$3:$I$1045,7,FALSE)) ->  | D4: =IF($C4="","",VLOOKUP($B4,'Suroviny a produkty'!$A$3:$I$1045,8,FALSE)) ->  | E4: =IF($C4="","",VLOOKUP($B4,'Suroviny a produkty'!$A$3:$I$1045,7,FALSE)) ->  | F4: 0 | G4: Porce (ks nebo g) | I4: ks
A5: =IF($B5="","",VLOOKUP($B5,'Suroviny a produkty'!$A$3:$I$1045,7,FALSE)) ->  | D5: =IF($C5="","",VLOOKUP($B5,'Suroviny a produkty'!$A$3:$I$1045,8,FALSE)) ->  | E5: =IF($C5="","",VLOOKUP($B5,'Suroviny a produkty'!$A$3:$I$1045,7,FALSE)) ->  | F5: 0 | G5: Cena celkem | H5: =ROUND(SUM(F3:F38),1) -> 0 | I5: Kč
A6: =IF($B6="","",VLOOKUP($B6,'Suroviny a produkty'!$A$3:$I$1045,7,FALSE)) ->  | D6: =IF($C6="","",VLOOKUP($B6,'Suroviny a produkty'!$A$3:$I$1045,8,FALSE)) ->  | E6: =IF($C6="","",VLOOKUP($B6,'Suroviny a produkty'!$A$3:$I$1045,7,FALSE)) ->  | F6: 0 | G6: Energie celkem | I6: Kč
A7: =IF($B7="","",VLOOKUP($B7,'Suroviny a produkty'!$A$3:$I$1045,7,FALSE)) ->  | D7: =IF($C7="","",VLOOKUP($B7,'Suroviny a produkty'!$A$3:$I$1045,8,FALSE)) ->  | E7: =IF($C7="","",VLOOKUP($B7,'Suroviny a produkty'!$A$3:$I$1045,7,FALSE)) ->  | F7: 0 | G7: Cena za porci | H7: =(H6+H5)/H3 -> 0 | I7: Kč
A8: =IF($B8="","",VLOOKUP($B8,'Suroviny a produkty'!$A$3:$I$1045,7,FALSE)) ->  | D8: =IF($C8="","",VLOOKUP($B8,'Suroviny a produkty'!$A$3:$I$1045,8,FALSE)) ->  | E8: =IF($C8="","",VLOOKUP($B8,'Suroviny a produkty'!$A$3:$I$1045,7,FALSE)) ->  | F8: 0 | G8: Prodejní cena | I8: Kč
A9: =IF($B9="","",VLOOKUP($B9,'Suroviny a produkty'!$A$3:$I$1045,7,FALSE)) ->  | D9: =IF($C9="","",VLOOKUP($B9,'Suroviny a produkty'!$A$3:$I$1045,8,FALSE)) ->  | E9: =IF($C9="","",VLOOKUP($B9,'Suroviny a produkty'!$A$3:$I$1045,7,FALSE)) ->  | F9: 0 | G9: Marže | H9: =IF(H7=0,0,H8/H7)*100 -> 0 | I9: %
A10: =IF($B10="","",VLOOKUP($B10,'Suroviny a produkty'!$A$3:$I$1045,7,FALSE)) ->  | D10: =IF($C10="","",VLOOKUP($B10,'Suroviny a produkty'!$A$3:$I$1045,8,FALSE)) ->  | E10: =IF($C10="","",VLOOKUP($B10,'Suroviny a produkty'!$A$3:$I$1045,7,FALSE)) ->  | F10: 0
A11: =IF($B11="","",VLOOKUP($B11,'Suroviny a produkty'!$A$3:$I$1045,7,FALSE)) ->  | D11: =IF($C11="","",VLOOKUP($B11,'Suroviny a produkty'!$A$3:$I$1045,8,FALSE)) ->  | E11: =IF($C11="","",VLOOKUP($B11,'Suroviny a produkty'!$A$3:$I$1045,7,FALSE)) ->  | F11: 0
A12: =IF($B12="","",VLOOKUP($B12,'Suroviny a produkty'!$A$3:$I$1045,7,FALSE)) ->  | D12: =IF($C12="","",VLOOKUP($B12,'Suroviny a produkty'!$A$3:$I$1045,8,FALSE)) ->  | E12: =IF($C12="","",VLOOKUP($B12,'Suroviny a produkty'!$A$3:$I$1045,7,FALSE)) ->  | F12: 0
D13: =IF($C13="","",VLOOKUP($B13,'Suroviny a produkty'!$A$3:$I$1045,8,FALSE)) ->  | E13: =IF($C13="","",VLOOKUP($B13,'Suroviny a produkty'!$A$3:$I$1045,7,FALSE)) ->  | F13: 0
A14: =IF($B14="","",VLOOKUP($B14,'Suroviny a produkty'!$A$3:$I$1045,7,FALSE)) ->  | D14: =IF($C14="","",VLOOKUP($B14,'Suroviny a produkty'!$A$3:$I$1045,8,FALSE)) ->  | E14: =IF($C14="","",VLOOKUP($B14,'Suroviny a produkty'!$A$3:$I$1045,7,FALSE)) ->  | F14: 0
A15: =IF($B15="","",VLOOKUP($B15,'Suroviny a produkty'!$A$3:$I$1045,7,FALSE)) ->  | D15: =IF($C15="","",VLOOKUP($B15,'Suroviny a produkty'!$A$3:$I$1045,8,FALSE)) ->  | E15: =IF($C15="","",VLOOKUP($B15,'Suroviny a produkty'!$A$3:$I$1045,7,FALSE)) ->  | F15: 0
A16: =IF($B16="","",VLOOKUP($B16,'Suroviny a produkty'!$A$3:$I$1045,7,FALSE)) ->  | D16: =IF($C16="","",VLOOKUP($B16,'Suroviny a produkty'!$A$3:$I$1045,8,FALSE)) ->  | E16: =IF($C16="","",VLOOKUP($B16,'Suroviny a produkty'!$A$3:$I$1045,7,FALSE)) ->  | F16: 0
A17: =IF($B17="","",VLOOKUP($B17,'Suroviny a produkty'!$A$3:$I$1045,7,FALSE)) ->  | D17: =IF($C17="","",VLOOKUP($B17,'Suroviny a produkty'!$A$3:$I$1045,8,FALSE)) ->  | E17: =IF($C17="","",VLOOKUP($B17,'Suroviny a produkty'!$A$3:$I$1045,7,FALSE)) ->  | F17: 0
A18: =IF($B18="","",VLOOKUP($B18,'Suroviny a produkty'!$A$3:$I$1045,7,FALSE)) ->  | D18: =IF($C18="","",VLOOKUP($B18,'Suroviny a produkty'!$A$3:$I$1045,8,FALSE)) ->  | E18: =IF($C18="","",VLOOKUP($B18,'Suroviny a produkty'!$A$3:$I$1045,7,FALSE)) ->  | F18: 0
A19: =IF($B19="","",VLOOKUP($B19,'Suroviny a produkty'!$A$3:$I$1045,7,FALSE)) ->  | D19: =IF($C19="","",VLOOKUP($B19,'Suroviny a produkty'!$A$3:$I$1045,8,FALSE)) ->  | E19: =IF($C19="","",VLOOKUP($B19,'Suroviny a produkty'!$A$3:$I$1045,7,FALSE)) ->  | F19: 0
A20: =IF($B20="","",VLOOKUP($B20,'Suroviny a produkty'!$A$3:$I$1045,7,FALSE)) ->  | D20: =IF($C20="","",VLOOKUP($B20,'Suroviny a produkty'!$A$3:$I$1045,8,FALSE)) ->  | E20: =IF($C20="","",VLOOKUP($B20,'Suroviny a produkty'!$A$3:$I$1045,7,FALSE)) ->  | F20: 0
D21: =IF($C21="","",VLOOKUP($B21,'Suroviny a produkty'!$A$3:$I$1045,8,FALSE)) ->  | E21: =IF($C21="","",VLOOKUP($B21,'Suroviny a produkty'!$A$3:$I$1045,7,FALSE)) ->  | F21: 0
A22: =IF($B22="","",VLOOKUP($B22,'Suroviny a produkty'!$A$3:$I$1045,7,FALSE)) ->  | D22: =IF($C22="","",VLOOKUP($B22,'Suroviny a produkty'!$A$3:$I$1045,8,FALSE)) ->  | E22: =IF($C22="","",VLOOKUP($B22,'Suroviny a produkty'!$A$3:$I$1045,7,FALSE)) ->  | F22: 0
A23: =IF($B23="","",VLOOKUP($B23,'Suroviny a produkty'!$A$3:$I$1045,7,FALSE)) ->  | D23: =IF($C23="","",VLOOKUP($B23,'Suroviny a produkty'!$A$3:$I$1045,8,FALSE)) ->  | E23: =IF($C23="","",VLOOKUP($B23,'Suroviny a produkty'!$A$3:$I$1045,7,FALSE)) ->  | F23: 0
A24: =IF($B24="","",VLOOKUP($B24,'Suroviny a produkty'!$A$3:$I$1045,7,FALSE)) ->  | D24: =IF($C24="","",VLOOKUP($B24,'Suroviny a produkty'!$A$3:$I$1045,8,FALSE)) ->  | E24: =IF($C24="","",VLOOKUP($B24,'Suroviny a produkty'!$A$3:$I$1045,7,FALSE)) ->  | F24: 0
A25: =IF($B25="","",VLOOKUP($B25,'Suroviny a produkty'!$A$3:$I$1045,7,FALSE)) ->  | D25: =IF($C25="","",VLOOKUP($B25,'Suroviny a produkty'!$A$3:$I$1045,8,FALSE)) ->  | E25: =IF($C25="","",VLOOKUP($B25,'Suroviny a produkty'!$A$3:$I$1045,7,FALSE)) ->  | F25: 0
A26: =IF($B26="","",VLOOKUP($B26,'Suroviny a produkty'!$A$3:$I$1045,7,FALSE)) ->  | D26: =IF($C26="","",VLOOKUP($B26,'Suroviny a produkty'!$A$3:$I$1045,8,FALSE)) ->  | E26: =IF($C26="","",VLOOKUP($B26,'Suroviny a produkty'!$A$3:$I$1045,7,FALSE)) ->  | F26: 0
A27: =IF($B27="","",VLOOKUP($B27,'Suroviny a produkty'!$A$3:$I$1045,7,FALSE)) ->  | D27: =IF($C27="","",VLOOKUP($B27,'Suroviny a produkty'!$A$3:$I$1045,8,FALSE)) ->  | E27: =IF($C27="","",VLOOKUP($B27,'Suroviny a produkty'!$A$3:$I$1045,7,FALSE)) ->  | F27: 0
A28: =IF($B28="","",VLOOKUP($B28,'Suroviny a produkty'!$A$3:$I$1045,7,FALSE)) ->  | D28: =IF($C28="","",VLOOKUP($B28,'Suroviny a produkty'!$A$3:$I$1045,8,FALSE)) ->  | E28: =IF($C28="","",VLOOKUP($B28,'Suroviny a produkty'!$A$3:$I$1045,7,FALSE)) ->  | F28: 0
A29: =IF($B29="","",VLOOKUP($B29,'Suroviny a produkty'!$A$3:$I$1045,7,FALSE)) ->  | D29: =IF($C29="","",VLOOKUP($B29,'Suroviny a produkty'!$A$3:$I$1045,8,FALSE)) ->  | E29: =IF($C29="","",VLOOKUP($B29,'Suroviny a produkty'!$A$3:$I$1045,7,FALSE)) ->  | F29: 0
A30: =IF($B30="","",VLOOKUP($B30,'Suroviny a produkty'!$A$3:$I$1045,7,FALSE)) ->  | D30: =IF($C30="","",VLOOKUP($B30,'Suroviny a produkty'!$A$3:$I$1045,8,FALSE)) ->  | E30: =IF($C30="","",VLOOKUP($B30,'Suroviny a produkty'!$A$3:$I$1045,7,FALSE)) ->  | F30: 0
A31: =IF($B31="","",VLOOKUP($B31,'Suroviny a produkty'!$A$3:$I$1045,7,FALSE)) ->  | D31: =IF($C31="","",VLOOKUP($B31,'Suroviny a produkty'!$A$3:$I$1045,8,FALSE)) ->  | E31: =IF($C31="","",VLOOKUP($B31,'Suroviny a produkty'!$A$3:$I$1045,7,FALSE)) ->  | F31: 0
A32: =IF($B32="","",VLOOKUP($B32,'Suroviny a produkty'!$A$3:$I$1045,7,FALSE)) ->  | D32: =IF($C32="","",VLOOKUP($B32,'Suroviny a produkty'!$A$3:$I$1045,8,FALSE)) ->  | E32: =IF($C32="","",VLOOKUP($B32,'Suroviny a produkty'!$A$3:$I$1045,7,FALSE)) ->  | F32: 0
A33: =IF($B33="","",VLOOKUP($B33,'Suroviny a produkty'!$A$3:$I$1045,7,FALSE)) ->  | D33: =IF($C33="","",VLOOKUP($B33,'Suroviny a produkty'!$A$3:$I$1045,8,FALSE)) ->  | E33: =IF($C33="","",VLOOKUP($B33,'Suroviny a produkty'!$A$3:$I$1045,7,FALSE)) ->  | F33: 0
A34: =IF($B34="","",VLOOKUP($B34,'Suroviny a produkty'!$A$3:$I$1045,7,FALSE)) ->  | D34: =IF($C34="","",VLOOKUP($B34,'Suroviny a produkty'!$A$3:$I$1045,8,FALSE)) ->  | E34: =IF($C34="","",VLOOKUP($B34,'Suroviny a produkty'!$A$3:$I$1045,7,FALSE)) ->  | F34: 0
A35: =IF($B35="","",VLOOKUP($B35,'Suroviny a produkty'!$A$3:$I$1045,7,FALSE)) ->  | D35: =IF($C35="","",VLOOKUP($B35,'Suroviny a produkty'!$A$3:$I$1045,8,FALSE)) ->  | E35: =IF($C35="","",VLOOKUP($B35,'Suroviny a produkty'!$A$3:$I$1045,7,FALSE)) ->  | F35: 0
A36: =IF($B36="","",VLOOKUP($B36,'Suroviny a produkty'!$A$3:$I$1045,7,FALSE)) ->  | D36: =IF($C36="","",VLOOKUP($B36,'Suroviny a produkty'!$A$3:$I$1045,8,FALSE)) ->  | E36: =IF($C36="","",VLOOKUP($B36,'Suroviny a produkty'!$A$3:$I$1045,7,FALSE)) ->  | F36: 0
A37: =IF($B37="","",VLOOKUP($B37,'Suroviny a produkty'!$A$3:$I$1045,7,FALSE)) ->  | D37: =IF($C37="","",VLOOKUP($B37,'Suroviny a produkty'!$A$3:$I$1045,8,FALSE)) ->  | E37: =IF($C37="","",VLOOKUP($B37,'Suroviny a produkty'!$A$3:$I$1045,7,FALSE)) ->  | F37: 0
A38: =IF($B38="","",VLOOKUP($B38,'Suroviny a produkty'!$A$3:$I$1045,7,FALSE)) ->  | D38: =IF($C38="","",VLOOKUP($B38,'Suroviny a produkty'!$A$3:$I$1045,8,FALSE)) ->  | E38: =IF($C38="","",VLOOKUP($B38,'Suroviny a produkty'!$A$3:$I$1045,7,FALSE)) ->  | F38: 0

Sheet P1
B1: ='Jídelní lístek'!C6 -> Trhané vepřové ramínko v bulce | C1: Množství | D1: Jedn. | E1: Cena za jednotku | F1: Cena pro množství v receptu | G1: Shrnutí Pro aktuální cenu je třeba aktualizovat ceny na listu surovin | J1: Popis
B2: Jídelní lístek | C2: Suroviny | G2: Alergeny | H2: 1;3;7;10;11
A3: =IF($B3="","",VLOOKUP($B3,'Suroviny a produkty'!$A$3:$I$1045,7,FALSE)) ->  | B3: Bulka na trhané maso | C3: 1 | D3: =IF($C3="","",VLOOKUP($B3,'Suroviny a produkty'!$A$3:$I$1045,8,FALSE)) -> ks | E3: =IF($C3="","",VLOOKUP($B3,'Suroviny a produkty'!$A$3:$I$1045,7,FALSE)) ->  | F3: =IF(C3=0,0,E3*C3) ->  | G3: Počet porcí | H3: 1 | I3: ks
A4: =IF($B4="","",VLOOKUP($B4,'Suroviny a produkty'!$A$3:$I$1045,7,FALSE)) ->  | D4: =IF($C4="","",VLOOKUP($B4,'Suroviny a produkty'!$A$3:$I$1045,8,FALSE)) ->  | E4: =IF($C4="","",VLOOKUP($B4,'Suroviny a produkty'!$A$3:$I$1045,7,FALSE)) ->  | F4: 0 | G4: Porce | I4: ks
A5: =IF($B5="","",VLOOKUP($B5,'Suroviny a produkty'!$A$3:$I$1045,7,FALSE)) -> 0 | B5: Cibuláda | C5: 25 | D5: =IF($C5="","",VLOOKUP($B5,'Suroviny a produkty'!$A$3:$I$1045,8,FALSE)) -> g | E5: =IF($C5="","",VLOOKUP($B5,'Suroviny a produkty'!$A$3:$I$1045,7,FALSE)) -> 0 | F5: 0 | G5: Cena celkem | H5: =ROUND(SUM(F3:F38),1) ->  | I5: Kč
A6: =IF($B6="","",VLOOKUP($B6,'Suroviny a produkty'!$A$3:$I$1045,7,FALSE)) -> 37.835 | B6: Salát ledový | C6: 0.1 | D6: =IF($C6="","",VLOOKUP($B6,'Suroviny a produkty'!$A$3:$I$1045,8,FALSE)) -> ks | E6: =IF($C6="","",VLOOKUP($B6,'Suroviny a produkty'!$A$3:$I$1045,7,FALSE)) -> 37.835 | F6: 3.7835 | G6: Energie celkem | I6: Kč
A7: =IF($B7="","",VLOOKUP($B7,'Suroviny a produkty'!$A$3:$I$1045,7,FALSE)) -> 16.71333333 | B7: Trhané vepřové (vakuum) | C7: 1 | D7: =IF($C7="","",VLOOKUP($B7,'Suroviny a produkty'!$A$3:$I$1045,8,FALSE)) -> ks | E7: =IF($C7="","",VLOOKUP($B7,'Suroviny a produkty'!$A$3:$I$1045,7,FALSE)) -> 16.71333333 | F7: 16.71333333 | G7: Cena za porci | H7: =(H6+H5)/H3 ->  | I7: Kč
A8: =IF($B8="","",VLOOKUP($B8,'Suroviny a produkty'!$A$3:$I$1045,7,FALSE)) -> 0.0943 | B8: Rajčata | C8: 30 | D8: =IF($C8="","",VLOOKUP($B8,'Suroviny a produkty'!$A$3:$I$1045,8,FALSE)) -> g | E8: =IF($C8="","",VLOOKUP($B8,'Suroviny a produkty'!$A$3:$I$1045,7,FALSE)) -> 0.0943 | F8: 2.829 | G8: Prodejní cena | H8: ='Jídelní lístek'!E6 -> 195 | I8: Kč
A9: =IF($B9="","",VLOOKUP($B9,'Suroviny a produkty'!$A$3:$I$1045,7,FALSE)) -> 0 | B9: Majonéza na trhané vepřové | C9: 20 | D9: =IF($C9="","",VLOOKUP($B9,'Suroviny a produkty'!$A$3:$I$1045,8,FALSE)) -> g | E9: =IF($C9="","",VLOOKUP($B9,'Suroviny a produkty'!$A$3:$I$1045,7,FALSE)) -> 0 | F9: 0 | G9: Marže | H9: =IF(H7=0,0,H8/H7)*100 ->  | I9: %
A10: =IF($B10="","",VLOOKUP($B10,'Suroviny a produkty'!$A$3:$I$1045,7,FALSE)) -> 5.75 | B10: Ozdoba | C10: 1 | D10: =IF($C10="","",VLOOKUP($B10,'Suroviny a produkty'!$A$3:$I$1045,8,FALSE)) -> ks | E10: =IF($C10="","",VLOOKUP($B10,'Suroviny a produkty'!$A$3:$I$1045,7,FALSE)) -> 5.75 | F10: 5.75
A11: =IF($B11="","",VLOOKUP($B11,'Suroviny a produkty'!$A$3:$I$1045,7,FALSE)) ->  | D11: =IF($C11="","",VLOOKUP($B11,'Suroviny a produkty'!$A$3:$I$1045,8,FALSE)) ->  | E11: =IF($C11="","",VLOOKUP($B11,'Suroviny a produkty'!$A$3:$I$1045,7,FALSE)) ->  | F11: 0
A12: =IF($B12="","",VLOOKUP($B12,'Suroviny a produkty'!$A$3:$I$1045,7,FALSE)) -> 0.024794 | B12: Hranolky | C12: 100 | D12: =IF($C12="","",VLOOKUP($B12,'Suroviny a produkty'!$A$3:$I$1045,8,FALSE)) -> g | E12: =IF($C12="","",VLOOKUP($B12,'Suroviny a produkty'!$A$3:$I$1045,7,FALSE)) -> 0.024794 | F12: 2.4794
A13: =IF($B13="","",VLOOKUP($B13,'Suroviny a produkty'!$A$3:$I$1045,7,FALSE)) -> 0.059731 | B13: Olej | C13: 10 | D13: =IF($C13="","",VLOOKUP($B13,'Suroviny a produkty'!$A$3:$I$1045,8,FALSE)) -> g | E13: =IF($C13="","",VLOOKUP($B13,'Suroviny a produkty'!$A$3:$I$1045,7,FALSE)) -> 0.059731 | F13: 0.59731
A14: =IF($B14="","",VLOOKUP($B14,'Suroviny a produkty'!$A$3:$I$1045,7,FALSE)) -> 5.75 | B14: Ozdoba | C14: 1 | D14: =IF($C14="","",VLOOKUP($B14,'Suroviny a produkty'!$A$3:$I$1045,8,FALSE)) -> ks | E14: =IF($C14="","",VLOOKUP($B14,'Suroviny a produkty'!$A$3:$I$1045,7,FALSE)) -> 5.75 | F14: 5.75
A15: =IF($B15="","",VLOOKUP($B15,'Suroviny a produkty'!$A$3:$I$1045,7,FALSE)) ->  | D15: =IF($C15="","",VLOOKUP($B15,'Suroviny a produkty'!$A$3:$I$1045,8,FALSE)) ->  | E15: =IF($C15="","",VLOOKUP($B15,'Suroviny a produkty'!$A$3:$I$1045,7,FALSE)) ->  | F15: 0
A16: =IF($B16="","",VLOOKUP($B16,'Suroviny a produkty'!$A$3:$I$1045,7,FALSE)) ->  | D16: =IF($C16="","",VLOOKUP($B16,'Suroviny a produkty'!$A$3:$I$1045,8,FALSE)) ->  | E16: =IF($C16="","",VLOOKUP($B16,'Suroviny a produkty'!$A$3:$I$1045,7,FALSE)) ->  | F16: 0
A17: =IF($B17="","",VLOOKUP($B17,'Suroviny a produkty'!$A$3:$I$1045,7,FALSE)) ->  | D17: =IF($C17="","",VLOOKUP($B17,'Suroviny a produkty'!$A$3:$I$1045,8,FALSE)) ->  | E17: =IF($C17="","",VLOOKUP($B17,'Suroviny a produkty'!$A$3:$I$1045,7,FALSE)) ->  | F17: 0
A18: =IF($B18="","",VLOOKUP($B18,'Suroviny a produkty'!$A$3:$I$1045,7,FALSE)) ->  | D18: =IF($C18="","",VLOOKUP($B18,'Suroviny a produkty'!$A$3:$I$1045,8,FALSE)) ->  | E18: =IF($C18="","",VLOOKUP($B18,'Suroviny a produkty'!$A$3:$I$1045,7,FALSE)) ->  | F18: 0
A19: =IF($B19="","",VLOOKUP($B19,'Suroviny a produkty'!$A$3:$I$1045,7,FALSE)) ->  | D19: =IF($C19="","",VLOOKUP($B19,'Suroviny a produkty'!$A$3:$I$1045,8,FALSE)) ->  | E19: =IF($C19="","",VLOOKUP($B19,'Suroviny a produkty'!$A$3:$I$1045,7,FALSE)) ->  | F19: 0
A20: =IF($B20="","",VLOOKUP($B20,'Suroviny a produkty'!$A$3:$I$1045,7,FALSE)) ->  | D20: =IF($C20="","",VLOOKUP($B20,'Suroviny a produkty'!$A$3:$I$1045,8,FALSE)) ->  | E20: =IF($C20="","",VLOOKUP($B20,'Suroviny a produkty'!$A$3:$I$1045,7,FALSE)) ->  | F20: 0
A21: =IF($B21="","",VLOOKUP($B21,'Suroviny a produkty'!$A$3:$I$1045,7,FALSE)) ->  | D21: =IF($C21="","",VLOOKUP($B21,'Suroviny a produkty'!$A$3:$I$1045,8,FALSE)) ->  | E21: =IF($C21="","",VLOOKUP($B21,'Suroviny a produkty'!$A$3:$I$1045,7,FALSE)) ->  | F21: 0
A22: =IF($B22="","",VLOOKUP($B22,'Suroviny a produkty'!$A$3:$I$1045,7,FALSE)) ->  | D22: =IF($C22="","",VLOOKUP($B22,'Suroviny a produkty'!$A$3:$I$1045,8,FALSE)) ->  | E22: =IF($C22="","",VLOOKUP($B22,'Suroviny a produkty'!$A$3:$I$1045,7,FALSE)) ->  | F22: 0
A23: =IF($B23="","",VLOOKUP($B23,'Suroviny a produkty'!$A$3:$I$1045,7,FALSE)) ->  | D23: =IF($C23="","",VLOOKUP($B23,'Suroviny a produkty'!$A$3:$I$1045,8,FALSE)) ->  | E23: =IF($C23="","",VLOOKUP($B23,'Suroviny a produkty'!$A$3:$I$1045,7,FALSE)) ->  | F23: 0
A24: =IF($B24="","",VLOOKUP($B24,'Suroviny a produkty'!$A$3:$I$1045,7,FALSE)) ->  | D24: =IF($C24="","",VLOOKUP($B24,'Suroviny a produkty'!$A$3:$I$1045,8,FALSE)) ->  | E24: =IF($C24="","",VLOOKUP($B24,'Suroviny a produkty'!$A$3:$I$1045,7,FALSE)) ->  | F24: 0
A25: =IF($B25="","",VLOOKUP($B25,'Suroviny a produkty'!$A$3:$I$1045,7,FALSE)) ->  | D25: =IF($C25="","",VLOOKUP($B25,'Suroviny a produkty'!$A$3:$I$1045,8,FALSE)) ->  | E25: =IF($C25="","",VLOOKUP($B25,'Suroviny a produkty'!$A$3:$I$1045,7,FALSE)) ->  | F25: 0
A26: =IF($B26="","",VLOOKUP($B26,'Suroviny a produkty'!$A$3:$I$1045,7,FALSE)) ->  | D26: =IF($C26="","",VLOOKUP($B26,'Suroviny a produkty'!$A$3:$I$1045,8,FALSE)) ->  | E26: =IF($C26="","",VLOOKUP($B26,'Suroviny a produkty'!$A$3:$I$1045,7,FALSE)) ->  | F26: 0
A27: =IF($B27="","",VLOOKUP($B27,'Suroviny a produkty'!$A$3:$I$1045,7,FALSE)) ->  | D27: =IF($C27="","",VLOOKUP($B27,'Suroviny a produkty'!$A$3:$I$1045,8,FALSE)) ->  | E27: =IF($C27="","",VLOOKUP($B27,'Suroviny a produkty'!$A$3:$I$1045,7,FALSE)) ->  | F27: 0
A28: =IF($B28="","",VLOOKUP($B28,'Suroviny a produkty'!$A$3:$I$1045,7,FALSE)) ->  | D28: =IF($C28="","",VLOOKUP($B28,'Suroviny a produkty'!$A$3:$I$1045,8,FALSE)) ->  | E28: =IF($C28="","",VLOOKUP($B28,'Suroviny a produkty'!$A$3:$I$1045,7,FALSE)) ->  | F28: 0
A29: =IF($B29="","",VLOOKUP($B29,'Suroviny a produkty'!$A$3:$I$1045,7,FALSE)) ->  | D29: =IF($C29="","",VLOOKUP($B29,'Suroviny a produkty'!$A$3:$I$1045,8,FALSE)) ->  | E29: =IF($C29="","",VLOOKUP($B29,'Suroviny a produkty'!$A$3:$I$1045,7,FALSE)) ->  | F29: 0
A30: =IF($B30="","",VLOOKUP($B30,'Suroviny a produkty'!$A$3:$I$1045,7,FALSE)) ->  | D30: =IF($C30="","",VLOOKUP($B30,'Suroviny a produkty'!$A$3:$I$1045,8,FALSE)) ->  | E30: =IF($C30="","",VLOOKUP($B30,'Suroviny a produkty'!$A$3:$I$1045,7,FALSE)) ->  | F30: 0
A31: =IF($B31="","",VLOOKUP($B31,'Suroviny a produkty'!$A$3:$I$1045,7,FALSE)) ->  | D31: =IF($C31="","",VLOOKUP($B31,'Suroviny a produkty'!$A$3:$I$1045,8,FALSE)) ->  | E31: =IF($C31="","",VLOOKUP($B31,'Suroviny a produkty'!$A$3:$I$1045,7,FALSE)) ->  | F31: 0
A32: =IF($B32="","",VLOOKUP($B32,'Suroviny a produkty'!$A$3:$I$1045,7,FALSE)) ->  | D32: =IF($C32="","",VLOOKUP($B32,'Suroviny a produkty'!$A$3:$I$1045,8,FALSE)) ->  | E32: =IF($C32="","",VLOOKUP($B32,'Suroviny a produkty'!$A$3:$I$1045,7,FALSE)) ->  | F32: 0
A33: =IF($B33="","",VLOOKUP($B33,'Suroviny a produkty'!$A$3:$I$1045,7,FALSE)) ->  | D33: =IF($C33="","",VLOOKUP($B33,'Suroviny a produkty'!$A$3:$I$1045,8,FALSE)) ->  | E33: =IF($C33="","",VLOOKUP($B33,'Suroviny a produkty'!$A$3:$I$1045,7,FALSE)) ->  | F33: 0
A34: =IF($B34="","",VLOOKUP($B34,'Suroviny a produkty'!$A$3:$I$1045,7,FALSE)) ->  | D34: =IF($C34="","",VLOOKUP($B34,'Suroviny a produkty'!$A$3:$I$1045,8,FALSE)) ->  | E34: =IF($C34="","",VLOOKUP($B34,'Suroviny a produkty'!$A$3:$I$1045,7,FALSE)) ->  | F34: 0
A35: =IF($B35="","",VLOOKUP($B35,'Suroviny a produkty'!$A$3:$I$1045,7,FALSE)) ->  | D35: =IF($C35="","",VLOOKUP($B35,'Suroviny a produkty'!$A$3:$I$1045,8,FALSE)) ->  | E35: =IF($C35="","",VLOOKUP($B35,'Suroviny a produkty'!$A$3:$I$1045,7,FALSE)) ->  | F35: 0
A36: =IF($B36="","",VLOOKUP($B36,'Suroviny a produkty'!$A$3:$I$1045,7,FALSE)) ->  | D36: =IF($C36="","",VLOOKUP($B36,'Suroviny a produkty'!$A$3:$I$1045,8,FALSE)) ->  | E36: =IF($C36="","",VLOOKUP($B36,'Suroviny a produkty'!$A$3:$I$1045,7,FALSE)) ->  | F36: 0
A37: =IF($B37="","",VLOOKUP($B37,'Suroviny a produkty'!$A$3:$I$1045,7,FALSE)) ->  | D37: =IF($C37="","",VLOOKUP($B37,'Suroviny a produkty'!$A$3:$I$1045,8,FALSE)) ->  | E37: =IF($C37="","",VLOOKUP($B37,'Suroviny a produkty'!$A$3:$I$1045,7,FALSE)) ->  | F37: 0
A38: =IF($B38="","",VLOOKUP($B38,'Suroviny a produkty'!$A$3:$I$1045,7,FALSE)) ->  | D38: =IF($C38="","",VLOOKUP($B38,'Suroviny a produkty'!$A$3:$I$1045,8,FALSE)) ->  | E38: =IF($C38="","",VLOOKUP($B38,'Suroviny a produkty'!$A$3:$I$1045,7,FALSE)) ->  | F38: 0

Sheet P2
B1: ='Jídelní lístek'!C7 -> Sejkora s jablky a skořicí | C1: Množství | D1: Jedn. | E1: Cena za jednotku | F1: Cena pro množství v receptu | G1: Shrnutí Pro aktuální cenu je třeba aktualizovat ceny na listu surovin | J1: Popis
B2: Jídelní lístek | C2: Suroviny | G2: Alergeny | H2: 1;3;7;
A3: =IF($B3="","",VLOOKUP($B3,'Suroviny a produkty'!$A$3:$I$1045,7,FALSE)) -> 0.021735 | B3: Jablka | C3: 1000 | D3: =IF($C3="","",VLOOKUP($B3,'Suroviny a produkty'!$A$3:$I$1045,8,FALSE)) -> g | E3: =IF($C3="","",VLOOKUP($B3,'Suroviny a produkty'!$A$3:$I$1045,7,FALSE)) -> 0.021735 | F3: =IF(C3=0,0,E3*C3) -> 21.735 | G3: Počet porcí | H3: 20 | I3: ks
A4: =IF($B4="","",VLOOKUP($B4,'Suroviny a produkty'!$A$3:$I$1045,7,FALSE)) -> 0.0180665 | B4: Cukr | C4: 300 | D4: =IF($C4="","",VLOOKUP($B4,'Suroviny a produkty'!$A$3:$I$1045,8,FALSE)) -> g | E4: =IF($C4="","",VLOOKUP($B4,'Suroviny a produkty'!$A$3:$I$1045,7,FALSE)) -> 0.0180665 | F4: 5.41995 | G4: Porce | H4: 150 | I4: g
A5: =IF($B5="","",VLOOKUP($B5,'Suroviny a produkty'!$A$3:$I$1045,7,FALSE)) -> 0.026335 | B5: Citrony | C5: 250 | D5: =IF($C5="","",VLOOKUP($B5,'Suroviny a produkty'!$A$3:$I$1045,8,FALSE)) -> g | E5: =IF($C5="","",VLOOKUP($B5,'Suroviny a produkty'!$A$3:$I$1045,7,FALSE)) -> 0.026335 | F5: 6.58375 | G5: Cena celkem | H5: =ROUND(SUM(F3:F39),1) -> 169.8 | I5: Kč
A6: =IF($B6="","",VLOOKUP($B6,'Suroviny a produkty'!$A$3:$I$1045,7,FALSE)) ->  | D6: =IF($C6="","",VLOOKUP($B6,'Suroviny a produkty'!$A$3:$I$1045,8,FALSE)) ->  | E6: =IF($C6="","",VLOOKUP($B6,'Suroviny a produkty'!$A$3:$I$1045,7,FALSE)) ->  | F6: 0 | G6: Energie celkem | H6: 10 | I6: Kč
A7: =IF($B7="","",VLOOKUP($B7,'Suroviny a produkty'!$A$3:$I$1045,7,FALSE)) -> 0 | B7: Skořice | C7: 20 | D7: =IF($C7="","",VLOOKUP($B7,'Suroviny a produkty'!$A$3:$I$1045,8,FALSE)) -> g | E7: =IF($C7="","",VLOOKUP($B7,'Suroviny a produkty'!$A$3:$I$1045,7,FALSE)) -> 0 | F7: 0 | G7: Cena za porci | H7: =(H6+H5)/H3 -> 8.99 | I7: Kč
A8: =IF($B8="","",VLOOKUP($B8,'Suroviny a produkty'!$A$3:$I$1045,7,FALSE)) -> 0.0180665 | B8: Cukr | C8: 20 | D8: =IF($C8="","",VLOOKUP($B8,'Suroviny a produkty'!$A$3:$I$1045,8,FALSE)) -> g | E8: =IF($C8="","",VLOOKUP($B8,'Suroviny a produkty'!$A$3:$I$1045,7,FALSE)) -> 0.0180665 | F8: 0.36133 | G8: Prodejní cena | H8: ='Jídelní lístek'!E7 -> 80 | I8: Kč
A9: =IF($B9="","",VLOOKUP($B9,'Suroviny a produkty'!$A$3:$I$1045,7,FALSE)) ->  | D9: =IF($C9="","",VLOOKUP($B9,'Suroviny a produkty'!$A$3:$I$1045,8,FALSE)) ->  | E9: =IF($C9="","",VLOOKUP($B9,'Suroviny a produkty'!$A$3:$I$1045,7,FALSE)) ->  | F9: 0 | G9: Marže | H9: =IF(H7=0,0,H8/H7)*100 -> 889.8776418 | I9: %
A10: =IF($B10="","",VLOOKUP($B10,'Suroviny a produkty'!$A$3:$I$1045,7,FALSE)) -> 6.785 | B10: Sejkora | C10: 20 | D10: =IF($C10="","",VLOOKUP($B10,'Suroviny a produkty'!$A$3:$I$1045,8,FALSE)) -> ks | E10: =IF($C10="","",VLOOKUP($B10,'Suroviny a produkty'!$A$3:$I$1045,7,FALSE)) -> 6.785 | F10: 135.7
A11: =IF($B11="","",VLOOKUP($B11,'Suroviny a produkty'!$A$3:$I$1045,7,FALSE)) ->  | D11: =IF($C11="","",VLOOKUP($B11,'Suroviny a produkty'!$A$3:$I$1045,8,FALSE)) ->  | E11: =IF($C11="","",VLOOKUP($B11,'Suroviny a produkty'!$A$3:$I$1045,7,FALSE)) ->  | F11: 0
A12: =IF($B12="","",VLOOKUP($B12,'Suroviny a produkty'!$A$3:$I$1045,7,FALSE)) ->  | D12: =IF($C12="","",VLOOKUP($B12,'Suroviny a produkty'!$A$3:$I$1045,8,FALSE)) ->  | E12: =IF($C12="","",VLOOKUP($B12,'Suroviny a produkty'!$A$3:$I$1045,7,FALSE)) ->  | F12: 0
A13: =IF($B13="","",VLOOKUP($B13,'Suroviny a produkty'!$A$3:$I$1045,7,FALSE)) ->  | D13: =IF($C13="","",VLOOKUP($B13,'Suroviny a produkty'!$A$3:$I$1045,8,FALSE)) ->  | E13: =IF($C13="","",VLOOKUP($B13,'Suroviny a produkty'!$A$3:$I$1045,7,FALSE)) ->  | F13: 0
A14: =IF($B14="","",VLOOKUP($B14,'Suroviny a produkty'!$A$3:$I$1045,7,FALSE)) ->  | D14: =IF($C14="","",VLOOKUP($B14,'Suroviny a produkty'!$A$3:$I$1045,8,FALSE)) ->  | E14: =IF($C14="","",VLOOKUP($B14,'Suroviny a produkty'!$A$3:$I$1045,7,FALSE)) ->  | F14: 0
A15: =IF($B15="","",VLOOKUP($B15,'Suroviny a produkty'!$A$3:$I$1045,7,FALSE)) ->  | D15: =IF($C15="","",VLOOKUP($B15,'Suroviny a produkty'!$A$3:$I$1045,8,FALSE)) ->  | E15: =IF($C15="","",VLOOKUP($B15,'Suroviny a produkty'!$A$3:$I$1045,7,FALSE)) ->  | F15: 0
A16: =IF($B16="","",VLOOKUP($B16,'Suroviny a produkty'!$A$3:$I$1045,7,FALSE)) ->  | D16: =IF($C16="","",VLOOKUP($B16,'Suroviny a produkty'!$A$3:$I$1045,8,FALSE)) ->  | E16: =IF($C16="","",VLOOKUP($B16,'Suroviny a produkty'!$A$3:$I$1045,7,FALSE)) ->  | F16: 0
A17: =IF($B17="","",VLOOKUP($B17,'Suroviny a produkty'!$A$3:$I$1045,7,FALSE)) ->  | D17: =IF($C17="","",VLOOKUP($B17,'Suroviny a produkty'!$A$3:$I$1045,8,FALSE)) ->  | E17: =IF($C17="","",VLOOKUP($B17,'Suroviny a produkty'!$A$3:$I$1045,7,FALSE)) ->  | F17: 0
A18: =IF($B18="","",VLOOKUP($B18,'Suroviny a produkty'!$A$3:$I$1045,7,FALSE)) ->  | D18: =IF($C18="","",VLOOKUP($B18,'Suroviny a produkty'!$A$3:$I$1045,8,FALSE)) ->  | E18: =IF($C18="","",VLOOKUP($B18,'Suroviny a produkty'!$A$3:$I$1045,7,FALSE)) ->  | F18: 0
A19: =IF($B19="","",VLOOKUP($B19,'Suroviny a produkty'!$A$3:$I$1045,7,FALSE)) ->  | D19: =IF($C19="","",VLOOKUP($B19,'Suroviny a produkty'!$A$3:$I$1045,8,FALSE)) ->  | E19: =IF($C19="","",VLOOKUP($B19,'Suroviny a produkty'!$A$3:$I$1045,7,FALSE)) ->  | F19: 0
A20: =IF($B20="","",VLOOKUP($B20,'Suroviny a produkty'!$A$3:$I$1045,7,FALSE)) ->  | D20: =IF($C20="","",VLOOKUP($B20,'Suroviny a produkty'!$A$3:$I$1045,8,FALSE)) ->  | E20: =IF($C20="","",VLOOKUP($B20,'Suroviny a produkty'!$A$3:$I$1045,7,FALSE)) ->  | F20: 0
A21: =IF($B21="","",VLOOKUP($B21,'Suroviny a produkty'!$A$3:$I$1045,7,FALSE)) ->  | D21: =IF($C21="","",VLOOKUP($B21,'Suroviny a produkty'!$A$3:$I$1045,8,FALSE)) ->  | E21: =IF($C21="","",VLOOKUP($B21,'Suroviny a produkty'!$A$3:$I$1045,7,FALSE)) ->  | F21: 0
A22: =IF($B22="","",VLOOKUP($B22,'Suroviny a produkty'!$A$3:$I$1045,7,FALSE)) ->  | D22: =IF($C22="","",VLOOKUP($B22,'Suroviny a produkty'!$A$3:$I$1045,8,FALSE)) ->  | E22: =IF($C22="","",VLOOKUP($B22,'Suroviny a produkty'!$A$3:$I$1045,7,FALSE)) ->  | F22: 0
A23: =IF($B23="","",VLOOKUP($B23,'Suroviny a produkty'!$A$3:$I$1045,7,FALSE)) ->  | D23: =IF($C23="","",VLOOKUP($B23,'Suroviny a produkty'!$A$3:$I$1045,8,FALSE)) ->  | E23: =IF($C23="","",VLOOKUP($B23,'Suroviny a produkty'!$A$3:$I$1045,7,FALSE)) ->  | F23: 0
A24: =IF($B24="","",VLOOKUP($B24,'Suroviny a produkty'!$A$3:$I$1045,7,FALSE)) ->  | D24: =IF($C24="","",VLOOKUP($B24,'Suroviny a produkty'!$A$3:$I$1045,8,FALSE)) ->  | E24: =IF($C24="","",VLOOKUP($B24,'Suroviny a produkty'!$A$3:$I$1045,7,FALSE)) ->  | F24: 0
A25: =IF($B25="","",VLOOKUP($B25,'Suroviny a produkty'!$A$3:$I$1045,7,FALSE)) ->  | D25: =IF($C25="","",VLOOKUP($B25,'Suroviny a produkty'!$A$3:$I$1045,8,FALSE)) ->  | E25: =IF($C25="","",VLOOKUP($B25,'Suroviny a produkty'!$A$3:$I$1045,7,FALSE)) ->  | F25: 0
A26: =IF($B26="","",VLOOKUP($B26,'Suroviny a produkty'!$A$3:$I$1045,7,FALSE)) ->  | D26: =IF($C26="","",VLOOKUP($B26,'Suroviny a produkty'!$A$3:$I$1045,8,FALSE)) ->  | E26: =IF($C26="","",VLOOKUP($B26,'Suroviny a produkty'!$A$3:$I$1045,7,FALSE)) ->  | F26: 0
A27: =IF($B27="","",VLOOKUP($B27,'Suroviny a produkty'!$A$3:$I$1045,7,FALSE)) ->  | D27: =IF($C27="","",VLOOKUP($B27,'Suroviny a produkty'!$A$3:$I$1045,8,FALSE)) ->  | E27: =IF($C27="","",VLOOKUP($B27,'Suroviny a produkty'!$A$3:$I$1045,7,FALSE)) ->  | F27: 0
A28: =IF($B28="","",VLOOKUP($B28,'Suroviny a produkty'!$A$3:$I$1045,7,FALSE)) ->  | D28: =IF($C28="","",VLOOKUP($B28,'Suroviny a produkty'!$A$3:$I$1045,8,FALSE)) ->  | E28: =IF($C28="","",VLOOKUP($B28,'Suroviny a produkty'!$A$3:$I$1045,7,FALSE)) ->  | F28: 0
A29: =IF($B29="","",VLOOKUP($B29,'Suroviny a produkty'!$A$3:$I$1045,7,FALSE)) ->  | D29: =IF($C29="","",VLOOKUP($B29,'Suroviny a produkty'!$A$3:$I$1045,8,FALSE)) ->  | E29: =IF($C29="","",VLOOKUP($B29,'Suroviny a produkty'!$A$3:$I$1045,7,FALSE)) ->  | F29: 0
A30: =IF($B30="","",VLOOKUP($B30,'Suroviny a produkty'!$A$3:$I$1045,7,FALSE)) ->  | D30: =IF($C30="","",VLOOKUP($B30,'Suroviny a produkty'!$A$3:$I$1045,8,FALSE)) ->  | E30: =IF($C30="","",VLOOKUP($B30,'Suroviny a produkty'!$A$3:$I$1045,7,FALSE)) ->  | F30: 0
A31: =IF($B31="","",VLOOKUP($B31,'Suroviny a produkty'!$A$3:$I$1045,7,FALSE)) ->  | D31: =IF($C31="","",VLOOKUP($B31,'Suroviny a produkty'!$A$3:$I$1045,8,FALSE)) ->  | E31: =IF($C31="","",VLOOKUP($B31,'Suroviny a produkty'!$A$3:$I$1045,7,FALSE)) ->  | F31: 0
A32: =IF($B32="","",VLOOKUP($B32,'Suroviny a produkty'!$A$3:$I$1045,7,FALSE)) ->  | D32: =IF($C32="","",VLOOKUP($B32,'Suroviny a produkty'!$A$3:$I$1045,8,FALSE)) ->  | E32: =IF($C32="","",VLOOKUP($B32,'Suroviny a produkty'!$A$3:$I$1045,7,FALSE)) ->  | F32: 0
A33: =IF($B33="","",VLOOKUP($B33,'Suroviny a produkty'!$A$3:$I$1045,7,FALSE)) ->  | D33: =IF($C33="","",VLOOKUP($B33,'Suroviny a produkty'!$A$3:$I$1045,8,FALSE)) ->  | E33: =IF($C33="","",VLOOKUP($B33,'Suroviny a produkty'!$A$3:$I$1045,7,FALSE)) ->  | F33: 0
A34: =IF($B34="","",VLOOKUP($B34,'Suroviny a produkty'!$A$3:$I$1045,7,FALSE)) ->  | D34: =IF($C34="","",VLOOKUP($B34,'Suroviny a produkty'!$A$3:$I$1045,8,FALSE)) ->  | E34: =IF($C34="","",VLOOKUP($B34,'Suroviny a produkty'!$A$3:$I$1045,7,FALSE)) ->  | F34: 0
A35: =IF($B35="","",VLOOKUP($B35,'Suroviny a produkty'!$A$3:$I$1045,7,FALSE)) ->  | D35: =IF($C35="","",VLOOKUP($B35,'Suroviny a produkty'!$A$3:$I$1045,8,FALSE)) ->  | E35: =IF($C35="","",VLOOKUP($B35,'Suroviny a produkty'!$A$3:$I$1045,7,FALSE)) ->  | F35: 0
A36: =IF($B36="","",VLOOKUP($B36,'Suroviny a produkty'!$A$3:$I$1045,7,FALSE)) ->  | D36: =IF($C36="","",VLOOKUP($B36,'Suroviny a produkty'!$A$3:$I$1045,8,FALSE)) ->  | E36: =IF($C36="","",VLOOKUP($B36,'Suroviny a produkty'!$A$3:$I$1045,7,FALSE)) ->  | F36: 0
A37: =IF($B37="","",VLOOKUP($B37,'Suroviny a produkty'!$A$3:$I$1045,7,FALSE)) ->  | D37: =IF($C37="","",VLOOKUP($B37,'Suroviny a produkty'!$A$3:$I$1045,8,FALSE)) ->  | E37: =IF($C37="","",VLOOKUP($B37,'Suroviny a produkty'!$A$3:$I$1045,7,FALSE)) ->  | F37: 0
A38: =IF($B38="","",VLOOKUP($B38,'Suroviny a produkty'!$A$3:$I$1045,7,FALSE)) ->  | D38: =IF($C38="","",VLOOKUP($B38,'Suroviny a produkty'!$A$3:$I$1045,8,FALSE)) ->  | E38: =IF($C38="","",VLOOKUP($B38,'Suroviny a produkty'!$A$3:$I$1045,7,FALSE)) ->  | F38: 0
F39: =IF(C39=0,0,IF(D39="ks",E39*C39,E39*C39/1000)) -> 0

Sheet P3
B1: ='Jídelní lístek'!C8 -> Sejkora s houbovým ragú | C1: Množství | D1: Jedn. | E1: Cena za jednotku | F1: Cena pro množství v receptu | G1: Shrnutí Pro aktuální cenu je třeba aktualizovat ceny na listu surovin | J1: Popis
B2: Jídelní lístek | C2: Suroviny | G2: Alergeny | H2: 1;3;7;
A3: =IF($B3="","",VLOOKUP($B3,'Suroviny a produkty'!$A$3:$I$1045,7,FALSE)) -> 0.070035 | B3: Žampiony | C3: 250 | D3: =IF($C3="","",VLOOKUP($B3,'Suroviny a produkty'!$A$3:$I$1045,8,FALSE)) -> g | E3: =IF($C3="","",VLOOKUP($B3,'Suroviny a produkty'!$A$3:$I$1045,7,FALSE)) -> 0.070035 | F3: =IF(C3=0,0,E3*C3) -> 17.50875 | G3: Počet porcí | H3: 16 | I3: ks
A4: =IF($B4="","",VLOOKUP($B4,'Suroviny a produkty'!$A$3:$I$1045,7,FALSE)) -> 0.474651 | B4: Houbové koření | C4: 20 | D4: =IF($C4="","",VLOOKUP($B4,'Suroviny a produkty'!$A$3:$I$1045,8,FALSE)) -> g | E4: =IF($C4="","",VLOOKUP($B4,'Suroviny a produkty'!$A$3:$I$1045,7,FALSE)) -> 0.474651 | F4: 9.49302 | G4: Porce | H4: 120 | I4: g
A5: =IF($B5="","",VLOOKUP($B5,'Suroviny a produkty'!$A$3:$I$1045,7,FALSE)) -> 0.012535 | B5: Cibule | C5: 100 | D5: =IF($C5="","",VLOOKUP($B5,'Suroviny a produkty'!$A$3:$I$1045,8,FALSE)) -> g | E5: =IF($C5="","",VLOOKUP($B5,'Suroviny a produkty'!$A$3:$I$1045,7,FALSE)) -> 0.012535 | F5: 1.2535 | G5: Cena celkem | H5: =ROUND(SUM(F3:F39),1) -> 164.5 | I5: Kč
A6: =IF($B6="","",VLOOKUP($B6,'Suroviny a produkty'!$A$3:$I$1045,7,FALSE)) -> 0.005957 | B6: Sůl | C6: 20 | D6: =IF($C6="","",VLOOKUP($B6,'Suroviny a produkty'!$A$3:$I$1045,8,FALSE)) -> g | E6: =IF($C6="","",VLOOKUP($B6,'Suroviny a produkty'!$A$3:$I$1045,7,FALSE)) -> 0.005957 | F6: 0.11914 | G6: Energie celkem | H6: 10 | I6: Kč
A7: =IF($B7="","",VLOOKUP($B7,'Suroviny a produkty'!$A$3:$I$1045,7,FALSE)) -> 0.149316 | B7: Kmín (drcený) | C7: 20 | D7: =IF($C7="","",VLOOKUP($B7,'Suroviny a produkty'!$A$3:$I$1045,8,FALSE)) -> g | E7: =IF($C7="","",VLOOKUP($B7,'Suroviny a produkty'!$A$3:$I$1045,7,FALSE)) -> 0.149316 | F7: 2.98632 | G7: Cena za porci | H7: =(H6+H5)/H3 -> 10.90625 | I7: Kč
A8: =IF($B8="","",VLOOKUP($B8,'Suroviny a produkty'!$A$3:$I$1045,7,FALSE)) -> 0.1108255 | B8: Smetana | C8: 150 | D8: =IF($C8="","",VLOOKUP($B8,'Suroviny a produkty'!$A$3:$I$1045,8,FALSE)) -> g | E8: =IF($C8="","",VLOOKUP($B8,'Suroviny a produkty'!$A$3:$I$1045,7,FALSE)) -> 0.1108255 | F8: 16.623825 | G8: Prodejní cena | H8: ='Jídelní lístek'!E8 -> 90 | I8: Kč
A9: =IF($B9="","",VLOOKUP($B9,'Suroviny a produkty'!$A$3:$I$1045,7,FALSE)) ->  | D9: =IF($C9="","",VLOOKUP($B9,'Suroviny a produkty'!$A$3:$I$1045,8,FALSE)) ->  | E9: =IF($C9="","",VLOOKUP($B9,'Suroviny a produkty'!$A$3:$I$1045,7,FALSE)) ->  | F9: 0 | G9: Marže | H9: =IF(H7=0,0,H8/H7)*100 -> 825.2148997 | I9: %
A10: =IF($B10="","",VLOOKUP($B10,'Suroviny a produkty'!$A$3:$I$1045,7,FALSE)) -> 6.785 | B10: Sejkora | C10: 16 | D10: =IF($C10="","",VLOOKUP($B10,'Suroviny a produkty'!$A$3:$I$1045,8,FALSE)) -> ks | E10: =IF($C10="","",VLOOKUP($B10,'Suroviny a produkty'!$A$3:$I$1045,7,FALSE)) -> 6.785 | F10: 108.56
A11: =IF($B11="","",VLOOKUP($B11,'Suroviny a produkty'!$A$3:$I$1045,7,FALSE)) -> 37.835 | B11: Salát Ledový | C11: 0.05 | D11: =IF($C11="","",VLOOKUP($B11,'Suroviny a produkty'!$A$3:$I$1045,8,FALSE)) -> ks | E11: =IF($C11="","",VLOOKUP($B11,'Suroviny a produkty'!$A$3:$I$1045,7,FALSE)) -> 37.835 | F11: 1.89175
A12: =IF($B12="","",VLOOKUP($B12,'Suroviny a produkty'!$A$3:$I$1045,7,FALSE)) -> 0.1495 | B12: Gervais | C12: 40 | D12: =IF($C12="","",VLOOKUP($B12,'Suroviny a produkty'!$A$3:$I$1045,8,FALSE)) -> g | E12: =IF($C12="","",VLOOKUP($B12,'Suroviny a produkty'!$A$3:$I$1045,7,FALSE)) -> 0.1495 | F12: 5.98
A13: =IF($B13="","",VLOOKUP($B13,'Suroviny a produkty'!$A$3:$I$1045,7,FALSE)) -> 0.005957 | B13: Sůl | C13: 10 | D13: =IF($C13="","",VLOOKUP($B13,'Suroviny a produkty'!$A$3:$I$1045,8,FALSE)) -> g | E13: =IF($C13="","",VLOOKUP($B13,'Suroviny a produkty'!$A$3:$I$1045,7,FALSE)) -> 0.005957 | F13: 0.05957
A14: =IF($B14="","",VLOOKUP($B14,'Suroviny a produkty'!$A$3:$I$1045,7,FALSE)) ->  | D14: =IF($C14="","",VLOOKUP($B14,'Suroviny a produkty'!$A$3:$I$1045,8,FALSE)) ->  | E14: =IF($C14="","",VLOOKUP($B14,'Suroviny a produkty'!$A$3:$I$1045,7,FALSE)) ->  | F14: 0
A15: =IF($B15="","",VLOOKUP($B15,'Suroviny a produkty'!$A$3:$I$1045,7,FALSE)) ->  | D15: =IF($C15="","",VLOOKUP($B15,'Suroviny a produkty'!$A$3:$I$1045,8,FALSE)) ->  | E15: =IF($C15="","",VLOOKUP($B15,'Suroviny a produkty'!$A$3:$I$1045,7,FALSE)) ->  | F15: 0
A16: =IF($B16="","",VLOOKUP($B16,'Suroviny a produkty'!$A$3:$I$1045,7,FALSE)) ->  | D16: =IF($C16="","",VLOOKUP($B16,'Suroviny a produkty'!$A$3:$I$1045,8,FALSE)) ->  | E16: =IF($C16="","",VLOOKUP($B16,'Suroviny a produkty'!$A$3:$I$1045,7,FALSE)) ->  | F16: 0
A17: =IF($B17="","",VLOOKUP($B17,'Suroviny a produkty'!$A$3:$I$1045,7,FALSE)) ->  | D17: =IF($C17="","",VLOOKUP($B17,'Suroviny a produkty'!$A$3:$I$1045,8,FALSE)) ->  | E17: =IF($C17="","",VLOOKUP($B17,'Suroviny a produkty'!$A$3:$I$1045,7,FALSE)) ->  | F17: 0
A18: =IF($B18="","",VLOOKUP($B18,'Suroviny a produkty'!$A$3:$I$1045,7,FALSE)) ->  | D18: =IF($C18="","",VLOOKUP($B18,'Suroviny a produkty'!$A$3:$I$1045,8,FALSE)) ->  | E18: =IF($C18="","",VLOOKUP($B18,'Suroviny a produkty'!$A$3:$I$1045,7,FALSE)) ->  | F18: 0
A19: =IF($B19="","",VLOOKUP($B19,'Suroviny a produkty'!$A$3:$I$1045,7,FALSE)) ->  | D19: =IF($C19="","",VLOOKUP($B19,'Suroviny a produkty'!$A$3:$I$1045,8,FALSE)) ->  | E19: =IF($C19="","",VLOOKUP($B19,'Suroviny a produkty'!$A$3:$I$1045,7,FALSE)) ->  | F19: 0
A20: =IF($B20="","",VLOOKUP($B20,'Suroviny a produkty'!$A$3:$I$1045,7,FALSE)) ->  | D20: =IF($C20="","",VLOOKUP($B20,'Suroviny a produkty'!$A$3:$I$1045,8,FALSE)) ->  | E20: =IF($C20="","",VLOOKUP($B20,'Suroviny a produkty'!$A$3:$I$1045,7,FALSE)) ->  | F20: 0
A21: =IF($B21="","",VLOOKUP($B21,'Suroviny a produkty'!$A$3:$I$1045,7,FALSE)) ->  | D21: =IF($C21="","",VLOOKUP($B21,'Suroviny a produkty'!$A$3:$I$1045,8,FALSE)) ->  | E21: =IF($C21="","",VLOOKUP($B21,'Suroviny a produkty'!$A$3:$I$1045,7,FALSE)) ->  | F21: 0
A22: =IF($B22="","",VLOOKUP($B22,'Suroviny a produkty'!$A$3:$I$1045,7,FALSE)) ->  | D22: =IF($C22="","",VLOOKUP($B22,'Suroviny a produkty'!$A$3:$I$1045,8,FALSE)) ->  | E22: =IF($C22="","",VLOOKUP($B22,'Suroviny a produkty'!$A$3:$I$1045,7,FALSE)) ->  | F22: 0
A23: =IF($B23="","",VLOOKUP($B23,'Suroviny a produkty'!$A$3:$I$1045,7,FALSE)) ->  | D23: =IF($C23="","",VLOOKUP($B23,'Suroviny a produkty'!$A$3:$I$1045,8,FALSE)) ->  | E23: =IF($C23="","",VLOOKUP($B23,'Suroviny a produkty'!$A$3:$I$1045,7,FALSE)) ->  | F23: 0
A24: =IF($B24="","",VLOOKUP($B24,'Suroviny a produkty'!$A$3:$I$1045,7,FALSE)) ->  | D24: =IF($C24="","",VLOOKUP($B24,'Suroviny a produkty'!$A$3:$I$1045,8,FALSE)) ->  | E24: =IF($C24="","",VLOOKUP($B24,'Suroviny a produkty'!$A$3:$I$1045,7,FALSE)) ->  | F24: 0
A25: =IF($B25="","",VLOOKUP($B25,'Suroviny a produkty'!$A$3:$I$1045,7,FALSE)) ->  | D25: =IF($C25="","",VLOOKUP($B25,'Suroviny a produkty'!$A$3:$I$1045,8,FALSE)) ->  | E25: =IF($C25="","",VLOOKUP($B25,'Suroviny a produkty'!$A$3:$I$1045,7,FALSE)) ->  | F25: 0
A26: =IF($B26="","",VLOOKUP($B26,'Suroviny a produkty'!$A$3:$I$1045,7,FALSE)) ->  | D26: =IF($C26="","",VLOOKUP($B26,'Suroviny a produkty'!$A$3:$I$1045,8,FALSE)) ->  | E26: =IF($C26="","",VLOOKUP($B26,'Suroviny a produkty'!$A$3:$I$1045,7,FALSE)) ->  | F26: 0
A27: =IF($B27="","",VLOOKUP($B27,'Suroviny a produkty'!$A$3:$I$1045,7,FALSE)) ->  | D27: =IF($C27="","",VLOOKUP($B27,'Suroviny a produkty'!$A$3:$I$1045,8,FALSE)) ->  | E27: =IF($C27="","",VLOOKUP($B27,'Suroviny a produkty'!$A$3:$I$1045,7,FALSE)) ->  | F27: 0
A28: =IF($B28="","",VLOOKUP($B28,'Suroviny a produkty'!$A$3:$I$1045,7,FALSE)) ->  | D28: =IF($C28="","",VLOOKUP($B28,'Suroviny a produkty'!$A$3:$I$1045,8,FALSE)) ->  | E28: =IF($C28="","",VLOOKUP($B28,'Suroviny a produkty'!$A$3:$I$1045,7,FALSE)) ->  | F28: 0
A29: =IF($B29="","",VLOOKUP($B29,'Suroviny a produkty'!$A$3:$I$1045,7,FALSE)) ->  | D29: =IF($C29="","",VLOOKUP($B29,'Suroviny a produkty'!$A$3:$I$1045,8,FALSE)) ->  | E29: =IF($C29="","",VLOOKUP($B29,'Suroviny a produkty'!$A$3:$I$1045,7,FALSE)) ->  | F29: 0
A30: =IF($B30="","",VLOOKUP($B30,'Suroviny a produkty'!$A$3:$I$1045,7,FALSE)) ->  | D30: =IF($C30="","",VLOOKUP($B30,'Suroviny a produkty'!$A$3:$I$1045,8,FALSE)) ->  | E30: =IF($C30="","",VLOOKUP($B30,'Suroviny a produkty'!$A$3:$I$1045,7,FALSE)) ->  | F30: 0
A31: =IF($B31="","",VLOOKUP($B31,'Suroviny a produkty'!$A$3:$I$1045,7,FALSE)) ->  | D31: =IF($C31="","",VLOOKUP($B31,'Suroviny a produkty'!$A$3:$I$1045,8,FALSE)) ->  | E31: =IF($C31="","",VLOOKUP($B31,'Suroviny a produkty'!$A$3:$I$1045,7,FALSE)) ->  | F31: 0
A32: =IF($B32="","",VLOOKUP($B32,'Suroviny a produkty'!$A$3:$I$1045,7,FALSE)) ->  | D32: =IF($C32="","",VLOOKUP($B32,'Suroviny a produkty'!$A$3:$I$1045,8,FALSE)) ->  | E32: =IF($C32="","",VLOOKUP($B32,'Suroviny a produkty'!$A$3:$I$1045,7,FALSE)) ->  | F32: 0
A33: =IF($B33="","",VLOOKUP($B33,'Suroviny a produkty'!$A$3:$I$1045,7,FALSE)) ->  | D33: =IF($C33="","",VLOOKUP($B33,'Suroviny a produkty'!$A$3:$I$1045,8,FALSE)) ->  | E33: =IF($C33="","",VLOOKUP($B33,'Suroviny a produkty'!$A$3:$I$1045,7,FALSE)) ->  | F33: 0
A34: =IF($B34="","",VLOOKUP($B34,'Suroviny a produkty'!$A$3:$I$1045,7,FALSE)) ->  | D34: =IF($C34="","",VLOOKUP($B34,'Suroviny a produkty'!$A$3:$I$1045,8,FALSE)) ->  | E34: =IF($C34="","",VLOOKUP($B34,'Suroviny a produkty'!$A$3:$I$1045,7,FALSE)) ->  | F34: 0
A35: =IF($B35="","",VLOOKUP($B35,'Suroviny a produkty'!$A$3:$I$1045,7,FALSE)) ->  | D35: =IF($C35="","",VLOOKUP($B35,'Suroviny a produkty'!$A$3:$I$1045,8,FALSE)) ->  | E35: =IF($C35="","",VLOOKUP($B35,'Suroviny a produkty'!$A$3:$I$1045,7,FALSE)) ->  | F35: 0
A36: =IF($B36="","",VLOOKUP($B36,'Suroviny a produkty'!$A$3:$I$1045,7,FALSE)) ->  | D36: =IF($C36="","",VLOOKUP($B36,'Suroviny a produkty'!$A$3:$I$1045,8,FALSE)) ->  | E36: =IF($C36="","",VLOOKUP($B36,'Suroviny a produkty'!$A$3:$I$1045,7,FALSE)) ->  | F36: 0
A37: =IF($B37="","",VLOOKUP($B37,'Suroviny a produkty'!$A$3:$I$1045,7,FALSE)) ->  | D37: =IF($C37="","",VLOOKUP($B37,'Suroviny a produkty'!$A$3:$I$1045,8,FALSE)) ->  | E37: =IF($C37="","",VLOOKUP($B37,'Suroviny a produkty'!$A$3:$I$1045,7,FALSE)) ->  | F37: 0
A38: =IF($B38="","",VLOOKUP($B38,'Suroviny a produkty'!$A$3:$I$1045,7,FALSE)) ->  | D38: =IF($C38="","",VLOOKUP($B38,'Suroviny a produkty'!$A$3:$I$1045,8,FALSE)) ->  | E38: =IF($C38="","",VLOOKUP($B38,'Suroviny a produkty'!$A$3:$I$1045,7,FALSE)) ->  | F38: 0
F39: =IF(C39=0,0,IF(D39="ks",E39*C39,E39*C39/1000)) -> 0

Sheet P4
B1: ='Jídelní lístek'!C9 -> Vepřová krkovice s ouhrabky | C1: Množství | D1: Jedn. | E1: Cena za jednotku | F1: Cena pro množství v receptu | G1: Shrnutí Pro aktuální cenu je třeba aktualizovat ceny na listu surovin | J1: Popis
B2: Jídelní lístek | C2: Suroviny | G2: Alergeny | H2: 1;3;7;
A3: =IF($B3="","",VLOOKUP($B3,'Suroviny a produkty'!$A$3:$I$1045,7,FALSE)) -> 0.13317 | B3: Vepřová krkovice | C3: 1500 | D3: =IF($C3="","",VLOOKUP($B3,'Suroviny a produkty'!$A$3:$I$1045,8,FALSE)) -> g | E3: =IF($C3="","",VLOOKUP($B3,'Suroviny a produkty'!$A$3:$I$1045,7,FALSE)) -> 0.13317 | F3: =IF(C3=0,0,E3*C3) -> 199.755 | G3: Počet porcí | H3: 10 | I3: ks
A4: =IF($B4="","",VLOOKUP($B4,'Suroviny a produkty'!$A$3:$I$1045,7,FALSE)) -> 0.012535 | B4: Cibule | C4: 300 | D4: =IF($C4="","",VLOOKUP($B4,'Suroviny a produkty'!$A$3:$I$1045,8,FALSE)) -> g | E4: =IF($C4="","",VLOOKUP($B4,'Suroviny a produkty'!$A$3:$I$1045,7,FALSE)) -> 0.012535 | F4: 3.7605 | G4: Porce | H4: 150 | I4: g
A5: =IF($B5="","",VLOOKUP($B5,'Suroviny a produkty'!$A$3:$I$1045,7,FALSE)) -> 0.105685 | B5: Česnek | C5: 10 | D5: =IF($C5="","",VLOOKUP($B5,'Suroviny a produkty'!$A$3:$I$1045,8,FALSE)) -> g | E5: =IF($C5="","",VLOOKUP($B5,'Suroviny a produkty'!$A$3:$I$1045,7,FALSE)) -> 0.105685 | F5: 1.05685 | G5: Cena celkem | H5: =ROUND(SUM(F3:F38),1) -> 269.1 | I5: Kč
A6: =IF($B6="","",VLOOKUP($B6,'Suroviny a produkty'!$A$3:$I$1045,7,FALSE)) -> 0.005957 | B6: Sůl | C6: 20 | D6: =IF($C6="","",VLOOKUP($B6,'Suroviny a produkty'!$A$3:$I$1045,8,FALSE)) -> g | E6: =IF($C6="","",VLOOKUP($B6,'Suroviny a produkty'!$A$3:$I$1045,7,FALSE)) -> 0.005957 | F6: 0.11914 | G6: Energie celkem | H6: 15 | I6: Kč
A7: =IF($B7="","",VLOOKUP($B7,'Suroviny a produkty'!$A$3:$I$1045,7,FALSE)) -> 0.233611 | B7: Pepř | C7: 20 | D7: =IF($C7="","",VLOOKUP($B7,'Suroviny a produkty'!$A$3:$I$1045,8,FALSE)) -> g | E7: =IF($C7="","",VLOOKUP($B7,'Suroviny a produkty'!$A$3:$I$1045,7,FALSE)) -> 0.233611 | F7: 4.67222 | G7: Cena za porci | H7: =(H6+H5)/H3 -> 28.41 | I7: Kč
A8: =IF($B8="","",VLOOKUP($B8,'Suroviny a produkty'!$A$3:$I$1045,7,FALSE)) -> 0.059731 | B8: Olej | C8: 100 | D8: =IF($C8="","",VLOOKUP($B8,'Suroviny a produkty'!$A$3:$I$1045,8,FALSE)) -> g | E8: =IF($C8="","",VLOOKUP($B8,'Suroviny a produkty'!$A$3:$I$1045,7,FALSE)) -> 0.059731 | F8: 5.9731 | G8: Prodejní cena | H8: ='Jídelní lístek'!E9 -> 180 | I8: Kč
A9: =IF($B9="","",VLOOKUP($B9,'Suroviny a produkty'!$A$3:$I$1045,7,FALSE)) ->  | D9: =IF($C9="","",VLOOKUP($B9,'Suroviny a produkty'!$A$3:$I$1045,8,FALSE)) ->  | E9: =IF($C9="","",VLOOKUP($B9,'Suroviny a produkty'!$A$3:$I$1045,7,FALSE)) ->  | F9: 0 | G9: Marže | H9: =IF(H7=0,0,H8/H7)*100 -> 633.5797254 | I9: %
B10: Ouhrabky | D10: =IF($C10="","",VLOOKUP($B10,'Suroviny a produkty'!$A$3:$I$1045,8,FALSE)) ->  | E10: =IF($C10="","",VLOOKUP($B10,'Suroviny a produkty'!$A$3:$I$1045,7,FALSE)) ->  | F10: 0 | G10: Ouhrabky
A11: =IF($B11="","",VLOOKUP($B11,'Suroviny a produkty'!$A$3:$I$1045,7,FALSE)) -> 0.0404317 | B11: Bramborové těsto | C11: 750 | D11: =IF($C11="","",VLOOKUP($B11,'Suroviny a produkty'!$A$3:$I$1045,8,FALSE)) -> g | E11: =IF($C11="","",VLOOKUP($B11,'Suroviny a produkty'!$A$3:$I$1045,7,FALSE)) -> 0.0404317 | F11: 30.323775 | G11: Porce | H11: =SUM(C11:C14)/H3 -> 200.2 | I11: g
A12: =IF($B12="","",VLOOKUP($B12,'Suroviny a produkty'!$A$3:$I$1045,7,FALSE)) -> 0 | B12: Voda | C12: 750 | D12: =IF($C12="","",VLOOKUP($B12,'Suroviny a produkty'!$A$3:$I$1045,8,FALSE)) -> g | E12: =IF($C12="","",VLOOKUP($B12,'Suroviny a produkty'!$A$3:$I$1045,7,FALSE)) -> 0 | F12: 0
A13: =IF($B13="","",VLOOKUP($B13,'Suroviny a produkty'!$A$3:$I$1045,7,FALSE)) -> 3.6685 | B13: Vejce | C13: 2 | D13: =IF($C13="","",VLOOKUP($B13,'Suroviny a produkty'!$A$3:$I$1045,8,FALSE)) -> ks | E13: =IF($C13="","",VLOOKUP($B13,'Suroviny a produkty'!$A$3:$I$1045,7,FALSE)) -> 3.6685 | F13: 7.337
A14: =IF($B14="","",VLOOKUP($B14,'Suroviny a produkty'!$A$3:$I$1045,7,FALSE)) -> 0.032246 | B14: Zelí kysané | C14: 500 | D14: =IF($C14="","",VLOOKUP($B14,'Suroviny a produkty'!$A$3:$I$1045,8,FALSE)) -> g | E14: =IF($C14="","",VLOOKUP($B14,'Suroviny a produkty'!$A$3:$I$1045,7,FALSE)) -> 0.032246 | F14: 16.123
A15: =IF($B15="","",VLOOKUP($B15,'Suroviny a produkty'!$A$3:$I$1045,7,FALSE)) ->  | D15: =IF($C15="","",VLOOKUP($B15,'Suroviny a produkty'!$A$3:$I$1045,8,FALSE)) ->  | E15: =IF($C15="","",VLOOKUP($B15,'Suroviny a produkty'!$A$3:$I$1045,7,FALSE)) ->  | F15: 0
A16: =IF($B16="","",VLOOKUP($B16,'Suroviny a produkty'!$A$3:$I$1045,7,FALSE)) ->  | D16: =IF($C16="","",VLOOKUP($B16,'Suroviny a produkty'!$A$3:$I$1045,8,FALSE)) ->  | E16: =IF($C16="","",VLOOKUP($B16,'Suroviny a produkty'!$A$3:$I$1045,7,FALSE)) ->  | F16: 0
A17: =IF($B17="","",VLOOKUP($B17,'Suroviny a produkty'!$A$3:$I$1045,7,FALSE)) ->  | D17: =IF($C17="","",VLOOKUP($B17,'Suroviny a produkty'!$A$3:$I$1045,8,FALSE)) ->  | E17: =IF($C17="","",VLOOKUP($B17,'Suroviny a produkty'!$A$3:$I$1045,7,FALSE)) ->  | F17: 0
A18: =IF($B18="","",VLOOKUP($B18,'Suroviny a produkty'!$A$3:$I$1045,7,FALSE)) ->  | D18: =IF($C18="","",VLOOKUP($B18,'Suroviny a produkty'!$A$3:$I$1045,8,FALSE)) ->  | E18: =IF($C18="","",VLOOKUP($B18,'Suroviny a produkty'!$A$3:$I$1045,7,FALSE)) ->  | F18: 0
A19: =IF($B19="","",VLOOKUP($B19,'Suroviny a produkty'!$A$3:$I$1045,7,FALSE)) ->  | D19: =IF($C19="","",VLOOKUP($B19,'Suroviny a produkty'!$A$3:$I$1045,8,FALSE)) ->  | E19: =IF($C19="","",VLOOKUP($B19,'Suroviny a produkty'!$A$3:$I$1045,7,FALSE)) ->  | F19: 0
A20: =IF($B20="","",VLOOKUP($B20,'Suroviny a produkty'!$A$3:$I$1045,7,FALSE)) ->  | D20: =IF($C20="","",VLOOKUP($B20,'Suroviny a produkty'!$A$3:$I$1045,8,FALSE)) ->  | E20: =IF($C20="","",VLOOKUP($B20,'Suroviny a produkty'!$A$3:$I$1045,7,FALSE)) ->  | F20: 0
A21: =IF($B21="","",VLOOKUP($B21,'Suroviny a produkty'!$A$3:$I$1045,7,FALSE)) ->  | D21: =IF($C21="","",VLOOKUP($B21,'Suroviny a produkty'!$A$3:$I$1045,8,FALSE)) ->  | E21: =IF($C21="","",VLOOKUP($B21,'Suroviny a produkty'!$A$3:$I$1045,7,FALSE)) ->  | F21: 0
A22: =IF($B22="","",VLOOKUP($B22,'Suroviny a produkty'!$A$3:$I$1045,7,FALSE)) ->  | D22: =IF($C22="","",VLOOKUP($B22,'Suroviny a produkty'!$A$3:$I$1045,8,FALSE)) ->  | E22: =IF($C22="","",VLOOKUP($B22,'Suroviny a produkty'!$A$3:$I$1045,7,FALSE)) ->  | F22: 0
A23: =IF($B23="","",VLOOKUP($B23,'Suroviny a produkty'!$A$3:$I$1045,7,FALSE)) ->  | D23: =IF($C23="","",VLOOKUP($B23,'Suroviny a produkty'!$A$3:$I$1045,8,FALSE)) ->  | E23: =IF($C23="","",VLOOKUP($B23,'Suroviny a produkty'!$A$3:$I$1045,7,FALSE)) ->  | F23: 0
A24: =IF($B24="","",VLOOKUP($B24,'Suroviny a produkty'!$A$3:$I$1045,7,FALSE)) ->  | D24: =IF($C24="","",VLOOKUP($B24,'Suroviny a produkty'!$A$3:$I$1045,8,FALSE)) ->  | E24: =IF($C24="","",VLOOKUP($B24,'Suroviny a produkty'!$A$3:$I$1045,7,FALSE)) ->  | F24: 0
A25: =IF($B25="","",VLOOKUP($B25,'Suroviny a produkty'!$A$3:$I$1045,7,FALSE)) ->  | D25: =IF($C25="","",VLOOKUP($B25,'Suroviny a produkty'!$A$3:$I$1045,8,FALSE)) ->  | E25: =IF($C25="","",VLOOKUP($B25,'Suroviny a produkty'!$A$3:$I$1045,7,FALSE)) ->  | F25: 0
A26: =IF($B26="","",VLOOKUP($B26,'Suroviny a produkty'!$A$3:$I$1045,7,FALSE)) ->  | D26: =IF($C26="","",VLOOKUP($B26,'Suroviny a produkty'!$A$3:$I$1045,8,FALSE)) ->  | E26: =IF($C26="","",VLOOKUP($B26,'Suroviny a produkty'!$A$3:$I$1045,7,FALSE)) ->  | F26: 0
A27: =IF($B27="","",VLOOKUP($B27,'Suroviny a produkty'!$A$3:$I$1045,7,FALSE)) ->  | D27: =IF($C27="","",VLOOKUP($B27,'Suroviny a produkty'!$A$3:$I$1045,8,FALSE)) ->  | E27: =IF($C27="","",VLOOKUP($B27,'Suroviny a produkty'!$A$3:$I$1045,7,FALSE)) ->  | F27: 0
A28: =IF($B28="","",VLOOKUP($B28,'Suroviny a produkty'!$A$3:$I$1045,7,FALSE)) ->  | D28: =IF($C28="","",VLOOKUP($B28,'Suroviny a produkty'!$A$3:$I$1045,8,FALSE)) ->  | E28: =IF($C28="","",VLOOKUP($B28,'Suroviny a produkty'!$A$3:$I$1045,7,FALSE)) ->  | F28: 0
A29: =IF($B29="","",VLOOKUP($B29,'Suroviny a produkty'!$A$3:$I$1045,7,FALSE)) ->  | D29: =IF($C29="","",VLOOKUP($B29,'Suroviny a produkty'!$A$3:$I$1045,8,FALSE)) ->  | E29: =IF($C29="","",VLOOKUP($B29,'Suroviny a produkty'!$A$3:$I$1045,7,FALSE)) ->  | F29: 0
A30: =IF($B30="","",VLOOKUP($B30,'Suroviny a produkty'!$A$3:$I$1045,7,FALSE)) ->  | D30: =IF($C30="","",VLOOKUP($B30,'Suroviny a produkty'!$A$3:$I$1045,8,FALSE)) ->  | E30: =IF($C30="","",VLOOKUP($B30,'Suroviny a produkty'!$A$3:$I$1045,7,FALSE)) ->  | F30: 0
A31: =IF($B31="","",VLOOKUP($B31,'Suroviny a produkty'!$A$3:$I$1045,7,FALSE)) ->  | D31: =IF($C31="","",VLOOKUP($B31,'Suroviny a produkty'!$A$3:$I$1045,8,FALSE)) ->  | E31: =IF($C31="","",VLOOKUP($B31,'Suroviny a produkty'!$A$3:$I$1045,7,FALSE)) ->  | F31: 0
A32: =IF($B32="","",VLOOKUP($B32,'Suroviny a produkty'!$A$3:$I$1045,7,FALSE)) ->  | D32: =IF($C32="","",VLOOKUP($B32,'Suroviny a produkty'!$A$3:$I$1045,8,FALSE)) ->  | E32: =IF($C32="","",VLOOKUP($B32,'Suroviny a produkty'!$A$3:$I$1045,7,FALSE)) ->  | F32: 0
A33: =IF($B33="","",VLOOKUP($B33,'Suroviny a produkty'!$A$3:$I$1045,7,FALSE)) ->  | D33: =IF($C33="","",VLOOKUP($B33,'Suroviny a produkty'!$A$3:$I$1045,8,FALSE)) ->  | E33: =IF($C33="","",VLOOKUP($B33,'Suroviny a produkty'!$A$3:$I$1045,7,FALSE)) ->  | F33: 0
A34: =IF($B34="","",VLOOKUP($B34,'Suroviny a produkty'!$A$3:$I$1045,7,FALSE)) ->  | D34: =IF($C34="","",VLOOKUP($B34,'Suroviny a produkty'!$A$3:$I$1045,8,FALSE)) ->  | E34: =IF($C34="","",VLOOKUP($B34,'Suroviny a produkty'!$A$3:$I$1045,7,FALSE)) ->  | F34: 0
A35: =IF($B35="","",VLOOKUP($B35,'Suroviny a produkty'!$A$3:$I$1045,7,FALSE)) ->  | D35: =IF($C35="","",VLOOKUP($B35,'Suroviny a produkty'!$A$3:$I$1045,8,FALSE)) ->  | E35: =IF($C35="","",VLOOKUP($B35,'Suroviny a produkty'!$A$3:$I$1045,7,FALSE)) ->  | F35: 0
A36: =IF($B36="","",VLOOKUP($B36,'Suroviny a produkty'!$A$3:$I$1045,7,FALSE)) ->  | D36: =IF($C36="","",VLOOKUP($B36,'Suroviny a produkty'!$A$3:$I$1045,8,FALSE)) ->  | E36: =IF($C36="","",VLOOKUP($B36,'Suroviny a produkty'!$A$3:$I$1045,7,FALSE)) ->  | F36: 0
A37: =IF($B37="","",VLOOKUP($B37,'Suroviny a produkty'!$A$3:$I$1045,7,FALSE)) ->  | D37: =IF($C37="","",VLOOKUP($B37,'Suroviny a produkty'!$A$3:$I$1045,8,FALSE)) ->  | E37: =IF($C37="","",VLOOKUP($B37,'Suroviny a produkty'!$A$3:$I$1045,7,FALSE)) ->  | F37: 0
A38: =IF($B38="","",VLOOKUP($B38,'Suroviny a produkty'!$A$3:$I$1045,7,FALSE)) ->  | D38: =IF($C38="","",VLOOKUP($B38,'Suroviny a produkty'!$A$3:$I$1045,8,FALSE)) ->  | E38: =IF($C38="","",VLOOKUP($B38,'Suroviny a produkty'!$A$3:$I$1045,7,FALSE)) ->  | F38: 0

Sheet P5
B1: ='Jídelní lístek'!C10 -> Jehněčí ragú se sejkorou | C1: Množství | D1: Jedn. | E1: Cena za jednotku | F1: Cena pro množství v receptu | G1: Shrnutí Pro aktuální cenu je třeba aktualizovat ceny na listu surovin | J1: Popis
B2: Jídelní lístek | C2: Suroviny | G2: Alergeny | H2: 1;3;7;
A3: =IF($B3="","",VLOOKUP($B3,'Suroviny a produkty'!$A$3:$I$1045,7,FALSE)) -> 0.4945 | B3: Jehněčí plec / kýta | C3: 1400 | D3: =IF($C3="","",VLOOKUP($B3,'Suroviny a produkty'!$A$3:$I$1045,8,FALSE)) -> g | E3: =IF($C3="","",VLOOKUP($B3,'Suroviny a produkty'!$A$3:$I$1045,7,FALSE)) -> 0.4945 | F3: =IF(C3=0,0,IF(C3="dle chuti","",E3*C3)) -> 692.3 | G3: Počet porcí | H3: 10 | I3: ks
A4: =IF($B4="","",VLOOKUP($B4,'Suroviny a produkty'!$A$3:$I$1045,7,FALSE)) -> 0.012535 | B4: Cibule | C4: 300 | D4: =IF($C4="","",VLOOKUP($B4,'Suroviny a produkty'!$A$3:$I$1045,8,FALSE)) -> g | E4: =IF($C4="","",VLOOKUP($B4,'Suroviny a produkty'!$A$3:$I$1045,7,FALSE)) -> 0.012535 | F4: =IF(C4=0,0,IF(C4="dle chuti","",E4*C4)) -> 3.7605 | G4: Porce | H4: 120 | I4: g
A5: =IF($B5="","",VLOOKUP($B5,'Suroviny a produkty'!$A$3:$I$1045,7,FALSE)) -> 0.149316 | B5: Kmín (drcený) | C5: 20 | D5: =IF($C5="","",VLOOKUP($B5,'Suroviny a produkty'!$A$3:$I$1045,8,FALSE)) -> g | E5: =IF($C5="","",VLOOKUP($B5,'Suroviny a produkty'!$A$3:$I$1045,7,FALSE)) -> 0.149316 | F5: =IF(C5=0,0,IF(C5="dle chuti","",E5*C5)) -> 2.98632 | G5: Cena celkem | H5: =ROUND(SUM(F3:F38),1) -> 889.1 | I5: Kč
A6: =IF($B6="","",VLOOKUP($B6,'Suroviny a produkty'!$A$3:$I$1045,7,FALSE)) -> 0.233611 | B6: Pepř | C6: 20 | D6: =IF($C6="","",VLOOKUP($B6,'Suroviny a produkty'!$A$3:$I$1045,8,FALSE)) -> g | E6: =IF($C6="","",VLOOKUP($B6,'Suroviny a produkty'!$A$3:$I$1045,7,FALSE)) -> 0.233611 | F6: =IF(C6=0,0,IF(C6="dle chuti","",E6*C6)) -> 4.67222 | G6: Energie celkem | H6: 20 | I6: Kč
A7: =IF($B7="","",VLOOKUP($B7,'Suroviny a produkty'!$A$3:$I$1045,7,FALSE)) -> 0.059731 | B7: Olej | C7: 100 | D7: =IF($C7="","",VLOOKUP($B7,'Suroviny a produkty'!$A$3:$I$1045,8,FALSE)) -> g | E7: =IF($C7="","",VLOOKUP($B7,'Suroviny a produkty'!$A$3:$I$1045,7,FALSE)) -> 0.059731 | F7: 5.9731 | G7: Cena za porci | H7: =(H6+H5)/H3 -> 90.91 | I7: Kč
A8: =IF($B8="","",VLOOKUP($B8,'Suroviny a produkty'!$A$3:$I$1045,7,FALSE)) -> 0.095335 | B8: Paprika | C8: 200 | D8: =IF($C8="","",VLOOKUP($B8,'Suroviny a produkty'!$A$3:$I$1045,8,FALSE)) -> g | E8: =IF($C8="","",VLOOKUP($B8,'Suroviny a produkty'!$A$3:$I$1045,7,FALSE)) -> 0.095335 | F8: 19.067 | G8: Prodejní cena | H8: 245 | I8: Kč
A9: =IF($B9="","",VLOOKUP($B9,'Suroviny a produkty'!$A$3:$I$1045,7,FALSE)) -> 0.0943 | B9: Rajčata | C9: 200 | D9: =IF($C9="","",VLOOKUP($B9,'Suroviny a produkty'!$A$3:$I$1045,8,FALSE)) -> g | E9: =IF($C9="","",VLOOKUP($B9,'Suroviny a produkty'!$A$3:$I$1045,7,FALSE)) -> 0.0943 | F9: 18.86 | G9: Marže | H9: =IF(H7=0,0,H8/H7)*100 -> 269.497305 | I9: %
A10: =IF($B10="","",VLOOKUP($B10,'Suroviny a produkty'!$A$3:$I$1045,7,FALSE)) -> 0.005957 | B10: Sůl | C10: 20 | D10: =IF($C10="","",VLOOKUP($B10,'Suroviny a produkty'!$A$3:$I$1045,8,FALSE)) -> g | E10: =IF($C10="","",VLOOKUP($B10,'Suroviny a produkty'!$A$3:$I$1045,7,FALSE)) -> 0.005957 | F10: 0.11914
A11: =IF($B11="","",VLOOKUP($B11,'Suroviny a produkty'!$A$3:$I$1045,7,FALSE)) -> 0 | B11: Tymián | C11: 10 | D11: =IF($C11="","",VLOOKUP($B11,'Suroviny a produkty'!$A$3:$I$1045,8,FALSE)) -> g | E11: =IF($C11="","",VLOOKUP($B11,'Suroviny a produkty'!$A$3:$I$1045,7,FALSE)) -> 0 | F11: 0
A12: =IF($B12="","",VLOOKUP($B12,'Suroviny a produkty'!$A$3:$I$1045,7,FALSE)) -> 0.03261527778 | B12: Rajčatový protlak | C12: 150 | D12: =IF($C12="","",VLOOKUP($B12,'Suroviny a produkty'!$A$3:$I$1045,8,FALSE)) -> g | E12: =IF($C12="","",VLOOKUP($B12,'Suroviny a produkty'!$A$3:$I$1045,7,FALSE)) -> 0.03261527778 | F12: 4.892291667
A13: =IF($B13="","",VLOOKUP($B13,'Suroviny a produkty'!$A$3:$I$1045,7,FALSE)) -> 0.1108255 | B13: Smetana | C13: 100 | D13: =IF($C13="","",VLOOKUP($B13,'Suroviny a produkty'!$A$3:$I$1045,8,FALSE)) -> g | E13: =IF($C13="","",VLOOKUP($B13,'Suroviny a produkty'!$A$3:$I$1045,7,FALSE)) -> 0.1108255 | F13: 11.08255
A14: =IF($B14="","",VLOOKUP($B14,'Suroviny a produkty'!$A$3:$I$1045,7,FALSE)) ->  | D14: =IF($C14="","",VLOOKUP($B14,'Suroviny a produkty'!$A$3:$I$1045,8,FALSE)) ->  | E14: =IF($C14="","",VLOOKUP($B14,'Suroviny a produkty'!$A$3:$I$1045,7,FALSE)) ->  | F14: 0
A15: =IF($B15="","",VLOOKUP($B15,'Suroviny a produkty'!$A$3:$I$1045,7,FALSE)) ->  | D15: =IF($C15="","",VLOOKUP($B15,'Suroviny a produkty'!$A$3:$I$1045,8,FALSE)) ->  | E15: =IF($C15="","",VLOOKUP($B15,'Suroviny a produkty'!$A$3:$I$1045,7,FALSE)) ->  | F15: 0
A16: =IF($B16="","",VLOOKUP($B16,'Suroviny a produkty'!$A$3:$I$1045,7,FALSE)) -> 6.785 | B16: Sejkora | C16: 10 | D16: =IF($C16="","",VLOOKUP($B16,'Suroviny a produkty'!$A$3:$I$1045,8,FALSE)) -> ks | E16: =IF($C16="","",VLOOKUP($B16,'Suroviny a produkty'!$A$3:$I$1045,7,FALSE)) -> 6.785 | F16: 67.85
A17: =IF($B17="","",VLOOKUP($B17,'Suroviny a produkty'!$A$3:$I$1045,7,FALSE)) -> 5.75 | B17: Ozdoba | C17: 10 | D17: =IF($C17="","",VLOOKUP($B17,'Suroviny a produkty'!$A$3:$I$1045,8,FALSE)) -> ks | E17: =IF($C17="","",VLOOKUP($B17,'Suroviny a produkty'!$A$3:$I$1045,7,FALSE)) -> 5.75 | F17: 57.5
A18: =IF($B18="","",VLOOKUP($B18,'Suroviny a produkty'!$A$3:$I$1045,7,FALSE)) ->  | D18: =IF($C18="","",VLOOKUP($B18,'Suroviny a produkty'!$A$3:$I$1045,8,FALSE)) ->  | E18: =IF($C18="","",VLOOKUP($B18,'Suroviny a produkty'!$A$3:$I$1045,7,FALSE)) ->  | F18: 0
A19: =IF($B19="","",VLOOKUP($B19,'Suroviny a produkty'!$A$3:$I$1045,7,FALSE)) ->  | D19: =IF($C19="","",VLOOKUP($B19,'Suroviny a produkty'!$A$3:$I$1045,8,FALSE)) ->  | E19: =IF($C19="","",VLOOKUP($B19,'Suroviny a produkty'!$A$3:$I$1045,7,FALSE)) ->  | F19: 0
A20: =IF($B20="","",VLOOKUP($B20,'Suroviny a produkty'!$A$3:$I$1045,7,FALSE)) ->  | D20: =IF($C20="","",VLOOKUP($B20,'Suroviny a produkty'!$A$3:$I$1045,8,FALSE)) ->  | E20: =IF($C20="","",VLOOKUP($B20,'Suroviny a produkty'!$A$3:$I$1045,7,FALSE)) ->  | F20: 0
A21: =IF($B21="","",VLOOKUP($B21,'Suroviny a produkty'!$A$3:$I$1045,7,FALSE)) ->  | D21: =IF($C21="","",VLOOKUP($B21,'Suroviny a produkty'!$A$3:$I$1045,8,FALSE)) ->  | E21: =IF($C21="","",VLOOKUP($B21,'Suroviny a produkty'!$A$3:$I$1045,7,FALSE)) ->  | F21: 0
A22: =IF($B22="","",VLOOKUP($B22,'Suroviny a produkty'!$A$3:$I$1045,7,FALSE)) ->  | D22: =IF($C22="","",VLOOKUP($B22,'Suroviny a produkty'!$A$3:$I$1045,8,FALSE)) ->  | E22: =IF($C22="","",VLOOKUP($B22,'Suroviny a produkty'!$A$3:$I$1045,7,FALSE)) ->  | F22: 0
A23: =IF($B23="","",VLOOKUP($B23,'Suroviny a produkty'!$A$3:$I$1045,7,FALSE)) ->  | D23: =IF($C23="","",VLOOKUP($B23,'Suroviny a produkty'!$A$3:$I$1045,8,FALSE)) ->  | E23: =IF($C23="","",VLOOKUP($B23,'Suroviny a produkty'!$A$3:$I$1045,7,FALSE)) ->  | F23: 0
A24: =IF($B24="","",VLOOKUP($B24,'Suroviny a produkty'!$A$3:$I$1045,7,FALSE)) ->  | D24: =IF($C24="","",VLOOKUP($B24,'Suroviny a produkty'!$A$3:$I$1045,8,FALSE)) ->  | E24: =IF($C24="","",VLOOKUP($B24,'Suroviny a produkty'!$A$3:$I$1045,7,FALSE)) ->  | F24: 0
A25: =IF($B25="","",VLOOKUP($B25,'Suroviny a produkty'!$A$3:$I$1045,7,FALSE)) ->  | D25: =IF($C25="","",VLOOKUP($B25,'Suroviny a produkty'!$A$3:$I$1045,8,FALSE)) ->  | E25: =IF($C25="","",VLOOKUP($B25,'Suroviny a produkty'!$A$3:$I$1045,7,FALSE)) ->  | F25: 0
A26: =IF($B26="","",VLOOKUP($B26,'Suroviny a produkty'!$A$3:$I$1045,7,FALSE)) ->  | D26: =IF($C26="","",VLOOKUP($B26,'Suroviny a produkty'!$A$3:$I$1045,8,FALSE)) ->  | E26: =IF($C26="","",VLOOKUP($B26,'Suroviny a produkty'!$A$3:$I$1045,7,FALSE)) ->  | F26: 0
A27: =IF($B27="","",VLOOKUP($B27,'Suroviny a produkty'!$A$3:$I$1045,7,FALSE)) ->  | D27: =IF($C27="","",VLOOKUP($B27,'Suroviny a produkty'!$A$3:$I$1045,8,FALSE)) ->  | E27: =IF($C27="","",VLOOKUP($B27,'Suroviny a produkty'!$A$3:$I$1045,7,FALSE)) ->  | F27: 0
A28: =IF($B28="","",VLOOKUP($B28,'Suroviny a produkty'!$A$3:$I$1045,7,FALSE)) ->  | D28: =IF($C28="","",VLOOKUP($B28,'Suroviny a produkty'!$A$3:$I$1045,8,FALSE)) ->  | E28: =IF($C28="","",VLOOKUP($B28,'Suroviny a produkty'!$A$3:$I$1045,7,FALSE)) ->  | F28: 0
A29: =IF($B29="","",VLOOKUP($B29,'Suroviny a produkty'!$A$3:$I$1045,7,FALSE)) ->  | D29: =IF($C29="","",VLOOKUP($B29,'Suroviny a produkty'!$A$3:$I$1045,8,FALSE)) ->  | E29: =IF($C29="","",VLOOKUP($B29,'Suroviny a produkty'!$A$3:$I$1045,7,FALSE)) ->  | F29: 0
A30: =IF($B30="","",VLOOKUP($B30,'Suroviny a produkty'!$A$3:$I$1045,7,FALSE)) ->  | D30: =IF($C30="","",VLOOKUP($B30,'Suroviny a produkty'!$A$3:$I$1045,8,FALSE)) ->  | E30: =IF($C30="","",VLOOKUP($B30,'Suroviny a produkty'!$A$3:$I$1045,7,FALSE)) ->  | F30: 0
A31: =IF($B31="","",VLOOKUP($B31,'Suroviny a produkty'!$A$3:$I$1045,7,FALSE)) ->  | D31: =IF($C31="","",VLOOKUP($B31,'Suroviny a produkty'!$A$3:$I$1045,8,FALSE)) ->  | E31: =IF($C31="","",VLOOKUP($B31,'Suroviny a produkty'!$A$3:$I$1045,7,FALSE)) ->  | F31: 0
A32: =IF($B32="","",VLOOKUP($B32,'Suroviny a produkty'!$A$3:$I$1045,7,FALSE)) ->  | D32: =IF($C32="","",VLOOKUP($B32,'Suroviny a produkty'!$A$3:$I$1045,8,FALSE)) ->  | E32: =IF($C32="","",VLOOKUP($B32,'Suroviny a produkty'!$A$3:$I$1045,7,FALSE)) ->  | F32: 0
A33: =IF($B33="","",VLOOKUP($B33,'Suroviny a produkty'!$A$3:$I$1045,7,FALSE)) ->  | D33: =IF($C33="","",VLOOKUP($B33,'Suroviny a produkty'!$A$3:$I$1045,8,FALSE)) ->  | E33: =IF($C33="","",VLOOKUP($B33,'Suroviny a produkty'!$A$3:$I$1045,7,FALSE)) ->  | F33: 0
A34: =IF($B34="","",VLOOKUP($B34,'Suroviny a produkty'!$A$3:$I$1045,7,FALSE)) ->  | D34: =IF($C34="","",VLOOKUP($B34,'Suroviny a produkty'!$A$3:$I$1045,8,FALSE)) ->  | E34: =IF($C34="","",VLOOKUP($B34,'Suroviny a produkty'!$A$3:$I$1045,7,FALSE)) ->  | F34: 0
A35: =IF($B35="","",VLOOKUP($B35,'Suroviny a produkty'!$A$3:$I$1045,7,FALSE)) ->  | D35: =IF($C35="","",VLOOKUP($B35,'Suroviny a produkty'!$A$3:$I$1045,8,FALSE)) ->  | E35: =IF($C35="","",VLOOKUP($B35,'Suroviny a produkty'!$A$3:$I$1045,7,FALSE)) ->  | F35: 0
A36: =IF($B36="","",VLOOKUP($B36,'Suroviny a produkty'!$A$3:$I$1045,7,FALSE)) ->  | D36: =IF($C36="","",VLOOKUP($B36,'Suroviny a produkty'!$A$3:$I$1045,8,FALSE)) ->  | E36: =IF($C36="","",VLOOKUP($B36,'Suroviny a produkty'!$A$3:$I$1045,7,FALSE)) ->  | F36: 0
A37: =IF($B37="","",VLOOKUP($B37,'Suroviny a produkty'!$A$3:$I$1045,7,FALSE)) ->  | D37: =IF($C37="","",VLOOKUP($B37,'Suroviny a produkty'!$A$3:$I$1045,8,FALSE)) ->  | E37: =IF($C37="","",VLOOKUP($B37,'Suroviny a produkty'!$A$3:$I$1045,7,FALSE)) ->  | F37: 0
A38: =IF($B38="","",VLOOKUP($B38,'Suroviny a produkty'!$A$3:$I$1045,7,FALSE)) ->  | D38: =IF($C38="","",VLOOKUP($B38,'Suroviny a produkty'!$A$3:$I$1045,8,FALSE)) ->  | E38: =IF($C38="","",VLOOKUP($B38,'Suroviny a produkty'!$A$3:$I$1045,7,FALSE)) ->  | F38: 0

Sheet P6
B1: ='Jídelní lístek'!C11 -> Zvěřinový guláš s houbovým knedlíkem | C1: Množství | D1: Jedn. | E1: Cena za jednotku | F1: Cena pro množství v receptu | G1: Shrnutí Pro aktuální cenu je třeba aktualizovat ceny na listu surovin | J1: Popis
B2: Jídelní lístek | C2: Suroviny | G2: Alergeny | H2: 1;3;7;
A3: =IF($B3="","",VLOOKUP($B3,'Suroviny a produkty'!$A$3:$I$1045,7,FALSE)) -> 0.247135 | B3: Maso z divočáka | C3: 1500 | D3: =IF($C3="","",VLOOKUP($B3,'Suroviny a produkty'!$A$3:$I$1045,8,FALSE)) -> g | E3: =IF($C3="","",VLOOKUP($B3,'Suroviny a produkty'!$A$3:$I$1045,7,FALSE)) -> 0.247135 | F3: =IF(C3=0,0,E3*C3) -> 370.7025 | G3: Počet porcí | H3: 10 | I3: ks
A4: =IF($B4="","",VLOOKUP($B4,'Suroviny a produkty'!$A$3:$I$1045,7,FALSE)) -> 0.012535 | B4: Cibule | C4: 1500 | D4: =IF($C4="","",VLOOKUP($B4,'Suroviny a produkty'!$A$3:$I$1045,8,FALSE)) -> g | E4: =IF($C4="","",VLOOKUP($B4,'Suroviny a produkty'!$A$3:$I$1045,7,FALSE)) -> 0.012535 | F4: 18.8025 | G4: Porce | H4: 150 | I4: g
A5: =IF($B5="","",VLOOKUP($B5,'Suroviny a produkty'!$A$3:$I$1045,7,FALSE)) -> 0.005957 | B5: Sůl | C5: 10 | D5: =IF($C5="","",VLOOKUP($B5,'Suroviny a produkty'!$A$3:$I$1045,8,FALSE)) -> g | E5: =IF($C5="","",VLOOKUP($B5,'Suroviny a produkty'!$A$3:$I$1045,7,FALSE)) -> 0.005957 | F5: 0.05957 | G5: Cena celkem | H5: =ROUND(SUM(F3:F38),1) -> 556 | I5: Kč
A6: =IF($B6="","",VLOOKUP($B6,'Suroviny a produkty'!$A$3:$I$1045,7,FALSE)) -> 0.233611 | B6: Pepř | C6: 10 | D6: =IF($C6="","",VLOOKUP($B6,'Suroviny a produkty'!$A$3:$I$1045,8,FALSE)) -> g | E6: =IF($C6="","",VLOOKUP($B6,'Suroviny a produkty'!$A$3:$I$1045,7,FALSE)) -> 0.233611 | F6: 2.33611 | G6: Energie celkem | H6: 15 | I6: Kč
A7: =IF($B7="","",VLOOKUP($B7,'Suroviny a produkty'!$A$3:$I$1045,7,FALSE)) -> 0.294423 | B7: Divoké koření | C7: 50 | D7: =IF($C7="","",VLOOKUP($B7,'Suroviny a produkty'!$A$3:$I$1045,8,FALSE)) -> g | E7: =IF($C7="","",VLOOKUP($B7,'Suroviny a produkty'!$A$3:$I$1045,7,FALSE)) -> 0.294423 | F7: 14.72115 | G7: Cena za porci | H7: =(H6+H5)/H3 -> 57.1 | I7: Kč
A8: =IF($B8="","",VLOOKUP($B8,'Suroviny a produkty'!$A$3:$I$1045,7,FALSE)) -> 0.2597965 | B8: Sušené švestky | C8: 150 | D8: =IF($C8="","",VLOOKUP($B8,'Suroviny a produkty'!$A$3:$I$1045,8,FALSE)) -> g | E8: =IF($C8="","",VLOOKUP($B8,'Suroviny a produkty'!$A$3:$I$1045,7,FALSE)) -> 0.2597965 | F8: 38.969475 | G8: Prodejní cena | H8: 195 | I8: Kč
A9: =IF($B9="","",VLOOKUP($B9,'Suroviny a produkty'!$A$3:$I$1045,7,FALSE)) -> 0.0704375 | B9: Povidla | C9: 150 | D9: =IF($C9="","",VLOOKUP($B9,'Suroviny a produkty'!$A$3:$I$1045,8,FALSE)) -> g | E9: =IF($C9="","",VLOOKUP($B9,'Suroviny a produkty'!$A$3:$I$1045,7,FALSE)) -> 0.0704375 | F9: 10.565625 | G9: Marže | H9: =IF(H7=0,0,H8/H7)*100 -> 341.5061296 | I9: %
A10: =IF($B10="","",VLOOKUP($B10,'Suroviny a produkty'!$A$3:$I$1045,7,FALSE)) ->  | D10: =IF($C10="","",VLOOKUP($B10,'Suroviny a produkty'!$A$3:$I$1045,8,FALSE)) ->  | E10: =IF($C10="","",VLOOKUP($B10,'Suroviny a produkty'!$A$3:$I$1045,7,FALSE)) ->  | F10: 0
A11: =IF($B11="","",VLOOKUP($B11,'Suroviny a produkty'!$A$3:$I$1045,7,FALSE)) -> 9.98 | B11: Houbový knedlík | C11: 10 | D11: =IF($C11="","",VLOOKUP($B11,'Suroviny a produkty'!$A$3:$I$1045,8,FALSE)) -> porce | E11: =IF($C11="","",VLOOKUP($B11,'Suroviny a produkty'!$A$3:$I$1045,7,FALSE)) -> 9.98 | F11: 99.8
A12: =IF($B12="","",VLOOKUP($B12,'Suroviny a produkty'!$A$3:$I$1045,7,FALSE)) ->  | D12: =IF($C12="","",VLOOKUP($B12,'Suroviny a produkty'!$A$3:$I$1045,8,FALSE)) ->  | E12: =IF($C12="","",VLOOKUP($B12,'Suroviny a produkty'!$A$3:$I$1045,7,FALSE)) ->  | F12: 0
A13: =IF($B13="","",VLOOKUP($B13,'Suroviny a produkty'!$A$3:$I$1045,7,FALSE)) ->  | D13: =IF($C13="","",VLOOKUP($B13,'Suroviny a produkty'!$A$3:$I$1045,8,FALSE)) ->  | E13: =IF($C13="","",VLOOKUP($B13,'Suroviny a produkty'!$A$3:$I$1045,7,FALSE)) ->  | F13: 0
A14: =IF($B14="","",VLOOKUP($B14,'Suroviny a produkty'!$A$3:$I$1045,7,FALSE)) ->  | D14: =IF($C14="","",VLOOKUP($B14,'Suroviny a produkty'!$A$3:$I$1045,8,FALSE)) ->  | E14: =IF($C14="","",VLOOKUP($B14,'Suroviny a produkty'!$A$3:$I$1045,7,FALSE)) ->  | F14: 0
A15: =IF($B15="","",VLOOKUP($B15,'Suroviny a produkty'!$A$3:$I$1045,7,FALSE)) ->  | D15: =IF($C15="","",VLOOKUP($B15,'Suroviny a produkty'!$A$3:$I$1045,8,FALSE)) ->  | E15: =IF($C15="","",VLOOKUP($B15,'Suroviny a produkty'!$A$3:$I$1045,7,FALSE)) ->  | F15: 0
A16: =IF($B16="","",VLOOKUP($B16,'Suroviny a produkty'!$A$3:$I$1045,7,FALSE)) ->  | D16: =IF($C16="","",VLOOKUP($B16,'Suroviny a produkty'!$A$3:$I$1045,8,FALSE)) ->  | E16: =IF($C16="","",VLOOKUP($B16,'Suroviny a produkty'!$A$3:$I$1045,7,FALSE)) ->  | F16: 0
A17: =IF($B17="","",VLOOKUP($B17,'Suroviny a produkty'!$A$3:$I$1045,7,FALSE)) ->  | D17: =IF($C17="","",VLOOKUP($B17,'Suroviny a produkty'!$A$3:$I$1045,8,FALSE)) ->  | E17: =IF($C17="","",VLOOKUP($B17,'Suroviny a produkty'!$A$3:$I$1045,7,FALSE)) ->  | F17: 0
A18: =IF($B18="","",VLOOKUP($B18,'Suroviny a produkty'!$A$3:$I$1045,7,FALSE)) ->  | D18: =IF($C18="","",VLOOKUP($B18,'Suroviny a produkty'!$A$3:$I$1045,8,FALSE)) ->  | E18: =IF($C18="","",VLOOKUP($B18,'Suroviny a produkty'!$A$3:$I$1045,7,FALSE)) ->  | F18: 0
A19: =IF($B19="","",VLOOKUP($B19,'Suroviny a produkty'!$A$3:$I$1045,7,FALSE)) ->  | D19: =IF($C19="","",VLOOKUP($B19,'Suroviny a produkty'!$A$3:$I$1045,8,FALSE)) ->  | E19: =IF($C19="","",VLOOKUP($B19,'Suroviny a produkty'!$A$3:$I$1045,7,FALSE)) ->  | F19: 0
A20: =IF($B20="","",VLOOKUP($B20,'Suroviny a produkty'!$A$3:$I$1045,7,FALSE)) ->  | D20: =IF($C20="","",VLOOKUP($B20,'Suroviny a produkty'!$A$3:$I$1045,8,FALSE)) ->  | E20: =IF($C20="","",VLOOKUP($B20,'Suroviny a produkty'!$A$3:$I$1045,7,FALSE)) ->  | F20: 0
A21: =IF($B21="","",VLOOKUP($B21,'Suroviny a produkty'!$A$3:$I$1045,7,FALSE)) ->  | D21: =IF($C21="","",VLOOKUP($B21,'Suroviny a produkty'!$A$3:$I$1045,8,FALSE)) ->  | E21: =IF($C21="","",VLOOKUP($B21,'Suroviny a produkty'!$A$3:$I$1045,7,FALSE)) ->  | F21: 0
A22: =IF($B22="","",VLOOKUP($B22,'Suroviny a produkty'!$A$3:$I$1045,7,FALSE)) ->  | D22: =IF($C22="","",VLOOKUP($B22,'Suroviny a produkty'!$A$3:$I$1045,8,FALSE)) ->  | E22: =IF($C22="","",VLOOKUP($B22,'Suroviny a produkty'!$A$3:$I$1045,7,FALSE)) ->  | F22: 0
A23: =IF($B23="","",VLOOKUP($B23,'Suroviny a produkty'!$A$3:$I$1045,7,FALSE)) ->  | D23: =IF($C23="","",VLOOKUP($B23,'Suroviny a produkty'!$A$3:$I$1045,8,FALSE)) ->  | E23: =IF($C23="","",VLOOKUP($B23,'Suroviny a produkty'!$A$3:$I$1045,7,FALSE)) ->  | F23: 0
A24: =IF($B24="","",VLOOKUP($B24,'Suroviny a produkty'!$A$3:$I$1045,7,FALSE)) ->  | D24: =IF($C24="","",VLOOKUP($B24,'Suroviny a produkty'!$A$3:$I$1045,8,FALSE)) ->  | E24: =IF($C24="","",VLOOKUP($B24,'Suroviny a produkty'!$A$3:$I$1045,7,FALSE)) ->  | F24: 0
A25: =IF($B25="","",VLOOKUP($B25,'Suroviny a produkty'!$A$3:$I$1045,7,FALSE)) ->  | D25: =IF($C25="","",VLOOKUP($B25,'Suroviny a produkty'!$A$3:$I$1045,8,FALSE)) ->  | E25: =IF($C25="","",VLOOKUP($B25,'Suroviny a produkty'!$A$3:$I$1045,7,FALSE)) ->  | F25: 0
A26: =IF($B26="","",VLOOKUP($B26,'Suroviny a produkty'!$A$3:$I$1045,7,FALSE)) ->  | D26: =IF($C26="","",VLOOKUP($B26,'Suroviny a produkty'!$A$3:$I$1045,8,FALSE)) ->  | E26: =IF($C26="","",VLOOKUP($B26,'Suroviny a produkty'!$A$3:$I$1045,7,FALSE)) ->  | F26: 0
A27: =IF($B27="","",VLOOKUP($B27,'Suroviny a produkty'!$A$3:$I$1045,7,FALSE)) ->  | D27: =IF($C27="","",VLOOKUP($B27,'Suroviny a produkty'!$A$3:$I$1045,8,FALSE)) ->  | E27: =IF($C27="","",VLOOKUP($B27,'Suroviny a produkty'!$A$3:$I$1045,7,FALSE)) ->  | F27: 0
A28: =IF($B28="","",VLOOKUP($B28,'Suroviny a produkty'!$A$3:$I$1045,7,FALSE)) ->  | D28: =IF($C28="","",VLOOKUP($B28,'Suroviny a produkty'!$A$3:$I$1045,8,FALSE)) ->  | E28: =IF($C28="","",VLOOKUP($B28,'Suroviny a produkty'!$A$3:$I$1045,7,FALSE)) ->  | F28: 0
A29: =IF($B29="","",VLOOKUP($B29,'Suroviny a produkty'!$A$3:$I$1045,7,FALSE)) ->  | D29: =IF($C29="","",VLOOKUP($B29,'Suroviny a produkty'!$A$3:$I$1045,8,FALSE)) ->  | E29: =IF($C29="","",VLOOKUP($B29,'Suroviny a produkty'!$A$3:$I$1045,7,FALSE)) ->  | F29: 0
A30: =IF($B30="","",VLOOKUP($B30,'Suroviny a produkty'!$A$3:$I$1045,7,FALSE)) ->  | D30: =IF($C30="","",VLOOKUP($B30,'Suroviny a produkty'!$A$3:$I$1045,8,FALSE)) ->  | E30: =IF($C30="","",VLOOKUP($B30,'Suroviny a produkty'!$A$3:$I$1045,7,FALSE)) ->  | F30: 0
A31: =IF($B31="","",VLOOKUP($B31,'Suroviny a produkty'!$A$3:$I$1045,7,FALSE)) ->  | D31: =IF($C31="","",VLOOKUP($B31,'Suroviny a produkty'!$A$3:$I$1045,8,FALSE)) ->  | E31: =IF($C31="","",VLOOKUP($B31,'Suroviny a produkty'!$A$3:$I$1045,7,FALSE)) ->  | F31: 0
A32: =IF($B32="","",VLOOKUP($B32,'Suroviny a produkty'!$A$3:$I$1045,7,FALSE)) ->  | D32: =IF($C32="","",VLOOKUP($B32,'Suroviny a produkty'!$A$3:$I$1045,8,FALSE)) ->  | E32: =IF($C32="","",VLOOKUP($B32,'Suroviny a produkty'!$A$3:$I$1045,7,FALSE)) ->  | F32: 0
A33: =IF($B33="","",VLOOKUP($B33,'Suroviny a produkty'!$A$3:$I$1045,7,FALSE)) ->  | D33: =IF($C33="","",VLOOKUP($B33,'Suroviny a produkty'!$A$3:$I$1045,8,FALSE)) ->  | E33: =IF($C33="","",VLOOKUP($B33,'Suroviny a produkty'!$A$3:$I$1045,7,FALSE)) ->  | F33: 0
A34: =IF($B34="","",VLOOKUP($B34,'Suroviny a produkty'!$A$3:$I$1045,7,FALSE)) ->  | D34: =IF($C34="","",VLOOKUP($B34,'Suroviny a produkty'!$A$3:$I$1045,8,FALSE)) ->  | E34: =IF($C34="","",VLOOKUP($B34,'Suroviny a produkty'!$A$3:$I$1045,7,FALSE)) ->  | F34: 0
A35: =IF($B35="","",VLOOKUP($B35,'Suroviny a produkty'!$A$3:$I$1045,7,FALSE)) ->  | D35: =IF($C35="","",VLOOKUP($B35,'Suroviny a produkty'!$A$3:$I$1045,8,FALSE)) ->  | E35: =IF($C35="","",VLOOKUP($B35,'Suroviny a produkty'!$A$3:$I$1045,7,FALSE)) ->  | F35: 0
A36: =IF($B36="","",VLOOKUP($B36,'Suroviny a produkty'!$A$3:$I$1045,7,FALSE)) ->  | D36: =IF($C36="","",VLOOKUP($B36,'Suroviny a produkty'!$A$3:$I$1045,8,FALSE)) ->  | E36: =IF($C36="","",VLOOKUP($B36,'Suroviny a produkty'!$A$3:$I$1045,7,FALSE)) ->  | F36: 0
A37: =IF($B37="","",VLOOKUP($B37,'Suroviny a produkty'!$A$3:$I$1045,7,FALSE)) ->  | D37: =IF($C37="","",VLOOKUP($B37,'Suroviny a produkty'!$A$3:$I$1045,8,FALSE)) ->  | E37: =IF($C37="","",VLOOKUP($B37,'Suroviny a produkty'!$A$3:$I$1045,7,FALSE)) ->  | F37: 0
A38: =IF($B38="","",VLOOKUP($B38,'Suroviny a produkty'!$A$3:$I$1045,7,FALSE)) ->  | D38: =IF($C38="","",VLOOKUP($B38,'Suroviny a produkty'!$A$3:$I$1045,8,FALSE)) ->  | E38: =IF($C38="","",VLOOKUP($B38,'Suroviny a produkty'!$A$3:$I$1045,7,FALSE)) ->  | F38: 0

Sheet P7
B1: ='Jídelní lístek'!C12 -> Borůvkové knedlíky | C1: Množství | D1: Jedn. | E1: Cena za jednotku | F1: Cena pro množství v receptu | G1: Shrnutí Pro aktuální cenu je třeba aktualizovat ceny na listu surovin | J1: Popis
B2: Jídelní lístek | C2: Suroviny | G2: Alergeny | H2: 1;3;7;
A3: =IF($B3="","",VLOOKUP($B3,'Suroviny a produkty'!$A$3:$I$1045,7,FALSE)) -> 0.016376 | B3: Mouka polohrubá | C3: 2000 | D3: =IF($C3="","",VLOOKUP($B3,'Suroviny a produkty'!$A$3:$I$1045,8,FALSE)) -> g | E3: =IF($C3="","",VLOOKUP($B3,'Suroviny a produkty'!$A$3:$I$1045,7,FALSE)) -> 0.016376 | F3: =IF(C3=0,0,E3*C3) -> 32.752 | G3: Počet porcí | H3: 16 | I3: ks
A4: =IF($B4="","",VLOOKUP($B4,'Suroviny a produkty'!$A$3:$I$1045,7,FALSE)) -> 3.6685 | B4: Vejce | C4: 2 | D4: =IF($C4="","",VLOOKUP($B4,'Suroviny a produkty'!$A$3:$I$1045,8,FALSE)) -> ks | E4: =IF($C4="","",VLOOKUP($B4,'Suroviny a produkty'!$A$3:$I$1045,7,FALSE)) -> 3.6685 | F4: 7.337 | G4: Porce | H4: 150 | I4: g
A5: =IF($B5="","",VLOOKUP($B5,'Suroviny a produkty'!$A$3:$I$1045,7,FALSE)) -> 0.0180665 | B5: Cukr | C5: 150 | D5: =IF($C5="","",VLOOKUP($B5,'Suroviny a produkty'!$A$3:$I$1045,8,FALSE)) -> g | E5: =IF($C5="","",VLOOKUP($B5,'Suroviny a produkty'!$A$3:$I$1045,7,FALSE)) -> 0.0180665 | F5: 2.709975 | G5: Cena celkem | H5: =ROUND(SUM(F3:F38),1) ->  | I5: Kč
A6: =IF($B6="","",VLOOKUP($B6,'Suroviny a produkty'!$A$3:$I$1045,7,FALSE)) -> 0.005957 | B6: Sůl | C6: 10 | D6: =IF($C6="","",VLOOKUP($B6,'Suroviny a produkty'!$A$3:$I$1045,8,FALSE)) -> g | E6: =IF($C6="","",VLOOKUP($B6,'Suroviny a produkty'!$A$3:$I$1045,7,FALSE)) -> 0.005957 | F6: 0.05957 | G6: Energie celkem | H6: 5 | I6: Kč
A7: =IF($B7="","",VLOOKUP($B7,'Suroviny a produkty'!$A$3:$I$1045,7,FALSE)) -> 3.3465 | B7: Kvasnice (42 g) | C7: 2 | D7: =IF($C7="","",VLOOKUP($B7,'Suroviny a produkty'!$A$3:$I$1045,8,FALSE)) -> ks | E7: =IF($C7="","",VLOOKUP($B7,'Suroviny a produkty'!$A$3:$I$1045,7,FALSE)) -> 3.3465 | F7: 6.693 | G7: Cena za porci | H7: =(H6+H5)/H3 ->  | I7: Kč
A8: =IF($B8="","",VLOOKUP($B8,'Suroviny a produkty'!$A$3:$I$1045,7,FALSE)) -> 0.05477066667 | B8: Sádlo | C8: 100 | D8: =IF($C8="","",VLOOKUP($B8,'Suroviny a produkty'!$A$3:$I$1045,8,FALSE)) -> g | E8: =IF($C8="","",VLOOKUP($B8,'Suroviny a produkty'!$A$3:$I$1045,7,FALSE)) -> 0.05477066667 | F8: 5.477066667 | G8: Prodejní cena | H8: ='Jídelní lístek'!E12 -> 135 | I8: Kč
A9: =IF($B9="","",VLOOKUP($B9,'Suroviny a produkty'!$A$3:$I$1045,7,FALSE)) -> 0.016997 | B9: Mléko | C9: 1100 | D9: =IF($C9="","",VLOOKUP($B9,'Suroviny a produkty'!$A$3:$I$1045,8,FALSE)) -> g | E9: =IF($C9="","",VLOOKUP($B9,'Suroviny a produkty'!$A$3:$I$1045,7,FALSE)) -> 0.016997 | F9: 18.6967 | G9: Marže | H9: =IF(H7=0,0,H8/H7)*100 ->  | I9: %
A10: =IF($B10="","",VLOOKUP($B10,'Suroviny a produkty'!$A$3:$I$1045,7,FALSE)) -> 0.1404748 | B10: Borůvky | C10: 1200 | D10: =IF($C10="","",VLOOKUP($B10,'Suroviny a produkty'!$A$3:$I$1045,8,FALSE)) -> g | E10: =IF($C10="","",VLOOKUP($B10,'Suroviny a produkty'!$A$3:$I$1045,7,FALSE)) -> 0.1404748 | F10: 168.56976
A11: =IF($B11="","",VLOOKUP($B11,'Suroviny a produkty'!$A$3:$I$1045,7,FALSE)) ->  | D11: =IF($C11="","",VLOOKUP($B11,'Suroviny a produkty'!$A$3:$I$1045,8,FALSE)) ->  | E11: =IF($C11="","",VLOOKUP($B11,'Suroviny a produkty'!$A$3:$I$1045,7,FALSE)) ->  | F11: 0
A12: =IF($B12="","",VLOOKUP($B12,'Suroviny a produkty'!$A$3:$I$1045,7,FALSE)) -> 0.070794 | B12: Tvaroh | C12: 500 | D12: =IF($C12="","",VLOOKUP($B12,'Suroviny a produkty'!$A$3:$I$1045,8,FALSE)) -> g | E12: =IF($C12="","",VLOOKUP($B12,'Suroviny a produkty'!$A$3:$I$1045,7,FALSE)) -> 0.070794 | F12: 35.397
A13: =IF($B13="","",VLOOKUP($B13,'Suroviny a produkty'!$A$3:$I$1045,7,FALSE)) -> 0.0180665 | B13: Cukr | C13: 250 | D13: =IF($C13="","",VLOOKUP($B13,'Suroviny a produkty'!$A$3:$I$1045,8,FALSE)) -> g | E13: =IF($C13="","",VLOOKUP($B13,'Suroviny a produkty'!$A$3:$I$1045,7,FALSE)) -> 0.0180665 | F13: 4.516625
A14: =IF($B14="","",VLOOKUP($B14,'Suroviny a produkty'!$A$3:$I$1045,7,FALSE)) ->  | B14: Máslo | C14: 200 | D14: =IF($C14="","",VLOOKUP($B14,'Suroviny a produkty'!$A$3:$I$1045,8,FALSE)) ->  | E14: =IF($C14="","",VLOOKUP($B14,'Suroviny a produkty'!$A$3:$I$1045,7,FALSE)) -> 
A15: =IF($B15="","",VLOOKUP($B15,'Suroviny a produkty'!$A$3:$I$1045,7,FALSE)) ->  | D15: =IF($C15="","",VLOOKUP($B15,'Suroviny a produkty'!$A$3:$I$1045,8,FALSE)) ->  | E15: =IF($C15="","",VLOOKUP($B15,'Suroviny a produkty'!$A$3:$I$1045,7,FALSE)) ->  | F15: 0
A16: =IF($B16="","",VLOOKUP($B16,'Suroviny a produkty'!$A$3:$I$1045,7,FALSE)) ->  | D16: =IF($C16="","",VLOOKUP($B16,'Suroviny a produkty'!$A$3:$I$1045,8,FALSE)) ->  | E16: =IF($C16="","",VLOOKUP($B16,'Suroviny a produkty'!$A$3:$I$1045,7,FALSE)) ->  | F16: 0
A17: =IF($B17="","",VLOOKUP($B17,'Suroviny a produkty'!$A$3:$I$1045,7,FALSE)) ->  | D17: =IF($C17="","",VLOOKUP($B17,'Suroviny a produkty'!$A$3:$I$1045,8,FALSE)) ->  | E17: =IF($C17="","",VLOOKUP($B17,'Suroviny a produkty'!$A$3:$I$1045,7,FALSE)) ->  | F17: 0
A18: =IF($B18="","",VLOOKUP($B18,'Suroviny a produkty'!$A$3:$I$1045,7,FALSE)) ->  | D18: =IF($C18="","",VLOOKUP($B18,'Suroviny a produkty'!$A$3:$I$1045,8,FALSE)) ->  | E18: =IF($C18="","",VLOOKUP($B18,'Suroviny a produkty'!$A$3:$I$1045,7,FALSE)) ->  | F18: 0
A19: =IF($B19="","",VLOOKUP($B19,'Suroviny a produkty'!$A$3:$I$1045,7,FALSE)) ->  | D19: =IF($C19="","",VLOOKUP($B19,'Suroviny a produkty'!$A$3:$I$1045,8,FALSE)) ->  | E19: =IF($C19="","",VLOOKUP($B19,'Suroviny a produkty'!$A$3:$I$1045,7,FALSE)) ->  | F19: 0
A20: =IF($B20="","",VLOOKUP($B20,'Suroviny a produkty'!$A$3:$I$1045,7,FALSE)) ->  | D20: =IF($C20="","",VLOOKUP($B20,'Suroviny a produkty'!$A$3:$I$1045,8,FALSE)) ->  | E20: =IF($C20="","",VLOOKUP($B20,'Suroviny a produkty'!$A$3:$I$1045,7,FALSE)) ->  | F20: 0
A21: =IF($B21="","",VLOOKUP($B21,'Suroviny a produkty'!$A$3:$I$1045,7,FALSE)) ->  | D21: =IF($C21="","",VLOOKUP($B21,'Suroviny a produkty'!$A$3:$I$1045,8,FALSE)) ->  | E21: =IF($C21="","",VLOOKUP($B21,'Suroviny a produkty'!$A$3:$I$1045,7,FALSE)) ->  | F21: 0
A22: =IF($B22="","",VLOOKUP($B22,'Suroviny a produkty'!$A$3:$I$1045,7,FALSE)) ->  | D22: =IF($C22="","",VLOOKUP($B22,'Suroviny a produkty'!$A$3:$I$1045,8,FALSE)) ->  | E22: =IF($C22="","",VLOOKUP($B22,'Suroviny a produkty'!$A$3:$I$1045,7,FALSE)) ->  | F22: 0
A23: =IF($B23="","",VLOOKUP($B23,'Suroviny a produkty'!$A$3:$I$1045,7,FALSE)) ->  | D23: =IF($C23="","",VLOOKUP($B23,'Suroviny a produkty'!$A$3:$I$1045,8,FALSE)) ->  | E23: =IF($C23="","",VLOOKUP($B23,'Suroviny a produkty'!$A$3:$I$1045,7,FALSE)) ->  | F23: 0
A24: =IF($B24="","",VLOOKUP($B24,'Suroviny a produkty'!$A$3:$I$1045,7,FALSE)) ->  | D24: =IF($C24="","",VLOOKUP($B24,'Suroviny a produkty'!$A$3:$I$1045,8,FALSE)) ->  | E24: =IF($C24="","",VLOOKUP($B24,'Suroviny a produkty'!$A$3:$I$1045,7,FALSE)) ->  | F24: 0
A25: =IF($B25="","",VLOOKUP($B25,'Suroviny a produkty'!$A$3:$I$1045,7,FALSE)) ->  | D25: =IF($C25="","",VLOOKUP($B25,'Suroviny a produkty'!$A$3:$I$1045,8,FALSE)) ->  | E25: =IF($C25="","",VLOOKUP($B25,'Suroviny a produkty'!$A$3:$I$1045,7,FALSE)) ->  | F25: 0
A26: =IF($B26="","",VLOOKUP($B26,'Suroviny a produkty'!$A$3:$I$1045,7,FALSE)) ->  | D26: =IF($C26="","",VLOOKUP($B26,'Suroviny a produkty'!$A$3:$I$1045,8,FALSE)) ->  | E26: =IF($C26="","",VLOOKUP($B26,'Suroviny a produkty'!$A$3:$I$1045,7,FALSE)) ->  | F26: 0
A27: =IF($B27="","",VLOOKUP($B27,'Suroviny a produkty'!$A$3:$I$1045,7,FALSE)) ->  | D27: =IF($C27="","",VLOOKUP($B27,'Suroviny a produkty'!$A$3:$I$1045,8,FALSE)) ->  | E27: =IF($C27="","",VLOOKUP($B27,'Suroviny a produkty'!$A$3:$I$1045,7,FALSE)) ->  | F27: 0
A28: =IF($B28="","",VLOOKUP($B28,'Suroviny a produkty'!$A$3:$I$1045,7,FALSE)) ->  | D28: =IF($C28="","",VLOOKUP($B28,'Suroviny a produkty'!$A$3:$I$1045,8,FALSE)) ->  | E28: =IF($C28="","",VLOOKUP($B28,'Suroviny a produkty'!$A$3:$I$1045,7,FALSE)) ->  | F28: 0
A29: =IF($B29="","",VLOOKUP($B29,'Suroviny a produkty'!$A$3:$I$1045,7,FALSE)) ->  | D29: =IF($C29="","",VLOOKUP($B29,'Suroviny a produkty'!$A$3:$I$1045,8,FALSE)) ->  | E29: =IF($C29="","",VLOOKUP($B29,'Suroviny a produkty'!$A$3:$I$1045,7,FALSE)) ->  | F29: 0
A30: =IF($B30="","",VLOOKUP($B30,'Suroviny a produkty'!$A$3:$I$1045,7,FALSE)) ->  | D30: =IF($C30="","",VLOOKUP($B30,'Suroviny a produkty'!$A$3:$I$1045,8,FALSE)) ->  | E30: =IF($C30="","",VLOOKUP($B30,'Suroviny a produkty'!$A$3:$I$1045,7,FALSE)) ->  | F30: 0
A31: =IF($B31="","",VLOOKUP($B31,'Suroviny a produkty'!$A$3:$I$1045,7,FALSE)) ->  | D31: =IF($C31="","",VLOOKUP($B31,'Suroviny a produkty'!$A$3:$I$1045,8,FALSE)) ->  | E31: =IF($C31="","",VLOOKUP($B31,'Suroviny a produkty'!$A$3:$I$1045,7,FALSE)) ->  | F31: 0
A32: =IF($B32="","",VLOOKUP($B32,'Suroviny a produkty'!$A$3:$I$1045,7,FALSE)) ->  | D32: =IF($C32="","",VLOOKUP($B32,'Suroviny a produkty'!$A$3:$I$1045,8,FALSE)) ->  | E32: =IF($C32="","",VLOOKUP($B32,'Suroviny a produkty'!$A$3:$I$1045,7,FALSE)) ->  | F32: 0
A33: =IF($B33="","",VLOOKUP($B33,'Suroviny a produkty'!$A$3:$I$1045,7,FALSE)) ->  | D33: =IF($C33="","",VLOOKUP($B33,'Suroviny a produkty'!$A$3:$I$1045,8,FALSE)) ->  | E33: =IF($C33="","",VLOOKUP($B33,'Suroviny a produkty'!$A$3:$I$1045,7,FALSE)) ->  | F33: 0
A34: =IF($B34="","",VLOOKUP($B34,'Suroviny a produkty'!$A$3:$I$1045,7,FALSE)) ->  | D34: =IF($C34="","",VLOOKUP($B34,'Suroviny a produkty'!$A$3:$I$1045,8,FALSE)) ->  | E34: =IF($C34="","",VLOOKUP($B34,'Suroviny a produkty'!$A$3:$I$1045,7,FALSE)) ->  | F34: 0
A35: =IF($B35="","",VLOOKUP($B35,'Suroviny a produkty'!$A$3:$I$1045,7,FALSE)) ->  | D35: =IF($C35="","",VLOOKUP($B35,'Suroviny a produkty'!$A$3:$I$1045,8,FALSE)) ->  | E35: =IF($C35="","",VLOOKUP($B35,'Suroviny a produkty'!$A$3:$I$1045,7,FALSE)) ->  | F35: 0
A36: =IF($B36="","",VLOOKUP($B36,'Suroviny a produkty'!$A$3:$I$1045,7,FALSE)) ->  | D36: =IF($C36="","",VLOOKUP($B36,'Suroviny a produkty'!$A$3:$I$1045,8,FALSE)) ->  | E36: =IF($C36="","",VLOOKUP($B36,'Suroviny a produkty'!$A$3:$I$1045,7,FALSE)) ->  | F36: 0
A37: =IF($B37="","",VLOOKUP($B37,'Suroviny a produkty'!$A$3:$I$1045,7,FALSE)) ->  | D37: =IF($C37="","",VLOOKUP($B37,'Suroviny a produkty'!$A$3:$I$1045,8,FALSE)) ->  | E37: =IF($C37="","",VLOOKUP($B37,'Suroviny a produkty'!$A$3:$I$1045,7,FALSE)) ->  | F37: 0
A38: =IF($B38="","",VLOOKUP($B38,'Suroviny a produkty'!$A$3:$I$1045,7,FALSE)) ->  | D38: =IF($C38="","",VLOOKUP($B38,'Suroviny a produkty'!$A$3:$I$1045,8,FALSE)) ->  | E38: =IF($C38="","",VLOOKUP($B38,'Suroviny a produkty'!$A$3:$I$1045,7,FALSE)) ->  | F38: 0

Sheet P8
B1: ='Jídelní lístek'!C13 -> Chlupačky z vařených brambor s houbami | C1: Množství | D1: Jedn. | E1: Cena za jednotku | F1: Cena pro množství v receptu | G1: Shrnutí Pro aktuální cenu je třeba aktualizovat ceny na listu surovin | J1: Popis
B2: Jídelní lístek | C2: Suroviny
A3: =IF($B3="","",VLOOKUP($B3,'Suroviny a produkty'!$A$3:$I$1045,7,FALSE)) ->  | D3: =IF($C3="","",VLOOKUP($B3,'Suroviny a produkty'!$A$3:$I$1045,8,FALSE)) ->  | E3: =IF($C3="","",VLOOKUP($B3,'Suroviny a produkty'!$A$3:$I$1045,7,FALSE)) ->  | F3: =IF(C3=0,0,E3*C3) -> 0 | G3: Počet porcí | H3: 10 | I3: ks
A4: =IF($B4="","",VLOOKUP($B4,'Suroviny a produkty'!$A$3:$I$1045,7,FALSE)) ->  | D4: =IF($C4="","",VLOOKUP($B4,'Suroviny a produkty'!$A$3:$I$1045,8,FALSE)) ->  | E4: =IF($C4="","",VLOOKUP($B4,'Suroviny a produkty'!$A$3:$I$1045,7,FALSE)) ->  | F4: 0 | G4: Porce | H4: 150 | I4: g
A5: =IF($B5="","",VLOOKUP($B5,'Suroviny a produkty'!$A$3:$I$1045,7,FALSE)) ->  | D5: =IF($C5="","",VLOOKUP($B5,'Suroviny a produkty'!$A$3:$I$1045,8,FALSE)) ->  | E5: =IF($C5="","",VLOOKUP($B5,'Suroviny a produkty'!$A$3:$I$1045,7,FALSE)) ->  | F5: 0 | G5: Cena celkem | H5: =ROUND(SUM(F3:F38),1) -> 0 | I5: Kč
A6: =IF($B6="","",VLOOKUP($B6,'Suroviny a produkty'!$A$3:$I$1045,7,FALSE)) ->  | D6: =IF($C6="","",VLOOKUP($B6,'Suroviny a produkty'!$A$3:$I$1045,8,FALSE)) ->  | E6: =IF($C6="","",VLOOKUP($B6,'Suroviny a produkty'!$A$3:$I$1045,7,FALSE)) ->  | F6: 0 | G6: Energie celkem | I6: Kč
A7: =IF($B7="","",VLOOKUP($B7,'Suroviny a produkty'!$A$3:$I$1045,7,FALSE)) ->  | D7: =IF($C7="","",VLOOKUP($B7,'Suroviny a produkty'!$A$3:$I$1045,8,FALSE)) ->  | E7: =IF($C7="","",VLOOKUP($B7,'Suroviny a produkty'!$A$3:$I$1045,7,FALSE)) ->  | F7: 0 | G7: Cena za porci | H7: =(H6+H5)/H3 -> 0 | I7: Kč
A8: =IF($B8="","",VLOOKUP($B8,'Suroviny a produkty'!$A$3:$I$1045,7,FALSE)) ->  | D8: =IF($C8="","",VLOOKUP($B8,'Suroviny a produkty'!$A$3:$I$1045,8,FALSE)) ->  | E8: =IF($C8="","",VLOOKUP($B8,'Suroviny a produkty'!$A$3:$I$1045,7,FALSE)) ->  | F8: 0 | G8: Prodejní cena | H8: ='Jídelní lístek'!E13 -> 0 | I8: Kč
A9: =IF($B9="","",VLOOKUP($B9,'Suroviny a produkty'!$A$3:$I$1045,7,FALSE)) ->  | D9: =IF($C9="","",VLOOKUP($B9,'Suroviny a produkty'!$A$3:$I$1045,8,FALSE)) ->  | E9: =IF($C9="","",VLOOKUP($B9,'Suroviny a produkty'!$A$3:$I$1045,7,FALSE)) ->  | F9: 0 | G9: Marže | H9: =IF(H7=0,0,H8/H7)*100 -> 0 | I9: %
A10: =IF($B10="","",VLOOKUP($B10,'Suroviny a produkty'!$A$3:$I$1045,7,FALSE)) ->  | D10: =IF($C10="","",VLOOKUP($B10,'Suroviny a produkty'!$A$3:$I$1045,8,FALSE)) ->  | E10: =IF($C10="","",VLOOKUP($B10,'Suroviny a produkty'!$A$3:$I$1045,7,FALSE)) ->  | F10: 0
A11: =IF($B11="","",VLOOKUP($B11,'Suroviny a produkty'!$A$3:$I$1045,7,FALSE)) ->  | D11: =IF($C11="","",VLOOKUP($B11,'Suroviny a produkty'!$A$3:$I$1045,8,FALSE)) ->  | E11: =IF($C11="","",VLOOKUP($B11,'Suroviny a produkty'!$A$3:$I$1045,7,FALSE)) ->  | F11: 0
A12: =IF($B12="","",VLOOKUP($B12,'Suroviny a produkty'!$A$3:$I$1045,7,FALSE)) ->  | D12: =IF($C12="","",VLOOKUP($B12,'Suroviny a produkty'!$A$3:$I$1045,8,FALSE)) ->  | E12: =IF($C12="","",VLOOKUP($B12,'Suroviny a produkty'!$A$3:$I$1045,7,FALSE)) ->  | F12: 0
A13: =IF($B13="","",VLOOKUP($B13,'Suroviny a produkty'!$A$3:$I$1045,7,FALSE)) ->  | D13: =IF($C13="","",VLOOKUP($B13,'Suroviny a produkty'!$A$3:$I$1045,8,FALSE)) ->  | E13: =IF($C13="","",VLOOKUP($B13,'Suroviny a produkty'!$A$3:$I$1045,7,FALSE)) ->  | F13: 0
A14: =IF($B14="","",VLOOKUP($B14,'Suroviny a produkty'!$A$3:$I$1045,7,FALSE)) ->  | D14: =IF($C14="","",VLOOKUP($B14,'Suroviny a produkty'!$A$3:$I$1045,8,FALSE)) ->  | E14: =IF($C14="","",VLOOKUP($B14,'Suroviny a produkty'!$A$3:$I$1045,7,FALSE)) ->  | F14: 0
A15: =IF($B15="","",VLOOKUP($B15,'Suroviny a produkty'!$A$3:$I$1045,7,FALSE)) ->  | D15: =IF($C15="","",VLOOKUP($B15,'Suroviny a produkty'!$A$3:$I$1045,8,FALSE)) ->  | E15: =IF($C15="","",VLOOKUP($B15,'Suroviny a produkty'!$A$3:$I$1045,7,FALSE)) ->  | F15: 0
A16: =IF($B16="","",VLOOKUP($B16,'Suroviny a produkty'!$A$3:$I$1045,7,FALSE)) ->  | D16: =IF($C16="","",VLOOKUP($B16,'Suroviny a produkty'!$A$3:$I$1045,8,FALSE)) ->  | E16: =IF($C16="","",VLOOKUP($B16,'Suroviny a produkty'!$A$3:$I$1045,7,FALSE)) ->  | F16: 0
A17: =IF($B17="","",VLOOKUP($B17,'Suroviny a produkty'!$A$3:$I$1045,7,FALSE)) ->  | D17: =IF($C17="","",VLOOKUP($B17,'Suroviny a produkty'!$A$3:$I$1045,8,FALSE)) ->  | E17: =IF($C17="","",VLOOKUP($B17,'Suroviny a produkty'!$A$3:$I$1045,7,FALSE)) ->  | F17: 0
A18: =IF($B18="","",VLOOKUP($B18,'Suroviny a produkty'!$A$3:$I$1045,7,FALSE)) ->  | D18: =IF($C18="","",VLOOKUP($B18,'Suroviny a produkty'!$A$3:$I$1045,8,FALSE)) ->  | E18: =IF($C18="","",VLOOKUP($B18,'Suroviny a produkty'!$A$3:$I$1045,7,FALSE)) ->  | F18: 0
A19: =IF($B19="","",VLOOKUP($B19,'Suroviny a produkty'!$A$3:$I$1045,7,FALSE)) ->  | D19: =IF($C19="","",VLOOKUP($B19,'Suroviny a produkty'!$A$3:$I$1045,8,FALSE)) ->  | E19: =IF($C19="","",VLOOKUP($B19,'Suroviny a produkty'!$A$3:$I$1045,7,FALSE)) ->  | F19: 0
A20: =IF($B20="","",VLOOKUP($B20,'Suroviny a produkty'!$A$3:$I$1045,7,FALSE)) ->  | D20: =IF($C20="","",VLOOKUP($B20,'Suroviny a produkty'!$A$3:$I$1045,8,FALSE)) ->  | E20: =IF($C20="","",VLOOKUP($B20,'Suroviny a produkty'!$A$3:$I$1045,7,FALSE)) ->  | F20: 0
A21: =IF($B21="","",VLOOKUP($B21,'Suroviny a produkty'!$A$3:$I$1045,7,FALSE)) ->  | D21: =IF($C21="","",VLOOKUP($B21,'Suroviny a produkty'!$A$3:$I$1045,8,FALSE)) ->  | E21: =IF($C21="","",VLOOKUP($B21,'Suroviny a produkty'!$A$3:$I$1045,7,FALSE)) ->  | F21: 0
A22: =IF($B22="","",VLOOKUP($B22,'Suroviny a produkty'!$A$3:$I$1045,7,FALSE)) ->  | D22: =IF($C22="","",VLOOKUP($B22,'Suroviny a produkty'!$A$3:$I$1045,8,FALSE)) ->  | E22: =IF($C22="","",VLOOKUP($B22,'Suroviny a produkty'!$A$3:$I$1045,7,FALSE)) ->  | F22: 0
A23: =IF($B23="","",VLOOKUP($B23,'Suroviny a produkty'!$A$3:$I$1045,7,FALSE)) ->  | D23: =IF($C23="","",VLOOKUP($B23,'Suroviny a produkty'!$A$3:$I$1045,8,FALSE)) ->  | E23: =IF($C23="","",VLOOKUP($B23,'Suroviny a produkty'!$A$3:$I$1045,7,FALSE)) ->  | F23: 0
A24: =IF($B24="","",VLOOKUP($B24,'Suroviny a produkty'!$A$3:$I$1045,7,FALSE)) ->  | D24: =IF($C24="","",VLOOKUP($B24,'Suroviny a produkty'!$A$3:$I$1045,8,FALSE)) ->  | E24: =IF($C24="","",VLOOKUP($B24,'Suroviny a produkty'!$A$3:$I$1045,7,FALSE)) ->  | F24: 0
A25: =IF($B25="","",VLOOKUP($B25,'Suroviny a produkty'!$A$3:$I$1045,7,FALSE)) ->  | D25: =IF($C25="","",VLOOKUP($B25,'Suroviny a produkty'!$A$3:$I$1045,8,FALSE)) ->  | E25: =IF($C25="","",VLOOKUP($B25,'Suroviny a produkty'!$A$3:$I$1045,7,FALSE)) ->  | F25: 0
A26: =IF($B26="","",VLOOKUP($B26,'Suroviny a produkty'!$A$3:$I$1045,7,FALSE)) ->  | D26: =IF($C26="","",VLOOKUP($B26,'Suroviny a produkty'!$A$3:$I$1045,8,FALSE)) ->  | E26: =IF($C26="","",VLOOKUP($B26,'Suroviny a produkty'!$A$3:$I$1045,7,FALSE)) ->  | F26: 0
A27: =IF($B27="","",VLOOKUP($B27,'Suroviny a produkty'!$A$3:$I$1045,7,FALSE)) ->  | D27: =IF($C27="","",VLOOKUP($B27,'Suroviny a produkty'!$A$3:$I$1045,8,FALSE)) ->  | E27: =IF($C27="","",VLOOKUP($B27,'Suroviny a produkty'!$A$3:$I$1045,7,FALSE)) ->  | F27: 0
A28: =IF($B28="","",VLOOKUP($B28,'Suroviny a produkty'!$A$3:$I$1045,7,FALSE)) ->  | D28: =IF($C28="","",VLOOKUP($B28,'Suroviny a produkty'!$A$3:$I$1045,8,FALSE)) ->  | E28: =IF($C28="","",VLOOKUP($B28,'Suroviny a produkty'!$A$3:$I$1045,7,FALSE)) ->  | F28: 0
A29: =IF($B29="","",VLOOKUP($B29,'Suroviny a produkty'!$A$3:$I$1045,7,FALSE)) ->  | D29: =IF($C29="","",VLOOKUP($B29,'Suroviny a produkty'!$A$3:$I$1045,8,FALSE)) ->  | E29: =IF($C29="","",VLOOKUP($B29,'Suroviny a produkty'!$A$3:$I$1045,7,FALSE)) ->  | F29: 0
A30: =IF($B30="","",VLOOKUP($B30,'Suroviny a produkty'!$A$3:$I$1045,7,FALSE)) ->  | D30: =IF($C30="","",VLOOKUP($B30,'Suroviny a produkty'!$A$3:$I$1045,8,FALSE)) ->  | E30: =IF($C30="","",VLOOKUP($B30,'Suroviny a produkty'!$A$3:$I$1045,7,FALSE)) ->  | F30: 0
A31: =IF($B31="","",VLOOKUP($B31,'Suroviny a produkty'!$A$3:$I$1045,7,FALSE)) ->  | D31: =IF($C31="","",VLOOKUP($B31,'Suroviny a produkty'!$A$3:$I$1045,8,FALSE)) ->  | E31: =IF($C31="","",VLOOKUP($B31,'Suroviny a produkty'!$A$3:$I$1045,7,FALSE)) ->  | F31: 0
A32: =IF($B32="","",VLOOKUP($B32,'Suroviny a produkty'!$A$3:$I$1045,7,FALSE)) ->  | D32: =IF($C32="","",VLOOKUP($B32,'Suroviny a produkty'!$A$3:$I$1045,8,FALSE)) ->  | E32: =IF($C32="","",VLOOKUP($B32,'Suroviny a produkty'!$A$3:$I$1045,7,FALSE)) ->  | F32: 0
A33: =IF($B33="","",VLOOKUP($B33,'Suroviny a produkty'!$A$3:$I$1045,7,FALSE)) ->  | D33: =IF($C33="","",VLOOKUP($B33,'Suroviny a produkty'!$A$3:$I$1045,8,FALSE)) ->  | E33: =IF($C33="","",VLOOKUP($B33,'Suroviny a produkty'!$A$3:$I$1045,7,FALSE)) ->  | F33: 0
A34: =IF($B34="","",VLOOKUP($B34,'Suroviny a produkty'!$A$3:$I$1045,7,FALSE)) ->  | D34: =IF($C34="","",VLOOKUP($B34,'Suroviny a produkty'!$A$3:$I$1045,8,FALSE)) ->  | E34: =IF($C34="","",VLOOKUP($B34,'Suroviny a produkty'!$A$3:$I$1045,7,FALSE)) ->  | F34: 0
A35: =IF($B35="","",VLOOKUP($B35,'Suroviny a produkty'!$A$3:$I$1045,7,FALSE)) ->  | D35: =IF($C35="","",VLOOKUP($B35,'Suroviny a produkty'!$A$3:$I$1045,8,FALSE)) ->  | E35: =IF($C35="","",VLOOKUP($B35,'Suroviny a produkty'!$A$3:$I$1045,7,FALSE)) ->  | F35: 0
A36: =IF($B36="","",VLOOKUP($B36,'Suroviny a produkty'!$A$3:$I$1045,7,FALSE)) ->  | D36: =IF($C36="","",VLOOKUP($B36,'Suroviny a produkty'!$A$3:$I$1045,8,FALSE)) ->  | E36: =IF($C36="","",VLOOKUP($B36,'Suroviny a produkty'!$A$3:$I$1045,7,FALSE)) ->  | F36: 0
A37: =IF($B37="","",VLOOKUP($B37,'Suroviny a produkty'!$A$3:$I$1045,7,FALSE)) ->  | D37: =IF($C37="","",VLOOKUP($B37,'Suroviny a produkty'!$A$3:$I$1045,8,FALSE)) ->  | E37: =IF($C37="","",VLOOKUP($B37,'Suroviny a produkty'!$A$3:$I$1045,7,FALSE)) ->  | F37: 0
A38: =IF($B38="","",VLOOKUP($B38,'Suroviny a produkty'!$A$3:$I$1045,7,FALSE)) ->  | D38: =IF($C38="","",VLOOKUP($B38,'Suroviny a produkty'!$A$3:$I$1045,8,FALSE)) ->  | E38: =IF($C38="","",VLOOKUP($B38,'Suroviny a produkty'!$A$3:$I$1045,7,FALSE)) ->  | F38: 0

Sheet P9
B1: ='Jídelní lístek'!C14 -> Lasagne s jehněčím masem | C1: Množství | D1: Jedn. | E1: Cena za jednotku | F1: Cena pro množství v receptu | G1: Shrnutí Pro aktuální cenu je třeba aktualizovat ceny na listu surovin | J1: Popis
B2: Jídelní lístek | C2: Suroviny | G2: Alergeny | H2: 1;3;7;
A3: =IF($B3="","",VLOOKUP($B3,'Suroviny a produkty'!$A$3:$I$1045,7,FALSE)) -> 0.1083622 | B3: Lasagne | C3: 1000 | D3: =IF($C3="","",VLOOKUP($B3,'Suroviny a produkty'!$A$3:$I$1045,8,FALSE)) -> g | E3: =IF($C3="","",VLOOKUP($B3,'Suroviny a produkty'!$A$3:$I$1045,7,FALSE)) -> 0.1083622 | F3: =IF(C3=0,0,E3*C3) -> 108.3622 | G3: Počet porcí | H3: 18 | I3: ks
A4: =IF($B4="","",VLOOKUP($B4,'Suroviny a produkty'!$A$3:$I$1045,7,FALSE)) -> 0.012535 | B4: Cibule | C4: 150 | D4: =IF($C4="","",VLOOKUP($B4,'Suroviny a produkty'!$A$3:$I$1045,8,FALSE)) -> g | E4: =IF($C4="","",VLOOKUP($B4,'Suroviny a produkty'!$A$3:$I$1045,7,FALSE)) -> 0.012535 | F4: 1.88025 | G4: Porce | I4: g
A5: =IF($B5="","",VLOOKUP($B5,'Suroviny a produkty'!$A$3:$I$1045,7,FALSE)) -> 0.105685 | B5: Česnek | C5: 70 | D5: =IF($C5="","",VLOOKUP($B5,'Suroviny a produkty'!$A$3:$I$1045,8,FALSE)) -> g | E5: =IF($C5="","",VLOOKUP($B5,'Suroviny a produkty'!$A$3:$I$1045,7,FALSE)) -> 0.105685 | F5: 7.39795 | G5: Cena celkem | H5: =ROUND(SUM(F3:F38),1) ->  | I5: Kč
A6: =IF($B6="","",VLOOKUP($B6,'Suroviny a produkty'!$A$3:$I$1045,7,FALSE)) -> 0.016997 | B6: Mléko | C6: 500 | D6: =IF($C6="","",VLOOKUP($B6,'Suroviny a produkty'!$A$3:$I$1045,8,FALSE)) -> g | E6: =IF($C6="","",VLOOKUP($B6,'Suroviny a produkty'!$A$3:$I$1045,7,FALSE)) -> 0.016997 | F6: 8.4985 | G6: Energie celkem | I6: Kč
A7: =IF($B7="","",VLOOKUP($B7,'Suroviny a produkty'!$A$3:$I$1045,7,FALSE)) -> 0.005957 | B7: Sůl | C7: 30 | D7: =IF($C7="","",VLOOKUP($B7,'Suroviny a produkty'!$A$3:$I$1045,8,FALSE)) -> g | E7: =IF($C7="","",VLOOKUP($B7,'Suroviny a produkty'!$A$3:$I$1045,7,FALSE)) -> 0.005957 | F7: 0.17871 | G7: Cena za porci | H7: =(H6+H5)/H3 ->  | I7: Kč
A8: =IF($B8="","",VLOOKUP($B8,'Suroviny a produkty'!$A$3:$I$1045,7,FALSE)) -> 0.016376 | B8: Mouka hladká | C8: 80 | D8: =IF($C8="","",VLOOKUP($B8,'Suroviny a produkty'!$A$3:$I$1045,8,FALSE)) -> g | E8: =IF($C8="","",VLOOKUP($B8,'Suroviny a produkty'!$A$3:$I$1045,7,FALSE)) -> 0.016376 | F8: 1.31008 | G8: Prodejní cena | H8: 195 | I8: Kč
A9: =IF($B9="","",VLOOKUP($B9,'Suroviny a produkty'!$A$3:$I$1045,7,FALSE)) -> 0.233611 | B9: Pepř | C9: 2 | D9: =IF($C9="","",VLOOKUP($B9,'Suroviny a produkty'!$A$3:$I$1045,8,FALSE)) -> g | E9: =IF($C9="","",VLOOKUP($B9,'Suroviny a produkty'!$A$3:$I$1045,7,FALSE)) -> 0.233611 | F9: 0.467222 | G9: Marže | H9: =IF(H7=0,0,H8/H7)*100 ->  | I9: %
A10: =IF($B10="","",VLOOKUP($B10,'Suroviny a produkty'!$A$3:$I$1045,7,FALSE)) ->  | B10: Máslo | C10: 75 | D10: =IF($C10="","",VLOOKUP($B10,'Suroviny a produkty'!$A$3:$I$1045,8,FALSE)) ->  | E10: =IF($C10="","",VLOOKUP($B10,'Suroviny a produkty'!$A$3:$I$1045,7,FALSE)) -> 
A11: =IF($B11="","",VLOOKUP($B11,'Suroviny a produkty'!$A$3:$I$1045,7,FALSE)) -> 0.220524 | B11: Houby (naše) | C11: 300 | D11: =IF($C11="","",VLOOKUP($B11,'Suroviny a produkty'!$A$3:$I$1045,8,FALSE)) -> g | E11: =IF($C11="","",VLOOKUP($B11,'Suroviny a produkty'!$A$3:$I$1045,7,FALSE)) -> 0.220524 | F11: 66.1572
A12: =IF($B12="","",VLOOKUP($B12,'Suroviny a produkty'!$A$3:$I$1045,7,FALSE)) ->  | D12: =IF($C12="","",VLOOKUP($B12,'Suroviny a produkty'!$A$3:$I$1045,8,FALSE)) ->  | E12: =IF($C12="","",VLOOKUP($B12,'Suroviny a produkty'!$A$3:$I$1045,7,FALSE)) ->  | F12: 0
A13: =IF($B13="","",VLOOKUP($B13,'Suroviny a produkty'!$A$3:$I$1045,7,FALSE)) -> 5.75 | B13: Ozdoba | C13: 18 | D13: =IF($C13="","",VLOOKUP($B13,'Suroviny a produkty'!$A$3:$I$1045,8,FALSE)) -> ks | E13: =IF($C13="","",VLOOKUP($B13,'Suroviny a produkty'!$A$3:$I$1045,7,FALSE)) -> 5.75 | F13: 103.5
A14: =IF($B14="","",VLOOKUP($B14,'Suroviny a produkty'!$A$3:$I$1045,7,FALSE)) ->  | D14: =IF($C14="","",VLOOKUP($B14,'Suroviny a produkty'!$A$3:$I$1045,8,FALSE)) ->  | E14: =IF($C14="","",VLOOKUP($B14,'Suroviny a produkty'!$A$3:$I$1045,7,FALSE)) ->  | F14: 0
B15: Jehněčí (ovčácká miska) | D15: =IF($C15="","",VLOOKUP($B15,'Suroviny a produkty'!$A$3:$I$1045,8,FALSE)) ->  | E15: =IF($C15="","",VLOOKUP($B15,'Suroviny a produkty'!$A$3:$I$1045,7,FALSE)) ->  | F15: 0
A16: =IF($B16="","",VLOOKUP($B16,'Suroviny a produkty'!$A$3:$I$1045,7,FALSE)) -> 0.4945 | B16: Jehněčí ořez | C16: 1000 | D16: =IF($C16="","",VLOOKUP($B16,'Suroviny a produkty'!$A$3:$I$1045,8,FALSE)) -> g | E16: =IF($C16="","",VLOOKUP($B16,'Suroviny a produkty'!$A$3:$I$1045,7,FALSE)) -> 0.4945 | F16: 494.5
A17: =IF($B17="","",VLOOKUP($B17,'Suroviny a produkty'!$A$3:$I$1045,7,FALSE)) -> 0.0943 | B17: Vepřová plec / kýta | C17: 1500 | D17: =IF($C17="","",VLOOKUP($B17,'Suroviny a produkty'!$A$3:$I$1045,8,FALSE)) -> g | E17: =IF($C17="","",VLOOKUP($B17,'Suroviny a produkty'!$A$3:$I$1045,7,FALSE)) -> 0.0943 | F17: 141.45
A18: =IF($B18="","",VLOOKUP($B18,'Suroviny a produkty'!$A$3:$I$1045,7,FALSE)) -> 0.012535 | B18: Cibule | C18: 200 | D18: =IF($C18="","",VLOOKUP($B18,'Suroviny a produkty'!$A$3:$I$1045,8,FALSE)) -> g | E18: =IF($C18="","",VLOOKUP($B18,'Suroviny a produkty'!$A$3:$I$1045,7,FALSE)) -> 0.012535 | F18: 2.507
A19: =IF($B19="","",VLOOKUP($B19,'Suroviny a produkty'!$A$3:$I$1045,7,FALSE)) -> 0.014835 | B19: Mrkev | C19: 100 | D19: =IF($C19="","",VLOOKUP($B19,'Suroviny a produkty'!$A$3:$I$1045,8,FALSE)) -> g | E19: =IF($C19="","",VLOOKUP($B19,'Suroviny a produkty'!$A$3:$I$1045,7,FALSE)) -> 0.014835 | F19: 1.4835
A20: =IF($B20="","",VLOOKUP($B20,'Suroviny a produkty'!$A$3:$I$1045,7,FALSE)) -> 0.105685 | B20: Česnek | C20: 10 | D20: =IF($C20="","",VLOOKUP($B20,'Suroviny a produkty'!$A$3:$I$1045,8,FALSE)) -> g | E20: =IF($C20="","",VLOOKUP($B20,'Suroviny a produkty'!$A$3:$I$1045,7,FALSE)) -> 0.105685 | F20: 1.05685
A21: =IF($B21="","",VLOOKUP($B21,'Suroviny a produkty'!$A$3:$I$1045,7,FALSE)) -> 0.12995 | B21: Chilli | C21: 2 | D21: =IF($C21="","",VLOOKUP($B21,'Suroviny a produkty'!$A$3:$I$1045,8,FALSE)) -> g | E21: =IF($C21="","",VLOOKUP($B21,'Suroviny a produkty'!$A$3:$I$1045,7,FALSE)) -> 0.12995 | F21: 0.2599
A22: =IF($B22="","",VLOOKUP($B22,'Suroviny a produkty'!$A$3:$I$1045,7,FALSE)) -> 0.03144753086 | B22: Drcená rajčata | C22: 200 | D22: =IF($C22="","",VLOOKUP($B22,'Suroviny a produkty'!$A$3:$I$1045,8,FALSE)) -> g | E22: =IF($C22="","",VLOOKUP($B22,'Suroviny a produkty'!$A$3:$I$1045,7,FALSE)) -> 0.03144753086 | F22: 6.289506173
A23: =IF($B23="","",VLOOKUP($B23,'Suroviny a produkty'!$A$3:$I$1045,7,FALSE)) -> 0 | B23: Tymián | C23: 1 | D23: =IF($C23="","",VLOOKUP($B23,'Suroviny a produkty'!$A$3:$I$1045,8,FALSE)) -> g | E23: =IF($C23="","",VLOOKUP($B23,'Suroviny a produkty'!$A$3:$I$1045,7,FALSE)) -> 0 | F23: 0
A24: =IF($B24="","",VLOOKUP($B24,'Suroviny a produkty'!$A$3:$I$1045,7,FALSE)) -> 0.0943 | B24: Rajčata | C24: 200 | D24: =IF($C24="","",VLOOKUP($B24,'Suroviny a produkty'!$A$3:$I$1045,8,FALSE)) -> g | E24: =IF($C24="","",VLOOKUP($B24,'Suroviny a produkty'!$A$3:$I$1045,7,FALSE)) -> 0.0943 | F24: 18.86
A25: =IF($B25="","",VLOOKUP($B25,'Suroviny a produkty'!$A$3:$I$1045,7,FALSE)) ->  | D25: =IF($C25="","",VLOOKUP($B25,'Suroviny a produkty'!$A$3:$I$1045,8,FALSE)) ->  | E25: =IF($C25="","",VLOOKUP($B25,'Suroviny a produkty'!$A$3:$I$1045,7,FALSE)) ->  | F25: 0
A26: =IF($B26="","",VLOOKUP($B26,'Suroviny a produkty'!$A$3:$I$1045,7,FALSE)) ->  | D26: =IF($C26="","",VLOOKUP($B26,'Suroviny a produkty'!$A$3:$I$1045,8,FALSE)) ->  | E26: =IF($C26="","",VLOOKUP($B26,'Suroviny a produkty'!$A$3:$I$1045,7,FALSE)) ->  | F26: 0
A27: =IF($B27="","",VLOOKUP($B27,'Suroviny a produkty'!$A$3:$I$1045,7,FALSE)) ->  | D27: =IF($C27="","",VLOOKUP($B27,'Suroviny a produkty'!$A$3:$I$1045,8,FALSE)) ->  | E27: =IF($C27="","",VLOOKUP($B27,'Suroviny a produkty'!$A$3:$I$1045,7,FALSE)) ->  | F27: 0
A28: =IF($B28="","",VLOOKUP($B28,'Suroviny a produkty'!$A$3:$I$1045,7,FALSE)) ->  | D28: =IF($C28="","",VLOOKUP($B28,'Suroviny a produkty'!$A$3:$I$1045,8,FALSE)) ->  | E28: =IF($C28="","",VLOOKUP($B28,'Suroviny a produkty'!$A$3:$I$1045,7,FALSE)) ->  | F28: 0
A29: =IF($B29="","",VLOOKUP($B29,'Suroviny a produkty'!$A$3:$I$1045,7,FALSE)) ->  | D29: =IF($C29="","",VLOOKUP($B29,'Suroviny a produkty'!$A$3:$I$1045,8,FALSE)) ->  | E29: =IF($C29="","",VLOOKUP($B29,'Suroviny a produkty'!$A$3:$I$1045,7,FALSE)) ->  | F29: 0
A30: =IF($B30="","",VLOOKUP($B30,'Suroviny a produkty'!$A$3:$I$1045,7,FALSE)) ->  | D30: =IF($C30="","",VLOOKUP($B30,'Suroviny a produkty'!$A$3:$I$1045,8,FALSE)) ->  | E30: =IF($C30="","",VLOOKUP($B30,'Suroviny a produkty'!$A$3:$I$1045,7,FALSE)) ->  | F30: 0
A31: =IF($B31="","",VLOOKUP($B31,'Suroviny a produkty'!$A$3:$I$1045,7,FALSE)) ->  | D31: =IF($C31="","",VLOOKUP($B31,'Suroviny a produkty'!$A$3:$I$1045,8,FALSE)) ->  | E31: =IF($C31="","",VLOOKUP($B31,'Suroviny a produkty'!$A$3:$I$1045,7,FALSE)) ->  | F31: 0
A32: =IF($B32="","",VLOOKUP($B32,'Suroviny a produkty'!$A$3:$I$1045,7,FALSE)) ->  | D32: =IF($C32="","",VLOOKUP($B32,'Suroviny a produkty'!$A$3:$I$1045,8,FALSE)) ->  | E32: =IF($C32="","",VLOOKUP($B32,'Suroviny a produkty'!$A$3:$I$1045,7,FALSE)) ->  | F32: 0
A33: =IF($B33="","",VLOOKUP($B33,'Suroviny a produkty'!$A$3:$I$1045,7,FALSE)) ->  | D33: =IF($C33="","",VLOOKUP($B33,'Suroviny a produkty'!$A$3:$I$1045,8,FALSE)) ->  | E33: =IF($C33="","",VLOOKUP($B33,'Suroviny a produkty'!$A$3:$I$1045,7,FALSE)) ->  | F33: 0
A34: =IF($B34="","",VLOOKUP($B34,'Suroviny a produkty'!$A$3:$I$1045,7,FALSE)) ->  | D34: =IF($C34="","",VLOOKUP($B34,'Suroviny a produkty'!$A$3:$I$1045,8,FALSE)) ->  | E34: =IF($C34="","",VLOOKUP($B34,'Suroviny a produkty'!$A$3:$I$1045,7,FALSE)) ->  | F34: 0
A35: =IF($B35="","",VLOOKUP($B35,'Suroviny a produkty'!$A$3:$I$1045,7,FALSE)) ->  | D35: =IF($C35="","",VLOOKUP($B35,'Suroviny a produkty'!$A$3:$I$1045,8,FALSE)) ->  | E35: =IF($C35="","",VLOOKUP($B35,'Suroviny a produkty'!$A$3:$I$1045,7,FALSE)) ->  | F35: 0
A36: =IF($B36="","",VLOOKUP($B36,'Suroviny a produkty'!$A$3:$I$1045,7,FALSE)) ->  | D36: =IF($C36="","",VLOOKUP($B36,'Suroviny a produkty'!$A$3:$I$1045,8,FALSE)) ->  | E36: =IF($C36="","",VLOOKUP($B36,'Suroviny a produkty'!$A$3:$I$1045,7,FALSE)) ->  | F36: 0
A37: =IF($B37="","",VLOOKUP($B37,'Suroviny a produkty'!$A$3:$I$1045,7,FALSE)) ->  | D37: =IF($C37="","",VLOOKUP($B37,'Suroviny a produkty'!$A$3:$I$1045,8,FALSE)) ->  | E37: =IF($C37="","",VLOOKUP($B37,'Suroviny a produkty'!$A$3:$I$1045,7,FALSE)) ->  | F37: 0
A38: =IF($B38="","",VLOOKUP($B38,'Suroviny a produkty'!$A$3:$I$1045,7,FALSE)) ->  | D38: =IF($C38="","",VLOOKUP($B38,'Suroviny a produkty'!$A$3:$I$1045,8,FALSE)) ->  | E38: =IF($C38="","",VLOOKUP($B38,'Suroviny a produkty'!$A$3:$I$1045,7,FALSE)) ->  | F38: 0

Sheet P10
B1: ='Jídelní lístek'!C15 -> Špenátové lasagne s houbami | C1: Množství | D1: Jedn. | E1: Cena za jednotku | F1: Cena pro množství v receptu | G1: Shrnutí Pro aktuální cenu je třeba aktualizovat ceny na listu surovin | J1: Popis
B2: Jídelní lístek | C2: Suroviny | G2: Alergeny | H2: 1;3;7;
A3: =IF($B3="","",VLOOKUP($B3,'Suroviny a produkty'!$A$3:$I$1045,7,FALSE)) -> 0.1083622 | B3: Lasagne | C3: 1000 | D3: =IF($C3="","",VLOOKUP($B3,'Suroviny a produkty'!$A$3:$I$1045,8,FALSE)) -> g | E3: =IF($C3="","",VLOOKUP($B3,'Suroviny a produkty'!$A$3:$I$1045,7,FALSE)) -> 0.1083622 | F3: =IF(C3=0,0,E3*C3) -> 108.3622 | G3: Počet porcí | H3: 18 | I3: ks
A4: =IF($B4="","",VLOOKUP($B4,'Suroviny a produkty'!$A$3:$I$1045,7,FALSE)) -> 0.034983 | B4: Špenát | C4: 2000 | D4: =IF($C4="","",VLOOKUP($B4,'Suroviny a produkty'!$A$3:$I$1045,8,FALSE)) -> g | E4: =IF($C4="","",VLOOKUP($B4,'Suroviny a produkty'!$A$3:$I$1045,7,FALSE)) -> 0.034983 | F4: 69.966 | G4: Porce | I4: g
A5: =IF($B5="","",VLOOKUP($B5,'Suroviny a produkty'!$A$3:$I$1045,7,FALSE)) -> 0.012535 | B5: Cibule | C5: 150 | D5: =IF($C5="","",VLOOKUP($B5,'Suroviny a produkty'!$A$3:$I$1045,8,FALSE)) -> g | E5: =IF($C5="","",VLOOKUP($B5,'Suroviny a produkty'!$A$3:$I$1045,7,FALSE)) -> 0.012535 | F5: 1.88025 | G5: Cena celkem | H5: =ROUND(SUM(F3:F38),1) -> 446 | I5: Kč
A6: =IF($B6="","",VLOOKUP($B6,'Suroviny a produkty'!$A$3:$I$1045,7,FALSE)) -> 0.105685 | B6: Česnek | C6: 70 | D6: =IF($C6="","",VLOOKUP($B6,'Suroviny a produkty'!$A$3:$I$1045,8,FALSE)) -> g | E6: =IF($C6="","",VLOOKUP($B6,'Suroviny a produkty'!$A$3:$I$1045,7,FALSE)) -> 0.105685 | F6: 7.39795 | G6: Energie celkem | H6: 20 | I6: Kč
A7: =IF($B7="","",VLOOKUP($B7,'Suroviny a produkty'!$A$3:$I$1045,7,FALSE)) -> 0.016997 | B7: Mléko | C7: 500 | D7: =IF($C7="","",VLOOKUP($B7,'Suroviny a produkty'!$A$3:$I$1045,8,FALSE)) -> g | E7: =IF($C7="","",VLOOKUP($B7,'Suroviny a produkty'!$A$3:$I$1045,7,FALSE)) -> 0.016997 | F7: 8.4985 | G7: Cena za porci | H7: =(H6+H5)/H3 -> 25.88888889 | I7: Kč
A8: =IF($B8="","",VLOOKUP($B8,'Suroviny a produkty'!$A$3:$I$1045,7,FALSE)) -> 0 | B8: Voda | C8: 500 | D8: =IF($C8="","",VLOOKUP($B8,'Suroviny a produkty'!$A$3:$I$1045,8,FALSE)) -> g | E8: =IF($C8="","",VLOOKUP($B8,'Suroviny a produkty'!$A$3:$I$1045,7,FALSE)) -> 0 | F8: 0 | G8: Prodejní cena | H8: ='Jídelní lístek'!E15 -> 160 | I8: Kč
A9: =IF($B9="","",VLOOKUP($B9,'Suroviny a produkty'!$A$3:$I$1045,7,FALSE)) -> 0.391414 | B9: Parmezán | C9: 200 | D9: =IF($C9="","",VLOOKUP($B9,'Suroviny a produkty'!$A$3:$I$1045,8,FALSE)) -> g | E9: =IF($C9="","",VLOOKUP($B9,'Suroviny a produkty'!$A$3:$I$1045,7,FALSE)) -> 0.391414 | F9: 78.2828 | G9: Marže | H9: =IF(H7=0,0,H8/H7)*100 -> 618.0257511 | I9: %
A10: =IF($B10="","",VLOOKUP($B10,'Suroviny a produkty'!$A$3:$I$1045,7,FALSE)) -> 0.005957 | B10: Sůl | C10: 30 | D10: =IF($C10="","",VLOOKUP($B10,'Suroviny a produkty'!$A$3:$I$1045,8,FALSE)) -> g | E10: =IF($C10="","",VLOOKUP($B10,'Suroviny a produkty'!$A$3:$I$1045,7,FALSE)) -> 0.005957 | F10: 0.17871
A11: =IF($B11="","",VLOOKUP($B11,'Suroviny a produkty'!$A$3:$I$1045,7,FALSE)) -> 0.016376 | B11: Mouka hladká | C11: 80 | D11: =IF($C11="","",VLOOKUP($B11,'Suroviny a produkty'!$A$3:$I$1045,8,FALSE)) -> g | E11: =IF($C11="","",VLOOKUP($B11,'Suroviny a produkty'!$A$3:$I$1045,7,FALSE)) -> 0.016376 | F11: 1.31008
A12: =IF($B12="","",VLOOKUP($B12,'Suroviny a produkty'!$A$3:$I$1045,7,FALSE)) -> 0.233611 | B12: Pepř | C12: 2 | D12: =IF($C12="","",VLOOKUP($B12,'Suroviny a produkty'!$A$3:$I$1045,8,FALSE)) -> g | E12: =IF($C12="","",VLOOKUP($B12,'Suroviny a produkty'!$A$3:$I$1045,7,FALSE)) -> 0.233611 | F12: 0.467222
A13: =IF($B13="","",VLOOKUP($B13,'Suroviny a produkty'!$A$3:$I$1045,7,FALSE)) ->  | D13: =IF($C13="","",VLOOKUP($B13,'Suroviny a produkty'!$A$3:$I$1045,8,FALSE)) ->  | E13: =IF($C13="","",VLOOKUP($B13,'Suroviny a produkty'!$A$3:$I$1045,7,FALSE)) ->  | F13: 0
A14: =IF($B14="","",VLOOKUP($B14,'Suroviny a produkty'!$A$3:$I$1045,7,FALSE)) -> 0.220524 | B14: Houby (naše) | C14: 300 | D14: =IF($C14="","",VLOOKUP($B14,'Suroviny a produkty'!$A$3:$I$1045,8,FALSE)) -> g | E14: =IF($C14="","",VLOOKUP($B14,'Suroviny a produkty'!$A$3:$I$1045,7,FALSE)) -> 0.220524 | F14: 66.1572
A15: =IF($B15="","",VLOOKUP($B15,'Suroviny a produkty'!$A$3:$I$1045,7,FALSE)) ->  | D15: =IF($C15="","",VLOOKUP($B15,'Suroviny a produkty'!$A$3:$I$1045,8,FALSE)) ->  | E15: =IF($C15="","",VLOOKUP($B15,'Suroviny a produkty'!$A$3:$I$1045,7,FALSE)) ->  | F15: 0
A16: =IF($B16="","",VLOOKUP($B16,'Suroviny a produkty'!$A$3:$I$1045,7,FALSE)) -> 5.75 | B16: Ozdoba | C16: 18 | D16: =IF($C16="","",VLOOKUP($B16,'Suroviny a produkty'!$A$3:$I$1045,8,FALSE)) -> ks | E16: =IF($C16="","",VLOOKUP($B16,'Suroviny a produkty'!$A$3:$I$1045,7,FALSE)) -> 5.75 | F16: 103.5
A17: =IF($B17="","",VLOOKUP($B17,'Suroviny a produkty'!$A$3:$I$1045,7,FALSE)) ->  | D17: =IF($C17="","",VLOOKUP($B17,'Suroviny a produkty'!$A$3:$I$1045,8,FALSE)) ->  | E17: =IF($C17="","",VLOOKUP($B17,'Suroviny a produkty'!$A$3:$I$1045,7,FALSE)) ->  | F17: 0
A18: =IF($B18="","",VLOOKUP($B18,'Suroviny a produkty'!$A$3:$I$1045,7,FALSE)) ->  | D18: =IF($C18="","",VLOOKUP($B18,'Suroviny a produkty'!$A$3:$I$1045,8,FALSE)) ->  | E18: =IF($C18="","",VLOOKUP($B18,'Suroviny a produkty'!$A$3:$I$1045,7,FALSE)) ->  | F18: 0
A19: =IF($B19="","",VLOOKUP($B19,'Suroviny a produkty'!$A$3:$I$1045,7,FALSE)) ->  | D19: =IF($C19="","",VLOOKUP($B19,'Suroviny a produkty'!$A$3:$I$1045,8,FALSE)) ->  | E19: =IF($C19="","",VLOOKUP($B19,'Suroviny a produkty'!$A$3:$I$1045,7,FALSE)) ->  | F19: 0
A20: =IF($B20="","",VLOOKUP($B20,'Suroviny a produkty'!$A$3:$I$1045,7,FALSE)) ->  | D20: =IF($C20="","",VLOOKUP($B20,'Suroviny a produkty'!$A$3:$I$1045,8,FALSE)) ->  | E20: =IF($C20="","",VLOOKUP($B20,'Suroviny a produkty'!$A$3:$I$1045,7,FALSE)) ->  | F20: 0
A21: =IF($B21="","",VLOOKUP($B21,'Suroviny a produkty'!$A$3:$I$1045,7,FALSE)) ->  | D21: =IF($C21="","",VLOOKUP($B21,'Suroviny a produkty'!$A$3:$I$1045,8,FALSE)) ->  | E21: =IF($C21="","",VLOOKUP($B21,'Suroviny a produkty'!$A$3:$I$1045,7,FALSE)) ->  | F21: 0
A22: =IF($B22="","",VLOOKUP($B22,'Suroviny a produkty'!$A$3:$I$1045,7,FALSE)) ->  | D22: =IF($C22="","",VLOOKUP($B22,'Suroviny a produkty'!$A$3:$I$1045,8,FALSE)) ->  | E22: =IF($C22="","",VLOOKUP($B22,'Suroviny a produkty'!$A$3:$I$1045,7,FALSE)) ->  | F22: 0
A23: =IF($B23="","",VLOOKUP($B23,'Suroviny a produkty'!$A$3:$I$1045,7,FALSE)) ->  | D23: =IF($C23="","",VLOOKUP($B23,'Suroviny a produkty'!$A$3:$I$1045,8,FALSE)) ->  | E23: =IF($C23="","",VLOOKUP($B23,'Suroviny a produkty'!$A$3:$I$1045,7,FALSE)) ->  | F23: 0
A24: =IF($B24="","",VLOOKUP($B24,'Suroviny a produkty'!$A$3:$I$1045,7,FALSE)) ->  | D24: =IF($C24="","",VLOOKUP($B24,'Suroviny a produkty'!$A$3:$I$1045,8,FALSE)) ->  | E24: =IF($C24="","",VLOOKUP($B24,'Suroviny a produkty'!$A$3:$I$1045,7,FALSE)) ->  | F24: 0
A25: =IF($B25="","",VLOOKUP($B25,'Suroviny a produkty'!$A$3:$I$1045,7,FALSE)) ->  | D25: =IF($C25="","",VLOOKUP($B25,'Suroviny a produkty'!$A$3:$I$1045,8,FALSE)) ->  | E25: =IF($C25="","",VLOOKUP($B25,'Suroviny a produkty'!$A$3:$I$1045,7,FALSE)) ->  | F25: 0
A26: =IF($B26="","",VLOOKUP($B26,'Suroviny a produkty'!$A$3:$I$1045,7,FALSE)) ->  | D26: =IF($C26="","",VLOOKUP($B26,'Suroviny a produkty'!$A$3:$I$1045,8,FALSE)) ->  | E26: =IF($C26="","",VLOOKUP($B26,'Suroviny a produkty'!$A$3:$I$1045,7,FALSE)) ->  | F26: 0
A27: =IF($B27="","",VLOOKUP($B27,'Suroviny a produkty'!$A$3:$I$1045,7,FALSE)) ->  | D27: =IF($C27="","",VLOOKUP($B27,'Suroviny a produkty'!$A$3:$I$1045,8,FALSE)) ->  | E27: =IF($C27="","",VLOOKUP($B27,'Suroviny a produkty'!$A$3:$I$1045,7,FALSE)) ->  | F27: 0
A28: =IF($B28="","",VLOOKUP($B28,'Suroviny a produkty'!$A$3:$I$1045,7,FALSE)) ->  | D28: =IF($C28="","",VLOOKUP($B28,'Suroviny a produkty'!$A$3:$I$1045,8,FALSE)) ->  | E28: =IF($C28="","",VLOOKUP($B28,'Suroviny a produkty'!$A$3:$I$1045,7,FALSE)) ->  | F28: 0
A29: =IF($B29="","",VLOOKUP($B29,'Suroviny a produkty'!$A$3:$I$1045,7,FALSE)) ->  | D29: =IF($C29="","",VLOOKUP($B29,'Suroviny a produkty'!$A$3:$I$1045,8,FALSE)) ->  | E29: =IF($C29="","",VLOOKUP($B29,'Suroviny a produkty'!$A$3:$I$1045,7,FALSE)) ->  | F29: 0
A30: =IF($B30="","",VLOOKUP($B30,'Suroviny a produkty'!$A$3:$I$1045,7,FALSE)) ->  | D30: =IF($C30="","",VLOOKUP($B30,'Suroviny a produkty'!$A$3:$I$1045,8,FALSE)) ->  | E30: =IF($C30="","",VLOOKUP($B30,'Suroviny a produkty'!$A$3:$I$1045,7,FALSE)) ->  | F30: 0
A31: =IF($B31="","",VLOOKUP($B31,'Suroviny a produkty'!$A$3:$I$1045,7,FALSE)) ->  | D31: =IF($C31="","",VLOOKUP($B31,'Suroviny a produkty'!$A$3:$I$1045,8,FALSE)) ->  | E31: =IF($C31="","",VLOOKUP($B31,'Suroviny a produkty'!$A$3:$I$1045,7,FALSE)) ->  | F31: 0
A32: =IF($B32="","",VLOOKUP($B32,'Suroviny a produkty'!$A$3:$I$1045,7,FALSE)) ->  | D32: =IF($C32="","",VLOOKUP($B32,'Suroviny a produkty'!$A$3:$I$1045,8,FALSE)) ->  | E32: =IF($C32="","",VLOOKUP($B32,'Suroviny a produkty'!$A$3:$I$1045,7,FALSE)) ->  | F32: 0
A33: =IF($B33="","",VLOOKUP($B33,'Suroviny a produkty'!$A$3:$I$1045,7,FALSE)) ->  | D33: =IF($C33="","",VLOOKUP($B33,'Suroviny a produkty'!$A$3:$I$1045,8,FALSE)) ->  | E33: =IF($C33="","",VLOOKUP($B33,'Suroviny a produkty'!$A$3:$I$1045,7,FALSE)) ->  | F33: 0
A34: =IF($B34="","",VLOOKUP($B34,'Suroviny a produkty'!$A$3:$I$1045,7,FALSE)) ->  | D34: =IF($C34="","",VLOOKUP($B34,'Suroviny a produkty'!$A$3:$I$1045,8,FALSE)) ->  | E34: =IF($C34="","",VLOOKUP($B34,'Suroviny a produkty'!$A$3:$I$1045,7,FALSE)) ->  | F34: 0
A35: =IF($B35="","",VLOOKUP($B35,'Suroviny a produkty'!$A$3:$I$1045,7,FALSE)) ->  | D35: =IF($C35="","",VLOOKUP($B35,'Suroviny a produkty'!$A$3:$I$1045,8,FALSE)) ->  | E35: =IF($C35="","",VLOOKUP($B35,'Suroviny a produkty'!$A$3:$I$1045,7,FALSE)) ->  | F35: 0
A36: =IF($B36="","",VLOOKUP($B36,'Suroviny a produkty'!$A$3:$I$1045,7,FALSE)) ->  | D36: =IF($C36="","",VLOOKUP($B36,'Suroviny a produkty'!$A$3:$I$1045,8,FALSE)) ->  | E36: =IF($C36="","",VLOOKUP($B36,'Suroviny a produkty'!$A$3:$I$1045,7,FALSE)) ->  | F36: 0
A37: =IF($B37="","",VLOOKUP($B37,'Suroviny a produkty'!$A$3:$I$1045,7,FALSE)) ->  | D37: =IF($C37="","",VLOOKUP($B37,'Suroviny a produkty'!$A$3:$I$1045,8,FALSE)) ->  | E37: =IF($C37="","",VLOOKUP($B37,'Suroviny a produkty'!$A$3:$I$1045,7,FALSE)) ->  | F37: 0
A38: =IF($B38="","",VLOOKUP($B38,'Suroviny a produkty'!$A$3:$I$1045,7,FALSE)) ->  | D38: =IF($C38="","",VLOOKUP($B38,'Suroviny a produkty'!$A$3:$I$1045,8,FALSE)) ->  | E38: =IF($C38="","",VLOOKUP($B38,'Suroviny a produkty'!$A$3:$I$1045,7,FALSE)) ->  | F38: 0

Sheet P11
B1: ='Jídelní lístek'!C16 -> Grilovaný kozí sýr s brusinkami a slaninou v toastu | C1: Množství | D1: Jedn. | E1: Cena za jednotku | F1: Cena pro množství v receptu | G1: Shrnutí Pro aktuální cenu je třeba aktualizovat ceny na listu surovin | J1: Popis
B2: Jídelní lístek | C2: Suroviny | G2: Alergeny | H2: 1;3;7;
A3: =IF($B3="","",VLOOKUP($B3,'Suroviny a produkty'!$A$3:$I$1045,7,FALSE)) -> 0 | B3: Kozí sýr | C3: 70 | D3: =IF($C3="","",VLOOKUP($B3,'Suroviny a produkty'!$A$3:$I$1045,8,FALSE)) -> g | E3: =IF($C3="","",VLOOKUP($B3,'Suroviny a produkty'!$A$3:$I$1045,7,FALSE)) -> 0 | F3: =IF(C3=0,0,E3*C3) -> 0 | G3: Počet porcí | H3: 1 | I3: ks
A4: =IF($B4="","",VLOOKUP($B4,'Suroviny a produkty'!$A$3:$I$1045,7,FALSE)) -> 0.2231 | B4: Anglická slanina | C4: 5 | D4: =IF($C4="","",VLOOKUP($B4,'Suroviny a produkty'!$A$3:$I$1045,8,FALSE)) -> g | E4: =IF($C4="","",VLOOKUP($B4,'Suroviny a produkty'!$A$3:$I$1045,7,FALSE)) -> 0.2231 | F4: 1.1155 | G4: Porce | I4: g
A5: =IF($B5="","",VLOOKUP($B5,'Suroviny a produkty'!$A$3:$I$1045,7,FALSE)) -> 0 | B5: Toast | C5: 2 | D5: =IF($C5="","",VLOOKUP($B5,'Suroviny a produkty'!$A$3:$I$1045,8,FALSE)) -> ks | E5: =IF($C5="","",VLOOKUP($B5,'Suroviny a produkty'!$A$3:$I$1045,7,FALSE)) -> 0 | F5: 0 | G5: Cena celkem | H5: =ROUND(SUM(F3:F38),1) ->  | I5: Kč
A6: =IF($B6="","",VLOOKUP($B6,'Suroviny a produkty'!$A$3:$I$1045,7,FALSE)) ->  | B6: Máslo | C6: 5 | D6: =IF($C6="","",VLOOKUP($B6,'Suroviny a produkty'!$A$3:$I$1045,8,FALSE)) ->  | E6: =IF($C6="","",VLOOKUP($B6,'Suroviny a produkty'!$A$3:$I$1045,7,FALSE)) ->  | G6: Energie celkem | I6: Kč
A7: =IF($B7="","",VLOOKUP($B7,'Suroviny a produkty'!$A$3:$I$1045,7,FALSE)) -> 0 | B7: Bylinky | C7: 1 | D7: =IF($C7="","",VLOOKUP($B7,'Suroviny a produkty'!$A$3:$I$1045,8,FALSE)) -> ks | E7: =IF($C7="","",VLOOKUP($B7,'Suroviny a produkty'!$A$3:$I$1045,7,FALSE)) -> 0 | F7: 0 | G7: Cena za porci | H7: =(H6+H5)/H3 ->  | I7: Kč
A8: =IF($B8="","",VLOOKUP($B8,'Suroviny a produkty'!$A$3:$I$1045,7,FALSE)) -> 0.1221329114 | B8: Brusinky JIP | C8: 5 | D8: =IF($C8="","",VLOOKUP($B8,'Suroviny a produkty'!$A$3:$I$1045,8,FALSE)) -> g | E8: =IF($C8="","",VLOOKUP($B8,'Suroviny a produkty'!$A$3:$I$1045,7,FALSE)) -> 0.1221329114 | F8: 0.610664557 | G8: Prodejní cena | H8: ='Jídelní lístek'!E16 -> 155 | I8: Kč
A9: =IF($B9="","",VLOOKUP($B9,'Suroviny a produkty'!$A$3:$I$1045,7,FALSE)) -> 5.75 | B9: Ozdoba | C9: 1 | D9: =IF($C9="","",VLOOKUP($B9,'Suroviny a produkty'!$A$3:$I$1045,8,FALSE)) -> ks | E9: =IF($C9="","",VLOOKUP($B9,'Suroviny a produkty'!$A$3:$I$1045,7,FALSE)) -> 5.75 | F9: 5.75 | G9: Marže | H9: =IF(H7=0,0,H8/H7)*100 ->  | I9: %
A10: =IF($B10="","",VLOOKUP($B10,'Suroviny a produkty'!$A$3:$I$1045,7,FALSE)) ->  | D10: =IF($C10="","",VLOOKUP($B10,'Suroviny a produkty'!$A$3:$I$1045,8,FALSE)) ->  | E10: =IF($C10="","",VLOOKUP($B10,'Suroviny a produkty'!$A$3:$I$1045,7,FALSE)) ->  | F10: 0
A11: =IF($B11="","",VLOOKUP($B11,'Suroviny a produkty'!$A$3:$I$1045,7,FALSE)) ->  | D11: =IF($C11="","",VLOOKUP($B11,'Suroviny a produkty'!$A$3:$I$1045,8,FALSE)) ->  | E11: =IF($C11="","",VLOOKUP($B11,'Suroviny a produkty'!$A$3:$I$1045,7,FALSE)) ->  | F11: 0
A12: =IF($B12="","",VLOOKUP($B12,'Suroviny a produkty'!$A$3:$I$1045,7,FALSE)) ->  | D12: =IF($C12="","",VLOOKUP($B12,'Suroviny a produkty'!$A$3:$I$1045,8,FALSE)) ->  | E12: =IF($C12="","",VLOOKUP($B12,'Suroviny a produkty'!$A$3:$I$1045,7,FALSE)) ->  | F12: 0
A13: =IF($B13="","",VLOOKUP($B13,'Suroviny a produkty'!$A$3:$I$1045,7,FALSE)) ->  | D13: =IF($C13="","",VLOOKUP($B13,'Suroviny a produkty'!$A$3:$I$1045,8,FALSE)) ->  | E13: =IF($C13="","",VLOOKUP($B13,'Suroviny a produkty'!$A$3:$I$1045,7,FALSE)) ->  | F13: 0
A14: =IF($B14="","",VLOOKUP($B14,'Suroviny a produkty'!$A$3:$I$1045,7,FALSE)) ->  | D14: =IF($C14="","",VLOOKUP($B14,'Suroviny a produkty'!$A$3:$I$1045,8,FALSE)) ->  | E14: =IF($C14="","",VLOOKUP($B14,'Suroviny a produkty'!$A$3:$I$1045,7,FALSE)) ->  | F14: 0
A15: =IF($B15="","",VLOOKUP($B15,'Suroviny a produkty'!$A$3:$I$1045,7,FALSE)) ->  | D15: =IF($C15="","",VLOOKUP($B15,'Suroviny a produkty'!$A$3:$I$1045,8,FALSE)) ->  | E15: =IF($C15="","",VLOOKUP($B15,'Suroviny a produkty'!$A$3:$I$1045,7,FALSE)) ->  | F15: 0
A16: =IF($B16="","",VLOOKUP($B16,'Suroviny a produkty'!$A$3:$I$1045,7,FALSE)) ->  | D16: =IF($C16="","",VLOOKUP($B16,'Suroviny a produkty'!$A$3:$I$1045,8,FALSE)) ->  | E16: =IF($C16="","",VLOOKUP($B16,'Suroviny a produkty'!$A$3:$I$1045,7,FALSE)) ->  | F16: 0
A17: =IF($B17="","",VLOOKUP($B17,'Suroviny a produkty'!$A$3:$I$1045,7,FALSE)) ->  | D17: =IF($C17="","",VLOOKUP($B17,'Suroviny a produkty'!$A$3:$I$1045,8,FALSE)) ->  | E17: =IF($C17="","",VLOOKUP($B17,'Suroviny a produkty'!$A$3:$I$1045,7,FALSE)) ->  | F17: 0
A18: =IF($B18="","",VLOOKUP($B18,'Suroviny a produkty'!$A$3:$I$1045,7,FALSE)) ->  | D18: =IF($C18="","",VLOOKUP($B18,'Suroviny a produkty'!$A$3:$I$1045,8,FALSE)) ->  | E18: =IF($C18="","",VLOOKUP($B18,'Suroviny a produkty'!$A$3:$I$1045,7,FALSE)) ->  | F18: 0
A19: =IF($B19="","",VLOOKUP($B19,'Suroviny a produkty'!$A$3:$I$1045,7,FALSE)) ->  | D19: =IF($C19="","",VLOOKUP($B19,'Suroviny a produkty'!$A$3:$I$1045,8,FALSE)) ->  | E19: =IF($C19="","",VLOOKUP($B19,'Suroviny a produkty'!$A$3:$I$1045,7,FALSE)) ->  | F19: 0
A20: =IF($B20="","",VLOOKUP($B20,'Suroviny a produkty'!$A$3:$I$1045,7,FALSE)) ->  | D20: =IF($C20="","",VLOOKUP($B20,'Suroviny a produkty'!$A$3:$I$1045,8,FALSE)) ->  | E20: =IF($C20="","",VLOOKUP($B20,'Suroviny a produkty'!$A$3:$I$1045,7,FALSE)) ->  | F20: 0
A21: =IF($B21="","",VLOOKUP($B21,'Suroviny a produkty'!$A$3:$I$1045,7,FALSE)) ->  | D21: =IF($C21="","",VLOOKUP($B21,'Suroviny a produkty'!$A$3:$I$1045,8,FALSE)) ->  | E21: =IF($C21="","",VLOOKUP($B21,'Suroviny a produkty'!$A$3:$I$1045,7,FALSE)) ->  | F21: 0
A22: =IF($B22="","",VLOOKUP($B22,'Suroviny a produkty'!$A$3:$I$1045,7,FALSE)) ->  | D22: =IF($C22="","",VLOOKUP($B22,'Suroviny a produkty'!$A$3:$I$1045,8,FALSE)) ->  | E22: =IF($C22="","",VLOOKUP($B22,'Suroviny a produkty'!$A$3:$I$1045,7,FALSE)) ->  | F22: 0
A23: =IF($B23="","",VLOOKUP($B23,'Suroviny a produkty'!$A$3:$I$1045,7,FALSE)) ->  | D23: =IF($C23="","",VLOOKUP($B23,'Suroviny a produkty'!$A$3:$I$1045,8,FALSE)) ->  | E23: =IF($C23="","",VLOOKUP($B23,'Suroviny a produkty'!$A$3:$I$1045,7,FALSE)) ->  | F23: 0
A24: =IF($B24="","",VLOOKUP($B24,'Suroviny a produkty'!$A$3:$I$1045,7,FALSE)) ->  | D24: =IF($C24="","",VLOOKUP($B24,'Suroviny a produkty'!$A$3:$I$1045,8,FALSE)) ->  | E24: =IF($C24="","",VLOOKUP($B24,'Suroviny a produkty'!$A$3:$I$1045,7,FALSE)) ->  | F24: 0
A25: =IF($B25="","",VLOOKUP($B25,'Suroviny a produkty'!$A$3:$I$1045,7,FALSE)) ->  | D25: =IF($C25="","",VLOOKUP($B25,'Suroviny a produkty'!$A$3:$I$1045,8,FALSE)) ->  | E25: =IF($C25="","",VLOOKUP($B25,'Suroviny a produkty'!$A$3:$I$1045,7,FALSE)) ->  | F25: 0
A26: =IF($B26="","",VLOOKUP($B26,'Suroviny a produkty'!$A$3:$I$1045,7,FALSE)) ->  | D26: =IF($C26="","",VLOOKUP($B26,'Suroviny a produkty'!$A$3:$I$1045,8,FALSE)) ->  | E26: =IF($C26="","",VLOOKUP($B26,'Suroviny a produkty'!$A$3:$I$1045,7,FALSE)) ->  | F26: 0
A27: =IF($B27="","",VLOOKUP($B27,'Suroviny a produkty'!$A$3:$I$1045,7,FALSE)) ->  | D27: =IF($C27="","",VLOOKUP($B27,'Suroviny a produkty'!$A$3:$I$1045,8,FALSE)) ->  | E27: =IF($C27="","",VLOOKUP($B27,'Suroviny a produkty'!$A$3:$I$1045,7,FALSE)) ->  | F27: 0
A28: =IF($B28="","",VLOOKUP($B28,'Suroviny a produkty'!$A$3:$I$1045,7,FALSE)) ->  | D28: =IF($C28="","",VLOOKUP($B28,'Suroviny a produkty'!$A$3:$I$1045,8,FALSE)) ->  | E28: =IF($C28="","",VLOOKUP($B28,'Suroviny a produkty'!$A$3:$I$1045,7,FALSE)) ->  | F28: 0
A29: =IF($B29="","",VLOOKUP($B29,'Suroviny a produkty'!$A$3:$I$1045,7,FALSE)) ->  | D29: =IF($C29="","",VLOOKUP($B29,'Suroviny a produkty'!$A$3:$I$1045,8,FALSE)) ->  | E29: =IF($C29="","",VLOOKUP($B29,'Suroviny a produkty'!$A$3:$I$1045,7,FALSE)) ->  | F29: 0
A30: =IF($B30="","",VLOOKUP($B30,'Suroviny a produkty'!$A$3:$I$1045,7,FALSE)) ->  | D30: =IF($C30="","",VLOOKUP($B30,'Suroviny a produkty'!$A$3:$I$1045,8,FALSE)) ->  | E30: =IF($C30="","",VLOOKUP($B30,'Suroviny a produkty'!$A$3:$I$1045,7,FALSE)) ->  | F30: 0
A31: =IF($B31="","",VLOOKUP($B31,'Suroviny a produkty'!$A$3:$I$1045,7,FALSE)) ->  | D31: =IF($C31="","",VLOOKUP($B31,'Suroviny a produkty'!$A$3:$I$1045,8,FALSE)) ->  | E31: =IF($C31="","",VLOOKUP($B31,'Suroviny a produkty'!$A$3:$I$1045,7,FALSE)) ->  | F31: 0
A32: =IF($B32="","",VLOOKUP($B32,'Suroviny a produkty'!$A$3:$I$1045,7,FALSE)) ->  | D32: =IF($C32="","",VLOOKUP($B32,'Suroviny a produkty'!$A$3:$I$1045,8,FALSE)) ->  | E32: =IF($C32="","",VLOOKUP($B32,'Suroviny a produkty'!$A$3:$I$1045,7,FALSE)) ->  | F32: 0
A33: =IF($B33="","",VLOOKUP($B33,'Suroviny a produkty'!$A$3:$I$1045,7,FALSE)) ->  | D33: =IF($C33="","",VLOOKUP($B33,'Suroviny a produkty'!$A$3:$I$1045,8,FALSE)) ->  | E33: =IF($C33="","",VLOOKUP($B33,'Suroviny a produkty'!$A$3:$I$1045,7,FALSE)) ->  | F33: 0
A34: =IF($B34="","",VLOOKUP($B34,'Suroviny a produkty'!$A$3:$I$1045,7,FALSE)) ->  | D34: =IF($C34="","",VLOOKUP($B34,'Suroviny a produkty'!$A$3:$I$1045,8,FALSE)) ->  | E34: =IF($C34="","",VLOOKUP($B34,'Suroviny a produkty'!$A$3:$I$1045,7,FALSE)) ->  | F34: 0
A35: =IF($B35="","",VLOOKUP($B35,'Suroviny a produkty'!$A$3:$I$1045,7,FALSE)) ->  | D35: =IF($C35="","",VLOOKUP($B35,'Suroviny a produkty'!$A$3:$I$1045,8,FALSE)) ->  | E35: =IF($C35="","",VLOOKUP($B35,'Suroviny a produkty'!$A$3:$I$1045,7,FALSE)) ->  | F35: 0
A36: =IF($B36="","",VLOOKUP($B36,'Suroviny a produkty'!$A$3:$I$1045,7,FALSE)) ->  | D36: =IF($C36="","",VLOOKUP($B36,'Suroviny a produkty'!$A$3:$I$1045,8,FALSE)) ->  | E36: =IF($C36="","",VLOOKUP($B36,'Suroviny a produkty'!$A$3:$I$1045,7,FALSE)) ->  | F36: 0
A37: =IF($B37="","",VLOOKUP($B37,'Suroviny a produkty'!$A$3:$I$1045,7,FALSE)) ->  | D37: =IF($C37="","",VLOOKUP($B37,'Suroviny a produkty'!$A$3:$I$1045,8,FALSE)) ->  | E37: =IF($C37="","",VLOOKUP($B37,'Suroviny a produkty'!$A$3:$I$1045,7,FALSE)) ->  | F37: 0
A38: =IF($B38="","",VLOOKUP($B38,'Suroviny a produkty'!$A$3:$I$1045,7,FALSE)) ->  | D38: =IF($C38="","",VLOOKUP($B38,'Suroviny a produkty'!$A$3:$I$1045,8,FALSE)) ->  | E38: =IF($C38="","",VLOOKUP($B38,'Suroviny a produkty'!$A$3:$I$1045,7,FALSE)) ->  | F38: 0

Sheet P12
B1: ='Jídelní lístek'!C17 -> Kachní ragú s noky | C1: Množství | D1: Jedn. | E1: Cena za jednotku | F1: Cena pro množství v receptu | G1: Shrnutí Pro aktuální cenu je třeba aktualizovat ceny na listu surovin | J1: Popis
B2: Jídelní lístek | C2: Suroviny
A3: =IF($B3="","",VLOOKUP($B3,'Suroviny a produkty'!$A$3:$I$1045,7,FALSE)) -> 0.379385 | B3: Kachní prsa | C3: 1500 | D3: =IF($C3="","",VLOOKUP($B3,'Suroviny a produkty'!$A$3:$I$1045,8,FALSE)) -> g | E3: =IF($C3="","",VLOOKUP($B3,'Suroviny a produkty'!$A$3:$I$1045,7,FALSE)) -> 0.379385 | F3: =IF(C3=0,0,E3*C3) -> 569.0775 | G3: Počet porcí | H3: 10 | I3: ks
A4: =IF($B4="","",VLOOKUP($B4,'Suroviny a produkty'!$A$3:$I$1045,7,FALSE)) -> 0.012535 | B4: Cibule | C4: 400 | D4: =IF($C4="","",VLOOKUP($B4,'Suroviny a produkty'!$A$3:$I$1045,8,FALSE)) -> g | E4: =IF($C4="","",VLOOKUP($B4,'Suroviny a produkty'!$A$3:$I$1045,7,FALSE)) -> 0.012535 | F4: 5.014 | G4: Porce | I4: g
A5: =IF($B5="","",VLOOKUP($B5,'Suroviny a produkty'!$A$3:$I$1045,7,FALSE)) -> 0.0943 | B5: Rajčata | C5: 300 | D5: =IF($C5="","",VLOOKUP($B5,'Suroviny a produkty'!$A$3:$I$1045,8,FALSE)) -> g | E5: =IF($C5="","",VLOOKUP($B5,'Suroviny a produkty'!$A$3:$I$1045,7,FALSE)) -> 0.0943 | F5: 28.29 | G5: Cena celkem | H5: =ROUND(SUM(F3:F38),1) -> 701.3 | I5: Kč
A6: =IF($B6="","",VLOOKUP($B6,'Suroviny a produkty'!$A$3:$I$1045,7,FALSE)) -> 0.095335 | B6: Paprika | C6: 300 | D6: =IF($C6="","",VLOOKUP($B6,'Suroviny a produkty'!$A$3:$I$1045,8,FALSE)) -> g | E6: =IF($C6="","",VLOOKUP($B6,'Suroviny a produkty'!$A$3:$I$1045,7,FALSE)) -> 0.095335 | F6: 28.6005 | G6: Energie celkem | I6: Kč
A7: =IF($B7="","",VLOOKUP($B7,'Suroviny a produkty'!$A$3:$I$1045,7,FALSE)) -> 0.03261527778 | B7: Rajčatový protlak | C7: 200 | D7: =IF($C7="","",VLOOKUP($B7,'Suroviny a produkty'!$A$3:$I$1045,8,FALSE)) -> g | E7: =IF($C7="","",VLOOKUP($B7,'Suroviny a produkty'!$A$3:$I$1045,7,FALSE)) -> 0.03261527778 | F7: 6.523055556 | G7: Cena za porci | H7: =(H6+H5)/H3 -> 70.13 | I7: Kč
A8: =IF($B8="","",VLOOKUP($B8,'Suroviny a produkty'!$A$3:$I$1045,7,FALSE)) -> 0.1108255 | B8: Smetana | C8: 200 | D8: =IF($C8="","",VLOOKUP($B8,'Suroviny a produkty'!$A$3:$I$1045,8,FALSE)) -> g | E8: =IF($C8="","",VLOOKUP($B8,'Suroviny a produkty'!$A$3:$I$1045,7,FALSE)) -> 0.1108255 | F8: 22.1651 | G8: Prodejní cena | H8: 235 | I8: Kč
A9: =IF($B9="","",VLOOKUP($B9,'Suroviny a produkty'!$A$3:$I$1045,7,FALSE)) -> 0.005957 | B9: Sůl | C9: 20 | D9: =IF($C9="","",VLOOKUP($B9,'Suroviny a produkty'!$A$3:$I$1045,8,FALSE)) -> g | E9: =IF($C9="","",VLOOKUP($B9,'Suroviny a produkty'!$A$3:$I$1045,7,FALSE)) -> 0.005957 | F9: 0.11914 | G9: Marže | H9: =IF(H7=0,0,H8/H7)*100 -> 335.0919721 | I9: %
A10: =IF($B10="","",VLOOKUP($B10,'Suroviny a produkty'!$A$3:$I$1045,7,FALSE)) -> 0.233611 | B10: Pepř | C10: 2 | D10: =IF($C10="","",VLOOKUP($B10,'Suroviny a produkty'!$A$3:$I$1045,8,FALSE)) -> g | E10: =IF($C10="","",VLOOKUP($B10,'Suroviny a produkty'!$A$3:$I$1045,7,FALSE)) -> 0.233611 | F10: 0.467222
A11: =IF($B11="","",VLOOKUP($B11,'Suroviny a produkty'!$A$3:$I$1045,7,FALSE)) -> 0.33856 | B11: Argentina | C11: 10 | D11: =IF($C11="","",VLOOKUP($B11,'Suroviny a produkty'!$A$3:$I$1045,8,FALSE)) -> g | E11: =IF($C11="","",VLOOKUP($B11,'Suroviny a produkty'!$A$3:$I$1045,7,FALSE)) -> 0.33856 | F11: 3.3856
A12: =IF($B12="","",VLOOKUP($B12,'Suroviny a produkty'!$A$3:$I$1045,7,FALSE)) ->  | D12: =IF($C12="","",VLOOKUP($B12,'Suroviny a produkty'!$A$3:$I$1045,8,FALSE)) ->  | E12: =IF($C12="","",VLOOKUP($B12,'Suroviny a produkty'!$A$3:$I$1045,7,FALSE)) ->  | F12: 0
A13: =IF($B13="","",VLOOKUP($B13,'Suroviny a produkty'!$A$3:$I$1045,7,FALSE)) ->  | D13: =IF($C13="","",VLOOKUP($B13,'Suroviny a produkty'!$A$3:$I$1045,8,FALSE)) ->  | E13: =IF($C13="","",VLOOKUP($B13,'Suroviny a produkty'!$A$3:$I$1045,7,FALSE)) ->  | F13: 0
B14: Noky | D14: =IF($C14="","",VLOOKUP($B14,'Suroviny a produkty'!$A$3:$I$1045,8,FALSE)) ->  | E14: =IF($C14="","",VLOOKUP($B14,'Suroviny a produkty'!$A$3:$I$1045,7,FALSE)) ->  | F14: 0
A15: =IF($B15="","",VLOOKUP($B15,'Suroviny a produkty'!$A$3:$I$1045,7,FALSE)) -> 0.0404317 | B15: Bramborové těsto | C15: 750 | D15: =IF($C15="","",VLOOKUP($B15,'Suroviny a produkty'!$A$3:$I$1045,8,FALSE)) -> g | E15: =IF($C15="","",VLOOKUP($B15,'Suroviny a produkty'!$A$3:$I$1045,7,FALSE)) -> 0.0404317 | F15: 30.323775
A16: =IF($B16="","",VLOOKUP($B16,'Suroviny a produkty'!$A$3:$I$1045,7,FALSE)) -> 0 | B16: Voda | C16: 750 | D16: =IF($C16="","",VLOOKUP($B16,'Suroviny a produkty'!$A$3:$I$1045,8,FALSE)) -> g | E16: =IF($C16="","",VLOOKUP($B16,'Suroviny a produkty'!$A$3:$I$1045,7,FALSE)) -> 0 | F16: 0
A17: =IF($B17="","",VLOOKUP($B17,'Suroviny a produkty'!$A$3:$I$1045,7,FALSE)) -> 3.6685 | B17: Vejce | C17: 2 | D17: =IF($C17="","",VLOOKUP($B17,'Suroviny a produkty'!$A$3:$I$1045,8,FALSE)) -> ks | E17: =IF($C17="","",VLOOKUP($B17,'Suroviny a produkty'!$A$3:$I$1045,7,FALSE)) -> 3.6685 | F17: 7.337
A18: =IF($B18="","",VLOOKUP($B18,'Suroviny a produkty'!$A$3:$I$1045,7,FALSE)) ->  | D18: =IF($C18="","",VLOOKUP($B18,'Suroviny a produkty'!$A$3:$I$1045,8,FALSE)) ->  | E18: =IF($C18="","",VLOOKUP($B18,'Suroviny a produkty'!$A$3:$I$1045,7,FALSE)) ->  | F18: 0
A19: =IF($B19="","",VLOOKUP($B19,'Suroviny a produkty'!$A$3:$I$1045,7,FALSE)) ->  | D19: =IF($C19="","",VLOOKUP($B19,'Suroviny a produkty'!$A$3:$I$1045,8,FALSE)) ->  | E19: =IF($C19="","",VLOOKUP($B19,'Suroviny a produkty'!$A$3:$I$1045,7,FALSE)) ->  | F19: 0
A20: =IF($B20="","",VLOOKUP($B20,'Suroviny a produkty'!$A$3:$I$1045,7,FALSE)) ->  | D20: =IF($C20="","",VLOOKUP($B20,'Suroviny a produkty'!$A$3:$I$1045,8,FALSE)) ->  | E20: =IF($C20="","",VLOOKUP($B20,'Suroviny a produkty'!$A$3:$I$1045,7,FALSE)) ->  | F20: 0
A21: =IF($B21="","",VLOOKUP($B21,'Suroviny a produkty'!$A$3:$I$1045,7,FALSE)) ->  | D21: =IF($C21="","",VLOOKUP($B21,'Suroviny a produkty'!$A$3:$I$1045,8,FALSE)) ->  | E21: =IF($C21="","",VLOOKUP($B21,'Suroviny a produkty'!$A$3:$I$1045,7,FALSE)) ->  | F21: 0
A22: =IF($B22="","",VLOOKUP($B22,'Suroviny a produkty'!$A$3:$I$1045,7,FALSE)) ->  | D22: =IF($C22="","",VLOOKUP($B22,'Suroviny a produkty'!$A$3:$I$1045,8,FALSE)) ->  | E22: =IF($C22="","",VLOOKUP($B22,'Suroviny a produkty'!$A$3:$I$1045,7,FALSE)) ->  | F22: 0
A23: =IF($B23="","",VLOOKUP($B23,'Suroviny a produkty'!$A$3:$I$1045,7,FALSE)) ->  | D23: =IF($C23="","",VLOOKUP($B23,'Suroviny a produkty'!$A$3:$I$1045,8,FALSE)) ->  | E23: =IF($C23="","",VLOOKUP($B23,'Suroviny a produkty'!$A$3:$I$1045,7,FALSE)) ->  | F23: 0
A24: =IF($B24="","",VLOOKUP($B24,'Suroviny a produkty'!$A$3:$I$1045,7,FALSE)) ->  | D24: =IF($C24="","",VLOOKUP($B24,'Suroviny a produkty'!$A$3:$I$1045,8,FALSE)) ->  | E24: =IF($C24="","",VLOOKUP($B24,'Suroviny a produkty'!$A$3:$I$1045,7,FALSE)) ->  | F24: 0
A25: =IF($B25="","",VLOOKUP($B25,'Suroviny a produkty'!$A$3:$I$1045,7,FALSE)) ->  | D25: =IF($C25="","",VLOOKUP($B25,'Suroviny a produkty'!$A$3:$I$1045,8,FALSE)) ->  | E25: =IF($C25="","",VLOOKUP($B25,'Suroviny a produkty'!$A$3:$I$1045,7,FALSE)) ->  | F25: 0
A26: =IF($B26="","",VLOOKUP($B26,'Suroviny a produkty'!$A$3:$I$1045,7,FALSE)) ->  | D26: =IF($C26="","",VLOOKUP($B26,'Suroviny a produkty'!$A$3:$I$1045,8,FALSE)) ->  | E26: =IF($C26="","",VLOOKUP($B26,'Suroviny a produkty'!$A$3:$I$1045,7,FALSE)) ->  | F26: 0
A27: =IF($B27="","",VLOOKUP($B27,'Suroviny a produkty'!$A$3:$I$1045,7,FALSE)) ->  | D27: =IF($C27="","",VLOOKUP($B27,'Suroviny a produkty'!$A$3:$I$1045,8,FALSE)) ->  | E27: =IF($C27="","",VLOOKUP($B27,'Suroviny a produkty'!$A$3:$I$1045,7,FALSE)) ->  | F27: 0
A28: =IF($B28="","",VLOOKUP($B28,'Suroviny a produkty'!$A$3:$I$1045,7,FALSE)) ->  | D28: =IF($C28="","",VLOOKUP($B28,'Suroviny a produkty'!$A$3:$I$1045,8,FALSE)) ->  | E28: =IF($C28="","",VLOOKUP($B28,'Suroviny a produkty'!$A$3:$I$1045,7,FALSE)) ->  | F28: 0
A29: =IF($B29="","",VLOOKUP($B29,'Suroviny a produkty'!$A$3:$I$1045,7,FALSE)) ->  | D29: =IF($C29="","",VLOOKUP($B29,'Suroviny a produkty'!$A$3:$I$1045,8,FALSE)) ->  | E29: =IF($C29="","",VLOOKUP($B29,'Suroviny a produkty'!$A$3:$I$1045,7,FALSE)) ->  | F29: 0
A30: =IF($B30="","",VLOOKUP($B30,'Suroviny a produkty'!$A$3:$I$1045,7,FALSE)) ->  | D30: =IF($C30="","",VLOOKUP($B30,'Suroviny a produkty'!$A$3:$I$1045,8,FALSE)) ->  | E30: =IF($C30="","",VLOOKUP($B30,'Suroviny a produkty'!$A$3:$I$1045,7,FALSE)) ->  | F30: 0
A31: =IF($B31="","",VLOOKUP($B31,'Suroviny a produkty'!$A$3:$I$1045,7,FALSE)) ->  | D31: =IF($C31="","",VLOOKUP($B31,'Suroviny a produkty'!$A$3:$I$1045,8,FALSE)) ->  | E31: =IF($C31="","",VLOOKUP($B31,'Suroviny a produkty'!$A$3:$I$1045,7,FALSE)) ->  | F31: 0
A32: =IF($B32="","",VLOOKUP($B32,'Suroviny a produkty'!$A$3:$I$1045,7,FALSE)) ->  | D32: =IF($C32="","",VLOOKUP($B32,'Suroviny a produkty'!$A$3:$I$1045,8,FALSE)) ->  | E32: =IF($C32="","",VLOOKUP($B32,'Suroviny a produkty'!$A$3:$I$1045,7,FALSE)) ->  | F32: 0
A33: =IF($B33="","",VLOOKUP($B33,'Suroviny a produkty'!$A$3:$I$1045,7,FALSE)) ->  | D33: =IF($C33="","",VLOOKUP($B33,'Suroviny a produkty'!$A$3:$I$1045,8,FALSE)) ->  | E33: =IF($C33="","",VLOOKUP($B33,'Suroviny a produkty'!$A$3:$I$1045,7,FALSE)) ->  | F33: 0
A34: =IF($B34="","",VLOOKUP($B34,'Suroviny a produkty'!$A$3:$I$1045,7,FALSE)) ->  | D34: =IF($C34="","",VLOOKUP($B34,'Suroviny a produkty'!$A$3:$I$1045,8,FALSE)) ->  | E34: =IF($C34="","",VLOOKUP($B34,'Suroviny a produkty'!$A$3:$I$1045,7,FALSE)) ->  | F34: 0
A35: =IF($B35="","",VLOOKUP($B35,'Suroviny a produkty'!$A$3:$I$1045,7,FALSE)) ->  | D35: =IF($C35="","",VLOOKUP($B35,'Suroviny a produkty'!$A$3:$I$1045,8,FALSE)) ->  | E35: =IF($C35="","",VLOOKUP($B35,'Suroviny a produkty'!$A$3:$I$1045,7,FALSE)) ->  | F35: 0
A36: =IF($B36="","",VLOOKUP($B36,'Suroviny a produkty'!$A$3:$I$1045,7,FALSE)) ->  | D36: =IF($C36="","",VLOOKUP($B36,'Suroviny a produkty'!$A$3:$I$1045,8,FALSE)) ->  | E36: =IF($C36="","",VLOOKUP($B36,'Suroviny a produkty'!$A$3:$I$1045,7,FALSE)) ->  | F36: 0
A37: =IF($B37="","",VLOOKUP($B37,'Suroviny a produkty'!$A$3:$I$1045,7,FALSE)) ->  | D37: =IF($C37="","",VLOOKUP($B37,'Suroviny a produkty'!$A$3:$I$1045,8,FALSE)) ->  | E37: =IF($C37="","",VLOOKUP($B37,'Suroviny a produkty'!$A$3:$I$1045,7,FALSE)) ->  | F37: 0
A38: =IF($B38="","",VLOOKUP($B38,'Suroviny a produkty'!$A$3:$I$1045,7,FALSE)) ->  | D38: =IF($C38="","",VLOOKUP($B38,'Suroviny a produkty'!$A$3:$I$1045,8,FALSE)) ->  | E38: =IF($C38="","",VLOOKUP($B38,'Suroviny a produkty'!$A$3:$I$1045,7,FALSE)) ->  | F38: 0

Sheet P13
B1: ='Jídelní lístek'!C18 -> Kuřecí supreme s hráškovým bulgurem | C1: Množství | D1: Jedn. | E1: Cena za jednotku | F1: Cena pro množství v receptu | G1: Shrnutí Pro aktuální cenu je třeba aktualizovat ceny na listu surovin | J1: Popis
B2: Jídelní lístek | C2: Suroviny | G2: Alergeny | H2: 1;7;
A3: =IF($B3="","",VLOOKUP($B3,'Suroviny a produkty'!$A$3:$I$1045,7,FALSE)) -> 0.195385 | B3: Kuřecí supreme | C3: 2400 | D3: =IF($C3="","",VLOOKUP($B3,'Suroviny a produkty'!$A$3:$I$1045,8,FALSE)) -> g | E3: =IF($C3="","",VLOOKUP($B3,'Suroviny a produkty'!$A$3:$I$1045,7,FALSE)) -> 0.195385 | F3: =IF(C3=0,0,E3*C3) -> 468.924 | G3: Počet porcí | H3: 10 | I3: ks
A4: =IF($B4="","",VLOOKUP($B4,'Suroviny a produkty'!$A$3:$I$1045,7,FALSE)) -> 0.005957 | B4: Sůl | C4: 20 | D4: =IF($C4="","",VLOOKUP($B4,'Suroviny a produkty'!$A$3:$I$1045,8,FALSE)) -> g | E4: =IF($C4="","",VLOOKUP($B4,'Suroviny a produkty'!$A$3:$I$1045,7,FALSE)) -> 0.005957 | F4: 0.11914 | G4: Porce | I4: g
A5: =IF($B5="","",VLOOKUP($B5,'Suroviny a produkty'!$A$3:$I$1045,7,FALSE)) -> 0.233611 | B5: Pepř | C5: 2 | D5: =IF($C5="","",VLOOKUP($B5,'Suroviny a produkty'!$A$3:$I$1045,8,FALSE)) -> g | E5: =IF($C5="","",VLOOKUP($B5,'Suroviny a produkty'!$A$3:$I$1045,7,FALSE)) -> 0.233611 | F5: 0.467222 | G5: Cena celkem | H5: =ROUND(SUM(F3:F38),1) -> 591.8 | I5: Kč
A6: =IF($B6="","",VLOOKUP($B6,'Suroviny a produkty'!$A$3:$I$1045,7,FALSE)) -> 0.33856 | B6: Argentina | C6: 5 | D6: =IF($C6="","",VLOOKUP($B6,'Suroviny a produkty'!$A$3:$I$1045,8,FALSE)) -> g | E6: =IF($C6="","",VLOOKUP($B6,'Suroviny a produkty'!$A$3:$I$1045,7,FALSE)) -> 0.33856 | F6: 1.6928 | G6: Energie celkem | I6: Kč
A7: =IF($B7="","",VLOOKUP($B7,'Suroviny a produkty'!$A$3:$I$1045,7,FALSE)) -> 0.1426 | B7: Máslo SIM | C7: 125 | D7: =IF($C7="","",VLOOKUP($B7,'Suroviny a produkty'!$A$3:$I$1045,8,FALSE)) -> g | E7: =IF($C7="","",VLOOKUP($B7,'Suroviny a produkty'!$A$3:$I$1045,7,FALSE)) -> 0.1426 | F7: 17.825 | G7: Cena za porci | H7: =(H6+H5)/H3 -> 59.18 | I7: Kč
A8: =IF($B8="","",VLOOKUP($B8,'Suroviny a produkty'!$A$3:$I$1045,7,FALSE)) ->  | D8: =IF($C8="","",VLOOKUP($B8,'Suroviny a produkty'!$A$3:$I$1045,8,FALSE)) ->  | E8: =IF($C8="","",VLOOKUP($B8,'Suroviny a produkty'!$A$3:$I$1045,7,FALSE)) ->  | F8: 0 | G8: Prodejní cena | H8: 235 | I8: Kč
A9: =IF($B9="","",VLOOKUP($B9,'Suroviny a produkty'!$A$3:$I$1045,7,FALSE)) ->  | D9: =IF($C9="","",VLOOKUP($B9,'Suroviny a produkty'!$A$3:$I$1045,8,FALSE)) ->  | E9: =IF($C9="","",VLOOKUP($B9,'Suroviny a produkty'!$A$3:$I$1045,7,FALSE)) ->  | F9: 0 | G9: Marže | H9: =IF(H7=0,0,H8/H7)*100 -> 397.0936127 | I9: %
B10: Hráškový bulgur | D10: =IF($C10="","",VLOOKUP($B10,'Suroviny a produkty'!$A$3:$I$1045,8,FALSE)) ->  | E10: =IF($C10="","",VLOOKUP($B10,'Suroviny a produkty'!$A$3:$I$1045,7,FALSE)) ->  | F10: 0
A11: =IF($B11="","",VLOOKUP($B11,'Suroviny a produkty'!$A$3:$I$1045,7,FALSE)) -> 0.0509703 | B11: Bulgur | C11: 500 | D11: =IF($C11="","",VLOOKUP($B11,'Suroviny a produkty'!$A$3:$I$1045,8,FALSE)) -> g | E11: =IF($C11="","",VLOOKUP($B11,'Suroviny a produkty'!$A$3:$I$1045,7,FALSE)) -> 0.0509703 | F11: 25.48515 | J11: Kuřecí supreme děláme jako sous-vide.
A12: =IF($B12="","",VLOOKUP($B12,'Suroviny a produkty'!$A$3:$I$1045,7,FALSE)) -> 0.0440818 | B12: Hrášek mražený | C12: 1500 | D12: =IF($C12="","",VLOOKUP($B12,'Suroviny a produkty'!$A$3:$I$1045,8,FALSE)) -> g | E12: =IF($C12="","",VLOOKUP($B12,'Suroviny a produkty'!$A$3:$I$1045,7,FALSE)) -> 0.0440818 | F12: 66.1227
A13: =IF($B13="","",VLOOKUP($B13,'Suroviny a produkty'!$A$3:$I$1045,7,FALSE)) -> 0.005957 | B13: Sůl | C13: 20 | D13: =IF($C13="","",VLOOKUP($B13,'Suroviny a produkty'!$A$3:$I$1045,8,FALSE)) -> g | E13: =IF($C13="","",VLOOKUP($B13,'Suroviny a produkty'!$A$3:$I$1045,7,FALSE)) -> 0.005957 | F13: 0.11914
A14: =IF($B14="","",VLOOKUP($B14,'Suroviny a produkty'!$A$3:$I$1045,7,FALSE)) -> 0.1108255 | B14: Smetana | C14: 100 | D14: =IF($C14="","",VLOOKUP($B14,'Suroviny a produkty'!$A$3:$I$1045,8,FALSE)) -> g | E14: =IF($C14="","",VLOOKUP($B14,'Suroviny a produkty'!$A$3:$I$1045,7,FALSE)) -> 0.1108255 | F14: 11.08255
A15: =IF($B15="","",VLOOKUP($B15,'Suroviny a produkty'!$A$3:$I$1045,7,FALSE)) ->  | D15: =IF($C15="","",VLOOKUP($B15,'Suroviny a produkty'!$A$3:$I$1045,8,FALSE)) ->  | E15: =IF($C15="","",VLOOKUP($B15,'Suroviny a produkty'!$A$3:$I$1045,7,FALSE)) ->  | F15: 0
A16: =IF($B16="","",VLOOKUP($B16,'Suroviny a produkty'!$A$3:$I$1045,7,FALSE)) ->  | D16: =IF($C16="","",VLOOKUP($B16,'Suroviny a produkty'!$A$3:$I$1045,8,FALSE)) ->  | E16: =IF($C16="","",VLOOKUP($B16,'Suroviny a produkty'!$A$3:$I$1045,7,FALSE)) ->  | F16: 0
A17: =IF($B17="","",VLOOKUP($B17,'Suroviny a produkty'!$A$3:$I$1045,7,FALSE)) ->  | D17: =IF($C17="","",VLOOKUP($B17,'Suroviny a produkty'!$A$3:$I$1045,8,FALSE)) ->  | E17: =IF($C17="","",VLOOKUP($B17,'Suroviny a produkty'!$A$3:$I$1045,7,FALSE)) ->  | F17: 0
A18: =IF($B18="","",VLOOKUP($B18,'Suroviny a produkty'!$A$3:$I$1045,7,FALSE)) ->  | D18: =IF($C18="","",VLOOKUP($B18,'Suroviny a produkty'!$A$3:$I$1045,8,FALSE)) ->  | E18: =IF($C18="","",VLOOKUP($B18,'Suroviny a produkty'!$A$3:$I$1045,7,FALSE)) ->  | F18: 0
A19: =IF($B19="","",VLOOKUP($B19,'Suroviny a produkty'!$A$3:$I$1045,7,FALSE)) ->  | D19: =IF($C19="","",VLOOKUP($B19,'Suroviny a produkty'!$A$3:$I$1045,8,FALSE)) ->  | E19: =IF($C19="","",VLOOKUP($B19,'Suroviny a produkty'!$A$3:$I$1045,7,FALSE)) ->  | F19: 0
A20: =IF($B20="","",VLOOKUP($B20,'Suroviny a produkty'!$A$3:$I$1045,7,FALSE)) ->  | D20: =IF($C20="","",VLOOKUP($B20,'Suroviny a produkty'!$A$3:$I$1045,8,FALSE)) ->  | E20: =IF($C20="","",VLOOKUP($B20,'Suroviny a produkty'!$A$3:$I$1045,7,FALSE)) ->  | F20: 0
A21: =IF($B21="","",VLOOKUP($B21,'Suroviny a produkty'!$A$3:$I$1045,7,FALSE)) ->  | D21: =IF($C21="","",VLOOKUP($B21,'Suroviny a produkty'!$A$3:$I$1045,8,FALSE)) ->  | E21: =IF($C21="","",VLOOKUP($B21,'Suroviny a produkty'!$A$3:$I$1045,7,FALSE)) ->  | F21: 0
A22: =IF($B22="","",VLOOKUP($B22,'Suroviny a produkty'!$A$3:$I$1045,7,FALSE)) ->  | D22: =IF($C22="","",VLOOKUP($B22,'Suroviny a produkty'!$A$3:$I$1045,8,FALSE)) ->  | E22: =IF($C22="","",VLOOKUP($B22,'Suroviny a produkty'!$A$3:$I$1045,7,FALSE)) ->  | F22: 0
A23: =IF($B23="","",VLOOKUP($B23,'Suroviny a produkty'!$A$3:$I$1045,7,FALSE)) ->  | D23: =IF($C23="","",VLOOKUP($B23,'Suroviny a produkty'!$A$3:$I$1045,8,FALSE)) ->  | E23: =IF($C23="","",VLOOKUP($B23,'Suroviny a produkty'!$A$3:$I$1045,7,FALSE)) ->  | F23: 0
A24: =IF($B24="","",VLOOKUP($B24,'Suroviny a produkty'!$A$3:$I$1045,7,FALSE)) ->  | D24: =IF($C24="","",VLOOKUP($B24,'Suroviny a produkty'!$A$3:$I$1045,8,FALSE)) ->  | E24: =IF($C24="","",VLOOKUP($B24,'Suroviny a produkty'!$A$3:$I$1045,7,FALSE)) ->  | F24: 0
A25: =IF($B25="","",VLOOKUP($B25,'Suroviny a produkty'!$A$3:$I$1045,7,FALSE)) ->  | D25: =IF($C25="","",VLOOKUP($B25,'Suroviny a produkty'!$A$3:$I$1045,8,FALSE)) ->  | E25: =IF($C25="","",VLOOKUP($B25,'Suroviny a produkty'!$A$3:$I$1045,7,FALSE)) ->  | F25: 0
A26: =IF($B26="","",VLOOKUP($B26,'Suroviny a produkty'!$A$3:$I$1045,7,FALSE)) ->  | D26: =IF($C26="","",VLOOKUP($B26,'Suroviny a produkty'!$A$3:$I$1045,8,FALSE)) ->  | E26: =IF($C26="","",VLOOKUP($B26,'Suroviny a produkty'!$A$3:$I$1045,7,FALSE)) ->  | F26: 0
A27: =IF($B27="","",VLOOKUP($B27,'Suroviny a produkty'!$A$3:$I$1045,7,FALSE)) ->  | D27: =IF($C27="","",VLOOKUP($B27,'Suroviny a produkty'!$A$3:$I$1045,8,FALSE)) ->  | E27: =IF($C27="","",VLOOKUP($B27,'Suroviny a produkty'!$A$3:$I$1045,7,FALSE)) ->  | F27: 0
A28: =IF($B28="","",VLOOKUP($B28,'Suroviny a produkty'!$A$3:$I$1045,7,FALSE)) ->  | D28: =IF($C28="","",VLOOKUP($B28,'Suroviny a produkty'!$A$3:$I$1045,8,FALSE)) ->  | E28: =IF($C28="","",VLOOKUP($B28,'Suroviny a produkty'!$A$3:$I$1045,7,FALSE)) ->  | F28: 0
A29: =IF($B29="","",VLOOKUP($B29,'Suroviny a produkty'!$A$3:$I$1045,7,FALSE)) ->  | D29: =IF($C29="","",VLOOKUP($B29,'Suroviny a produkty'!$A$3:$I$1045,8,FALSE)) ->  | E29: =IF($C29="","",VLOOKUP($B29,'Suroviny a produkty'!$A$3:$I$1045,7,FALSE)) ->  | F29: 0
A30: =IF($B30="","",VLOOKUP($B30,'Suroviny a produkty'!$A$3:$I$1045,7,FALSE)) ->  | D30: =IF($C30="","",VLOOKUP($B30,'Suroviny a produkty'!$A$3:$I$1045,8,FALSE)) ->  | E30: =IF($C30="","",VLOOKUP($B30,'Suroviny a produkty'!$A$3:$I$1045,7,FALSE)) ->  | F30: 0
A31: =IF($B31="","",VLOOKUP($B31,'Suroviny a produkty'!$A$3:$I$1045,7,FALSE)) ->  | D31: =IF($C31="","",VLOOKUP($B31,'Suroviny a produkty'!$A$3:$I$1045,8,FALSE)) ->  | E31: =IF($C31="","",VLOOKUP($B31,'Suroviny a produkty'!$A$3:$I$1045,7,FALSE)) ->  | F31: 0
A32: =IF($B32="","",VLOOKUP($B32,'Suroviny a produkty'!$A$3:$I$1045,7,FALSE)) ->  | D32: =IF($C32="","",VLOOKUP($B32,'Suroviny a produkty'!$A$3:$I$1045,8,FALSE)) ->  | E32: =IF($C32="","",VLOOKUP($B32,'Suroviny a produkty'!$A$3:$I$1045,7,FALSE)) ->  | F32: 0
A33: =IF($B33="","",VLOOKUP($B33,'Suroviny a produkty'!$A$3:$I$1045,7,FALSE)) ->  | D33: =IF($C33="","",VLOOKUP($B33,'Suroviny a produkty'!$A$3:$I$1045,8,FALSE)) ->  | E33: =IF($C33="","",VLOOKUP($B33,'Suroviny a produkty'!$A$3:$I$1045,7,FALSE)) ->  | F33: 0
A34: =IF($B34="","",VLOOKUP($B34,'Suroviny a produkty'!$A$3:$I$1045,7,FALSE)) ->  | D34: =IF($C34="","",VLOOKUP($B34,'Suroviny a produkty'!$A$3:$I$1045,8,FALSE)) ->  | E34: =IF($C34="","",VLOOKUP($B34,'Suroviny a produkty'!$A$3:$I$1045,7,FALSE)) ->  | F34: 0
A35: =IF($B35="","",VLOOKUP($B35,'Suroviny a produkty'!$A$3:$I$1045,7,FALSE)) ->  | D35: =IF($C35="","",VLOOKUP($B35,'Suroviny a produkty'!$A$3:$I$1045,8,FALSE)) ->  | E35: =IF($C35="","",VLOOKUP($B35,'Suroviny a produkty'!$A$3:$I$1045,7,FALSE)) ->  | F35: 0
A36: =IF($B36="","",VLOOKUP($B36,'Suroviny a produkty'!$A$3:$I$1045,7,FALSE)) ->  | D36: =IF($C36="","",VLOOKUP($B36,'Suroviny a produkty'!$A$3:$I$1045,8,FALSE)) ->  | E36: =IF($C36="","",VLOOKUP($B36,'Suroviny a produkty'!$A$3:$I$1045,7,FALSE)) ->  | F36: 0
A37: =IF($B37="","",VLOOKUP($B37,'Suroviny a produkty'!$A$3:$I$1045,7,FALSE)) ->  | D37: =IF($C37="","",VLOOKUP($B37,'Suroviny a produkty'!$A$3:$I$1045,8,FALSE)) ->  | E37: =IF($C37="","",VLOOKUP($B37,'Suroviny a produkty'!$A$3:$I$1045,7,FALSE)) ->  | F37: 0
A38: =IF($B38="","",VLOOKUP($B38,'Suroviny a produkty'!$A$3:$I$1045,7,FALSE)) ->  | D38: =IF($C38="","",VLOOKUP($B38,'Suroviny a produkty'!$A$3:$I$1045,8,FALSE)) ->  | E38: =IF($C38="","",VLOOKUP($B38,'Suroviny a produkty'!$A$3:$I$1045,7,FALSE)) ->  | F38: 0

Sheet P14
B1: ='Jídelní lístek'!C19 -> Kuličky z kozího sýra | C1: Množství | D1: Jedn. | E1: Cena za jednotku | F1: Cena pro množství v receptu | G1: Shrnutí Pro aktuální cenu je třeba aktualizovat ceny na listu surovin | J1: Popis
B2: Jídelní lístek | C2: Suroviny
A3: =IF($B3="","",VLOOKUP($B3,'Suroviny a produkty'!$A$3:$I$1045,7,FALSE)) -> 0 | B3: Kozí sýr | C3: 20 | D3: =IF($C3="","",VLOOKUP($B3,'Suroviny a produkty'!$A$3:$I$1045,8,FALSE)) -> g | E3: =IF($C3="","",VLOOKUP($B3,'Suroviny a produkty'!$A$3:$I$1045,7,FALSE)) -> 0 | F3: =IF(C3=0,0,E3*C3) -> 0 | G3: Počet porcí | H3: 1 | I3: ks
A4: =IF($B4="","",VLOOKUP($B4,'Suroviny a produkty'!$A$3:$I$1045,7,FALSE)) -> 0.1495 | B4: Sýr tavený | C4: 20 | D4: =IF($C4="","",VLOOKUP($B4,'Suroviny a produkty'!$A$3:$I$1045,8,FALSE)) -> g | E4: =IF($C4="","",VLOOKUP($B4,'Suroviny a produkty'!$A$3:$I$1045,7,FALSE)) -> 0.1495 | F4: 2.99 | G4: Porce | H4: =SUM(C3:C6) -> 44 | I4: g
A5: =IF($B5="","",VLOOKUP($B5,'Suroviny a produkty'!$A$3:$I$1045,7,FALSE)) -> 0.105685 | B5: Česnek | C5: 2 | D5: =IF($C5="","",VLOOKUP($B5,'Suroviny a produkty'!$A$3:$I$1045,8,FALSE)) -> g | E5: =IF($C5="","",VLOOKUP($B5,'Suroviny a produkty'!$A$3:$I$1045,7,FALSE)) -> 0.105685 | F5: 0.21137 | G5: Cena celkem | H5: =ROUND(SUM(F3:F38),1) -> 3.2 | I5: Kč
A6: =IF($B6="","",VLOOKUP($B6,'Suroviny a produkty'!$A$3:$I$1045,7,FALSE)) -> 0.005957 | B6: Sůl | C6: 2 | D6: =IF($C6="","",VLOOKUP($B6,'Suroviny a produkty'!$A$3:$I$1045,8,FALSE)) -> g | E6: =IF($C6="","",VLOOKUP($B6,'Suroviny a produkty'!$A$3:$I$1045,7,FALSE)) -> 0.005957 | F6: 0.011914 | G6: Energie celkem | I6: Kč
A7: =IF($B7="","",VLOOKUP($B7,'Suroviny a produkty'!$A$3:$I$1045,7,FALSE)) ->  | D7: =IF($C7="","",VLOOKUP($B7,'Suroviny a produkty'!$A$3:$I$1045,8,FALSE)) ->  | E7: =IF($C7="","",VLOOKUP($B7,'Suroviny a produkty'!$A$3:$I$1045,7,FALSE)) ->  | F7: 0 | G7: Cena za porci | H7: =(H6+H5)/H3 -> 3.2 | I7: Kč
A8: =IF($B8="","",VLOOKUP($B8,'Suroviny a produkty'!$A$3:$I$1045,7,FALSE)) ->  | D8: =IF($C8="","",VLOOKUP($B8,'Suroviny a produkty'!$A$3:$I$1045,8,FALSE)) ->  | E8: =IF($C8="","",VLOOKUP($B8,'Suroviny a produkty'!$A$3:$I$1045,7,FALSE)) ->  | F8: 0 | G8: Prodejní cena | H8: ='Jídelní lístek'!E19 -> 40 | I8: Kč
A9: =IF($B9="","",VLOOKUP($B9,'Suroviny a produkty'!$A$3:$I$1045,7,FALSE)) ->  | D9: =IF($C9="","",VLOOKUP($B9,'Suroviny a produkty'!$A$3:$I$1045,8,FALSE)) ->  | E9: =IF($C9="","",VLOOKUP($B9,'Suroviny a produkty'!$A$3:$I$1045,7,FALSE)) ->  | F9: 0 | G9: Marže | H9: =IF(H7=0,0,H8/H7)*100 -> 1250 | I9: %
A10: =IF($B10="","",VLOOKUP($B10,'Suroviny a produkty'!$A$3:$I$1045,7,FALSE)) ->  | D10: =IF($C10="","",VLOOKUP($B10,'Suroviny a produkty'!$A$3:$I$1045,8,FALSE)) ->  | E10: =IF($C10="","",VLOOKUP($B10,'Suroviny a produkty'!$A$3:$I$1045,7,FALSE)) ->  | F10: 0
B11: Obal | D11: =IF($C11="","",VLOOKUP($B11,'Suroviny a produkty'!$A$3:$I$1045,8,FALSE)) ->  | E11: =IF($C11="","",VLOOKUP($B11,'Suroviny a produkty'!$A$3:$I$1045,7,FALSE)) ->  | F11: 0
B12: Argentina se sušenou cibulí nebo | D12: =IF($C12="","",VLOOKUP($B12,'Suroviny a produkty'!$A$3:$I$1045,8,FALSE)) ->  | E12: =IF($C12="","",VLOOKUP($B12,'Suroviny a produkty'!$A$3:$I$1045,7,FALSE)) ->  | F12: 0
B13: Zelené bylinky | D13: =IF($C13="","",VLOOKUP($B13,'Suroviny a produkty'!$A$3:$I$1045,8,FALSE)) ->  | E13: =IF($C13="","",VLOOKUP($B13,'Suroviny a produkty'!$A$3:$I$1045,7,FALSE)) ->  | F13: 0
A14: =IF($B14="","",VLOOKUP($B14,'Suroviny a produkty'!$A$3:$I$1045,7,FALSE)) ->  | D14: =IF($C14="","",VLOOKUP($B14,'Suroviny a produkty'!$A$3:$I$1045,8,FALSE)) ->  | E14: =IF($C14="","",VLOOKUP($B14,'Suroviny a produkty'!$A$3:$I$1045,7,FALSE)) ->  | F14: 0
A15: =IF($B15="","",VLOOKUP($B15,'Suroviny a produkty'!$A$3:$I$1045,7,FALSE)) ->  | D15: =IF($C15="","",VLOOKUP($B15,'Suroviny a produkty'!$A$3:$I$1045,8,FALSE)) ->  | E15: =IF($C15="","",VLOOKUP($B15,'Suroviny a produkty'!$A$3:$I$1045,7,FALSE)) ->  | F15: 0
A16: =IF($B16="","",VLOOKUP($B16,'Suroviny a produkty'!$A$3:$I$1045,7,FALSE)) ->  | D16: =IF($C16="","",VLOOKUP($B16,'Suroviny a produkty'!$A$3:$I$1045,8,FALSE)) ->  | E16: =IF($C16="","",VLOOKUP($B16,'Suroviny a produkty'!$A$3:$I$1045,7,FALSE)) ->  | F16: 0
A17: =IF($B17="","",VLOOKUP($B17,'Suroviny a produkty'!$A$3:$I$1045,7,FALSE)) ->  | D17: =IF($C17="","",VLOOKUP($B17,'Suroviny a produkty'!$A$3:$I$1045,8,FALSE)) ->  | E17: =IF($C17="","",VLOOKUP($B17,'Suroviny a produkty'!$A$3:$I$1045,7,FALSE)) ->  | F17: 0
A18: =IF($B18="","",VLOOKUP($B18,'Suroviny a produkty'!$A$3:$I$1045,7,FALSE)) ->  | D18: =IF($C18="","",VLOOKUP($B18,'Suroviny a produkty'!$A$3:$I$1045,8,FALSE)) ->  | E18: =IF($C18="","",VLOOKUP($B18,'Suroviny a produkty'!$A$3:$I$1045,7,FALSE)) ->  | F18: 0
A19: =IF($B19="","",VLOOKUP($B19,'Suroviny a produkty'!$A$3:$I$1045,7,FALSE)) ->  | D19: =IF($C19="","",VLOOKUP($B19,'Suroviny a produkty'!$A$3:$I$1045,8,FALSE)) ->  | E19: =IF($C19="","",VLOOKUP($B19,'Suroviny a produkty'!$A$3:$I$1045,7,FALSE)) ->  | F19: 0
A20: =IF($B20="","",VLOOKUP($B20,'Suroviny a produkty'!$A$3:$I$1045,7,FALSE)) ->  | D20: =IF($C20="","",VLOOKUP($B20,'Suroviny a produkty'!$A$3:$I$1045,8,FALSE)) ->  | E20: =IF($C20="","",VLOOKUP($B20,'Suroviny a produkty'!$A$3:$I$1045,7,FALSE)) ->  | F20: 0
A21: =IF($B21="","",VLOOKUP($B21,'Suroviny a produkty'!$A$3:$I$1045,7,FALSE)) ->  | D21: =IF($C21="","",VLOOKUP($B21,'Suroviny a produkty'!$A$3:$I$1045,8,FALSE)) ->  | E21: =IF($C21="","",VLOOKUP($B21,'Suroviny a produkty'!$A$3:$I$1045,7,FALSE)) ->  | F21: 0
A22: =IF($B22="","",VLOOKUP($B22,'Suroviny a produkty'!$A$3:$I$1045,7,FALSE)) ->  | D22: =IF($C22="","",VLOOKUP($B22,'Suroviny a produkty'!$A$3:$I$1045,8,FALSE)) ->  | E22: =IF($C22="","",VLOOKUP($B22,'Suroviny a produkty'!$A$3:$I$1045,7,FALSE)) ->  | F22: 0
A23: =IF($B23="","",VLOOKUP($B23,'Suroviny a produkty'!$A$3:$I$1045,7,FALSE)) ->  | D23: =IF($C23="","",VLOOKUP($B23,'Suroviny a produkty'!$A$3:$I$1045,8,FALSE)) ->  | E23: =IF($C23="","",VLOOKUP($B23,'Suroviny a produkty'!$A$3:$I$1045,7,FALSE)) ->  | F23: 0
A24: =IF($B24="","",VLOOKUP($B24,'Suroviny a produkty'!$A$3:$I$1045,7,FALSE)) ->  | D24: =IF($C24="","",VLOOKUP($B24,'Suroviny a produkty'!$A$3:$I$1045,8,FALSE)) ->  | E24: =IF($C24="","",VLOOKUP($B24,'Suroviny a produkty'!$A$3:$I$1045,7,FALSE)) ->  | F24: 0
A25: =IF($B25="","",VLOOKUP($B25,'Suroviny a produkty'!$A$3:$I$1045,7,FALSE)) ->  | D25: =IF($C25="","",VLOOKUP($B25,'Suroviny a produkty'!$A$3:$I$1045,8,FALSE)) ->  | E25: =IF($C25="","",VLOOKUP($B25,'Suroviny a produkty'!$A$3:$I$1045,7,FALSE)) ->  | F25: 0
A26: =IF($B26="","",VLOOKUP($B26,'Suroviny a produkty'!$A$3:$I$1045,7,FALSE)) ->  | D26: =IF($C26="","",VLOOKUP($B26,'Suroviny a produkty'!$A$3:$I$1045,8,FALSE)) ->  | E26: =IF($C26="","",VLOOKUP($B26,'Suroviny a produkty'!$A$3:$I$1045,7,FALSE)) ->  | F26: 0
A27: =IF($B27="","",VLOOKUP($B27,'Suroviny a produkty'!$A$3:$I$1045,7,FALSE)) ->  | D27: =IF($C27="","",VLOOKUP($B27,'Suroviny a produkty'!$A$3:$I$1045,8,FALSE)) ->  | E27: =IF($C27="","",VLOOKUP($B27,'Suroviny a produkty'!$A$3:$I$1045,7,FALSE)) ->  | F27: 0
A28: =IF($B28="","",VLOOKUP($B28,'Suroviny a produkty'!$A$3:$I$1045,7,FALSE)) ->  | D28: =IF($C28="","",VLOOKUP($B28,'Suroviny a produkty'!$A$3:$I$1045,8,FALSE)) ->  | E28: =IF($C28="","",VLOOKUP($B28,'Suroviny a produkty'!$A$3:$I$1045,7,FALSE)) ->  | F28: 0
A29: =IF($B29="","",VLOOKUP($B29,'Suroviny a produkty'!$A$3:$I$1045,7,FALSE)) ->  | D29: =IF($C29="","",VLOOKUP($B29,'Suroviny a produkty'!$A$3:$I$1045,8,FALSE)) ->  | E29: =IF($C29="","",VLOOKUP($B29,'Suroviny a produkty'!$A$3:$I$1045,7,FALSE)) ->  | F29: 0
A30: =IF($B30="","",VLOOKUP($B30,'Suroviny a produkty'!$A$3:$I$1045,7,FALSE)) ->  | D30: =IF($C30="","",VLOOKUP($B30,'Suroviny a produkty'!$A$3:$I$1045,8,FALSE)) ->  | E30: =IF($C30="","",VLOOKUP($B30,'Suroviny a produkty'!$A$3:$I$1045,7,FALSE)) ->  | F30: 0
A31: =IF($B31="","",VLOOKUP($B31,'Suroviny a produkty'!$A$3:$I$1045,7,FALSE)) ->  | D31: =IF($C31="","",VLOOKUP($B31,'Suroviny a produkty'!$A$3:$I$1045,8,FALSE)) ->  | E31: =IF($C31="","",VLOOKUP($B31,'Suroviny a produkty'!$A$3:$I$1045,7,FALSE)) ->  | F31: 0
A32: =IF($B32="","",VLOOKUP($B32,'Suroviny a produkty'!$A$3:$I$1045,7,FALSE)) ->  | D32: =IF($C32="","",VLOOKUP($B32,'Suroviny a produkty'!$A$3:$I$1045,8,FALSE)) ->  | E32: =IF($C32="","",VLOOKUP($B32,'Suroviny a produkty'!$A$3:$I$1045,7,FALSE)) ->  | F32: 0
A33: =IF($B33="","",VLOOKUP($B33,'Suroviny a produkty'!$A$3:$I$1045,7,FALSE)) ->  | D33: =IF($C33="","",VLOOKUP($B33,'Suroviny a produkty'!$A$3:$I$1045,8,FALSE)) ->  | E33: =IF($C33="","",VLOOKUP($B33,'Suroviny a produkty'!$A$3:$I$1045,7,FALSE)) ->  | F33: 0
A34: =IF($B34="","",VLOOKUP($B34,'Suroviny a produkty'!$A$3:$I$1045,7,FALSE)) ->  | D34: =IF($C34="","",VLOOKUP($B34,'Suroviny a produkty'!$A$3:$I$1045,8,FALSE)) ->  | E34: =IF($C34="","",VLOOKUP($B34,'Suroviny a produkty'!$A$3:$I$1045,7,FALSE)) ->  | F34: 0
A35: =IF($B35="","",VLOOKUP($B35,'Suroviny a produkty'!$A$3:$I$1045,7,FALSE)) ->  | D35: =IF($C35="","",VLOOKUP($B35,'Suroviny a produkty'!$A$3:$I$1045,8,FALSE)) ->  | E35: =IF($C35="","",VLOOKUP($B35,'Suroviny a produkty'!$A$3:$I$1045,7,FALSE)) ->  | F35: 0
A36: =IF($B36="","",VLOOKUP($B36,'Suroviny a produkty'!$A$3:$I$1045,7,FALSE)) ->  | D36: =IF($C36="","",VLOOKUP($B36,'Suroviny a produkty'!$A$3:$I$1045,8,FALSE)) ->  | E36: =IF($C36="","",VLOOKUP($B36,'Suroviny a produkty'!$A$3:$I$1045,7,FALSE)) ->  | F36: 0
A37: =IF($B37="","",VLOOKUP($B37,'Suroviny a produkty'!$A$3:$I$1045,7,FALSE)) ->  | D37: =IF($C37="","",VLOOKUP($B37,'Suroviny a produkty'!$A$3:$I$1045,8,FALSE)) ->  | E37: =IF($C37="","",VLOOKUP($B37,'Suroviny a produkty'!$A$3:$I$1045,7,FALSE)) ->  | F37: 0
A38: =IF($B38="","",VLOOKUP($B38,'Suroviny a produkty'!$A$3:$I$1045,7,FALSE)) ->  | D38: =IF($C38="","",VLOOKUP($B38,'Suroviny a produkty'!$A$3:$I$1045,8,FALSE)) ->  | E38: =IF($C38="","",VLOOKUP($B38,'Suroviny a produkty'!$A$3:$I$1045,7,FALSE)) ->  | F38: 0

Sheet P15
B1: ='Jídelní lístek'!C20 -> Kuličky z kozího tvarohu | C1: Množství | D1: Jedn. | E1: Cena za jednotku | F1: Cena pro množství v receptu | G1: Shrnutí Pro aktuální cenu je třeba aktualizovat ceny na listu surovin | J1: Popis
B2: Jídelní lístek | C2: Suroviny
A3: =IF($B3="","",VLOOKUP($B3,'Suroviny a produkty'!$A$3:$I$1045,7,FALSE)) -> 0 | B3: Kozí tvaroh | C3: 10 | D3: =IF($C3="","",VLOOKUP($B3,'Suroviny a produkty'!$A$3:$I$1045,8,FALSE)) -> g | E3: =IF($C3="","",VLOOKUP($B3,'Suroviny a produkty'!$A$3:$I$1045,7,FALSE)) -> 0 | F3: =IF(C3=0,0,E3*C3) -> 0 | G3: Počet porcí | H3: 1 | I3: ks | J3: Čokoládu necháme rozpustit na 50 stupňů v konvektomatu bez vlhkosti, až pěkně teče. Ostatní suroviny smícháme dohromady a přidáme čokoládu.
A4: =IF($B4="","",VLOOKUP($B4,'Suroviny a produkty'!$A$3:$I$1045,7,FALSE)) -> 0.070794 | B4: Tvaroh | C4: 10 | D4: =IF($C4="","",VLOOKUP($B4,'Suroviny a produkty'!$A$3:$I$1045,8,FALSE)) -> g | E4: =IF($C4="","",VLOOKUP($B4,'Suroviny a produkty'!$A$3:$I$1045,7,FALSE)) -> 0.070794 | F4: 0.70794 | G4: Porce | H4: =SUM(C3:C38) -> 41 | I4: g
A5: =IF($B5="","",VLOOKUP($B5,'Suroviny a produkty'!$A$3:$I$1045,7,FALSE)) -> 0 | B5: Čokoláda | C5: 10 | D5: =IF($C5="","",VLOOKUP($B5,'Suroviny a produkty'!$A$3:$I$1045,8,FALSE)) -> g | E5: =IF($C5="","",VLOOKUP($B5,'Suroviny a produkty'!$A$3:$I$1045,7,FALSE)) -> 0 | F5: 0 | G5: Cena celkem | H5: =ROUND(SUM(F3:F38),1) -> 0.7 | I5: Kč
A6: =IF($B6="","",VLOOKUP($B6,'Suroviny a produkty'!$A$3:$I$1045,7,FALSE)) -> 0 | B6: Sušené ovoce | C6: 5 | D6: =IF($C6="","",VLOOKUP($B6,'Suroviny a produkty'!$A$3:$I$1045,8,FALSE)) -> g | E6: =IF($C6="","",VLOOKUP($B6,'Suroviny a produkty'!$A$3:$I$1045,7,FALSE)) -> 0 | F6: 0 | G6: Energie celkem | I6: Kč
A7: =IF($B7="","",VLOOKUP($B7,'Suroviny a produkty'!$A$3:$I$1045,7,FALSE)) -> 0 | B7: Vaječný koňak | C7: 3 | D7: =IF($C7="","",VLOOKUP($B7,'Suroviny a produkty'!$A$3:$I$1045,8,FALSE)) -> g | E7: =IF($C7="","",VLOOKUP($B7,'Suroviny a produkty'!$A$3:$I$1045,7,FALSE)) -> 0 | F7: 0 | G7: Cena za porci | H7: =(H6+H5)/H3 -> 0.7 | I7: Kč
A8: =IF($B8="","",VLOOKUP($B8,'Suroviny a produkty'!$A$3:$I$1045,7,FALSE)) -> 0 | B8: Kokos nebo kakao | C8: 3 | D8: =IF($C8="","",VLOOKUP($B8,'Suroviny a produkty'!$A$3:$I$1045,8,FALSE)) -> g | E8: =IF($C8="","",VLOOKUP($B8,'Suroviny a produkty'!$A$3:$I$1045,7,FALSE)) -> 0 | F8: 0 | G8: Prodejní cena | H8: ='Jídelní lístek'!E20 -> 40 | I8: Kč
A9: =IF($B9="","",VLOOKUP($B9,'Suroviny a produkty'!$A$3:$I$1045,7,FALSE)) ->  | D9: =IF($C9="","",VLOOKUP($B9,'Suroviny a produkty'!$A$3:$I$1045,8,FALSE)) ->  | E9: =IF($C9="","",VLOOKUP($B9,'Suroviny a produkty'!$A$3:$I$1045,7,FALSE)) ->  | F9: 0 | G9: Marže | H9: =IF(H7=0,0,H8/H7)*100 -> 5714.285714 | I9: %
A10: =IF($B10="","",VLOOKUP($B10,'Suroviny a produkty'!$A$3:$I$1045,7,FALSE)) ->  | D10: =IF($C10="","",VLOOKUP($B10,'Suroviny a produkty'!$A$3:$I$1045,8,FALSE)) ->  | E10: =IF($C10="","",VLOOKUP($B10,'Suroviny a produkty'!$A$3:$I$1045,7,FALSE)) ->  | F10: 0
A11: =IF($B11="","",VLOOKUP($B11,'Suroviny a produkty'!$A$3:$I$1045,7,FALSE)) ->  | D11: =IF($C11="","",VLOOKUP($B11,'Suroviny a produkty'!$A$3:$I$1045,8,FALSE)) ->  | E11: =IF($C11="","",VLOOKUP($B11,'Suroviny a produkty'!$A$3:$I$1045,7,FALSE)) ->  | F11: 0
A12: =IF($B12="","",VLOOKUP($B12,'Suroviny a produkty'!$A$3:$I$1045,7,FALSE)) ->  | D12: =IF($C12="","",VLOOKUP($B12,'Suroviny a produkty'!$A$3:$I$1045,8,FALSE)) ->  | E12: =IF($C12="","",VLOOKUP($B12,'Suroviny a produkty'!$A$3:$I$1045,7,FALSE)) ->  | F12: 0
A13: =IF($B13="","",VLOOKUP($B13,'Suroviny a produkty'!$A$3:$I$1045,7,FALSE)) ->  | D13: =IF($C13="","",VLOOKUP($B13,'Suroviny a produkty'!$A$3:$I$1045,8,FALSE)) ->  | E13: =IF($C13="","",VLOOKUP($B13,'Suroviny a produkty'!$A$3:$I$1045,7,FALSE)) ->  | F13: 0
A14: =IF($B14="","",VLOOKUP($B14,'Suroviny a produkty'!$A$3:$I$1045,7,FALSE)) ->  | D14: =IF($C14="","",VLOOKUP($B14,'Suroviny a produkty'!$A$3:$I$1045,8,FALSE)) ->  | E14: =IF($C14="","",VLOOKUP($B14,'Suroviny a produkty'!$A$3:$I$1045,7,FALSE)) ->  | F14: 0
A15: =IF($B15="","",VLOOKUP($B15,'Suroviny a produkty'!$A$3:$I$1045,7,FALSE)) ->  | D15: =IF($C15="","",VLOOKUP($B15,'Suroviny a produkty'!$A$3:$I$1045,8,FALSE)) ->  | E15: =IF($C15="","",VLOOKUP($B15,'Suroviny a produkty'!$A$3:$I$1045,7,FALSE)) ->  | F15: 0
A16: =IF($B16="","",VLOOKUP($B16,'Suroviny a produkty'!$A$3:$I$1045,7,FALSE)) ->  | D16: =IF($C16="","",VLOOKUP($B16,'Suroviny a produkty'!$A$3:$I$1045,8,FALSE)) ->  | E16: =IF($C16="","",VLOOKUP($B16,'Suroviny a produkty'!$A$3:$I$1045,7,FALSE)) ->  | F16: 0
A17: =IF($B17="","",VLOOKUP($B17,'Suroviny a produkty'!$A$3:$I$1045,7,FALSE)) ->  | D17: =IF($C17="","",VLOOKUP($B17,'Suroviny a produkty'!$A$3:$I$1045,8,FALSE)) ->  | E17: =IF($C17="","",VLOOKUP($B17,'Suroviny a produkty'!$A$3:$I$1045,7,FALSE)) ->  | F17: 0
A18: =IF($B18="","",VLOOKUP($B18,'Suroviny a produkty'!$A$3:$I$1045,7,FALSE)) ->  | D18: =IF($C18="","",VLOOKUP($B18,'Suroviny a produkty'!$A$3:$I$1045,8,FALSE)) ->  | E18: =IF($C18="","",VLOOKUP($B18,'Suroviny a produkty'!$A$3:$I$1045,7,FALSE)) ->  | F18: 0
A19: =IF($B19="","",VLOOKUP($B19,'Suroviny a produkty'!$A$3:$I$1045,7,FALSE)) ->  | D19: =IF($C19="","",VLOOKUP($B19,'Suroviny a produkty'!$A$3:$I$1045,8,FALSE)) ->  | E19: =IF($C19="","",VLOOKUP($B19,'Suroviny a produkty'!$A$3:$I$1045,7,FALSE)) ->  | F19: 0
A20: =IF($B20="","",VLOOKUP($B20,'Suroviny a produkty'!$A$3:$I$1045,7,FALSE)) ->  | D20: =IF($C20="","",VLOOKUP($B20,'Suroviny a produkty'!$A$3:$I$1045,8,FALSE)) ->  | E20: =IF($C20="","",VLOOKUP($B20,'Suroviny a produkty'!$A$3:$I$1045,7,FALSE)) ->  | F20: 0
A21: =IF($B21="","",VLOOKUP($B21,'Suroviny a produkty'!$A$3:$I$1045,7,FALSE)) ->  | D21: =IF($C21="","",VLOOKUP($B21,'Suroviny a produkty'!$A$3:$I$1045,8,FALSE)) ->  | E21: =IF($C21="","",VLOOKUP($B21,'Suroviny a produkty'!$A$3:$I$1045,7,FALSE)) ->  | F21: 0
A22: =IF($B22="","",VLOOKUP($B22,'Suroviny a produkty'!$A$3:$I$1045,7,FALSE)) ->  | D22: =IF($C22="","",VLOOKUP($B22,'Suroviny a produkty'!$A$3:$I$1045,8,FALSE)) ->  | E22: =IF($C22="","",VLOOKUP($B22,'Suroviny a produkty'!$A$3:$I$1045,7,FALSE)) ->  | F22: 0
A23: =IF($B23="","",VLOOKUP($B23,'Suroviny a produkty'!$A$3:$I$1045,7,FALSE)) ->  | D23: =IF($C23="","",VLOOKUP($B23,'Suroviny a produkty'!$A$3:$I$1045,8,FALSE)) ->  | E23: =IF($C23="","",VLOOKUP($B23,'Suroviny a produkty'!$A$3:$I$1045,7,FALSE)) ->  | F23: 0
A24: =IF($B24="","",VLOOKUP($B24,'Suroviny a produkty'!$A$3:$I$1045,7,FALSE)) ->  | D24: =IF($C24="","",VLOOKUP($B24,'Suroviny a produkty'!$A$3:$I$1045,8,FALSE)) ->  | E24: =IF($C24="","",VLOOKUP($B24,'Suroviny a produkty'!$A$3:$I$1045,7,FALSE)) ->  | F24: 0
A25: =IF($B25="","",VLOOKUP($B25,'Suroviny a produkty'!$A$3:$I$1045,7,FALSE)) ->  | D25: =IF($C25="","",VLOOKUP($B25,'Suroviny a produkty'!$A$3:$I$1045,8,FALSE)) ->  | E25: =IF($C25="","",VLOOKUP($B25,'Suroviny a produkty'!$A$3:$I$1045,7,FALSE)) ->  | F25: 0
A26: =IF($B26="","",VLOOKUP($B26,'Suroviny a produkty'!$A$3:$I$1045,7,FALSE)) ->  | D26: =IF($C26="","",VLOOKUP($B26,'Suroviny a produkty'!$A$3:$I$1045,8,FALSE)) ->  | E26: =IF($C26="","",VLOOKUP($B26,'Suroviny a produkty'!$A$3:$I$1045,7,FALSE)) ->  | F26: 0
A27: =IF($B27="","",VLOOKUP($B27,'Suroviny a produkty'!$A$3:$I$1045,7,FALSE)) ->  | D27: =IF($C27="","",VLOOKUP($B27,'Suroviny a produkty'!$A$3:$I$1045,8,FALSE)) ->  | E27: =IF($C27="","",VLOOKUP($B27,'Suroviny a produkty'!$A$3:$I$1045,7,FALSE)) ->  | F27: 0
A28: =IF($B28="","",VLOOKUP($B28,'Suroviny a produkty'!$A$3:$I$1045,7,FALSE)) ->  | D28: =IF($C28="","",VLOOKUP($B28,'Suroviny a produkty'!$A$3:$I$1045,8,FALSE)) ->  | E28: =IF($C28="","",VLOOKUP($B28,'Suroviny a produkty'!$A$3:$I$1045,7,FALSE)) ->  | F28: 0
A29: =IF($B29="","",VLOOKUP($B29,'Suroviny a produkty'!$A$3:$I$1045,7,FALSE)) ->  | D29: =IF($C29="","",VLOOKUP($B29,'Suroviny a produkty'!$A$3:$I$1045,8,FALSE)) ->  | E29: =IF($C29="","",VLOOKUP($B29,'Suroviny a produkty'!$A$3:$I$1045,7,FALSE)) ->  | F29: 0
A30: =IF($B30="","",VLOOKUP($B30,'Suroviny a produkty'!$A$3:$I$1045,7,FALSE)) ->  | D30: =IF($C30="","",VLOOKUP($B30,'Suroviny a produkty'!$A$3:$I$1045,8,FALSE)) ->  | E30: =IF($C30="","",VLOOKUP($B30,'Suroviny a produkty'!$A$3:$I$1045,7,FALSE)) ->  | F30: 0
A31: =IF($B31="","",VLOOKUP($B31,'Suroviny a produkty'!$A$3:$I$1045,7,FALSE)) ->  | D31: =IF($C31="","",VLOOKUP($B31,'Suroviny a produkty'!$A$3:$I$1045,8,FALSE)) ->  | E31: =IF($C31="","",VLOOKUP($B31,'Suroviny a produkty'!$A$3:$I$1045,7,FALSE)) ->  | F31: 0
A32: =IF($B32="","",VLOOKUP($B32,'Suroviny a produkty'!$A$3:$I$1045,7,FALSE)) ->  | D32: =IF($C32="","",VLOOKUP($B32,'Suroviny a produkty'!$A$3:$I$1045,8,FALSE)) ->  | E32: =IF($C32="","",VLOOKUP($B32,'Suroviny a produkty'!$A$3:$I$1045,7,FALSE)) ->  | F32: 0
A33: =IF($B33="","",VLOOKUP($B33,'Suroviny a produkty'!$A$3:$I$1045,7,FALSE)) ->  | D33: =IF($C33="","",VLOOKUP($B33,'Suroviny a produkty'!$A$3:$I$1045,8,FALSE)) ->  | E33: =IF($C33="","",VLOOKUP($B33,'Suroviny a produkty'!$A$3:$I$1045,7,FALSE)) ->  | F33: 0
A34: =IF($B34="","",VLOOKUP($B34,'Suroviny a produkty'!$A$3:$I$1045,7,FALSE)) ->  | D34: =IF($C34="","",VLOOKUP($B34,'Suroviny a produkty'!$A$3:$I$1045,8,FALSE)) ->  | E34: =IF($C34="","",VLOOKUP($B34,'Suroviny a produkty'!$A$3:$I$1045,7,FALSE)) ->  | F34: 0
A35: =IF($B35="","",VLOOKUP($B35,'Suroviny a produkty'!$A$3:$I$1045,7,FALSE)) ->  | D35: =IF($C35="","",VLOOKUP($B35,'Suroviny a produkty'!$A$3:$I$1045,8,FALSE)) ->  | E35: =IF($C35="","",VLOOKUP($B35,'Suroviny a produkty'!$A$3:$I$1045,7,FALSE)) ->  | F35: 0
A36: =IF($B36="","",VLOOKUP($B36,'Suroviny a produkty'!$A$3:$I$1045,7,FALSE)) ->  | D36: =IF($C36="","",VLOOKUP($B36,'Suroviny a produkty'!$A$3:$I$1045,8,FALSE)) ->  | E36: =IF($C36="","",VLOOKUP($B36,'Suroviny a produkty'!$A$3:$I$1045,7,FALSE)) ->  | F36: 0
A37: =IF($B37="","",VLOOKUP($B37,'Suroviny a produkty'!$A$3:$I$1045,7,FALSE)) ->  | D37: =IF($C37="","",VLOOKUP($B37,'Suroviny a produkty'!$A$3:$I$1045,8,FALSE)) ->  | E37: =IF($C37="","",VLOOKUP($B37,'Suroviny a produkty'!$A$3:$I$1045,7,FALSE)) ->  | F37: 0
A38: =IF($B38="","",VLOOKUP($B38,'Suroviny a produkty'!$A$3:$I$1045,7,FALSE)) ->  | D38: =IF($C38="","",VLOOKUP($B38,'Suroviny a produkty'!$A$3:$I$1045,8,FALSE)) ->  | E38: =IF($C38="","",VLOOKUP($B38,'Suroviny a produkty'!$A$3:$I$1045,7,FALSE)) ->  | F38: 0

Sheet P16
B1: ='Jídelní lístek'!C21 -> Borůvkový koláč (kulatý - na pasant) | C1: Množství | D1: Jedn. | E1: Cena za jednotku | F1: Cena pro množství v receptu | G1: Shrnutí Pro aktuální cenu je třeba aktualizovat ceny na listu surovin | J1: Popis
B2: Jídelní lístek | C2: Suroviny | G2: Alergeny | H2: 1;3;7;
A3: =IF($B3="","",VLOOKUP($B3,'Suroviny a produkty'!$A$3:$I$1045,7,FALSE)) -> 0.016376 | B3: Mouka polohrubá | C3: 530 | D3: =IF(C3="","",IF(B3="","",_xlfn.XLOOKUP(B3,'Suroviny a produkty'!A$3:A$308,'Suroviny a produkty'!H$3:H$308))) -> g | E3: =IF(C3="","",_xlfn.XLOOKUP(B3,'Suroviny a produkty'!A$3:A$218,'Suroviny a produkty'!G$3:G$218)) -> 0.016376 | F3: =IF(C3=0,0,E3*C3) -> 8.67928 | G3: Počet porcí | H3: 16 | I3: ks
A4: =IF($B4="","",VLOOKUP($B4,'Suroviny a produkty'!$A$3:$I$1045,7,FALSE)) -> 0.0180665 | B4: Cukr | C4: 250 | D4: =IF(C4="","",IF(B4="","",_xlfn.XLOOKUP(B4,'Suroviny a produkty'!A$3:A$308,'Suroviny a produkty'!H$3:H$308))) -> g | E4: =IF(C4="","",_xlfn.XLOOKUP(B4,'Suroviny a produkty'!A$3:A$218,'Suroviny a produkty'!G$3:G$218)) -> 0.0180665 | F4: 4.516625 | G4: Porce | I4: g
A5: =IF($B5="","",VLOOKUP($B5,'Suroviny a produkty'!$A$3:$I$1045,7,FALSE)) -> 0.005957 | B5: Sůl | C5: 10 | D5: =IF(C5="","",IF(B5="","",_xlfn.XLOOKUP(B5,'Suroviny a produkty'!A$3:A$308,'Suroviny a produkty'!H$3:H$308))) -> g | E5: =IF(C5="","",_xlfn.XLOOKUP(B5,'Suroviny a produkty'!A$3:A$218,'Suroviny a produkty'!G$3:G$218)) -> 0.005957 | F5: 0.05957 | G5: Cena celkem | H5: =ROUND(SUM(F3:F38),1) -> 145.6 | I5: Kč
A6: =IF($B6="","",VLOOKUP($B6,'Suroviny a produkty'!$A$3:$I$1045,7,FALSE)) -> 3.6685 | B6: Vejce | C6: 2 | D6: =IF(C6="","",IF(B6="","",_xlfn.XLOOKUP(B6,'Suroviny a produkty'!A$3:A$308,'Suroviny a produkty'!H$3:H$308))) -> ks | E6: =IF(C6="","",_xlfn.XLOOKUP(B6,'Suroviny a produkty'!A$3:A$218,'Suroviny a produkty'!G$3:G$218)) -> 3.6685 | F6: 7.337 | G6: Energie celkem | H6: 10 | I6: Kč
A7: =IF($B7="","",VLOOKUP($B7,'Suroviny a produkty'!$A$3:$I$1045,7,FALSE)) -> 0.805 | B7: Kypřící prášek | C7: 1 | D7: =IF(C7="","",IF(B7="","",_xlfn.XLOOKUP(B7,'Suroviny a produkty'!A$3:A$308,'Suroviny a produkty'!H$3:H$308))) -> ks | E7: =IF(C7="","",_xlfn.XLOOKUP(B7,'Suroviny a produkty'!A$3:A$218,'Suroviny a produkty'!G$3:G$218)) -> 0.805 | F7: 0.805 | G7: Cena za porci | H7: =(H6+H5)/H3 -> 9.725 | I7: Kč
A8: =IF($B8="","",VLOOKUP($B8,'Suroviny a produkty'!$A$3:$I$1045,7,FALSE)) -> 0.805 | B8: Vanilkový prášek | C8: 1 | D8: =IF(C8="","",IF(B8="","",_xlfn.XLOOKUP(B8,'Suroviny a produkty'!A$3:A$308,'Suroviny a produkty'!H$3:H$308))) -> ks | E8: =IF(C8="","",_xlfn.XLOOKUP(B8,'Suroviny a produkty'!A$3:A$218,'Suroviny a produkty'!G$3:G$218)) -> 0.805 | F8: 0.805 | G8: Prodejní cena | H8: ='Jídelní lístek'!E21 -> 65 | I8: Kč
A9: =IF($B9="","",VLOOKUP($B9,'Suroviny a produkty'!$A$3:$I$1045,7,FALSE)) -> 0.016997 | B9: Mléko | C9: 400 | D9: =IF(C9="","",IF(B9="","",_xlfn.XLOOKUP(B9,'Suroviny a produkty'!A$3:A$308,'Suroviny a produkty'!H$3:H$308))) -> g | E9: =IF(C9="","",_xlfn.XLOOKUP(B9,'Suroviny a produkty'!A$3:A$218,'Suroviny a produkty'!G$3:G$218)) -> 0.016997 | F9: 6.7988 | G9: Marže | H9: =IF(H7=0,0,H8/H7)*100 -> 668.3804627 | I9: %
A10: =IF($B10="","",VLOOKUP($B10,'Suroviny a produkty'!$A$3:$I$1045,7,FALSE)) -> 0.1404748 | B10: Borůvky | C10: 600 | D10: =IF(C10="","",IF(B10="","",_xlfn.XLOOKUP(B10,'Suroviny a produkty'!A$3:A$308,'Suroviny a produkty'!H$3:H$308))) -> g | E10: =IF(C10="","",_xlfn.XLOOKUP(B10,'Suroviny a produkty'!A$3:A$218,'Suroviny a produkty'!G$3:G$218)) -> 0.1404748 | F10: 84.28488
A11: =IF($B11="","",VLOOKUP($B11,'Suroviny a produkty'!$A$3:$I$1045,7,FALSE)) -> 0.059731 | B11: Olej | C11: 350 | D11: =IF(C11="","",IF(B11="","",_xlfn.XLOOKUP(B11,'Suroviny a produkty'!A$3:A$308,'Suroviny a produkty'!H$3:H$308))) -> g | E11: =IF(C11="","",_xlfn.XLOOKUP(B11,'Suroviny a produkty'!A$3:A$218,'Suroviny a produkty'!G$3:G$218)) -> 0.059731 | F11: 20.90585
B12: Žmolenka | D12: =IF(C12="","",IF(B12="","",_xlfn.XLOOKUP(B12,'Suroviny a produkty'!A$3:A$308,'Suroviny a produkty'!H$3:H$308))) ->  | E12: =IF(C12="","",_xlfn.XLOOKUP(B12,'Suroviny a produkty'!A$3:A$218,'Suroviny a produkty'!G$3:G$218)) ->  | F12: 0
A13: =IF($B13="","",VLOOKUP($B13,'Suroviny a produkty'!$A$3:$I$1045,7,FALSE)) -> 0.016376 | B13: Mouka polohrubá | C13: 150 | D13: =IF(C13="","",IF(B13="","",_xlfn.XLOOKUP(B13,'Suroviny a produkty'!A$3:A$308,'Suroviny a produkty'!H$3:H$308))) -> g | E13: =IF(C13="","",_xlfn.XLOOKUP(B13,'Suroviny a produkty'!A$3:A$218,'Suroviny a produkty'!G$3:G$218)) -> 0.016376 | F13: 2.4564
A14: =IF($B14="","",VLOOKUP($B14,'Suroviny a produkty'!$A$3:$I$1045,7,FALSE)) -> 0.083812 | B14: Hera | C14: 60 | D14: =IF(C14="","",IF(B14="","",_xlfn.XLOOKUP(B14,'Suroviny a produkty'!A$3:A$308,'Suroviny a produkty'!H$3:H$308))) -> g | E14: =IF(C14="","",_xlfn.XLOOKUP(B14,'Suroviny a produkty'!A$3:A$218,'Suroviny a produkty'!G$3:G$218)) -> 0.083812 | F14: 5.02872
A15: =IF($B15="","",VLOOKUP($B15,'Suroviny a produkty'!$A$3:$I$1045,7,FALSE)) -> 0.0180665 | B15: Cukr | C15: 150 | D15: =IF(C15="","",IF(B15="","",_xlfn.XLOOKUP(B15,'Suroviny a produkty'!A$3:A$308,'Suroviny a produkty'!H$3:H$308))) -> g | E15: =IF(C15="","",_xlfn.XLOOKUP(B15,'Suroviny a produkty'!A$3:A$218,'Suroviny a produkty'!G$3:G$218)) -> 0.0180665 | F15: 2.709975
A16: =IF($B16="","",VLOOKUP($B16,'Suroviny a produkty'!$A$3:$I$1045,7,FALSE)) ->  | D16: =IF(C16="","",IF(B16="","",_xlfn.XLOOKUP(B16,'Suroviny a produkty'!A$3:A$308,'Suroviny a produkty'!H$3:H$308))) ->  | E16: =IF(C16="","",_xlfn.XLOOKUP(B16,'Suroviny a produkty'!A$3:A$218,'Suroviny a produkty'!G$3:G$218)) ->  | F16: 0
A17: =IF($B17="","",VLOOKUP($B17,'Suroviny a produkty'!$A$3:$I$1045,7,FALSE)) -> 0.235635 | B17: Šlehačka | C17: 5 | D17: =IF(C17="","",IF(B17="","",_xlfn.XLOOKUP(B17,'Suroviny a produkty'!A$3:A$308,'Suroviny a produkty'!H$3:H$308))) -> g | E17: =IF(C17="","",_xlfn.XLOOKUP(B17,'Suroviny a produkty'!A$3:A$218,'Suroviny a produkty'!G$3:G$218)) -> 0.235635 | F17: 1.178175
A18: =IF($B18="","",VLOOKUP($B18,'Suroviny a produkty'!$A$3:$I$1045,7,FALSE)) ->  | D18: =IF(C18="","",IF(B18="","",_xlfn.XLOOKUP(B18,'Suroviny a produkty'!A$3:A$308,'Suroviny a produkty'!H$3:H$308))) ->  | E18: =IF(C18="","",_xlfn.XLOOKUP(B18,'Suroviny a produkty'!A$3:A$218,'Suroviny a produkty'!G$3:G$218)) ->  | F18: 0
A19: =IF($B19="","",VLOOKUP($B19,'Suroviny a produkty'!$A$3:$I$1045,7,FALSE)) ->  | D19: =IF(C19="","",IF(B19="","",_xlfn.XLOOKUP(B19,'Suroviny a produkty'!A$3:A$308,'Suroviny a produkty'!H$3:H$308))) ->  | E19: =IF(C19="","",_xlfn.XLOOKUP(B19,'Suroviny a produkty'!A$3:A$218,'Suroviny a produkty'!G$3:G$218)) ->  | F19: 0
A20: =IF($B20="","",VLOOKUP($B20,'Suroviny a produkty'!$A$3:$I$1045,7,FALSE)) ->  | D20: =IF(C20="","",IF(B20="","",_xlfn.XLOOKUP(B20,'Suroviny a produkty'!A$3:A$308,'Suroviny a produkty'!H$3:H$308))) ->  | E20: =IF(C20="","",_xlfn.XLOOKUP(B20,'Suroviny a produkty'!A$3:A$218,'Suroviny a produkty'!G$3:G$218)) ->  | F20: 0
A21: =IF($B21="","",VLOOKUP($B21,'Suroviny a produkty'!$A$3:$I$1045,7,FALSE)) ->  | D21: =IF(C21="","",IF(B21="","",_xlfn.XLOOKUP(B21,'Suroviny a produkty'!A$3:A$308,'Suroviny a produkty'!H$3:H$308))) ->  | E21: =IF(C21="","",_xlfn.XLOOKUP(B21,'Suroviny a produkty'!A$3:A$218,'Suroviny a produkty'!G$3:G$218)) ->  | F21: 0
A22: =IF($B22="","",VLOOKUP($B22,'Suroviny a produkty'!$A$3:$I$1045,7,FALSE)) ->  | D22: =IF(C22="","",IF(B22="","",_xlfn.XLOOKUP(B22,'Suroviny a produkty'!A$3:A$308,'Suroviny a produkty'!H$3:H$308))) ->  | E22: =IF(C22="","",_xlfn.XLOOKUP(B22,'Suroviny a produkty'!A$3:A$218,'Suroviny a produkty'!G$3:G$218)) ->  | F22: 0
A23: =IF($B23="","",VLOOKUP($B23,'Suroviny a produkty'!$A$3:$I$1045,7,FALSE)) ->  | D23: =IF(C23="","",IF(B23="","",_xlfn.XLOOKUP(B23,'Suroviny a produkty'!A$3:A$308,'Suroviny a produkty'!H$3:H$308))) ->  | E23: =IF(C23="","",_xlfn.XLOOKUP(B23,'Suroviny a produkty'!A$3:A$218,'Suroviny a produkty'!G$3:G$218)) ->  | F23: 0
A24: =IF($B24="","",VLOOKUP($B24,'Suroviny a produkty'!$A$3:$I$1045,7,FALSE)) ->  | D24: =IF(C24="","",IF(B24="","",_xlfn.XLOOKUP(B24,'Suroviny a produkty'!A$3:A$308,'Suroviny a produkty'!H$3:H$308))) ->  | E24: =IF(C24="","",_xlfn.XLOOKUP(B24,'Suroviny a produkty'!A$3:A$218,'Suroviny a produkty'!G$3:G$218)) ->  | F24: 0
A25: =IF($B25="","",VLOOKUP($B25,'Suroviny a produkty'!$A$3:$I$1045,7,FALSE)) ->  | D25: =IF(C25="","",IF(B25="","",_xlfn.XLOOKUP(B25,'Suroviny a produkty'!A$3:A$308,'Suroviny a produkty'!H$3:H$308))) ->  | E25: =IF(C25="","",_xlfn.XLOOKUP(B25,'Suroviny a produkty'!A$3:A$218,'Suroviny a produkty'!G$3:G$218)) ->  | F25: 0
A26: =IF($B26="","",VLOOKUP($B26,'Suroviny a produkty'!$A$3:$I$1045,7,FALSE)) ->  | D26: =IF(C26="","",IF(B26="","",_xlfn.XLOOKUP(B26,'Suroviny a produkty'!A$3:A$308,'Suroviny a produkty'!H$3:H$308))) ->  | E26: =IF(C26="","",_xlfn.XLOOKUP(B26,'Suroviny a produkty'!A$3:A$218,'Suroviny a produkty'!G$3:G$218)) ->  | F26: 0
A27: =IF($B27="","",VLOOKUP($B27,'Suroviny a produkty'!$A$3:$I$1045,7,FALSE)) ->  | D27: =IF(C27="","",IF(B27="","",_xlfn.XLOOKUP(B27,'Suroviny a produkty'!A$3:A$308,'Suroviny a produkty'!H$3:H$308))) ->  | E27: =IF(C27="","",_xlfn.XLOOKUP(B27,'Suroviny a produkty'!A$3:A$218,'Suroviny a produkty'!G$3:G$218)) ->  | F27: 0
A28: =IF($B28="","",VLOOKUP($B28,'Suroviny a produkty'!$A$3:$I$1045,7,FALSE)) ->  | D28: =IF(C28="","",IF(B28="","",_xlfn.XLOOKUP(B28,'Suroviny a produkty'!A$3:A$308,'Suroviny a produkty'!H$3:H$308))) ->  | E28: =IF(C28="","",_xlfn.XLOOKUP(B28,'Suroviny a produkty'!A$3:A$218,'Suroviny a produkty'!G$3:G$218)) ->  | F28: 0
A29: =IF($B29="","",VLOOKUP($B29,'Suroviny a produkty'!$A$3:$I$1045,7,FALSE)) ->  | D29: =IF(C29="","",IF(B29="","",_xlfn.XLOOKUP(B29,'Suroviny a produkty'!A$3:A$308,'Suroviny a produkty'!H$3:H$308))) ->  | E29: =IF(C29="","",_xlfn.XLOOKUP(B29,'Suroviny a produkty'!A$3:A$218,'Suroviny a produkty'!G$3:G$218)) ->  | F29: 0
A30: =IF($B30="","",VLOOKUP($B30,'Suroviny a produkty'!$A$3:$I$1045,7,FALSE)) ->  | D30: =IF(C30="","",IF(B30="","",_xlfn.XLOOKUP(B30,'Suroviny a produkty'!A$3:A$308,'Suroviny a produkty'!H$3:H$308))) ->  | E30: =IF(C30="","",_xlfn.XLOOKUP(B30,'Suroviny a produkty'!A$3:A$218,'Suroviny a produkty'!G$3:G$218)) ->  | F30: 0
A31: =IF($B31="","",VLOOKUP($B31,'Suroviny a produkty'!$A$3:$I$1045,7,FALSE)) ->  | D31: =IF(C31="","",IF(B31="","",_xlfn.XLOOKUP(B31,'Suroviny a produkty'!A$3:A$308,'Suroviny a produkty'!H$3:H$308))) ->  | E31: =IF(C31="","",_xlfn.XLOOKUP(B31,'Suroviny a produkty'!A$3:A$218,'Suroviny a produkty'!G$3:G$218)) ->  | F31: 0
A32: =IF($B32="","",VLOOKUP($B32,'Suroviny a produkty'!$A$3:$I$1045,7,FALSE)) ->  | D32: =IF(C32="","",IF(B32="","",_xlfn.XLOOKUP(B32,'Suroviny a produkty'!A$3:A$308,'Suroviny a produkty'!H$3:H$308))) ->  | E32: =IF(C32="","",_xlfn.XLOOKUP(B32,'Suroviny a produkty'!A$3:A$218,'Suroviny a produkty'!G$3:G$218)) ->  | F32: 0
A33: =IF($B33="","",VLOOKUP($B33,'Suroviny a produkty'!$A$3:$I$1045,7,FALSE)) ->  | D33: =IF(C33="","",IF(B33="","",_xlfn.XLOOKUP(B33,'Suroviny a produkty'!A$3:A$308,'Suroviny a produkty'!H$3:H$308))) ->  | E33: =IF(C33="","",_xlfn.XLOOKUP(B33,'Suroviny a produkty'!A$3:A$218,'Suroviny a produkty'!G$3:G$218)) ->  | F33: 0
A34: =IF($B34="","",VLOOKUP($B34,'Suroviny a produkty'!$A$3:$I$1045,7,FALSE)) ->  | D34: =IF(C34="","",IF(B34="","",_xlfn.XLOOKUP(B34,'Suroviny a produkty'!A$3:A$308,'Suroviny a produkty'!H$3:H$308))) ->  | E34: =IF(C34="","",_xlfn.XLOOKUP(B34,'Suroviny a produkty'!A$3:A$218,'Suroviny a produkty'!G$3:G$218)) ->  | F34: 0
A35: =IF($B35="","",VLOOKUP($B35,'Suroviny a produkty'!$A$3:$I$1045,7,FALSE)) ->  | D35: =IF(C35="","",IF(B35="","",_xlfn.XLOOKUP(B35,'Suroviny a produkty'!A$3:A$308,'Suroviny a produkty'!H$3:H$308))) ->  | E35: =IF(C35="","",_xlfn.XLOOKUP(B35,'Suroviny a produkty'!A$3:A$218,'Suroviny a produkty'!G$3:G$218)) ->  | F35: 0
A36: =IF($B36="","",VLOOKUP($B36,'Suroviny a produkty'!$A$3:$I$1045,7,FALSE)) ->  | D36: =IF(C36="","",IF(B36="","",_xlfn.XLOOKUP(B36,'Suroviny a produkty'!A$3:A$308,'Suroviny a produkty'!H$3:H$308))) ->  | E36: =IF(C36="","",_xlfn.XLOOKUP(B36,'Suroviny a produkty'!A$3:A$218,'Suroviny a produkty'!G$3:G$218)) ->  | F36: 0
A37: =IF($B37="","",VLOOKUP($B37,'Suroviny a produkty'!$A$3:$I$1045,7,FALSE)) ->  | D37: =IF(C37="","",IF(B37="","",_xlfn.XLOOKUP(B37,'Suroviny a produkty'!A$3:A$308,'Suroviny a produkty'!H$3:H$308))) ->  | E37: =IF(C37="","",_xlfn.XLOOKUP(B37,'Suroviny a produkty'!A$3:A$218,'Suroviny a produkty'!G$3:G$218)) ->  | F37: 0
A38: =IF($B38="","",VLOOKUP($B38,'Suroviny a produkty'!$A$3:$I$1045,7,FALSE)) ->  | D38: =IF(C38="","",IF(B38="","",_xlfn.XLOOKUP(B38,'Suroviny a produkty'!A$3:A$308,'Suroviny a produkty'!H$3:H$308))) ->  | E38: =IF(C38="","",_xlfn.XLOOKUP(B38,'Suroviny a produkty'!A$3:A$218,'Suroviny a produkty'!G$3:G$218)) ->  | F38: 0

Sheet UV11
B1: ='Jídelní lístek'!C23 -> Moravský vrabec, bramborový knedlík, zelí | C1: Množství | D1: Jedn. | E1: Cena za jednotku | F1: Cena pro množství v receptu | G1: Shrnutí Pro aktuální cenu je třeba aktualizovat ceny na listu surovin | J1: Popis
B2: Jídelní lístek | C2: Suroviny | G2: Alergeny | H2: 1;3;7;
A3: =IF($B3="","",VLOOKUP($B3,'Suroviny a produkty'!$A$3:$I$1045,7,FALSE)) -> 0.0943 | B3: Vepřová plec / kýta | C3: 1500 | D3: =IF($C3="","",VLOOKUP($B3,'Suroviny a produkty'!$A$3:$I$1045,8,FALSE)) -> g | E3: =IF($C3="","",VLOOKUP($B3,'Suroviny a produkty'!$A$3:$I$1045,7,FALSE)) -> 0.0943 | F3: =IF(C3=0,0,E3*C3) -> 141.45 | G3: Počet porcí | H3: 10 | I3: porcí
A4: =IF($B4="","",VLOOKUP($B4,'Suroviny a produkty'!$A$3:$I$1045,7,FALSE)) -> 0.005957 | B4: Sůl | C4: 30 | D4: =IF($C4="","",VLOOKUP($B4,'Suroviny a produkty'!$A$3:$I$1045,8,FALSE)) -> g | E4: =IF($C4="","",VLOOKUP($B4,'Suroviny a produkty'!$A$3:$I$1045,7,FALSE)) -> 0.005957 | F4: 0.17871 | G4: Porce | H4: 150 | I4: g
A5: =IF($B5="","",VLOOKUP($B5,'Suroviny a produkty'!$A$3:$I$1045,7,FALSE)) -> 0.149316 | B5: Kmín (drcený) | C5: 3 | D5: =IF($C5="","",VLOOKUP($B5,'Suroviny a produkty'!$A$3:$I$1045,8,FALSE)) -> g | E5: =IF($C5="","",VLOOKUP($B5,'Suroviny a produkty'!$A$3:$I$1045,7,FALSE)) -> 0.149316 | F5: 0.447948 | G5: Cena celkem | H5: =ROUND(SUM(F3:F38),1) -> 229 | I5: Kč
A6: =IF($B6="","",VLOOKUP($B6,'Suroviny a produkty'!$A$3:$I$1045,7,FALSE)) -> 0.012535 | B6: Cibule | C6: 200 | D6: =IF($C6="","",VLOOKUP($B6,'Suroviny a produkty'!$A$3:$I$1045,8,FALSE)) -> g | E6: =IF($C6="","",VLOOKUP($B6,'Suroviny a produkty'!$A$3:$I$1045,7,FALSE)) -> 0.012535 | F6: 2.507 | G6: Energie celkem | H6: 15 | I6: Kč
A7: =IF($B7="","",VLOOKUP($B7,'Suroviny a produkty'!$A$3:$I$1045,7,FALSE)) -> 0.105685 | B7: Česnek | C7: 30 | D7: =IF($C7="","",VLOOKUP($B7,'Suroviny a produkty'!$A$3:$I$1045,8,FALSE)) -> g | E7: =IF($C7="","",VLOOKUP($B7,'Suroviny a produkty'!$A$3:$I$1045,7,FALSE)) -> 0.105685 | F7: 3.17055 | G7: Cena za porci | H7: =(H6+H5)/H3 -> 24.4 | I7: Kč
A8: =IF($B8="","",VLOOKUP($B8,'Suroviny a produkty'!$A$3:$I$1045,7,FALSE)) ->  | D8: =IF($C8="","",VLOOKUP($B8,'Suroviny a produkty'!$A$3:$I$1045,8,FALSE)) ->  | E8: =IF($C8="","",VLOOKUP($B8,'Suroviny a produkty'!$A$3:$I$1045,7,FALSE)) ->  | F8: 0 | G8: Prodejní cena | H8: ='Jídelní lístek'!E23 -> 180 | I8: Kč
B9: Bramborový knedlík | D9: =IF($C9="","",VLOOKUP($B9,'Suroviny a produkty'!$A$3:$I$1045,8,FALSE)) ->  | E9: =IF($C9="","",VLOOKUP($B9,'Suroviny a produkty'!$A$3:$I$1045,7,FALSE)) ->  | F9: 0 | G9: Marže | H9: =IF(H7=0,0,H8/H7)*100 -> 737.704918 | I9: %
A10: =IF($B10="","",VLOOKUP($B10,'Suroviny a produkty'!$A$3:$I$1045,7,FALSE)) -> 0.0404317 | B10: Bramborové těsto | C10: 1000 | D10: =IF($C10="","",VLOOKUP($B10,'Suroviny a produkty'!$A$3:$I$1045,8,FALSE)) -> g | E10: =IF($C10="","",VLOOKUP($B10,'Suroviny a produkty'!$A$3:$I$1045,7,FALSE)) -> 0.0404317 | F10: 40.4317 | G10: Bramborový knedlík
A11: =IF($B11="","",VLOOKUP($B11,'Suroviny a produkty'!$A$3:$I$1045,7,FALSE)) -> 0 | B11: Voda | C11: 1000 | D11: =IF($C11="","",VLOOKUP($B11,'Suroviny a produkty'!$A$3:$I$1045,8,FALSE)) -> g | E11: =IF($C11="","",VLOOKUP($B11,'Suroviny a produkty'!$A$3:$I$1045,7,FALSE)) -> 0 | F11: 0 | G11: Váha | H11: =SUM(C10:C11) -> 2000 | I11: g
A12: =IF($B12="","",VLOOKUP($B12,'Suroviny a produkty'!$A$3:$I$1045,7,FALSE)) -> 0.059731 | B12: Olej | C12: 10 | D12: =IF($C12="","",VLOOKUP($B12,'Suroviny a produkty'!$A$3:$I$1045,8,FALSE)) -> g | E12: =IF($C12="","",VLOOKUP($B12,'Suroviny a produkty'!$A$3:$I$1045,7,FALSE)) -> 0.059731 | F12: 0.59731 | G12: Šiška | H12: 600 | I12: g
A13: =IF($B13="","",VLOOKUP($B13,'Suroviny a produkty'!$A$3:$I$1045,7,FALSE)) ->  | D13: =IF($C13="","",VLOOKUP($B13,'Suroviny a produkty'!$A$3:$I$1045,8,FALSE)) ->  | E13: =IF($C13="","",VLOOKUP($B13,'Suroviny a produkty'!$A$3:$I$1045,7,FALSE)) ->  | F13: 0 | G13: Počet šišek | H13: =H11/H12 -> 3.333333333 | I13: ks
A14: =IF($B14="","",VLOOKUP($B14,'Suroviny a produkty'!$A$3:$I$1045,7,FALSE)) ->  | D14: =IF($C14="","",VLOOKUP($B14,'Suroviny a produkty'!$A$3:$I$1045,8,FALSE)) ->  | E14: =IF($C14="","",VLOOKUP($B14,'Suroviny a produkty'!$A$3:$I$1045,7,FALSE)) ->  | F14: 0 | G14: Plátky ze šišky | H14: 15 | I14: ks
B15: Zelí | D15: =IF($C15="","",VLOOKUP($B15,'Suroviny a produkty'!$A$3:$I$1045,8,FALSE)) ->  | E15: =IF($C15="","",VLOOKUP($B15,'Suroviny a produkty'!$A$3:$I$1045,7,FALSE)) ->  | F15: 0 | G15: Porce ze šišky | H15: 3 | I15: porcí
A16: =IF($B16="","",VLOOKUP($B16,'Suroviny a produkty'!$A$3:$I$1045,7,FALSE)) -> 0.03022528571 | B16: Zelí sterilované | C16: 1200 | D16: =IF($C16="","",VLOOKUP($B16,'Suroviny a produkty'!$A$3:$I$1045,8,FALSE)) -> g | E16: =IF($C16="","",VLOOKUP($B16,'Suroviny a produkty'!$A$3:$I$1045,7,FALSE)) -> 0.03022528571 | F16: 36.27034286 | G16: Plátky na porci | H16: 5 | I16: ks
A17: =IF($B17="","",VLOOKUP($B17,'Suroviny a produkty'!$A$3:$I$1045,7,FALSE)) -> 0.012535 | B17: Cibule | C17: 150 | D17: =IF($C17="","",VLOOKUP($B17,'Suroviny a produkty'!$A$3:$I$1045,8,FALSE)) -> g | E17: =IF($C17="","",VLOOKUP($B17,'Suroviny a produkty'!$A$3:$I$1045,7,FALSE)) -> 0.012535 | F17: 1.88025
A18: =IF($B18="","",VLOOKUP($B18,'Suroviny a produkty'!$A$3:$I$1045,7,FALSE)) -> 0.0180665 | B18: Cukr | C18: 75 | D18: =IF($C18="","",VLOOKUP($B18,'Suroviny a produkty'!$A$3:$I$1045,8,FALSE)) -> g | E18: =IF($C18="","",VLOOKUP($B18,'Suroviny a produkty'!$A$3:$I$1045,7,FALSE)) -> 0.0180665 | F18: 1.3549875
A19: =IF($B19="","",VLOOKUP($B19,'Suroviny a produkty'!$A$3:$I$1045,7,FALSE)) -> 0.059731 | B19: Olej | C19: 10 | D19: =IF($C19="","",VLOOKUP($B19,'Suroviny a produkty'!$A$3:$I$1045,8,FALSE)) -> g | E19: =IF($C19="","",VLOOKUP($B19,'Suroviny a produkty'!$A$3:$I$1045,7,FALSE)) -> 0.059731 | F19: 0.59731
A20: =IF($B20="","",VLOOKUP($B20,'Suroviny a produkty'!$A$3:$I$1045,7,FALSE)) -> 0.005957 | B20: Sůl | C20: 15 | D20: =IF($C20="","",VLOOKUP($B20,'Suroviny a produkty'!$A$3:$I$1045,8,FALSE)) -> g | E20: =IF($C20="","",VLOOKUP($B20,'Suroviny a produkty'!$A$3:$I$1045,7,FALSE)) -> 0.005957 | F20: 0.089355
A21: =IF($B21="","",VLOOKUP($B21,'Suroviny a produkty'!$A$3:$I$1045,7,FALSE)) -> 0.011546 | B21: Ocet | C21: 3 | D21: =IF($C21="","",VLOOKUP($B21,'Suroviny a produkty'!$A$3:$I$1045,8,FALSE)) -> g | E21: =IF($C21="","",VLOOKUP($B21,'Suroviny a produkty'!$A$3:$I$1045,7,FALSE)) -> 0.011546 | F21: 0.034638
A22: =IF($B22="","",VLOOKUP($B22,'Suroviny a produkty'!$A$3:$I$1045,7,FALSE)) -> 0.016376 | B22: Mouka hladká | C22: 0 | D22: =IF($C22="","",VLOOKUP($B22,'Suroviny a produkty'!$A$3:$I$1045,8,FALSE)) -> g | E22: =IF($C22="","",VLOOKUP($B22,'Suroviny a produkty'!$A$3:$I$1045,7,FALSE)) -> 0.016376 | F22: 0
A23: =IF($B23="","",VLOOKUP($B23,'Suroviny a produkty'!$A$3:$I$1045,7,FALSE)) ->  | D23: =IF($C23="","",VLOOKUP($B23,'Suroviny a produkty'!$A$3:$I$1045,8,FALSE)) ->  | E23: =IF($C23="","",VLOOKUP($B23,'Suroviny a produkty'!$A$3:$I$1045,7,FALSE)) ->  | F23: 0
A24: =IF($B24="","",VLOOKUP($B24,'Suroviny a produkty'!$A$3:$I$1045,7,FALSE)) ->  | D24: =IF($C24="","",VLOOKUP($B24,'Suroviny a produkty'!$A$3:$I$1045,8,FALSE)) ->  | E24: =IF($C24="","",VLOOKUP($B24,'Suroviny a produkty'!$A$3:$I$1045,7,FALSE)) ->  | F24: 0
A25: =IF($B25="","",VLOOKUP($B25,'Suroviny a produkty'!$A$3:$I$1045,7,FALSE)) ->  | D25: =IF($C25="","",VLOOKUP($B25,'Suroviny a produkty'!$A$3:$I$1045,8,FALSE)) ->  | E25: =IF($C25="","",VLOOKUP($B25,'Suroviny a produkty'!$A$3:$I$1045,7,FALSE)) ->  | F25: 0
A26: =IF($B26="","",VLOOKUP($B26,'Suroviny a produkty'!$A$3:$I$1045,7,FALSE)) ->  | D26: =IF($C26="","",VLOOKUP($B26,'Suroviny a produkty'!$A$3:$I$1045,8,FALSE)) ->  | E26: =IF($C26="","",VLOOKUP($B26,'Suroviny a produkty'!$A$3:$I$1045,7,FALSE)) ->  | F26: 0
A27: =IF($B27="","",VLOOKUP($B27,'Suroviny a produkty'!$A$3:$I$1045,7,FALSE)) ->  | D27: =IF($C27="","",VLOOKUP($B27,'Suroviny a produkty'!$A$3:$I$1045,8,FALSE)) ->  | E27: =IF($C27="","",VLOOKUP($B27,'Suroviny a produkty'!$A$3:$I$1045,7,FALSE)) ->  | F27: 0
A28: =IF($B28="","",VLOOKUP($B28,'Suroviny a produkty'!$A$3:$I$1045,7,FALSE)) ->  | D28: =IF($C28="","",VLOOKUP($B28,'Suroviny a produkty'!$A$3:$I$1045,8,FALSE)) ->  | E28: =IF($C28="","",VLOOKUP($B28,'Suroviny a produkty'!$A$3:$I$1045,7,FALSE)) ->  | F28: 0
A29: =IF($B29="","",VLOOKUP($B29,'Suroviny a produkty'!$A$3:$I$1045,7,FALSE)) ->  | D29: =IF($C29="","",VLOOKUP($B29,'Suroviny a produkty'!$A$3:$I$1045,8,FALSE)) ->  | E29: =IF($C29="","",VLOOKUP($B29,'Suroviny a produkty'!$A$3:$I$1045,7,FALSE)) ->  | F29: 0
A30: =IF($B30="","",VLOOKUP($B30,'Suroviny a produkty'!$A$3:$I$1045,7,FALSE)) ->  | D30: =IF($C30="","",VLOOKUP($B30,'Suroviny a produkty'!$A$3:$I$1045,8,FALSE)) ->  | E30: =IF($C30="","",VLOOKUP($B30,'Suroviny a produkty'!$A$3:$I$1045,7,FALSE)) ->  | F30: 0
A31: =IF($B31="","",VLOOKUP($B31,'Suroviny a produkty'!$A$3:$I$1045,7,FALSE)) ->  | D31: =IF($C31="","",VLOOKUP($B31,'Suroviny a produkty'!$A$3:$I$1045,8,FALSE)) ->  | E31: =IF($C31="","",VLOOKUP($B31,'Suroviny a produkty'!$A$3:$I$1045,7,FALSE)) ->  | F31: 0
A32: =IF($B32="","",VLOOKUP($B32,'Suroviny a produkty'!$A$3:$I$1045,7,FALSE)) ->  | D32: =IF($C32="","",VLOOKUP($B32,'Suroviny a produkty'!$A$3:$I$1045,8,FALSE)) ->  | E32: =IF($C32="","",VLOOKUP($B32,'Suroviny a produkty'!$A$3:$I$1045,7,FALSE)) ->  | F32: 0
